Workbook

Sheet 6eme
A1: NOM | B1: PRENOM | C1: SEXE | D1: NE(E) LE | E1: DIV.
N32: Travail collaboratif des enseignants d'EPS E.Tua, S.Traclet, O.Plisson, S.Creuzet et V.Mouquet Collège E.Cizain de Montluel Fichier conçu par V.Mouquet

Sheet Sheet2 (hidden)
B2: Niveaux d'acquisition | C2: Description | E2: Evaluation | F2: Note
B3: A (acquis) | C3: ACQUIS – je sais faire | D3: 0.75 | E3: =CONCATENATE("Supérieur à ",D3*100," %") -> Supérieur à 75 % | F3: 20/20
B4: PA (presque) | C4: PRESQUE ACQUIS – je sais faire mais je me trompe encore parfois | D4: 0.5 | E4: =CONCATENATE("Entre ",D4*100," % et ",D3*100," %") -> Entre 50 % et 75 % | F4: 15/20
B5: DA (début) | C5: D : DEBUT D’ACQUISITION | D5: 0.25 | E5: =CONCATENATE("Entre ",D5*100," % et ",D4*100," %") -> Entre 25 % et 50 % | F5: 10/20
B6: NA (non) | C6: N : NON ACQUIS | D6: 0 | E6: =CONCATENATE("Entre ",D6*100," % et ",D5*100," %") -> Entre 0 % et 25 % | F6: 5/20
E8: La note pour chaque APSA prend en considération le niveau d'acquisition de chaque item ET le coefficient qui lui a été choisi. Les items "non évalués" ne sont pas pris en compte.

Sheet Classe EXEMPLE
F1: RELAIS / VITESSE (Activité athlétique) CA1 : PRODUIRE UNE PERFORMANCE OPTIMALE MESURABLE A UNE ECHEANCE DONNEE | Q1: COURSE D’ORIENTATION (Activité de pleine nature) CA2- ADAPTER SES DEPLACEMENTS A DES ENVIRONNEMENTS VARIES | AB1: GYMNASTIQUE (activité gymnique) CA3- S’EXPRIMER DEVANT LES AUTRES PAR UNE PRESTATION ARTISTIQUE ET /OU ACROBATIQUE | AP1: DANSE (activité artistique) CA3- S’EXPRIMER DEVANT LES AUTRES PAR UNE PRESTATION ARTISTIQUE ET /OU ACROBATIQUE | BD1: NATATION Elèves savoir nager acquis CA1 : PRODUIRE UNE PERFORMANCE OPTIMALE MESURABLE A UNE ECHEANCE DONNEE | BO1: NATATION Elèves savoir nager non acquis CA1 : PRODUIRE UNE PERFORMANCE OPTIMALE MESURABLE A UNE ECHEANCE DONNEE | BZ1: ULTIMATE (Coopération et d'Opposition : Sport Collectif) CP4- Conduire et maîtriser un affrontement collectif ou interindividuel | CP1: =COUNTIF(D5:D246,">0")+4 -> 8
F2: Quand je suis donneur, j'ai une posture de départ debout me permettant une mise en action rapide et je maintiens ma vitesse maximale jusqu'à la transmission du témoin et sans perdre l'équilibre | G2: Quand je suis receveur, j'ai une posture de départ me permettant une mise en action à vitesse maximum. | H2: Quand je suis receveur Je fais confiance à mon partenaire, j'ose partir vite sans me retourner. | I2: Je sais ce qu'est : un donneur, un receveur, une zone de transmission, un témoin, une marque. | J2: Quand je suis receveur J'ai trouvé la meilleure marque de passage pour coordonner les vitesses donneur/ relayeur. Je reçois le témoin tout en conservant ma vitesse | K2: Quand je cours, je cours en ligne droite, sans sortir du couloir (Je franchis la ligne d'arrivée à ma vitesse maximale) | L2: Je sais prendre des repères liés à la transmission : le positionnement dans le couloir, le code de signal " HOP ", coordonner la main du donneur et du receveur. | M2: Quand je suis donneur et receveur : Je me concentre pour être disponible au départ et lors de la transmission | N2: Sécurité =je reviens au départ sur les côtés | O2: Je sais me repérer sur la piste : départ, arrivée et zone de transmission. | P2: J'assure et me montre responsable des rôles précis et des tâches simples (observation, chronométrage…) qui me sont confiées= nécessaires au fonctionnement du groupe. Je suis attentif et vigilant ! | Q2: Je mémorise les éléments marquants (points d'appui) entre deux points de décision, je les repère pendant la course. | R2: Je cours d'un point de décision à l'autre | S2: J'identifie et j'associe les éléments simples du terrain avec leur représentation sur la carte. J'identifie et j'associe les lignes simples de la carte avec leurs présences sur le terrain | T2: Je me montre responsable : je note avec précision temps de départ et temps d'arrivée. J'utilise des documents mis à disposition | U2: Je connais le vocabulaire spécifique (élément de repérage, élément de déplacement, ligne, point d'appui, point de décision, postes, point de ralliement). | V2: Je connais les éléments de terrain niveau 1 tels que chemin, sentier, route, construction, mare, espace découvert, limite de végétation. Je connais la légende simplifiée, les couleurs de cartographie. Je connais l'échelle (tout ce qui est sur le terrain n'est pas forcément sur la carte) | W2: J'oriente la carte, je la réoriente à chaque changement de direction. | X2: Je choisis et planifie mon itinéraire d'un point à un autre en m'appuyant sur des éléments connus (chemins, carrefour, maison, lac, source, ponts, limites de végétation nettes). | Y2: J'ose m'engager: seul dans un milieu connu / à 2 ou 3 dans un milieu peu connu. | Z2: J'échange avec mon partenaire les informations observées sur la carte et le terrain pour orienter la carte et choisir l'itinéraire. J'adapte l'allure en fonction de lui | AA2: Je respecte, les limites et les consignes liées à la sécurité : les limites d'espace, les limites de temps (heure de retour), le point de ralliement, procédures à suivre en cas de danger (blessures, animaux). | AB2: Je tourne en avant corps groupé en roulant autour d'un axe transversal (roulade avant) | AC2: Je tourne en arrière corps groupé autour d'un axe transversal (roulade arrière) | AD2: Je me renverse sur les bras tendus vers l'avant en appui manuel (ATR) | AE2: Je me renverse sur les bras tendus latéralement (roue) | AF2: Je franchis par redressement (groupé ou écart) le cheval ou table de saut | AG2: Je réalise et coordonne des actions motrices variées (saut, pas chassés, pivot) | AH2: J'évalue le niveau de difficulté des éléments gymniques, à partir d'un ou deux critères de réussite simples et précis (j'applique le code). " Se renverser" -corps aligné : mains- épaules- bassin à la verticale, regard devant (si verticale) ou sur les mains (si verticale renversée). "Tourner" corps groupé : contact menton - poitrine, dos rond, regard sur le ventre. | AI2: Je me concentre avant d'agir et je reste vigilant lors de la réalisation des éléments gymniques | AJ2: J'aide un camarade du début à la fin de l'élément. Je me situe au maximum à une distance d'un bras tendu du gymnaste. -Je réalise les gestes d'aide en accompagnant et en tenant le gymnaste sur les zones précisées et imposées. | AK2: Je connais le vocabulaire spécifique : roulades, ATR, roue, saut, balancer, renversement, entrée, sortie, appui, suspension, le gainage du corps, nom des agrès et du matériel utilisés. | AL2: Je suis attentif et respectueux du travail des autres. | AM2: Je suis coopératif et solidaire pour installer, remettre en place, ranger le matériel. | AN2: Je maîtrise mes émotions pour me confronter au regard des autres | AO2: Je connais et j'applique les règles de sécurité par rapport au matériel et à l'exécution des éléments gymniques. | AP2: Danseur : Je mémorise les différentes formes corporelles à reproduire | AQ2: Danseur : Je me concentre et je reste concentré | AR2: Danseur : Je réalise des trajets moteurs précis en exploitant les directions, les plans, les volumes (avant/arrière, haut/bas, gauche/droite) | AS2: Danseur : Je coordonne mes actions avec celles des autres (les formations du groupe ) et avec la musique ou le monde sonore | AT2: Spectateur : Je repère et analyse la prestation individuelle ou collective à partir de critères simples (concentration, composition : respect des contraintes de la chorégraphie, originalité) | AU2: Danseur : j'accepte de danser devant autrui | AV2: Chorégraphe : Je suis à l'écoute, je prends les idées de chacun | AW2: Danseur : J'entre en contact simple avec mes partenaires (mains, buste, regard) | AX2: Danseur : Je joue avec les différentes qualités du mouvement (saccadé, continu, fort, faible, gestes explosifs) et les contrastes d'amplitude, de vitesse et d'énergie. | AY2: Chorégraphe : J'entre dans un projet de création à partir d'un inducteur (une histoire, des verbes d'actions, le sport…) J'ose, je propose, je fais des choix | AZ2: Chorégraphe : Je connais les principes et les procédés de composition: un début, un développement, une fin ; l'orientation / aux spectateurs ; l'utilisation de l'espace scénique ; l'organisation des formes et trajets ; les éléments de relation entre les danseurs (unisson, canon, cascade, répétition, question/réponse) | BA2: Danseur : Je m'oriente dans l'espace / au spectateur | BB2: Spectateur : Je suis disponible pour les prestations des autres | BC2: Spectateur : J'observe de façon attentive et respectueuse | BD2: Je maintiens un équilibre ventral pendant la phase de propulsion | BE2: Je maintiens un équilibre ventral pendant la respiration | BF2: Je suis capable d'expirer longuement et d'inspirer brièvement | BG2: Je recherche l'efficacité par le meilleur compromis propulsion (trajet des bras) et vitesse de déplacement | BH2: Lors de la coulée ventrale, je glisse pour m'économiser | BI2: Je sais observer : compter les nombres de coups de bras | BJ2: Je sais chronométrer avec précision | BK2: Je connais le vocabulaire spécifique | BL2: Je gère mon échauffement pour ne pas être à bout de souffle | BM2: Je suis responsable et vigilant pour comprendre et réussir mon projet | BN2: Je suis responsable et vigilant pour ma sécurité et celle des autres | BO2: Je transforme ma position verticale en une position horizontale | BP2: J'explore la profondeur sans l'aide de matériel | BQ2: Je me déplace sur 10 m sans l'aide de matériel ni du bord | BR2: Lors de la coulée ventrale, je glisse pour m'économiser | BS2: J'entre dans l'eau en sautant et utilise mes appuis pour m'allonger et avancer pour rejoindre un point choisi | BT2: Je suis capable de réaliser des inspirations brèves qui perturbent peu mon déplacement en ventral | BU2: Je sais observer : utiliser une fiche | BV2: Je connais le vocabulaire spécifique | BW2: Je suis maître de mes émotions, mes appréhensions ne sont plus un obstacle pour moi | BX2: Je suis responsable et vigilant pour ma sécurité et celle des autres LIVRET DE VALIDATION SN | BY2: Je suis responsable et vigilant pour comprendre et réussir mon projet | BZ2: Je réceptionne à l'arrêt et à 2 mains le frisbee | CA2: Quand je suis attaquant PORTEUR: Je réalise des passes assurées en revers tendu en appréciant la distance de passe optimale. | CB2: Quand je suis attaquant PORTEUR: J'assure une transmission rapide vers un partenaire libre dans un espace proche en privilégiant la progression vers l'avant | CC2: Quand je suis attaquant NON PORTEUR Je sais utiliser un espace libre pour être à distance efficace de passe en sortant de la zone d'ombre du défenseur (rompre l'alignement et se placer à 2 mètres de lui) | CD2: Défenseur : Je sais m'interposer et gêner le porteur, perturber sa relation avec les receveurs potentiels | CE2: Quand je suis attaquant PORTEUR Je ne reste pas spectateur de ma passe et j'offre une alternative au passeur (dépasser le passe et suit) | CF2: Je sais lire et apprécier la trajectoire du frisbee | CG2: J'utilise un vocabulaire spécifique, catch, check, drope | CH2: Je sais prendre le temps pour choisir un partenaire efficace (ne pas se débarrasser du disque ou ne pas choisir de manière affective) | CI2: Quand je suis attaquant PORTEUR Je sais fonctionner en toute sécurité avec un disque pouvant être un projectile | CJ2: Je connais les règles principales de jeu (pas de déplacement avec le frisbee en main, un seul défenseur sur le porteur et à distance, zone d'en but et modalités de marque) | CK2: J'agis avec les autres avec Fair -Play | CL2: Auto arbitrage : je sais appliquer les règles et les faire appliquer. Je peux annoncer et expliquer une faute | CM2: Je me concentre et ne me disperse pas lors d'une phase d'observation | CN2: D1 | CS2: BILAN Domaine 1 | CT2: D2 | CY2: BILAN Domaine 2 | CZ2: D3 | DE2: BILAN Domaine 3 | DF2: D4 | DK2: BILAN Domaine 4 | DL2: D5 | DQ2: BILAN Domaine 5 | DR2: Relais Vitesse | EC2: Relais Vitesse | EE2: Course d'orientation | EP2: CO | ER2: Gymnastique | FF2: Gym | FH2: Danse | FV2: Danse | FX2: Natation Niv 1 | GI2: Natation Niv 1 | GK2: Natation Niv 0 | GV2: Natation Niv 0 | GX2: Ultimate | HL2: Ultimate
A3: Coefficients | F3: 1 | G3: 1 | H3: 0.5 | I3: 0.5 | J3: 1 | K3: 1 | L3: 0.75 | M3: 0.75 | N3: 0.5 | O3: 0.5 | P3: 0.75 | Q3: 0.5 | R3: 0.75 | S3: 1 | T3: 0.5 | U3: 0.5 | V3: 1 | W3: 1 | X3: 0.5 | Y3: 0.5 | Z3: 0.5 | AA3: 0.75 | AB3: 1 | AC3: 1 | AD3: 1 | AE3: 1 | AF3: 1 | AG3: 0.5 | AH3: 0.5 | AI3: 0.5 | AJ3: 0.75 | AK3: 0.5 | AL3: 0.75 | AM3: 0.75 | AN3: 0.5 | AO3: 0.75 | AP3: 1 | AQ3: 0.5 | AR3: 1 | AS3: 1 | AT3: 0.5 | AU3: 0.5 | AV3: 0.5 | AW3: 1 | AX3: 1 | AY3: 0.5 | AZ3: 0.5 | BA3: 1 | BB3: 0.5 | BC3: 0.5 | BD3: 1 | BE3: 1 | BF3: 0.75 | BG3: 0.5 | BH3: 0.75 | BI3: 0.5 | BJ3: 0.5 | BK3: 0.5 | BL3: 0.5 | BM3: 0.5 | BN3: 0.75 | BO3: 1 | BP3: 1 | BQ3: 1 | BR3: 0.75 | BS3: 0.75 | BT3: 1 | BU3: 0.5 | BV3: 0.5 | BW3: 0.5 | BX3: 0.75 | BY3: 0.5 | BZ3: 0.75 | CA3: 1 | CB3: 1 | CC3: 1 | CD3: 0.75 | CE3: 0.75 | CF3: 1 | CG3: 0.5 | CH3: 0.5 | CI3: 0.5 | CJ3: 0.5 | CK3: 0.5 | CL3: 0.5 | CM3: 0.5 | DR3: =F3 -> 1 | DS3: =G3 -> 1 | DT3: 0.5 | DU3: 0.5 | DV3: 1 | DW3: 1 | DX3: 0.75 | DY3: 0.75 | DZ3: 0.5 | EA3: 0.5 | EB3: 0.75 | EE3: =Q3 -> 0.5 | EF3: 0.75 | EG3: 1 | EH3: 0.5 | EI3: 0.5 | EJ3: 1 | EK3: 1 | EL3: 0.5 | EM3: 0.5 | EN3: 0.5 | EO3: 0.75 | ER3: =AB3 -> 1 | ES3: 1 | ET3: 1 | EU3: 1 | EV3: 1 | EW3: 0.5 | EX3: 0.5 | EY3: 0.5 | EZ3: 0.75 | FA3: 0.5 | FB3: 0.75 | FC3: 0.75 | FD3: 0.5 | FE3: 0.75 | FH3: =AP3 -> 1 | FI3: 0.5 | FJ3: 1 | FK3: 1 | FL3: 0.5 | FM3: 0.5 | FN3: 0.5 | FO3: 1 | FP3: 1 | FQ3: 0.5 | FR3: 0.5 | FS3: 1 | FT3: 0.5 | FU3: 0.5 | FX3: =BD3 -> 1 | FY3: 1 | FZ3: 0.75 | GA3: 0.5 | GB3: 0.75 | GC3: 0.5 | GD3: 0.5 | GE3: 0.5 | GF3: 0.5 | GG3: 0.5 | GH3: 0.75 | GK3: =BO3 -> 1 | GL3: 1 | GM3: 1 | GN3: 0.75 | GO3: 0.75 | GP3: 1 | GQ3: 0.5 | GR3: 0.5 | GS3: 0.5 | GT3: 0.75 | GU3: 0.5 | GX3: =BZ3 -> 0.75 | GY3: 1 | GZ3: 1 | HA3: 1 | HB3: 0.75 | HC3: 0.75 | HD3: 1 | HE3: 0.5 | HF3: 0.5 | HG3: 0.5 | HH3: 0.5 | HI3: 0.5 | HJ3: 0.5 | HK3: 0.5
A4: NOM | B4: PRENOM | C4: SEXE | D4: NE(E) LE | E4: DIV. | F4: D1 | G4: D1 | H4: D1 | I4: D1 | J4: D2 | K4: D2 | L4: D2 | M4: D2 | N4: D3 | O4: D3 | P4: D4 | Q4: D1 | R4: D1 | S4: D2 | T4: D2 | U4: D2 | V4: D2 | W4: D3 | X4: D3 | Y4: D3 | Z4: D3 | AA4: D3 | AB4: D1 | AC4: D1 | AD4: D1 | AE4: D1 | AF4: D1 | AG4: D1 | AH4: D2 | AI4: D2 | AJ4: D3 | AK4: D3 | AL4: D3 | AM4: D3 | AN4: D4 | AO4: D4 | AP4: D1 | AQ4: D1 | AR4: D1 | AS4: D3 | AT4: D3 | AU4: D3 | AV4: D3 | AW4: D5 | AX4: D5 | AY4: D5 | AZ4: D5 | BA4: D5 | BB4: D5 | BC4: D5 | BD4: D1 | BE4: D1 | BF4: D1 | BG4: D1 | BH4: D1 | BI4: D2 | BJ4: D2 | BK4: D3 | BL4: D4 | BM4: D4 | BN4: D4 | BO4: D1 | BP4: D1 | BQ4: D1 | BR4: D1 | BS4: D1 | BT4: D1 | BU4: D2 | BV4: D3 | BW4: D4 | BX4: D4 | BY4: D4 | BZ4: D1 | CA4: D1 | CB4: D1 | CC4: D1 | CD4: D1 | CE4: D1 | CF4: D1 | CG4: D1 | CH4: D1 | CI4: D3 | CJ4: D3 | CK4: D3 | CL4: D3 | CM4: D3 | CN4: TB | CO4: MS | CP4: MF | CQ4: MI | CR4: %age évalué | CS4: %age Aquis | CT4: TB | CU4: MS | CV4: MF | CW4: MI | CX4: %age évalué | CY4: %age Aquis | CZ4: TB | DA4: MS | DB4: MF | DC4: MI | DD4: %age évalué | DE4: %age Aquis | DF4: TB | DG4: MS | DH4: MF | DI4: MI | DJ4: %age évalué | DK4: %age Aquis | DL4: TB | DM4: MS | DN4: MF | DO4: MI | DP4: %age évalué | DQ4: %age Aquis | DR4: =F4 -> D1 | DS4: D1 | DT4: D1 | DU4: D1 | DV4: D2 | DW4: D2 | DX4: D2 | DY4: D2 | DZ4: D3 | EA4: D3 | EB4: D4 | EC4: Note | ED4: % Acquis | EE4: D1 | EF4: D1 | EG4: D2 | EH4: D2 | EI4: D2 | EJ4: D2 | EK4: D3 | EL4: D3 | EM4: D3 | EN4: D3 | EO4: D3 | EP4: Note | EQ4: % Acquis | ER4: D1 | ES4: D1 | ET4: D1 | EU4: D1 | EV4: D1 | EW4: D1 | EX4: D2 | EY4: D2 | EZ4: D3 | FA4: D3 | FB4: D3 | FC4: D3 | FD4: D4 | FE4: D4 | FF4: Note | FG4: % Acquis | FH4: D1 | FI4: D1 | FJ4: D1 | FK4: D3 | FL4: D3 | FM4: D3 | FN4: D3 | FO4: D5 | FP4: D5 | FQ4: D5 | FR4: D5 | FS4: D5 | FT4: D5 | FU4: D5 | FV4: Note | FW4: % Acquis | FX4: D1 | FY4: D1 | FZ4: D1 | GA4: D1 | GB4: D1 | GC4: D2 | GD4: D2 | GE4: D3 | GF4: D4 | GG4: D4 | GH4: D4 | GI4: Note | GJ4: % Acquis | GK4: D1 | GL4: D1 | GM4: D1 | GN4: D1 | GO4: D1 | GP4: D1 | GQ4: D2 | GR4: D3 | GS4: D4 | GT4: D4 | GU4: D4 | GV4: Note | GW4: % Acquis | GX4: D1 | GY4: D1 | GZ4: D1 | HA4: D1 | HB4: D1 | HC4: D1 | HD4: D1 | HE4: D1 | HF4: D1 | HG4: D3 | HH4: D3 | HI4: D3 | HJ4: D3 | HK4: D3 | HL4: Note | HM4: % Acquis
A5: Didier | B5: Jacques | C5: M | D5: 2005-08-14 | E5: 6A | F5: MS | G5: MF | H5: MF | I5: MI | J5: TB | K5: MS | L5: MF | M5: MF | N5: MS | O5: MS | P5: TB | Q5: MS | R5: MS | S5: MI | T5: MF | U5: MF | V5: TB | W5: MI | X5: MI | AB5: MS | AC5: MS | AD5: MF | AP5: TB | AQ5: MS | BD5: MS | BE5: TB | BF5: MF | BG5: MI | BH5: TB | BI5: MS | BJ5: TB | BK5: TB | BL5: MF | BM5: MF | BN5: TB | BO5: MF | BP5: TB | BZ5: MS | CA5: MF | CB5: MF | CH5: MS | CN5: =IF($D5>0,COUNTIFS($F5:$CM5,CN$4,$F$4:$CM$4,$CN$2),"") -> 4 | CO5: =IF($D5>0,COUNTIFS($F5:$CM5,CO$4,$F$4:$CM$4,$CN$2),"") -> 9 | CP5: 7 | CQ5: 2 | CR5: =1-(COUNTIFS($F5:$CM5,"",$F$4:$CM$4,$CN$2)/COUNTIFS($F$4:$CM$4,$CN$2)) -> 0.6285714286 | CS5: =IF($D5>0,IF(SUM(CN5:CQ5)>0,(CN5+CO5*0.75+CP5*0.5)/SUM(CN5:CQ5),"NNot"),"") -> 0.6477272727 | CT5: =IF($D5>0,COUNTIFS($F5:$CM5,CT$4,$F$4:$CM$4,$CT$2),"") -> 3 | CU5: =IF($D5>0,COUNTIFS($F5:$CM5,CU$4,$F$4:$CM$4,$CT$2),"") -> 2 | CV5: 4 | CW5: 1 | CX5: =1-(COUNTIFS($F5:$CM5,"",$F$4:$CM$4,$CT$2)/COUNTIFS($F$4:$CM$4,$CT$2)) -> 0.7692307692 | CY5: =IF(SUM(CT5:CW5)>0,(CT5+CU5*0.75+CV5*0.5)/SUM(CT5:CW5),"NNot") -> 0.65 | CZ5: =IF($D5>0,COUNTIFS($F5:$CM5,CZ$4,$F$4:$CM$4,$CZ$2),"") -> 1 | DA5: =IF($D5>0,COUNTIFS($F5:$CM5,DA$4,$F$4:$CM$4,$CZ$2),"") -> 2 | DB5: 0 | DC5: =IF($D5>0,COUNTIFS($F5:$CM5,DC$4,$F$4:$CM$4,$CZ$2),"") -> 2 | DD5: =1-(COUNTIFS($F5:$CM5,"",$F$4:$CM$4,$CZ$2)/COUNTIFS($F$4:$CM$4,$CZ$2)) -> 0.2272727273 | DE5: =IF(SUM(CZ5:DC5)>0,(CZ5+DA5*0.75+DB5*0.5)/SUM(CZ5:DC5),"NNot") -> 0.5 | DF5: =IF($D5>0,COUNTIFS($F5:$CM5,DF$4,$F$4:$CM$4,$DF$2),"") -> 2 | DG5: =IF($D5>0,COUNTIFS($F5:$CM5,DG$4,$F$4:$CM$4,$DF$2),"") -> 0 | DH5: 2 | DI5: =IF($D5>0,COUNTIFS($F5:$CM5,DI$4,$F$4:$CM$4,$DF$2),"") -> 0 | DJ5: =1-(COUNTIFS($F5:$CM5,"",$F$4:$CM$4,$DF$2)/COUNTIFS($F$4:$CM$4,$DF$2)) -> 0.4444444444 | DK5: =IF(SUM(DF5:DI5)>0,(DF5+DG5*0.75+DH5*0.5)/SUM(DF5:DI5),"NNot") -> 0.75 | DL5: =IF($D5>0,COUNTIFS($F5:$CM5,DL$4,$F$4:$CM$4,$DL$2),"") -> 0 | DM5: =IF($D5>0,COUNTIFS($F5:$CM5,DM$4,$F$4:$CM$4,$DL$2),"") -> 0 | DN5: 0 | DO5: 0 | DP5: =1-(COUNTIFS($F5:$CM5,"",$F$4:$CM$4,$DL$2)/COUNTIFS($F$4:$CM$4,$DL$2)) -> 0 | DQ5: =IF(SUM(DL5:DO5)>0,(DL5+DM5*0.75+DN5*0.5)/SUM(DL5:DO5),"NNot") -> NNot | DR5: =IF(F5=Listedechoix!$A$1,20,IF(F5=Listedechoix!$A$2,15,IF(F5=Listedechoix!$A$3,10,IF(F5=Listedechoix!$A$4,5,0)))) -> 15 | DS5: =IF(G5=Listedechoix!$A$1,20,IF(G5=Listedechoix!$A$2,15,IF(G5=Listedechoix!$A$3,10,IF(G5=Listedechoix!$A$4,5,0)))) -> 10 | DT5: =IF(H5=Listedechoix!$A$1,20,IF(H5=Listedechoix!$A$2,15,IF(H5=Listedechoix!$A$3,10,IF(H5=Listedechoix!$A$4,5,0)))) -> 10 | DU5: =IF(I5=Listedechoix!$A$1,20,IF(I5=Listedechoix!$A$2,15,IF(I5=Listedechoix!$A$3,10,IF(I5=Listedechoix!$A$4,5,0)))) -> 5 | DV5: =IF(J5=Listedechoix!$A$1,20,IF(J5=Listedechoix!$A$2,15,IF(J5=Listedechoix!$A$3,10,IF(J5=Listedechoix!$A$4,5,0)))) -> 20 | DW5: =IF(K5=Listedechoix!$A$1,20,IF(K5=Listedechoix!$A$2,15,IF(K5=Listedechoix!$A$3,10,IF(K5=Listedechoix!$A$4,5,0)))) -> 15 | DX5: =IF(L5=Listedechoix!$A$1,20,IF(L5=Listedechoix!$A$2,15,IF(L5=Listedechoix!$A$3,10,IF(L5=Listedechoix!$A$4,5,0)))) -> 10 | DY5: =IF(M5=Listedechoix!$A$1,20,IF(M5=Listedechoix!$A$2,15,IF(M5=Listedechoix!$A$3,10,IF(M5=Listedechoix!$A$4,5,0)))) -> 10 | DZ5: =IF(N5=Listedechoix!$A$1,20,IF(N5=Listedechoix!$A$2,15,IF(N5=Listedechoix!$A$3,10,IF(N5=Listedechoix!$A$4,5,0)))) -> 15 | EA5: =IF(O5=Listedechoix!$A$1,20,IF(O5=Listedechoix!$A$2,15,IF(O5=Listedechoix!$A$3,10,IF(O5=Listedechoix!$A$4,5,0)))) -> 15 | EB5: =IF(P5=Listedechoix!$A$1,20,IF(P5=Listedechoix!$A$2,15,IF(P5=Listedechoix!$A$3,10,IF(P5=Listedechoix!$A$4,5,0)))) -> 20 | EC5: =IF(SUM(DR5:EB5)>0,(DR5*$DR$3+DS5*$DS$3+DT5*$DT$3+DU5*$DU$3+DV5*$DV$3+DW5*$DW$3+DX5*$DX$3+DY5*$DY$3+DZ5*$DZ$3+EA5*$EA$3+EB5*$EB$3)/(IF(DR5>0,$DR$3,0)+IF(DS5>0,$DS$3,0)+IF(DT5>0,$DT$3,0)+IF(DU5>0,$DU$3,0)+IF(DV5>0,$DV$3,0)+IF(DW5>0,$DW$3,0)+IF(DX5>0,$DX$3,0)+IF(DY5>0,$DY$3,0)+IF(DZ5>0,$DZ$3,0)+IF(EA5>0,$EA$3,0)+IF(EB5>0,$EB$3,0)),"NNot") -> 13.63636364 | ED5: =IF(EC5="NNot","NNot",EC5/20) -> 0.6818181818 | EE5: =IF(Q5=Listedechoix!$A$1,20,IF(Q5=Listedechoix!$A$2,15,IF(Q5=Listedechoix!$A$3,10,IF(Q5=Listedechoix!$A$4,5,0)))) -> 15 | EF5: =IF(R5=Listedechoix!$A$1,20,IF(R5=Listedechoix!$A$2,15,IF(R5=Listedechoix!$A$3,10,IF(R5=Listedechoix!$A$4,5,0)))) -> 15 | EG5: =IF(S5=Listedechoix!$A$1,20,IF(S5=Listedechoix!$A$2,15,IF(S5=Listedechoix!$A$3,10,IF(S5=Listedechoix!$A$4,5,0)))) -> 5 | EH5: =IF(T5=Listedechoix!$A$1,20,IF(T5=Listedechoix!$A$2,15,IF(T5=Listedechoix!$A$3,10,IF(T5=Listedechoix!$A$4,5,0)))) -> 10 | EI5: =IF(U5=Listedechoix!$A$1,20,IF(U5=Listedechoix!$A$2,15,IF(U5=Listedechoix!$A$3,10,IF(U5=Listedechoix!$A$4,5,0)))) -> 10 | EJ5: =IF(V5=Listedechoix!$A$1,20,IF(V5=Listedechoix!$A$2,15,IF(V5=Listedechoix!$A$3,10,IF(V5=Listedechoix!$A$4,5,0)))) -> 20 | EK5: =IF(W5=Listedechoix!$A$1,20,IF(W5=Listedechoix!$A$2,15,IF(W5=Listedechoix!$A$3,10,IF(W5=Listedechoix!$A$4,5,0)))) -> 5 | EL5: =IF(X5=Listedechoix!$A$1,20,IF(X5=Listedechoix!$A$2,15,IF(X5=Listedechoix!$A$3,10,IF(X5=Listedechoix!$A$4,5,0)))) -> 5 | EM5: =IF(Y5=Listedechoix!$A$1,20,IF(Y5=Listedechoix!$A$2,15,IF(Y5=Listedechoix!$A$3,10,IF(Y5=Listedechoix!$A$4,5,0)))) -> 0 | EN5: =IF(Z5=Listedechoix!$A$1,20,IF(Z5=Listedechoix!$A$2,15,IF(Z5=Listedechoix!$A$3,10,IF(Z5=Listedechoix!$A$4,5,0)))) -> 0 | EO5: =IF(AA5=Listedechoix!$A$1,20,IF(AA5=Listedechoix!$A$2,15,IF(AA5=Listedechoix!$A$3,10,IF(AA5=Listedechoix!$A$4,5,0)))) -> 0 | EP5: =IF(SUM(EE5:EO5)>0,(EE5*$EE$3+EF5*$EF$3+EG5*$EG$3+EH5*$EH$3+EI5*$EI$3+EJ5*$EJ$3+EK5*$EK$3+EL5*$EL$3+EM5*$EM$3+EN5*$EN$3+EO5*$EO$3)/(IF(EE5>0,$EE$3,0)+IF(EF5>0,$EF$3,0)+IF(EG5>0,$EG$3,0)+IF(EH5>0,$EH$3,0)+IF(EI5>0,$EI$3,0)+IF(EJ5>0,$EJ$3,0)+IF(EK5>0,$EK$3,0)+IF(EL5>0,$EL$3,0)+IF(EM5>0,$EM$3,0)+IF(EN5>0,$EN$3,0)+IF(EO5>0,$EO$3,0)),"NNot") -> 10.65217391 | EQ5: =IF(EP5="NNot","NNot",EP5/20) -> 0.5326086957 | ER5: =IF(AB5=Listedechoix!$A$1,20,IF(AB5=Listedechoix!$A$2,15,IF(AB5=Listedechoix!$A$3,10,IF(AB5=Listedechoix!$A$4,5,0)))) -> 15 | ES5: =IF(AC5=Listedechoix!$A$1,20,IF(AC5=Listedechoix!$A$2,15,IF(AC5=Listedechoix!$A$3,10,IF(AC5=Listedechoix!$A$4,5,0)))) -> 15 | ET5: =IF(AD5=Listedechoix!$A$1,20,IF(AD5=Listedechoix!$A$2,15,IF(AD5=Listedechoix!$A$3,10,IF(AD5=Listedechoix!$A$4,5,0)))) -> 10 | EU5: =IF(AE5=Listedechoix!$A$1,20,IF(AE5=Listedechoix!$A$2,15,IF(AE5=Listedechoix!$A$3,10,IF(AE5=Listedechoix!$A$4,5,0)))) -> 0 | EV5: =IF(AF5=Listedechoix!$A$1,20,IF(AF5=Listedechoix!$A$2,15,IF(AF5=Listedechoix!$A$3,10,IF(AF5=Listedechoix!$A$4,5,0)))) -> 0 | EW5: =IF(AG5=Listedechoix!$A$1,20,IF(AG5=Listedechoix!$A$2,15,IF(AG5=Listedechoix!$A$3,10,IF(AG5=Listedechoix!$A$4,5,0)))) -> 0 | EX5: =IF(AH5=Listedechoix!$A$1,20,IF(AH5=Listedechoix!$A$2,15,IF(AH5=Listedechoix!$A$3,10,IF(AH5=Listedechoix!$A$4,5,0)))) -> 0 | EY5: =IF(AI5=Listedechoix!$A$1,20,IF(AI5=Listedechoix!$A$2,15,IF(AI5=Listedechoix!$A$3,10,IF(AI5=Listedechoix!$A$4,5,0)))) -> 0 | EZ5: =IF(AJ5=Listedechoix!$A$1,20,IF(AJ5=Listedechoix!$A$2,15,IF(AJ5=Listedechoix!$A$3,10,IF(AJ5=Listedechoix!$A$4,5,0)))) -> 0 | FA5: =IF(AK5=Listedechoix!$A$1,20,IF(AK5=Listedechoix!$A$2,15,IF(AK5=Listedechoix!$A$3,10,IF(AK5=Listedechoix!$A$4,5,0)))) -> 0 | FB5: =IF(AL5=Listedechoix!$A$1,20,IF(AL5=Listedechoix!$A$2,15,IF(AL5=Listedechoix!$A$3,10,IF(AL5=Listedechoix!$A$4,5,0)))) -> 0 | FC5: =IF(AM5=Listedechoix!$A$1,20,IF(AM5=Listedechoix!$A$2,15,IF(AM5=Listedechoix!$A$3,10,IF(AM5=Listedechoix!$A$4,5,0)))) -> 0 | FD5: =IF(AN5=Listedechoix!$A$1,20,IF(AN5=Listedechoix!$A$2,15,IF(AN5=Listedechoix!$A$3,10,IF(AN5=Listedechoix!$A$4,5,0)))) -> 0 | FE5: =IF(AO5=Listedechoix!$A$1,20,IF(AO5=Listedechoix!$A$2,15,IF(AO5=Listedechoix!$A$3,10,IF(AO5=Listedechoix!$A$4,5,0)))) -> 0 | FF5: =IF(SUM(ER5:FE5)>0,(ER5*$ER$3+ES5*$ES$3+ET5*$ET$3+EU5*$EU$3+EV5*$EV$3+EW5*$EW$3+EX5*$EX$3+EY5*$EY$3+EZ5*$EZ$3+FA5*$FA$3+FB5*$FB$3+FC5*$FC$3+FD5*$FD$3+FE5*$FE$3)/(IF(ER5>0,$ER$3,0)+IF(ES5>0,$ES$3,0)+IF(ET5>0,$ET$3,0)+IF(EU5>0,$EU$3,0)+IF(EV5>0,$EV$3,0)+IF(EW5>0,$EW$3,0)+IF(EX5>0,$EX$3,0)+IF(EY5>0,$EY$3,0)+IF(EZ5>0,$EZ$3,0)+IF(FA5>0,$FA$3,0)+IF(FB5>0,$FB$3,0)+IF(FC5>0,$FC$3,0)+IF(FD5>0,$FD$3,0)+IF(FE5>0,$FE$3,0)),"NNot") -> 13.33333333 | FG5: =IF(FF5="NNot","NNot",FF5/20) -> 0.6666666667 | FH5: =IF(AP5=Listedechoix!$A$1,20,IF(AP5=Listedechoix!$A$2,15,IF(AP5=Listedechoix!$A$3,10,IF(AP5=Listedechoix!$A$4,5,0)))) -> 20 | FI5: =IF(AQ5=Listedechoix!$A$1,20,IF(AQ5=Listedechoix!$A$2,15,IF(AQ5=Listedechoix!$A$3,10,IF(AQ5=Listedechoix!$A$4,5,0)))) -> 15 | FJ5: =IF(AR5=Listedechoix!$A$1,20,IF(AR5=Listedechoix!$A$2,15,IF(AR5=Listedechoix!$A$3,10,IF(AR5=Listedechoix!$A$4,5,0)))) -> 0 | FK5: =IF(AS5=Listedechoix!$A$1,20,IF(AS5=Listedechoix!$A$2,15,IF(AS5=Listedechoix!$A$3,10,IF(AS5=Listedechoix!$A$4,5,0)))) -> 0 | FL5: =IF(AT5=Listedechoix!$A$1,20,IF(AT5=Listedechoix!$A$2,15,IF(AT5=Listedechoix!$A$3,10,IF(AT5=Listedechoix!$A$4,5,0)))) -> 0 | FM5: =IF(AU5=Listedechoix!$A$1,20,IF(AU5=Listedechoix!$A$2,15,IF(AU5=Listedechoix!$A$3,10,IF(AU5=Listedechoix!$A$4,5,0)))) -> 0 | FN5: =IF(AV5=Listedechoix!$A$1,20,IF(AV5=Listedechoix!$A$2,15,IF(AV5=Listedechoix!$A$3,10,IF(AV5=Listedechoix!$A$4,5,0)))) -> 0 | FO5: =IF(AW5=Listedechoix!$A$1,20,IF(AW5=Listedechoix!$A$2,15,IF(AW5=Listedechoix!$A$3,10,IF(AW5=Listedechoix!$A$4,5,0)))) -> 0 | FP5: =IF(AX5=Listedechoix!$A$1,20,IF(AX5=Listedechoix!$A$2,15,IF(AX5=Listedechoix!$A$3,10,IF(AX5=Listedechoix!$A$4,5,0)))) -> 0 | FQ5: =IF(AY5=Listedechoix!$A$1,20,IF(AY5=Listedechoix!$A$2,15,IF(AY5=Listedechoix!$A$3,10,IF(AY5=Listedechoix!$A$4,5,0)))) -> 0 | FR5: =IF(AZ5=Listedechoix!$A$1,20,IF(AZ5=Listedechoix!$A$2,15,IF(AZ5=Listedechoix!$A$3,10,IF(AZ5=Listedechoix!$A$4,5,0)))) -> 0 | FS5: =IF(BA5=Listedechoix!$A$1,20,IF(BA5=Listedechoix!$A$2,15,IF(BA5=Listedechoix!$A$3,10,IF(BA5=Listedechoix!$A$4,5,0)))) -> 0 | FT5: =IF(BB5=Listedechoix!$A$1,20,IF(BB5=Listedechoix!$A$2,15,IF(BB5=Listedechoix!$A$3,10,IF(BB5=Listedechoix!$A$4,5,0)))) -> 0 | FU5: =IF(BC5=Listedechoix!$A$1,20,IF(BC5=Listedechoix!$A$2,15,IF(BC5=Listedechoix!$A$3,10,IF(BC5=Listedechoix!$A$4,5,0)))) -> 0 | FV5: =IF(SUM(FH5:FU5)>0,(FH5*$FH$3+FI5*$FI$3+FJ5*$FJ$3+FK5*$FK$3+FL5*$FL$3+FM5*$FM$3+FN5*$FN$3+FO5*$FO$3+FP5*$FP$3+FQ5*$FQ$3+FR5*$FR$3+FS5*$FS$3+FT5*$FT$3+FU5*$FU$3)/(IF(FH5>0,$FH$3,0)+IF(FI5>0,$FI$3,0)+IF(FJ5>0,$FJ$3,0)+IF(FK5>0,$FK$3,0)+IF(FL5>0,$FL$3,0)+IF(FM5>0,$FM$3,0)+IF(FN5>0,$FN$3,0)+IF(FO5>0,$FO$3,0)+IF(FP5>0,$FP$3,0)+IF(FQ5>0,$FQ$3,0)+IF(FR5>0,$FR$3,0)+IF(FS5>0,$FS$3,0)+IF(FT5>0,$FT$3,0)+IF(FU5>0,$FU$3,0)),"NNot") -> 18.33333333 | FW5: =IF(FV5="NNot","NNot",FV5/20) -> 0.9166666667 | FX5: =IF(BD5=Listedechoix!$A$1,20,IF(BD5=Listedechoix!$A$2,15,IF(BD5=Listedechoix!$A$3,10,IF(BD5=Listedechoix!$A$4,5,0)))) -> 15 | FY5: =IF(BE5=Listedechoix!$A$1,20,IF(BE5=Listedechoix!$A$2,15,IF(BE5=Listedechoix!$A$3,10,IF(BE5=Listedechoix!$A$4,5,0)))) -> 20 | FZ5: =IF(BF5=Listedechoix!$A$1,20,IF(BF5=Listedechoix!$A$2,15,IF(BF5=Listedechoix!$A$3,10,IF(BF5=Listedechoix!$A$4,5,0)))) -> 10 | GA5: =IF(BG5=Listedechoix!$A$1,20,IF(BG5=Listedechoix!$A$2,15,IF(BG5=Listedechoix!$A$3,10,IF(BG5=Listedechoix!$A$4,5,0)))) -> 5 | GB5: =IF(BH5=Listedechoix!$A$1,20,IF(BH5=Listedechoix!$A$2,15,IF(BH5=Listedechoix!$A$3,10,IF(BH5=Listedechoix!$A$4,5,0)))) -> 20 | GC5: =IF(BI5=Listedechoix!$A$1,20,IF(BI5=Listedechoix!$A$2,15,IF(BI5=Listedechoix!$A$3,10,IF(BI5=Listedechoix!$A$4,5,0)))) -> 15 | GD5: =IF(BJ5=Listedechoix!$A$1,20,IF(BJ5=Listedechoix!$A$2,15,IF(BJ5=Listedechoix!$A$3,10,IF(BJ5=Listedechoix!$A$4,5,0)))) -> 20 | GE5: =IF(BK5=Listedechoix!$A$1,20,IF(BK5=Listedechoix!$A$2,15,IF(BK5=Listedechoix!$A$3,10,IF(BK5=Listedechoix!$A$4,5,0)))) -> 20 | GF5: =IF(BL5=Listedechoix!$A$1,20,IF(BL5=Listedechoix!$A$2,15,IF(BL5=Listedechoix!$A$3,10,IF(BL5=Listedechoix!$A$4,5,0)))) -> 10 | GG5: =IF(BM5=Listedechoix!$A$1,20,IF(BM5=Listedechoix!$A$2,15,IF(BM5=Listedechoix!$A$3,10,IF(BM5=Listedechoix!$A$4,5,0)))) -> 10 | GH5: =IF(BN5=Listedechoix!$A$1,20,IF(BN5=Listedechoix!$A$2,15,IF(BN5=Listedechoix!$A$3,10,IF(BN5=Listedechoix!$A$4,5,0)))) -> 20 | GI5: =IF(SUM(FX5:GH5)>0,(FX5*$FX$3+FY5*$FY$3+FZ5*$FZ$3+GA5*$GA$3+GB5*$GB$3+GC5*$GC$3+GD5*$GD$3+GE5*$GE$3+GF5*$GF$3+GG5*$GG$3+GH5*$GH$3)/(IF(FX5>0,$FX$3,0)+IF(FY5>0,$FY$3,0)+IF(FZ5>0,$FZ$3,0)+IF(GA5>0,$GA$3,0)+IF(GB5>0,$GB$3,0)+IF(GC5>0,$GC$3,0)+IF(GD5>0,$GD$3,0)+IF(GE5>0,$GE$3,0)+IF(GF5>0,$GF$3,0)+IF(GG5>0,$GG$3,0)+IF(GH5>0,$GH$3,0)),"NNot") -> 15.51724138 | GJ5: =IF(GI5="NNot","NNot",GI5/20) -> 0.775862069 | GK5: =IF(BO5=Listedechoix!$A$1,20,IF(BO5=Listedechoix!$A$2,15,IF(BO5=Listedechoix!$A$3,10,IF(BO5=Listedechoix!$A$4,5,0)))) -> 10 | GL5: =IF(BP5=Listedechoix!$A$1,20,IF(BP5=Listedechoix!$A$2,15,IF(BP5=Listedechoix!$A$3,10,IF(BP5=Listedechoix!$A$4,5,0)))) -> 20 | GM5: =IF(BQ5=Listedechoix!$A$1,20,IF(BQ5=Listedechoix!$A$2,15,IF(BQ5=Listedechoix!$A$3,10,IF(BQ5=Listedechoix!$A$4,5,0)))) -> 0 | GN5: =IF(BR5=Listedechoix!$A$1,20,IF(BR5=Listedechoix!$A$2,15,IF(BR5=Listedechoix!$A$3,10,IF(BR5=Listedechoix!$A$4,5,0)))) -> 0 | GO5: =IF(BS5=Listedechoix!$A$1,20,IF(BS5=Listedechoix!$A$2,15,IF(BS5=Listedechoix!$A$3,10,IF(BS5=Listedechoix!$A$4,5,0)))) -> 0 | GP5: =IF(BT5=Listedechoix!$A$1,20,IF(BT5=Listedechoix!$A$2,15,IF(BT5=Listedechoix!$A$3,10,IF(BT5=Listedechoix!$A$4,5,0)))) -> 0 | GQ5: =IF(BU5=Listedechoix!$A$1,20,IF(BU5=Listedechoix!$A$2,15,IF(BU5=Listedechoix!$A$3,10,IF(BU5=Listedechoix!$A$4,5,0)))) -> 0 | GR5: =IF(BV5=Listedechoix!$A$1,20,IF(BV5=Listedechoix!$A$2,15,IF(BV5=Listedechoix!$A$3,10,IF(BV5=Listedechoix!$A$4,5,0)))) -> 0 | GS5: =IF(BW5=Listedechoix!$A$1,20,IF(BW5=Listedechoix!$A$2,15,IF(BW5=Listedechoix!$A$3,10,IF(BW5=Listedechoix!$A$4,5,0)))) -> 0 | GT5: =IF(BX5=Listedechoix!$A$1,20,IF(BX5=Listedechoix!$A$2,15,IF(BX5=Listedechoix!$A$3,10,IF(BX5=Listedechoix!$A$4,5,0)))) -> 0 | GU5: =IF(BY5=Listedechoix!$A$1,20,IF(BY5=Listedechoix!$A$2,15,IF(BY5=Listedechoix!$A$3,10,IF(BY5=Listedechoix!$A$4,5,0)))) -> 0 | GV5: =IF(SUM(GK5:GU5)>0,(GK5*$GK$3+GL5*$GL$3+GM5*$GM$3+GN5*$GN$3+GO5*$GO$3+GP5*$GP$3+GQ5*$GQ$3+GR5*$GR$3+GS5*$GS$3+GT5*$GT$3+GU5*$GU$3)/(IF(GK5>0,$GK$3,0)+IF(GL5>0,$GL$3,0)+IF(GM5>0,$GM$3,0)+IF(GN5>0,$GN$3,0)+IF(GO5>0,$GO$3,0)+IF(GP5>0,$GP$3,0)+IF(GQ5>0,$GQ$3,0)+IF(GR5>0,$GR$3,0)+IF(GS5>0,$GS$3,0)+IF(GT5>0,$GT$3,0)+IF(GU5>0,$GU$3,0)),"NNot") -> 15 | GW5: =IF(GV5="NNot","NNot",GV5/20) -> 0.75 | GX5: =IF(BZ5=Listedechoix!$A$1,20,IF(BZ5=Listedechoix!$A$2,15,IF(BZ5=Listedechoix!$A$3,10,IF(BZ5=Listedechoix!$A$4,5,0)))) -> 15 | GY5: =IF(CA5=Listedechoix!$A$1,20,IF(CA5=Listedechoix!$A$2,15,IF(CA5=Listedechoix!$A$3,10,IF(CA5=Listedechoix!$A$4,5,0)))) -> 10 | GZ5: =IF(CB5=Listedechoix!$A$1,20,IF(CB5=Listedechoix!$A$2,15,IF(CB5=Listedechoix!$A$3,10,IF(CB5=Listedechoix!$A$4,5,0)))) -> 10 | HA5: =IF(CC5=Listedechoix!$A$1,20,IF(CC5=Listedechoix!$A$2,15,IF(CC5=Listedechoix!$A$3,10,IF(CC5=Listedechoix!$A$4,5,0)))) -> 0 | HB5: =IF(CD5=Listedechoix!$A$1,20,IF(CD5=Listedechoix!$A$2,15,IF(CD5=Listedechoix!$A$3,10,IF(CD5=Listedechoix!$A$4,5,0)))) -> 0 | HC5: =IF(CE5=Listedechoix!$A$1,20,IF(CE5=Listedechoix!$A$2,15,IF(CE5=Listedechoix!$A$3,10,IF(CE5=Listedechoix!$A$4,5,0)))) -> 0 | HD5: =IF(CF5=Listedechoix!$A$1,20,IF(CF5=Listedechoix!$A$2,15,IF(CF5=Listedechoix!$A$3,10,IF(CF5=Listedechoix!$A$4,5,0)))) -> 0 | HE5: =IF(CG5=Listedechoix!$A$1,20,IF(CG5=Listedechoix!$A$2,15,IF(CG5=Listedechoix!$A$3,10,IF(CG5=Listedechoix!$A$4,5,0)))) -> 0 | HF5: =IF(CH5=Listedechoix!$A$1,20,IF(CH5=Listedechoix!$A$2,15,IF(CH5=Listedechoix!$A$3,10,IF(CH5=Listedechoix!$A$4,5,0)))) -> 15 | HG5: =IF(CI5=Listedechoix!$A$1,20,IF(CI5=Listedechoix!$A$2,15,IF(CI5=Listedechoix!$A$3,10,IF(CI5=Listedechoix!$A$4,5,0)))) -> 0 | HH5: =IF(CJ5=Listedechoix!$A$1,20,IF(CJ5=Listedechoix!$A$2,15,IF(CJ5=Listedechoix!$A$3,10,IF(CJ5=Listedechoix!$A$4,5,0)))) -> 0 | HI5: =IF(CK5=Listedechoix!$A$1,20,IF(CK5=Listedechoix!$A$2,15,IF(CK5=Listedechoix!$A$3,10,IF(CK5=Listedechoix!$A$4,5,0)))) -> 0 | HJ5: =IF(CL5=Listedechoix!$A$1,20,IF(CL5=Listedechoix!$A$2,15,IF(CL5=Listedechoix!$A$3,10,IF(CL5=Listedechoix!$A$4,5,0)))) -> 0 | HK5: =IF(CM5=Listedechoix!$A$1,20,IF(CM5=Listedechoix!$A$2,15,IF(CM5=Listedechoix!$A$3,10,IF(CM5=Listedechoix!$A$4,5,0)))) -> 0 | HL5: =IF(SUM(GX5:HK5)>0,(GX5*$GX$3+GY5*$GY$3+GZ5*$GZ$3+HA5*$HA$3+HB5*$HB$3+HC5*$HC$3+HD5*$HD$3+HE5*$HE$3+HF5*$HF$3+HG5*$HG$3+HH5*$HH$3+HI5*$HI$3+HJ5*$HJ$3+HK5*$HK$3)/(IF(GX5>0,$GX$3,0)+IF(GY5>0,$GY$3,0)+IF(GZ5>0,$GZ$3,0)+IF(HA5>0,$HA$3,0)+IF(HB5>0,$HB$3,0)+IF(HC5>0,$HC$3,0)+IF(HD5>0,HD3,0)+IF(HE5>0,$HE$3,0)+IF(HF5>0,$HF$3,0)+IF(HG5>0,$HG$3,0)+IF(HH5>0,$HH$3,0)+IF(HI5>0,$HI$3,0)+IF(HJ5>0,$HJ$3,0)+IF(HK5>0,$HK$3,0)),"NNot") -> 11.92307692 | HM5: =IF(HL5="NNot","NNot",HL5/20) -> 0.5961538462
A6: Gaston | B6: Gilbert | C6: M | D6: 2005-08-15 | E6: 6A | F6: MF | G6: MS | H6: MI | I6: MI | J6: MF | K6: MS | L6: MF | M6: MI | N6: MI | O6: MS | P6: MI | Q6: TB | AA6: MS | AB6: MS | AP6: MF | BD6: TB | BO6: MI | BZ6: MF | CA6: MI | CB6: TB | CN6: =IF($D6>0,COUNTIFS($F6:$CM6,CN$4,$F$4:$CM$4,$CN$2),"") -> 3 | CO6: 2 | CP6: 3 | CQ6: 4 | CR6: =1-(COUNTIFS($F6:$CM6,"",$F$4:$CM$4,$CN$2)/COUNTIFS($F$4:$CM$4,$CN$2)) -> 0.3428571429 | CS6: =IF($D6>0,IF(SUM(CN6:CQ6)>0,(CN6+CO6*0.75+CP6*0.5)/SUM(CN6:CQ6),"NNot"),"") -> 0.5 | CT6: =IF($D6>0,COUNTIFS($F6:$CM6,CT$4,$F$4:$CM$4,$CT$2),"") -> 0 | CU6: 1 | CV6: 2 | CW6: 1 | CX6: =1-(COUNTIFS($F6:$CM6,"",$F$4:$CM$4,$CT$2)/COUNTIFS($F$4:$CM$4,$CT$2)) -> 0.3076923077 | CY6: =IF(SUM(CT6:CW6)>0,(CT6+CU6*0.75+CV6*0.5)/SUM(CT6:CW6),"NNot") -> 0.4375 | CZ6: =IF($D6>0,COUNTIFS($F6:$CM6,CZ$4,$F$4:$CM$4,$CZ$2),"") -> 0 | DA6: 2 | DB6: 0 | DC6: 1 | DD6: =1-(COUNTIFS($F6:$CM6,"",$F$4:$CM$4,$CZ$2)/COUNTIFS($F$4:$CM$4,$CZ$2)) -> 0.1363636364 | DE6: =IF(SUM(CZ6:DC6)>0,(CZ6+DA6*0.75+DB6*0.5)/SUM(CZ6:DC6),"NNot") -> 0.5 | DF6: =IF($D6>0,COUNTIFS($F6:$CM6,DF$4,$F$4:$CM$4,$DF$2),"") -> 0 | DG6: 0 | DH6: 0 | DI6: 1 | DJ6: =1-(COUNTIFS($F6:$CM6,"",$F$4:$CM$4,$DF$2)/COUNTIFS($F$4:$CM$4,$DF$2)) -> 0.1111111111 | DK6: =IF(SUM(DF6:DI6)>0,(DF6+DG6*0.75+DH6*0.5)/SUM(DF6:DI6),"NNot") -> 0 | DL6: =IF($D6>0,COUNTIFS($F6:$CM6,DL$4,$F$4:$CM$4,$DL$2),"") -> 0 | DM6: 0 | DN6: 0 | DO6: 0 | DP6: 0 | DQ6: =IF(SUM(DL6:DO6)>0,(DL6+DM6*0.75+DN6*0.5)/SUM(DL6:DO6),"NNot") -> NNot | DR6: =IF(F6=Listedechoix!$A$1,20,IF(F6=Listedechoix!$A$2,15,IF(F6=Listedechoix!$A$3,10,IF(F6=Listedechoix!$A$4,5,0)))) -> 10 | DS6: =IF(G6=Listedechoix!$A$1,20,IF(G6=Listedechoix!$A$2,15,IF(G6=Listedechoix!$A$3,10,IF(G6=Listedechoix!$A$4,5,0)))) -> 15 | DT6: =IF(H6=Listedechoix!$A$1,20,IF(H6=Listedechoix!$A$2,15,IF(H6=Listedechoix!$A$3,10,IF(H6=Listedechoix!$A$4,5,0)))) -> 5 | DU6: =IF(I6=Listedechoix!$A$1,20,IF(I6=Listedechoix!$A$2,15,IF(I6=Listedechoix!$A$3,10,IF(I6=Listedechoix!$A$4,5,0)))) -> 5 | DV6: =IF(J6=Listedechoix!$A$1,20,IF(J6=Listedechoix!$A$2,15,IF(J6=Listedechoix!$A$3,10,IF(J6=Listedechoix!$A$4,5,0)))) -> 10 | DW6: =IF(K6=Listedechoix!$A$1,20,IF(K6=Listedechoix!$A$2,15,IF(K6=Listedechoix!$A$3,10,IF(K6=Listedechoix!$A$4,5,0)))) -> 15 | DX6: =IF(L6=Listedechoix!$A$1,20,IF(L6=Listedechoix!$A$2,15,IF(L6=Listedechoix!$A$3,10,IF(L6=Listedechoix!$A$4,5,0)))) -> 10 | DY6: =IF(M6=Listedechoix!$A$1,20,IF(M6=Listedechoix!$A$2,15,IF(M6=Listedechoix!$A$3,10,IF(M6=Listedechoix!$A$4,5,0)))) -> 5 | DZ6: =IF(N6=Listedechoix!$A$1,20,IF(N6=Listedechoix!$A$2,15,IF(N6=Listedechoix!$A$3,10,IF(N6=Listedechoix!$A$4,5,0)))) -> 5 | EA6: =IF(O6=Listedechoix!$A$1,20,IF(O6=Listedechoix!$A$2,15,IF(O6=Listedechoix!$A$3,10,IF(O6=Listedechoix!$A$4,5,0)))) -> 15 | EB6: =IF(P6=Listedechoix!$A$1,20,IF(P6=Listedechoix!$A$2,15,IF(P6=Listedechoix!$A$3,10,IF(P6=Listedechoix!$A$4,5,0)))) -> 5 | EC6: =IF(SUM(DR6:EB6)>0,(DR6*$DR$3+DS6*$DS$3+DT6*$DT$3+DU6*$DU$3+DV6*$DV$3+DW6*$DW$3+DX6*$DX$3+DY6*$DY$3+DZ6*$DZ$3+EA6*$EA$3+EB6*$EB$3)/(IF(DR6>0,$DR$3,0)+IF(DS6>0,$DS$3,0)+IF(DT6>0,$DT$3,0)+IF(DU6>0,$DU$3,0)+IF(DV6>0,$DV$3,0)+IF(DW6>0,$DW$3,0)+IF(DX6>0,$DX$3,0)+IF(DY6>0,$DY$3,0)+IF(DZ6>0,$DZ$3,0)+IF(EA6>0,$EA$3,0)+IF(EB6>0,$EB$3,0)),"NNot") -> 9.696969697 | ED6: =IF(EC6="NNot","NNot",EC6/20) -> 0.4848484848 | EE6: =IF(Q6=Listedechoix!$A$1,20,IF(Q6=Listedechoix!$A$2,15,IF(Q6=Listedechoix!$A$3,10,IF(Q6=Listedechoix!$A$4,5,0)))) -> 20 | EF6: =IF(R6=Listedechoix!$A$1,20,IF(R6=Listedechoix!$A$2,15,IF(R6=Listedechoix!$A$3,10,IF(R6=Listedechoix!$A$4,5,0)))) -> 0 | EG6: =IF(S6=Listedechoix!$A$1,20,IF(S6=Listedechoix!$A$2,15,IF(S6=Listedechoix!$A$3,10,IF(S6=Listedechoix!$A$4,5,0)))) -> 0 | EH6: =IF(T6=Listedechoix!$A$1,20,IF(T6=Listedechoix!$A$2,15,IF(T6=Listedechoix!$A$3,10,IF(T6=Listedechoix!$A$4,5,0)))) -> 0 | EI6: =IF(U6=Listedechoix!$A$1,20,IF(U6=Listedechoix!$A$2,15,IF(U6=Listedechoix!$A$3,10,IF(U6=Listedechoix!$A$4,5,0)))) -> 0 | EJ6: =IF(V6=Listedechoix!$A$1,20,IF(V6=Listedechoix!$A$2,15,IF(V6=Listedechoix!$A$3,10,IF(V6=Listedechoix!$A$4,5,0)))) -> 0 | EK6: =IF(W6=Listedechoix!$A$1,20,IF(W6=Listedechoix!$A$2,15,IF(W6=Listedechoix!$A$3,10,IF(W6=Listedechoix!$A$4,5,0)))) -> 0 | EL6: =IF(X6=Listedechoix!$A$1,20,IF(X6=Listedechoix!$A$2,15,IF(X6=Listedechoix!$A$3,10,IF(X6=Listedechoix!$A$4,5,0)))) -> 0 | EM6: =IF(Y6=Listedechoix!$A$1,20,IF(Y6=Listedechoix!$A$2,15,IF(Y6=Listedechoix!$A$3,10,IF(Y6=Listedechoix!$A$4,5,0)))) -> 0 | EN6: =IF(Z6=Listedechoix!$A$1,20,IF(Z6=Listedechoix!$A$2,15,IF(Z6=Listedechoix!$A$3,10,IF(Z6=Listedechoix!$A$4,5,0)))) -> 0 | EO6: =IF(AA6=Listedechoix!$A$1,20,IF(AA6=Listedechoix!$A$2,15,IF(AA6=Listedechoix!$A$3,10,IF(AA6=Listedechoix!$A$4,5,0)))) -> 15 | EP6: =IF(SUM(EE6:EO6)>0,(EE6*$EE$3+EF6*$EF$3+EG6*$EG$3+EH6*$EH$3+EI6*$EI$3+EJ6*$EJ$3+EK6*$EK$3+EL6*$EL$3+EM6*$EM$3+EN6*$EN$3+EO6*$EO$3)/(IF(EE6>0,$EE$3,0)+IF(EF6>0,$EF$3,0)+IF(EG6>0,$EG$3,0)+IF(EH6>0,$EH$3,0)+IF(EI6>0,$EI$3,0)+IF(EJ6>0,$EJ$3,0)+IF(EK6>0,$EK$3,0)+IF(EL6>0,$EL$3,0)+IF(EM6>0,$EM$3,0)+IF(EN6>0,$EN$3,0)+IF(EO6>0,$EO$3,0)),"NNot") -> 17 | EQ6: =IF(EP6="NNot","NNot",EP6/20) -> 0.85 | ER6: =IF(AB6=Listedechoix!$A$1,20,IF(AB6=Listedechoix!$A$2,15,IF(AB6=Listedechoix!$A$3,10,IF(AB6=Listedechoix!$A$4,5,0)))) -> 15 | ES6: =IF(AC6=Listedechoix!$A$1,20,IF(AC6=Listedechoix!$A$2,15,IF(AC6=Listedechoix!$A$3,10,IF(AC6=Listedechoix!$A$4,5,0)))) -> 0 | ET6: =IF(AD6=Listedechoix!$A$1,20,IF(AD6=Listedechoix!$A$2,15,IF(AD6=Listedechoix!$A$3,10,IF(AD6=Listedechoix!$A$4,5,0)))) -> 0 | EU6: =IF(AE6=Listedechoix!$A$1,20,IF(AE6=Listedechoix!$A$2,15,IF(AE6=Listedechoix!$A$3,10,IF(AE6=Listedechoix!$A$4,5,0)))) -> 0 | EV6: =IF(AF6=Listedechoix!$A$1,20,IF(AF6=Listedechoix!$A$2,15,IF(AF6=Listedechoix!$A$3,10,IF(AF6=Listedechoix!$A$4,5,0)))) -> 0 | EW6: =IF(AG6=Listedechoix!$A$1,20,IF(AG6=Listedechoix!$A$2,15,IF(AG6=Listedechoix!$A$3,10,IF(AG6=Listedechoix!$A$4,5,0)))) -> 0 | EX6: =IF(AH6=Listedechoix!$A$1,20,IF(AH6=Listedechoix!$A$2,15,IF(AH6=Listedechoix!$A$3,10,IF(AH6=Listedechoix!$A$4,5,0)))) -> 0 | EY6: =IF(AI6=Listedechoix!$A$1,20,IF(AI6=Listedechoix!$A$2,15,IF(AI6=Listedechoix!$A$3,10,IF(AI6=Listedechoix!$A$4,5,0)))) -> 0 | EZ6: =IF(AJ6=Listedechoix!$A$1,20,IF(AJ6=Listedechoix!$A$2,15,IF(AJ6=Listedechoix!$A$3,10,IF(AJ6=Listedechoix!$A$4,5,0)))) -> 0 | FA6: =IF(AK6=Listedechoix!$A$1,20,IF(AK6=Listedechoix!$A$2,15,IF(AK6=Listedechoix!$A$3,10,IF(AK6=Listedechoix!$A$4,5,0)))) -> 0 | FB6: =IF(AL6=Listedechoix!$A$1,20,IF(AL6=Listedechoix!$A$2,15,IF(AL6=Listedechoix!$A$3,10,IF(AL6=Listedechoix!$A$4,5,0)))) -> 0 | FC6: =IF(AM6=Listedechoix!$A$1,20,IF(AM6=Listedechoix!$A$2,15,IF(AM6=Listedechoix!$A$3,10,IF(AM6=Listedechoix!$A$4,5,0)))) -> 0 | FD6: =IF(AN6=Listedechoix!$A$1,20,IF(AN6=Listedechoix!$A$2,15,IF(AN6=Listedechoix!$A$3,10,IF(AN6=Listedechoix!$A$4,5,0)))) -> 0 | FE6: =IF(AO6=Listedechoix!$A$1,20,IF(AO6=Listedechoix!$A$2,15,IF(AO6=Listedechoix!$A$3,10,IF(AO6=Listedechoix!$A$4,5,0)))) -> 0 | FF6: =IF(SUM(ER6:FE6)>0,(ER6*$ER$3+ES6*$ES$3+ET6*$ET$3+EU6*$EU$3+EV6*$EV$3+EW6*$EW$3+EX6*$EX$3+EY6*$EY$3+EZ6*$EZ$3+FA6*$FA$3+FB6*$FB$3+FC6*$FC$3+FD6*$FD$3+FE6*$FE$3)/(IF(ER6>0,$ER$3,0)+IF(ES6>0,$ES$3,0)+IF(ET6>0,$ET$3,0)+IF(EU6>0,$EU$3,0)+IF(EV6>0,$EV$3,0)+IF(EW6>0,$EW$3,0)+IF(EX6>0,$EX$3,0)+IF(EY6>0,$EY$3,0)+IF(EZ6>0,$EZ$3,0)+IF(FA6>0,$FA$3,0)+IF(FB6>0,$FB$3,0)+IF(FC6>0,$FC$3,0)+IF(FD6>0,$FD$3,0)+IF(FE6>0,$FE$3,0)),"NNot") -> 15 | FG6: =IF(FF6="NNot","NNot",FF6/20) -> 0.75 | FH6: =IF(AP6=Listedechoix!$A$1,20,IF(AP6=Listedechoix!$A$2,15,IF(AP6=Listedechoix!$A$3,10,IF(AP6=Listedechoix!$A$4,5,0)))) -> 10 | FI6: =IF(AQ6=Listedechoix!$A$1,20,IF(AQ6=Listedechoix!$A$2,15,IF(AQ6=Listedechoix!$A$3,10,IF(AQ6=Listedechoix!$A$4,5,0)))) -> 0 | FJ6: =IF(AR6=Listedechoix!$A$1,20,IF(AR6=Listedechoix!$A$2,15,IF(AR6=Listedechoix!$A$3,10,IF(AR6=Listedechoix!$A$4,5,0)))) -> 0 | FK6: =IF(AS6=Listedechoix!$A$1,20,IF(AS6=Listedechoix!$A$2,15,IF(AS6=Listedechoix!$A$3,10,IF(AS6=Listedechoix!$A$4,5,0)))) -> 0 | FL6: =IF(AT6=Listedechoix!$A$1,20,IF(AT6=Listedechoix!$A$2,15,IF(AT6=Listedechoix!$A$3,10,IF(AT6=Listedechoix!$A$4,5,0)))) -> 0 | FM6: =IF(AU6=Listedechoix!$A$1,20,IF(AU6=Listedechoix!$A$2,15,IF(AU6=Listedechoix!$A$3,10,IF(AU6=Listedechoix!$A$4,5,0)))) -> 0 | FN6: =IF(AV6=Listedechoix!$A$1,20,IF(AV6=Listedechoix!$A$2,15,IF(AV6=Listedechoix!$A$3,10,IF(AV6=Listedechoix!$A$4,5,0)))) -> 0 | FO6: =IF(AW6=Listedechoix!$A$1,20,IF(AW6=Listedechoix!$A$2,15,IF(AW6=Listedechoix!$A$3,10,IF(AW6=Listedechoix!$A$4,5,0)))) -> 0 | FP6: =IF(AX6=Listedechoix!$A$1,20,IF(AX6=Listedechoix!$A$2,15,IF(AX6=Listedechoix!$A$3,10,IF(AX6=Listedechoix!$A$4,5,0)))) -> 0 | FQ6: =IF(AY6=Listedechoix!$A$1,20,IF(AY6=Listedechoix!$A$2,15,IF(AY6=Listedechoix!$A$3,10,IF(AY6=Listedechoix!$A$4,5,0)))) -> 0 | FR6: =IF(AZ6=Listedechoix!$A$1,20,IF(AZ6=Listedechoix!$A$2,15,IF(AZ6=Listedechoix!$A$3,10,IF(AZ6=Listedechoix!$A$4,5,0)))) -> 0 | FS6: =IF(BA6=Listedechoix!$A$1,20,IF(BA6=Listedechoix!$A$2,15,IF(BA6=Listedechoix!$A$3,10,IF(BA6=Listedechoix!$A$4,5,0)))) -> 0 | FT6: =IF(BB6=Listedechoix!$A$1,20,IF(BB6=Listedechoix!$A$2,15,IF(BB6=Listedechoix!$A$3,10,IF(BB6=Listedechoix!$A$4,5,0)))) -> 0 | FU6: =IF(BC6=Listedechoix!$A$1,20,IF(BC6=Listedechoix!$A$2,15,IF(BC6=Listedechoix!$A$3,10,IF(BC6=Listedechoix!$A$4,5,0)))) -> 0 | FV6: =IF(SUM(FH6:FU6)>0,(FH6*$FH$3+FI6*$FI$3+FJ6*$FJ$3+FK6*$FK$3+FL6*$FL$3+FM6*$FM$3+FN6*$FN$3+FO6*$FO$3+FP6*$FP$3+FQ6*$FQ$3+FR6*$FR$3+FS6*$FS$3+FT6*$FT$3+FU6*$FU$3)/(IF(FH6>0,$FH$3,0)+IF(FI6>0,$FI$3,0)+IF(FJ6>0,$FJ$3,0)+IF(FK6>0,$FK$3,0)+IF(FL6>0,$FL$3,0)+IF(FM6>0,$FM$3,0)+IF(FN6>0,$FN$3,0)+IF(FO6>0,$FO$3,0)+IF(FP6>0,$FP$3,0)+IF(FQ6>0,$FQ$3,0)+IF(FR6>0,$FR$3,0)+IF(FS6>0,$FS$3,0)+IF(FT6>0,$FT$3,0)+IF(FU6>0,$FU$3,0)),"NNot") -> 10 | FW6: =IF(FV6="NNot","NNot",FV6/20) -> 0.5 | FX6: =IF(BD6=Listedechoix!$A$1,20,IF(BD6=Listedechoix!$A$2,15,IF(BD6=Listedechoix!$A$3,10,IF(BD6=Listedechoix!$A$4,5,0)))) -> 20 | FY6: =IF(BE6=Listedechoix!$A$1,20,IF(BE6=Listedechoix!$A$2,15,IF(BE6=Listedechoix!$A$3,10,IF(BE6=Listedechoix!$A$4,5,0)))) -> 0 | FZ6: =IF(BF6=Listedechoix!$A$1,20,IF(BF6=Listedechoix!$A$2,15,IF(BF6=Listedechoix!$A$3,10,IF(BF6=Listedechoix!$A$4,5,0)))) -> 0 | GA6: =IF(BG6=Listedechoix!$A$1,20,IF(BG6=Listedechoix!$A$2,15,IF(BG6=Listedechoix!$A$3,10,IF(BG6=Listedechoix!$A$4,5,0)))) -> 0 | GB6: =IF(BH6=Listedechoix!$A$1,20,IF(BH6=Listedechoix!$A$2,15,IF(BH6=Listedechoix!$A$3,10,IF(BH6=Listedechoix!$A$4,5,0)))) -> 0 | GC6: =IF(BI6=Listedechoix!$A$1,20,IF(BI6=Listedechoix!$A$2,15,IF(BI6=Listedechoix!$A$3,10,IF(BI6=Listedechoix!$A$4,5,0)))) -> 0 | GD6: =IF(BJ6=Listedechoix!$A$1,20,IF(BJ6=Listedechoix!$A$2,15,IF(BJ6=Listedechoix!$A$3,10,IF(BJ6=Listedechoix!$A$4,5,0)))) -> 0 | GE6: =IF(BK6=Listedechoix!$A$1,20,IF(BK6=Listedechoix!$A$2,15,IF(BK6=Listedechoix!$A$3,10,IF(BK6=Listedechoix!$A$4,5,0)))) -> 0 | GF6: =IF(BL6=Listedechoix!$A$1,20,IF(BL6=Listedechoix!$A$2,15,IF(BL6=Listedechoix!$A$3,10,IF(BL6=Listedechoix!$A$4,5,0)))) -> 0 | GG6: =IF(BM6=Listedechoix!$A$1,20,IF(BM6=Listedechoix!$A$2,15,IF(BM6=Listedechoix!$A$3,10,IF(BM6=Listedechoix!$A$4,5,0)))) -> 0 | GH6: =IF(BN6=Listedechoix!$A$1,20,IF(BN6=Listedechoix!$A$2,15,IF(BN6=Listedechoix!$A$3,10,IF(BN6=Listedechoix!$A$4,5,0)))) -> 0 | GI6: =IF(SUM(FX6:GH6)>0,(FX6*$FX$3+FY6*$FY$3+FZ6*$FZ$3+GA6*$GA$3+GB6*$GB$3+GC6*$GC$3+GD6*$GD$3+GE6*$GE$3+GF6*$GF$3+GG6*$GG$3+GH6*$GH$3)/(IF(FX6>0,$FX$3,0)+IF(FY6>0,$FY$3,0)+IF(FZ6>0,$FZ$3,0)+IF(GA6>0,$GA$3,0)+IF(GB6>0,$GB$3,0)+IF(GC6>0,$GC$3,0)+IF(GD6>0,$GD$3,0)+IF(GE6>0,$GE$3,0)+IF(GF6>0,$GF$3,0)+IF(GG6>0,$GG$3,0)+IF(GH6>0,$GH$3,0)),"NNot") -> 20 | GJ6: =IF(GI6="NNot","NNot",GI6/20) -> 1 | GK6: =IF(BO6=Listedechoix!$A$1,20,IF(BO6=Listedechoix!$A$2,15,IF(BO6=Listedechoix!$A$3,10,IF(BO6=Listedechoix!$A$4,5,0)))) -> 5 | GL6: =IF(BP6=Listedechoix!$A$1,20,IF(BP6=Listedechoix!$A$2,15,IF(BP6=Listedechoix!$A$3,10,IF(BP6=Listedechoix!$A$4,5,0)))) -> 0 | GM6: =IF(BQ6=Listedechoix!$A$1,20,IF(BQ6=Listedechoix!$A$2,15,IF(BQ6=Listedechoix!$A$3,10,IF(BQ6=Listedechoix!$A$4,5,0)))) -> 0 | GN6: =IF(BR6=Listedechoix!$A$1,20,IF(BR6=Listedechoix!$A$2,15,IF(BR6=Listedechoix!$A$3,10,IF(BR6=Listedechoix!$A$4,5,0)))) -> 0 | GO6: =IF(BS6=Listedechoix!$A$1,20,IF(BS6=Listedechoix!$A$2,15,IF(BS6=Listedechoix!$A$3,10,IF(BS6=Listedechoix!$A$4,5,0)))) -> 0 | GP6: =IF(BT6=Listedechoix!$A$1,20,IF(BT6=Listedechoix!$A$2,15,IF(BT6=Listedechoix!$A$3,10,IF(BT6=Listedechoix!$A$4,5,0)))) -> 0 | GQ6: =IF(BU6=Listedechoix!$A$1,20,IF(BU6=Listedechoix!$A$2,15,IF(BU6=Listedechoix!$A$3,10,IF(BU6=Listedechoix!$A$4,5,0)))) -> 0 | GR6: =IF(BV6=Listedechoix!$A$1,20,IF(BV6=Listedechoix!$A$2,15,IF(BV6=Listedechoix!$A$3,10,IF(BV6=Listedechoix!$A$4,5,0)))) -> 0 | GS6: =IF(BW6=Listedechoix!$A$1,20,IF(BW6=Listedechoix!$A$2,15,IF(BW6=Listedechoix!$A$3,10,IF(BW6=Listedechoix!$A$4,5,0)))) -> 0 | GT6: =IF(BX6=Listedechoix!$A$1,20,IF(BX6=Listedechoix!$A$2,15,IF(BX6=Listedechoix!$A$3,10,IF(BX6=Listedechoix!$A$4,5,0)))) -> 0 | GU6: =IF(BY6=Listedechoix!$A$1,20,IF(BY6=Listedechoix!$A$2,15,IF(BY6=Listedechoix!$A$3,10,IF(BY6=Listedechoix!$A$4,5,0)))) -> 0 | GV6: =IF(SUM(GK6:GU6)>0,(GK6*$GK$3+GL6*$GL$3+GM6*$GM$3+GN6*$GN$3+GO6*$GO$3+GP6*$GP$3+GQ6*$GQ$3+GR6*$GR$3+GS6*$GS$3+GT6*$GT$3+GU6*$GU$3)/(IF(GK6>0,$GK$3,0)+IF(GL6>0,$GL$3,0)+IF(GM6>0,$GM$3,0)+IF(GN6>0,$GN$3,0)+IF(GO6>0,$GO$3,0)+IF(GP6>0,$GP$3,0)+IF(GQ6>0,$GQ$3,0)+IF(GR6>0,$GR$3,0)+IF(GS6>0,$GS$3,0)+IF(GT6>0,$GT$3,0)+IF(GU6>0,$GU$3,0)),"NNot") -> 5 | GW6: =IF(GV6="NNot","NNot",GV6/20) -> 0.25 | GX6: =IF(BZ6=Listedechoix!$A$1,20,IF(BZ6=Listedechoix!$A$2,15,IF(BZ6=Listedechoix!$A$3,10,IF(BZ6=Listedechoix!$A$4,5,0)))) -> 10 | GY6: =IF(CA6=Listedechoix!$A$1,20,IF(CA6=Listedechoix!$A$2,15,IF(CA6=Listedechoix!$A$3,10,IF(CA6=Listedechoix!$A$4,5,0)))) -> 5 | GZ6: =IF(CB6=Listedechoix!$A$1,20,IF(CB6=Listedechoix!$A$2,15,IF(CB6=Listedechoix!$A$3,10,IF(CB6=Listedechoix!$A$4,5,0)))) -> 20 | HA6: =IF(CC6=Listedechoix!$A$1,20,IF(CC6=Listedechoix!$A$2,15,IF(CC6=Listedechoix!$A$3,10,IF(CC6=Listedechoix!$A$4,5,0)))) -> 0 | HB6: =IF(CD6=Listedechoix!$A$1,20,IF(CD6=Listedechoix!$A$2,15,IF(CD6=Listedechoix!$A$3,10,IF(CD6=Listedechoix!$A$4,5,0)))) -> 0 | HC6: =IF(CE6=Listedechoix!$A$1,20,IF(CE6=Listedechoix!$A$2,15,IF(CE6=Listedechoix!$A$3,10,IF(CE6=Listedechoix!$A$4,5,0)))) -> 0 | HD6: =IF(CF6=Listedechoix!$A$1,20,IF(CF6=Listedechoix!$A$2,15,IF(CF6=Listedechoix!$A$3,10,IF(CF6=Listedechoix!$A$4,5,0)))) -> 0 | HE6: =IF(CG6=Listedechoix!$A$1,20,IF(CG6=Listedechoix!$A$2,15,IF(CG6=Listedechoix!$A$3,10,IF(CG6=Listedechoix!$A$4,5,0)))) -> 0 | HF6: =IF(CH6=Listedechoix!$A$1,20,IF(CH6=Listedechoix!$A$2,15,IF(CH6=Listedechoix!$A$3,10,IF(CH6=Listedechoix!$A$4,5,0)))) -> 0 | HG6: =IF(CI6=Listedechoix!$A$1,20,IF(CI6=Listedechoix!$A$2,15,IF(CI6=Listedechoix!$A$3,10,IF(CI6=Listedechoix!$A$4,5,0)))) -> 0 | HH6: =IF(CJ6=Listedechoix!$A$1,20,IF(CJ6=Listedechoix!$A$2,15,IF(CJ6=Listedechoix!$A$3,10,IF(CJ6=Listedechoix!$A$4,5,0)))) -> 0 | HI6: =IF(CK6=Listedechoix!$A$1,20,IF(CK6=Listedechoix!$A$2,15,IF(CK6=Listedechoix!$A$3,10,IF(CK6=Listedechoix!$A$4,5,0)))) -> 0 | HJ6: =IF(CL6=Listedechoix!$A$1,20,IF(CL6=Listedechoix!$A$2,15,IF(CL6=Listedechoix!$A$3,10,IF(CL6=Listedechoix!$A$4,5,0)))) -> 0 | HK6: =IF(CM6=Listedechoix!$A$1,20,IF(CM6=Listedechoix!$A$2,15,IF(CM6=Listedechoix!$A$3,10,IF(CM6=Listedechoix!$A$4,5,0)))) -> 0 | HL6: =IF(SUM(GX6:HK6)>0,(GX6*$GX$3+GY6*$GY$3+GZ6*$GZ$3+HA6*$HA$3+HB6*$HB$3+HC6*$HC$3+HD6*$HD$3+HE6*$HE$3+HF6*$HF$3+HG6*$HG$3+HH6*$HH$3+HI6*$HI$3+HJ6*$HJ$3+HK6*$HK$3)/(IF(GX6>0,$GX$3,0)+IF(GY6>0,$GY$3,0)+IF(GZ6>0,$GZ$3,0)+IF(HA6>0,$HA$3,0)+IF(HB6>0,$HB$3,0)+IF(HC6>0,$HC$3,0)+IF(HD6>0,HD4,0)+IF(HE6>0,$HE$3,0)+IF(HF6>0,$HF$3,0)+IF(HG6>0,$HG$3,0)+IF(HH6>0,$HH$3,0)+IF(HI6>0,$HI$3,0)+IF(HJ6>0,$HJ$3,0)+IF(HK6>0,$HK$3,0)),"NNot") -> 11.81818182 | HM6: =IF(HL6="NNot","NNot",HL6/20) -> 0.5909090909
A7: Enio | B7: Luce | C7: F | D7: 2005-08-16 | E7: 6A | F7: MS | P7: MF | AC7: MS | AP7: TB | AY7: MS | BD7: TB | BE7: MS | BN7: MI | BZ7: MI | CN7: 2 | CO7: 3 | CP7: 0 | CQ7: 1 | CR7: 0.1714285714 | CS7: 0.7083333333 | CT7: 0 | CU7: 0 | CV7: 0 | CW7: 0 | CX7: 0 | CY7: =IF(SUM(CT7:CW7)>0,(CT7+CU7*0.75+CV7*0.5)/SUM(CT7:CW7),"NNot") -> NNot | CZ7: =IF($D7>0,COUNTIFS($F7:$CM7,CZ$4,$F$4:$CM$4,$CZ$2),"") -> 0 | DA7: 0 | DB7: 0 | DC7: 0 | DD7: =1-(COUNTIFS($F7:$CM7,"",$F$4:$CM$4,$CZ$2)/COUNTIFS($F$4:$CM$4,$CZ$2)) -> 0 | DE7: NNot | DF7: 0 | DG7: 0 | DH7: 1 | DI7: 1 | DJ7: 0.2222222222 | DK7: 0.25 | DL7: 0 | DM7: 1 | DN7: 0 | DO7: 0 | DP7: 0.1428571429 | DQ7: 0.75 | DR7: =IF(F7=Listedechoix!$A$1,20,IF(F7=Listedechoix!$A$2,15,IF(F7=Listedechoix!$A$3,10,IF(F7=Listedechoix!$A$4,5,0)))) -> 15 | DS7: =IF(G7=Listedechoix!$A$1,20,IF(G7=Listedechoix!$A$2,15,IF(G7=Listedechoix!$A$3,10,IF(G7=Listedechoix!$A$4,5,0)))) -> 0 | DT7: =IF(H7=Listedechoix!$A$1,20,IF(H7=Listedechoix!$A$2,15,IF(H7=Listedechoix!$A$3,10,IF(H7=Listedechoix!$A$4,5,0)))) -> 0 | DU7: =IF(I7=Listedechoix!$A$1,20,IF(I7=Listedechoix!$A$2,15,IF(I7=Listedechoix!$A$3,10,IF(I7=Listedechoix!$A$4,5,0)))) -> 0 | DV7: =IF(J7=Listedechoix!$A$1,20,IF(J7=Listedechoix!$A$2,15,IF(J7=Listedechoix!$A$3,10,IF(J7=Listedechoix!$A$4,5,0)))) -> 0 | DW7: =IF(K7=Listedechoix!$A$1,20,IF(K7=Listedechoix!$A$2,15,IF(K7=Listedechoix!$A$3,10,IF(K7=Listedechoix!$A$4,5,0)))) -> 0 | DX7: =IF(L7=Listedechoix!$A$1,20,IF(L7=Listedechoix!$A$2,15,IF(L7=Listedechoix!$A$3,10,IF(L7=Listedechoix!$A$4,5,0)))) -> 0 | DY7: =IF(M7=Listedechoix!$A$1,20,IF(M7=Listedechoix!$A$2,15,IF(M7=Listedechoix!$A$3,10,IF(M7=Listedechoix!$A$4,5,0)))) -> 0 | DZ7: =IF(N7=Listedechoix!$A$1,20,IF(N7=Listedechoix!$A$2,15,IF(N7=Listedechoix!$A$3,10,IF(N7=Listedechoix!$A$4,5,0)))) -> 0 | EA7: =IF(O7=Listedechoix!$A$1,20,IF(O7=Listedechoix!$A$2,15,IF(O7=Listedechoix!$A$3,10,IF(O7=Listedechoix!$A$4,5,0)))) -> 0 | EB7: =IF(P7=Listedechoix!$A$1,20,IF(P7=Listedechoix!$A$2,15,IF(P7=Listedechoix!$A$3,10,IF(P7=Listedechoix!$A$4,5,0)))) -> 10 | EC7: 12.85714286 | ED7: 0.6428571429 | EE7: =IF(Q7=Listedechoix!$A$1,20,IF(Q7=Listedechoix!$A$2,15,IF(Q7=Listedechoix!$A$3,10,IF(Q7=Listedechoix!$A$4,5,0)))) -> 0 | EF7: =IF(R7=Listedechoix!$A$1,20,IF(R7=Listedechoix!$A$2,15,IF(R7=Listedechoix!$A$3,10,IF(R7=Listedechoix!$A$4,5,0)))) -> 0 | EG7: =IF(S7=Listedechoix!$A$1,20,IF(S7=Listedechoix!$A$2,15,IF(S7=Listedechoix!$A$3,10,IF(S7=Listedechoix!$A$4,5,0)))) -> 0 | EH7: =IF(T7=Listedechoix!$A$1,20,IF(T7=Listedechoix!$A$2,15,IF(T7=Listedechoix!$A$3,10,IF(T7=Listedechoix!$A$4,5,0)))) -> 0 | EI7: =IF(U7=Listedechoix!$A$1,20,IF(U7=Listedechoix!$A$2,15,IF(U7=Listedechoix!$A$3,10,IF(U7=Listedechoix!$A$4,5,0)))) -> 0 | EJ7: =IF(V7=Listedechoix!$A$1,20,IF(V7=Listedechoix!$A$2,15,IF(V7=Listedechoix!$A$3,10,IF(V7=Listedechoix!$A$4,5,0)))) -> 0 | EK7: =IF(W7=Listedechoix!$A$1,20,IF(W7=Listedechoix!$A$2,15,IF(W7=Listedechoix!$A$3,10,IF(W7=Listedechoix!$A$4,5,0)))) -> 0 | EL7: =IF(X7=Listedechoix!$A$1,20,IF(X7=Listedechoix!$A$2,15,IF(X7=Listedechoix!$A$3,10,IF(X7=Listedechoix!$A$4,5,0)))) -> 0 | EM7: =IF(Y7=Listedechoix!$A$1,20,IF(Y7=Listedechoix!$A$2,15,IF(Y7=Listedechoix!$A$3,10,IF(Y7=Listedechoix!$A$4,5,0)))) -> 0 | EN7: =IF(Z7=Listedechoix!$A$1,20,IF(Z7=Listedechoix!$A$2,15,IF(Z7=Listedechoix!$A$3,10,IF(Z7=Listedechoix!$A$4,5,0)))) -> 0 | EO7: =IF(AA7=Listedechoix!$A$1,20,IF(AA7=Listedechoix!$A$2,15,IF(AA7=Listedechoix!$A$3,10,IF(AA7=Listedechoix!$A$4,5,0)))) -> 0 | EP7: NNot | EQ7: NNot | ER7: =IF(AB7=Listedechoix!$A$1,20,IF(AB7=Listedechoix!$A$2,15,IF(AB7=Listedechoix!$A$3,10,IF(AB7=Listedechoix!$A$4,5,0)))) -> 0 | ES7: =IF(AC7=Listedechoix!$A$1,20,IF(AC7=Listedechoix!$A$2,15,IF(AC7=Listedechoix!$A$3,10,IF(AC7=Listedechoix!$A$4,5,0)))) -> 15 | ET7: =IF(AD7=Listedechoix!$A$1,20,IF(AD7=Listedechoix!$A$2,15,IF(AD7=Listedechoix!$A$3,10,IF(AD7=Listedechoix!$A$4,5,0)))) -> 0 | EU7: =IF(AE7=Listedechoix!$A$1,20,IF(AE7=Listedechoix!$A$2,15,IF(AE7=Listedechoix!$A$3,10,IF(AE7=Listedechoix!$A$4,5,0)))) -> 0 | EV7: =IF(AF7=Listedechoix!$A$1,20,IF(AF7=Listedechoix!$A$2,15,IF(AF7=Listedechoix!$A$3,10,IF(AF7=Listedechoix!$A$4,5,0)))) -> 0 | EW7: =IF(AG7=Listedechoix!$A$1,20,IF(AG7=Listedechoix!$A$2,15,IF(AG7=Listedechoix!$A$3,10,IF(AG7=Listedechoix!$A$4,5,0)))) -> 0 | EX7: =IF(AH7=Listedechoix!$A$1,20,IF(AH7=Listedechoix!$A$2,15,IF(AH7=Listedechoix!$A$3,10,IF(AH7=Listedechoix!$A$4,5,0)))) -> 0 | EY7: =IF(AI7=Listedechoix!$A$1,20,IF(AI7=Listedechoix!$A$2,15,IF(AI7=Listedechoix!$A$3,10,IF(AI7=Listedechoix!$A$4,5,0)))) -> 0 | EZ7: =IF(AJ7=Listedechoix!$A$1,20,IF(AJ7=Listedechoix!$A$2,15,IF(AJ7=Listedechoix!$A$3,10,IF(AJ7=Listedechoix!$A$4,5,0)))) -> 0 | FA7: =IF(AK7=Listedechoix!$A$1,20,IF(AK7=Listedechoix!$A$2,15,IF(AK7=Listedechoix!$A$3,10,IF(AK7=Listedechoix!$A$4,5,0)))) -> 0 | FB7: =IF(AL7=Listedechoix!$A$1,20,IF(AL7=Listedechoix!$A$2,15,IF(AL7=Listedechoix!$A$3,10,IF(AL7=Listedechoix!$A$4,5,0)))) -> 0 | FC7: =IF(AM7=Listedechoix!$A$1,20,IF(AM7=Listedechoix!$A$2,15,IF(AM7=Listedechoix!$A$3,10,IF(AM7=Listedechoix!$A$4,5,0)))) -> 0 | FD7: =IF(AN7=Listedechoix!$A$1,20,IF(AN7=Listedechoix!$A$2,15,IF(AN7=Listedechoix!$A$3,10,IF(AN7=Listedechoix!$A$4,5,0)))) -> 0 | FE7: =IF(AO7=Listedechoix!$A$1,20,IF(AO7=Listedechoix!$A$2,15,IF(AO7=Listedechoix!$A$3,10,IF(AO7=Listedechoix!$A$4,5,0)))) -> 0 | FF7: 15 | FG7: 0.75 | FH7: =IF(AP7=Listedechoix!$A$1,20,IF(AP7=Listedechoix!$A$2,15,IF(AP7=Listedechoix!$A$3,10,IF(AP7=Listedechoix!$A$4,5,0)))) -> 20 | FI7: =IF(AQ7=Listedechoix!$A$1,20,IF(AQ7=Listedechoix!$A$2,15,IF(AQ7=Listedechoix!$A$3,10,IF(AQ7=Listedechoix!$A$4,5,0)))) -> 0 | FJ7: =IF(AR7=Listedechoix!$A$1,20,IF(AR7=Listedechoix!$A$2,15,IF(AR7=Listedechoix!$A$3,10,IF(AR7=Listedechoix!$A$4,5,0)))) -> 0 | FK7: =IF(AS7=Listedechoix!$A$1,20,IF(AS7=Listedechoix!$A$2,15,IF(AS7=Listedechoix!$A$3,10,IF(AS7=Listedechoix!$A$4,5,0)))) -> 0 | FL7: =IF(AT7=Listedechoix!$A$1,20,IF(AT7=Listedechoix!$A$2,15,IF(AT7=Listedechoix!$A$3,10,IF(AT7=Listedechoix!$A$4,5,0)))) -> 0 | FM7: =IF(AU7=Listedechoix!$A$1,20,IF(AU7=Listedechoix!$A$2,15,IF(AU7=Listedechoix!$A$3,10,IF(AU7=Listedechoix!$A$4,5,0)))) -> 0 | FN7: =IF(AV7=Listedechoix!$A$1,20,IF(AV7=Listedechoix!$A$2,15,IF(AV7=Listedechoix!$A$3,10,IF(AV7=Listedechoix!$A$4,5,0)))) -> 0 | FO7: =IF(AW7=Listedechoix!$A$1,20,IF(AW7=Listedechoix!$A$2,15,IF(AW7=Listedechoix!$A$3,10,IF(AW7=Listedechoix!$A$4,5,0)))) -> 0 | FP7: =IF(AX7=Listedechoix!$A$1,20,IF(AX7=Listedechoix!$A$2,15,IF(AX7=Listedechoix!$A$3,10,IF(AX7=Listedechoix!$A$4,5,0)))) -> 0 | FQ7: =IF(AY7=Listedechoix!$A$1,20,IF(AY7=Listedechoix!$A$2,15,IF(AY7=Listedechoix!$A$3,10,IF(AY7=Listedechoix!$A$4,5,0)))) -> 15 | FR7: =IF(AZ7=Listedechoix!$A$1,20,IF(AZ7=Listedechoix!$A$2,15,IF(AZ7=Listedechoix!$A$3,10,IF(AZ7=Listedechoix!$A$4,5,0)))) -> 0 | FS7: =IF(BA7=Listedechoix!$A$1,20,IF(BA7=Listedechoix!$A$2,15,IF(BA7=Listedechoix!$A$3,10,IF(BA7=Listedechoix!$A$4,5,0)))) -> 0 | FT7: =IF(BB7=Listedechoix!$A$1,20,IF(BB7=Listedechoix!$A$2,15,IF(BB7=Listedechoix!$A$3,10,IF(BB7=Listedechoix!$A$4,5,0)))) -> 0 | FU7: =IF(BC7=Listedechoix!$A$1,20,IF(BC7=Listedechoix!$A$2,15,IF(BC7=Listedechoix!$A$3,10,IF(BC7=Listedechoix!$A$4,5,0)))) -> 0 | FV7: 18.33333333 | FW7: 0.9166666667 | FX7: =IF(BD7=Listedechoix!$A$1,20,IF(BD7=Listedechoix!$A$2,15,IF(BD7=Listedechoix!$A$3,10,IF(BD7=Listedechoix!$A$4,5,0)))) -> 20 | FY7: =IF(BE7=Listedechoix!$A$1,20,IF(BE7=Listedechoix!$A$2,15,IF(BE7=Listedechoix!$A$3,10,IF(BE7=Listedechoix!$A$4,5,0)))) -> 15 | FZ7: =IF(BF7=Listedechoix!$A$1,20,IF(BF7=Listedechoix!$A$2,15,IF(BF7=Listedechoix!$A$3,10,IF(BF7=Listedechoix!$A$4,5,0)))) -> 0 | GA7: =IF(BG7=Listedechoix!$A$1,20,IF(BG7=Listedechoix!$A$2,15,IF(BG7=Listedechoix!$A$3,10,IF(BG7=Listedechoix!$A$4,5,0)))) -> 0 | GB7: =IF(BH7=Listedechoix!$A$1,20,IF(BH7=Listedechoix!$A$2,15,IF(BH7=Listedechoix!$A$3,10,IF(BH7=Listedechoix!$A$4,5,0)))) -> 0 | GC7: =IF(BI7=Listedechoix!$A$1,20,IF(BI7=Listedechoix!$A$2,15,IF(BI7=Listedechoix!$A$3,10,IF(BI7=Listedechoix!$A$4,5,0)))) -> 0 | GD7: =IF(BJ7=Listedechoix!$A$1,20,IF(BJ7=Listedechoix!$A$2,15,IF(BJ7=Listedechoix!$A$3,10,IF(BJ7=Listedechoix!$A$4,5,0)))) -> 0 | GE7: =IF(BK7=Listedechoix!$A$1,20,IF(BK7=Listedechoix!$A$2,15,IF(BK7=Listedechoix!$A$3,10,IF(BK7=Listedechoix!$A$4,5,0)))) -> 0 | GF7: =IF(BL7=Listedechoix!$A$1,20,IF(BL7=Listedechoix!$A$2,15,IF(BL7=Listedechoix!$A$3,10,IF(BL7=Listedechoix!$A$4,5,0)))) -> 0 | GG7: =IF(BM7=Listedechoix!$A$1,20,IF(BM7=Listedechoix!$A$2,15,IF(BM7=Listedechoix!$A$3,10,IF(BM7=Listedechoix!$A$4,5,0)))) -> 0 | GH7: =IF(BN7=Listedechoix!$A$1,20,IF(BN7=Listedechoix!$A$2,15,IF(BN7=Listedechoix!$A$3,10,IF(BN7=Listedechoix!$A$4,5,0)))) -> 5 | GI7: 14.09090909 | GJ7: 0.7045454545 | GK7: =IF(BO7=Listedechoix!$A$1,20,IF(BO7=Listedechoix!$A$2,15,IF(BO7=Listedechoix!$A$3,10,IF(BO7=Listedechoix!$A$4,5,0)))) -> 0 | GL7: =IF(BP7=Listedechoix!$A$1,20,IF(BP7=Listedechoix!$A$2,15,IF(BP7=Listedechoix!$A$3,10,IF(BP7=Listedechoix!$A$4,5,0)))) -> 0 | GM7: =IF(BQ7=Listedechoix!$A$1,20,IF(BQ7=Listedechoix!$A$2,15,IF(BQ7=Listedechoix!$A$3,10,IF(BQ7=Listedechoix!$A$4,5,0)))) -> 0 | GN7: =IF(BR7=Listedechoix!$A$1,20,IF(BR7=Listedechoix!$A$2,15,IF(BR7=Listedechoix!$A$3,10,IF(BR7=Listedechoix!$A$4,5,0)))) -> 0 | GO7: =IF(BS7=Listedechoix!$A$1,20,IF(BS7=Listedechoix!$A$2,15,IF(BS7=Listedechoix!$A$3,10,IF(BS7=Listedechoix!$A$4,5,0)))) -> 0 | GP7: =IF(BT7=Listedechoix!$A$1,20,IF(BT7=Listedechoix!$A$2,15,IF(BT7=Listedechoix!$A$3,10,IF(BT7=Listedechoix!$A$4,5,0)))) -> 0 | GQ7: =IF(BU7=Listedechoix!$A$1,20,IF(BU7=Listedechoix!$A$2,15,IF(BU7=Listedechoix!$A$3,10,IF(BU7=Listedechoix!$A$4,5,0)))) -> 0 | GR7: =IF(BV7=Listedechoix!$A$1,20,IF(BV7=Listedechoix!$A$2,15,IF(BV7=Listedechoix!$A$3,10,IF(BV7=Listedechoix!$A$4,5,0)))) -> 0 | GS7: =IF(BW7=Listedechoix!$A$1,20,IF(BW7=Listedechoix!$A$2,15,IF(BW7=Listedechoix!$A$3,10,IF(BW7=Listedechoix!$A$4,5,0)))) -> 0 | GT7: =IF(BX7=Listedechoix!$A$1,20,IF(BX7=Listedechoix!$A$2,15,IF(BX7=Listedechoix!$A$3,10,IF(BX7=Listedechoix!$A$4,5,0)))) -> 0 | GU7: =IF(BY7=Listedechoix!$A$1,20,IF(BY7=Listedechoix!$A$2,15,IF(BY7=Listedechoix!$A$3,10,IF(BY7=Listedechoix!$A$4,5,0)))) -> 0 | GV7: NNot | GW7: NNot | GX7: =IF(BZ7=Listedechoix!$A$1,20,IF(BZ7=Listedechoix!$A$2,15,IF(BZ7=Listedechoix!$A$3,10,IF(BZ7=Listedechoix!$A$4,5,0)))) -> 5 | GY7: =IF(CA7=Listedechoix!$A$1,20,IF(CA7=Listedechoix!$A$2,15,IF(CA7=Listedechoix!$A$3,10,IF(CA7=Listedechoix!$A$4,5,0)))) -> 0 | GZ7: =IF(CB7=Listedechoix!$A$1,20,IF(CB7=Listedechoix!$A$2,15,IF(CB7=Listedechoix!$A$3,10,IF(CB7=Listedechoix!$A$4,5,0)))) -> 0 | HA7: =IF(CC7=Listedechoix!$A$1,20,IF(CC7=Listedechoix!$A$2,15,IF(CC7=Listedechoix!$A$3,10,IF(CC7=Listedechoix!$A$4,5,0)))) -> 0 | HB7: =IF(CD7=Listedechoix!$A$1,20,IF(CD7=Listedechoix!$A$2,15,IF(CD7=Listedechoix!$A$3,10,IF(CD7=Listedechoix!$A$4,5,0)))) -> 0 | HC7: =IF(CE7=Listedechoix!$A$1,20,IF(CE7=Listedechoix!$A$2,15,IF(CE7=Listedechoix!$A$3,10,IF(CE7=Listedechoix!$A$4,5,0)))) -> 0 | HD7: =IF(CF7=Listedechoix!$A$1,20,IF(CF7=Listedechoix!$A$2,15,IF(CF7=Listedechoix!$A$3,10,IF(CF7=Listedechoix!$A$4,5,0)))) -> 0 | HE7: =IF(CG7=Listedechoix!$A$1,20,IF(CG7=Listedechoix!$A$2,15,IF(CG7=Listedechoix!$A$3,10,IF(CG7=Listedechoix!$A$4,5,0)))) -> 0 | HF7: =IF(CH7=Listedechoix!$A$1,20,IF(CH7=Listedechoix!$A$2,15,IF(CH7=Listedechoix!$A$3,10,IF(CH7=Listedechoix!$A$4,5,0)))) -> 0 | HG7: =IF(CI7=Listedechoix!$A$1,20,IF(CI7=Listedechoix!$A$2,15,IF(CI7=Listedechoix!$A$3,10,IF(CI7=Listedechoix!$A$4,5,0)))) -> 0 | HH7: =IF(CJ7=Listedechoix!$A$1,20,IF(CJ7=Listedechoix!$A$2,15,IF(CJ7=Listedechoix!$A$3,10,IF(CJ7=Listedechoix!$A$4,5,0)))) -> 0 | HI7: =IF(CK7=Listedechoix!$A$1,20,IF(CK7=Listedechoix!$A$2,15,IF(CK7=Listedechoix!$A$3,10,IF(CK7=Listedechoix!$A$4,5,0)))) -> 0 | HJ7: =IF(CL7=Listedechoix!$A$1,20,IF(CL7=Listedechoix!$A$2,15,IF(CL7=Listedechoix!$A$3,10,IF(CL7=Listedechoix!$A$4,5,0)))) -> 0 | HK7: =IF(CM7=Listedechoix!$A$1,20,IF(CM7=Listedechoix!$A$2,15,IF(CM7=Listedechoix!$A$3,10,IF(CM7=Listedechoix!$A$4,5,0)))) -> 0 | HL7: 5 | HM7: 0.25
A8: Fabioni | B8: Elisa | C8: F | D8: 2005-08-17 | E8: 6A | F8: MS | G8: MF | H8: MI | P8: MI | Q8: TB | S8: TB | AA8: MF | AO8: TB | AP8: TB | BC8: TB | BE8: TB | BF8: MF | BZ8: MS | CH8: MI | CM8: MF | CN8: 3 | CO8: 2 | CP8: 2 | CQ8: 2 | CR8: 0.2571428571 | CS8: 0.6111111111 | CT8: 1 | CU8: 0 | CV8: 0 | CW8: 0 | CX8: 0.07692307692 | CY8: 1 | CZ8: 0 | DA8: 0 | DB8: 2 | DC8: 0 | DD8: 0.09090909091 | DE8: 0.5 | DF8: 1 | DG8: 0 | DH8: 0 | DI8: 1 | DJ8: 0.2222222222 | DK8: 0.5 | DL8: 1 | DM8: 0 | DN8: 0 | DO8: 0 | DP8: 0.1428571429 | DQ8: 1 | DR8: =IF(F8=Listedechoix!$A$1,20,IF(F8=Listedechoix!$A$2,15,IF(F8=Listedechoix!$A$3,10,IF(F8=Listedechoix!$A$4,5,0)))) -> 15 | DS8: =IF(G8=Listedechoix!$A$1,20,IF(G8=Listedechoix!$A$2,15,IF(G8=Listedechoix!$A$3,10,IF(G8=Listedechoix!$A$4,5,0)))) -> 10 | DT8: =IF(H8=Listedechoix!$A$1,20,IF(H8=Listedechoix!$A$2,15,IF(H8=Listedechoix!$A$3,10,IF(H8=Listedechoix!$A$4,5,0)))) -> 5 | DU8: =IF(I8=Listedechoix!$A$1,20,IF(I8=Listedechoix!$A$2,15,IF(I8=Listedechoix!$A$3,10,IF(I8=Listedechoix!$A$4,5,0)))) -> 0 | DV8: =IF(J8=Listedechoix!$A$1,20,IF(J8=Listedechoix!$A$2,15,IF(J8=Listedechoix!$A$3,10,IF(J8=Listedechoix!$A$4,5,0)))) -> 0 | DW8: =IF(K8=Listedechoix!$A$1,20,IF(K8=Listedechoix!$A$2,15,IF(K8=Listedechoix!$A$3,10,IF(K8=Listedechoix!$A$4,5,0)))) -> 0 | DX8: =IF(L8=Listedechoix!$A$1,20,IF(L8=Listedechoix!$A$2,15,IF(L8=Listedechoix!$A$3,10,IF(L8=Listedechoix!$A$4,5,0)))) -> 0 | DY8: =IF(M8=Listedechoix!$A$1,20,IF(M8=Listedechoix!$A$2,15,IF(M8=Listedechoix!$A$3,10,IF(M8=Listedechoix!$A$4,5,0)))) -> 0 | DZ8: =IF(N8=Listedechoix!$A$1,20,IF(N8=Listedechoix!$A$2,15,IF(N8=Listedechoix!$A$3,10,IF(N8=Listedechoix!$A$4,5,0)))) -> 0 | EA8: =IF(O8=Listedechoix!$A$1,20,IF(O8=Listedechoix!$A$2,15,IF(O8=Listedechoix!$A$3,10,IF(O8=Listedechoix!$A$4,5,0)))) -> 0 | EB8: =IF(P8=Listedechoix!$A$1,20,IF(P8=Listedechoix!$A$2,15,IF(P8=Listedechoix!$A$3,10,IF(P8=Listedechoix!$A$4,5,0)))) -> 5 | EC8: 9.615384615 | ED8: 0.4807692308 | EE8: =IF(Q8=Listedechoix!$A$1,20,IF(Q8=Listedechoix!$A$2,15,IF(Q8=Listedechoix!$A$3,10,IF(Q8=Listedechoix!$A$4,5,0)))) -> 20 | EF8: =IF(R8=Listedechoix!$A$1,20,IF(R8=Listedechoix!$A$2,15,IF(R8=Listedechoix!$A$3,10,IF(R8=Listedechoix!$A$4,5,0)))) -> 0 | EG8: =IF(S8=Listedechoix!$A$1,20,IF(S8=Listedechoix!$A$2,15,IF(S8=Listedechoix!$A$3,10,IF(S8=Listedechoix!$A$4,5,0)))) -> 20 | EH8: =IF(T8=Listedechoix!$A$1,20,IF(T8=Listedechoix!$A$2,15,IF(T8=Listedechoix!$A$3,10,IF(T8=Listedechoix!$A$4,5,0)))) -> 0 | EI8: =IF(U8=Listedechoix!$A$1,20,IF(U8=Listedechoix!$A$2,15,IF(U8=Listedechoix!$A$3,10,IF(U8=Listedechoix!$A$4,5,0)))) -> 0 | EJ8: =IF(V8=Listedechoix!$A$1,20,IF(V8=Listedechoix!$A$2,15,IF(V8=Listedechoix!$A$3,10,IF(V8=Listedechoix!$A$4,5,0)))) -> 0 | EK8: =IF(W8=Listedechoix!$A$1,20,IF(W8=Listedechoix!$A$2,15,IF(W8=Listedechoix!$A$3,10,IF(W8=Listedechoix!$A$4,5,0)))) -> 0 | EL8: =IF(X8=Listedechoix!$A$1,20,IF(X8=Listedechoix!$A$2,15,IF(X8=Listedechoix!$A$3,10,IF(X8=Listedechoix!$A$4,5,0)))) -> 0 | EM8: =IF(Y8=Listedechoix!$A$1,20,IF(Y8=Listedechoix!$A$2,15,IF(Y8=Listedechoix!$A$3,10,IF(Y8=Listedechoix!$A$4,5,0)))) -> 0 | EN8: =IF(Z8=Listedechoix!$A$1,20,IF(Z8=Listedechoix!$A$2,15,IF(Z8=Listedechoix!$A$3,10,IF(Z8=Listedechoix!$A$4,5,0)))) -> 0 | EO8: =IF(AA8=Listedechoix!$A$1,20,IF(AA8=Listedechoix!$A$2,15,IF(AA8=Listedechoix!$A$3,10,IF(AA8=Listedechoix!$A$4,5,0)))) -> 10 | EP8: 16.66666667 | EQ8: 0.8333333333 | ER8: =IF(AB8=Listedechoix!$A$1,20,IF(AB8=Listedechoix!$A$2,15,IF(AB8=Listedechoix!$A$3,10,IF(AB8=Listedechoix!$A$4,5,0)))) -> 0 | ES8: =IF(AC8=Listedechoix!$A$1,20,IF(AC8=Listedechoix!$A$2,15,IF(AC8=Listedechoix!$A$3,10,IF(AC8=Listedechoix!$A$4,5,0)))) -> 0 | ET8: =IF(AD8=Listedechoix!$A$1,20,IF(AD8=Listedechoix!$A$2,15,IF(AD8=Listedechoix!$A$3,10,IF(AD8=Listedechoix!$A$4,5,0)))) -> 0 | EU8: =IF(AE8=Listedechoix!$A$1,20,IF(AE8=Listedechoix!$A$2,15,IF(AE8=Listedechoix!$A$3,10,IF(AE8=Listedechoix!$A$4,5,0)))) -> 0 | EV8: =IF(AF8=Listedechoix!$A$1,20,IF(AF8=Listedechoix!$A$2,15,IF(AF8=Listedechoix!$A$3,10,IF(AF8=Listedechoix!$A$4,5,0)))) -> 0 | EW8: =IF(AG8=Listedechoix!$A$1,20,IF(AG8=Listedechoix!$A$2,15,IF(AG8=Listedechoix!$A$3,10,IF(AG8=Listedechoix!$A$4,5,0)))) -> 0 | EX8: =IF(AH8=Listedechoix!$A$1,20,IF(AH8=Listedechoix!$A$2,15,IF(AH8=Listedechoix!$A$3,10,IF(AH8=Listedechoix!$A$4,5,0)))) -> 0 | EY8: =IF(AI8=Listedechoix!$A$1,20,IF(AI8=Listedechoix!$A$2,15,IF(AI8=Listedechoix!$A$3,10,IF(AI8=Listedechoix!$A$4,5,0)))) -> 0 | EZ8: =IF(AJ8=Listedechoix!$A$1,20,IF(AJ8=Listedechoix!$A$2,15,IF(AJ8=Listedechoix!$A$3,10,IF(AJ8=Listedechoix!$A$4,5,0)))) -> 0 | FA8: =IF(AK8=Listedechoix!$A$1,20,IF(AK8=Listedechoix!$A$2,15,IF(AK8=Listedechoix!$A$3,10,IF(AK8=Listedechoix!$A$4,5,0)))) -> 0 | FB8: =IF(AL8=Listedechoix!$A$1,20,IF(AL8=Listedechoix!$A$2,15,IF(AL8=Listedechoix!$A$3,10,IF(AL8=Listedechoix!$A$4,5,0)))) -> 0 | FC8: =IF(AM8=Listedechoix!$A$1,20,IF(AM8=Listedechoix!$A$2,15,IF(AM8=Listedechoix!$A$3,10,IF(AM8=Listedechoix!$A$4,5,0)))) -> 0 | FD8: =IF(AN8=Listedechoix!$A$1,20,IF(AN8=Listedechoix!$A$2,15,IF(AN8=Listedechoix!$A$3,10,IF(AN8=Listedechoix!$A$4,5,0)))) -> 0 | FE8: =IF(AO8=Listedechoix!$A$1,20,IF(AO8=Listedechoix!$A$2,15,IF(AO8=Listedechoix!$A$3,10,IF(AO8=Listedechoix!$A$4,5,0)))) -> 20 | FF8: 20 | FG8: 1 | FH8: =IF(AP8=Listedechoix!$A$1,20,IF(AP8=Listedechoix!$A$2,15,IF(AP8=Listedechoix!$A$3,10,IF(AP8=Listedechoix!$A$4,5,0)))) -> 20 | FI8: =IF(AQ8=Listedechoix!$A$1,20,IF(AQ8=Listedechoix!$A$2,15,IF(AQ8=Listedechoix!$A$3,10,IF(AQ8=Listedechoix!$A$4,5,0)))) -> 0 | FJ8: =IF(AR8=Listedechoix!$A$1,20,IF(AR8=Listedechoix!$A$2,15,IF(AR8=Listedechoix!$A$3,10,IF(AR8=Listedechoix!$A$4,5,0)))) -> 0 | FK8: =IF(AS8=Listedechoix!$A$1,20,IF(AS8=Listedechoix!$A$2,15,IF(AS8=Listedechoix!$A$3,10,IF(AS8=Listedechoix!$A$4,5,0)))) -> 0 | FL8: =IF(AT8=Listedechoix!$A$1,20,IF(AT8=Listedechoix!$A$2,15,IF(AT8=Listedechoix!$A$3,10,IF(AT8=Listedechoix!$A$4,5,0)))) -> 0 | FM8: =IF(AU8=Listedechoix!$A$1,20,IF(AU8=Listedechoix!$A$2,15,IF(AU8=Listedechoix!$A$3,10,IF(AU8=Listedechoix!$A$4,5,0)))) -> 0 | FN8: =IF(AV8=Listedechoix!$A$1,20,IF(AV8=Listedechoix!$A$2,15,IF(AV8=Listedechoix!$A$3,10,IF(AV8=Listedechoix!$A$4,5,0)))) -> 0 | FO8: =IF(AW8=Listedechoix!$A$1,20,IF(AW8=Listedechoix!$A$2,15,IF(AW8=Listedechoix!$A$3,10,IF(AW8=Listedechoix!$A$4,5,0)))) -> 0 | FP8: =IF(AX8=Listedechoix!$A$1,20,IF(AX8=Listedechoix!$A$2,15,IF(AX8=Listedechoix!$A$3,10,IF(AX8=Listedechoix!$A$4,5,0)))) -> 0 | FQ8: =IF(AY8=Listedechoix!$A$1,20,IF(AY8=Listedechoix!$A$2,15,IF(AY8=Listedechoix!$A$3,10,IF(AY8=Listedechoix!$A$4,5,0)))) -> 0 | FR8: =IF(AZ8=Listedechoix!$A$1,20,IF(AZ8=Listedechoix!$A$2,15,IF(AZ8=Listedechoix!$A$3,10,IF(AZ8=Listedechoix!$A$4,5,0)))) -> 0 | FS8: =IF(BA8=Listedechoix!$A$1,20,IF(BA8=Listedechoix!$A$2,15,IF(BA8=Listedechoix!$A$3,10,IF(BA8=Listedechoix!$A$4,5,0)))) -> 0 | FT8: =IF(BB8=Listedechoix!$A$1,20,IF(BB8=Listedechoix!$A$2,15,IF(BB8=Listedechoix!$A$3,10,IF(BB8=Listedechoix!$A$4,5,0)))) -> 0 | FU8: =IF(BC8=Listedechoix!$A$1,20,IF(BC8=Listedechoix!$A$2,15,IF(BC8=Listedechoix!$A$3,10,IF(BC8=Listedechoix!$A$4,5,0)))) -> 20 | FV8: 20 | FW8: 1 | FX8: =IF(BD8=Listedechoix!$A$1,20,IF(BD8=Listedechoix!$A$2,15,IF(BD8=Listedechoix!$A$3,10,IF(BD8=Listedechoix!$A$4,5,0)))) -> 0 | FY8: =IF(BE8=Listedechoix!$A$1,20,IF(BE8=Listedechoix!$A$2,15,IF(BE8=Listedechoix!$A$3,10,IF(BE8=Listedechoix!$A$4,5,0)))) -> 20 | FZ8: =IF(BF8=Listedechoix!$A$1,20,IF(BF8=Listedechoix!$A$2,15,IF(BF8=Listedechoix!$A$3,10,IF(BF8=Listedechoix!$A$4,5,0)))) -> 10 | GA8: =IF(BG8=Listedechoix!$A$1,20,IF(BG8=Listedechoix!$A$2,15,IF(BG8=Listedechoix!$A$3,10,IF(BG8=Listedechoix!$A$4,5,0)))) -> 0 | GB8: =IF(BH8=Listedechoix!$A$1,20,IF(BH8=Listedechoix!$A$2,15,IF(BH8=Listedechoix!$A$3,10,IF(BH8=Listedechoix!$A$4,5,0)))) -> 0 | GC8: =IF(BI8=Listedechoix!$A$1,20,IF(BI8=Listedechoix!$A$2,15,IF(BI8=Listedechoix!$A$3,10,IF(BI8=Listedechoix!$A$4,5,0)))) -> 0 | GD8: =IF(BJ8=Listedechoix!$A$1,20,IF(BJ8=Listedechoix!$A$2,15,IF(BJ8=Listedechoix!$A$3,10,IF(BJ8=Listedechoix!$A$4,5,0)))) -> 0 | GE8: =IF(BK8=Listedechoix!$A$1,20,IF(BK8=Listedechoix!$A$2,15,IF(BK8=Listedechoix!$A$3,10,IF(BK8=Listedechoix!$A$4,5,0)))) -> 0 | GF8: =IF(BL8=Listedechoix!$A$1,20,IF(BL8=Listedechoix!$A$2,15,IF(BL8=Listedechoix!$A$3,10,IF(BL8=Listedechoix!$A$4,5,0)))) -> 0 | GG8: =IF(BM8=Listedechoix!$A$1,20,IF(BM8=Listedechoix!$A$2,15,IF(BM8=Listedechoix!$A$3,10,IF(BM8=Listedechoix!$A$4,5,0)))) -> 0 | GH8: =IF(BN8=Listedechoix!$A$1,20,IF(BN8=Listedechoix!$A$2,15,IF(BN8=Listedechoix!$A$3,10,IF(BN8=Listedechoix!$A$4,5,0)))) -> 0 | GI8: 15.71428571 | GJ8: 0.7857142857 | GK8: =IF(BO8=Listedechoix!$A$1,20,IF(BO8=Listedechoix!$A$2,15,IF(BO8=Listedechoix!$A$3,10,IF(BO8=Listedechoix!$A$4,5,0)))) -> 0 | GL8: =IF(BP8=Listedechoix!$A$1,20,IF(BP8=Listedechoix!$A$2,15,IF(BP8=Listedechoix!$A$3,10,IF(BP8=Listedechoix!$A$4,5,0)))) -> 0 | GM8: =IF(BQ8=Listedechoix!$A$1,20,IF(BQ8=Listedechoix!$A$2,15,IF(BQ8=Listedechoix!$A$3,10,IF(BQ8=Listedechoix!$A$4,5,0)))) -> 0 | GN8: =IF(BR8=Listedechoix!$A$1,20,IF(BR8=Listedechoix!$A$2,15,IF(BR8=Listedechoix!$A$3,10,IF(BR8=Listedechoix!$A$4,5,0)))) -> 0 | GO8: =IF(BS8=Listedechoix!$A$1,20,IF(BS8=Listedechoix!$A$2,15,IF(BS8=Listedechoix!$A$3,10,IF(BS8=Listedechoix!$A$4,5,0)))) -> 0 | GP8: =IF(BT8=Listedechoix!$A$1,20,IF(BT8=Listedechoix!$A$2,15,IF(BT8=Listedechoix!$A$3,10,IF(BT8=Listedechoix!$A$4,5,0)))) -> 0 | GQ8: =IF(BU8=Listedechoix!$A$1,20,IF(BU8=Listedechoix!$A$2,15,IF(BU8=Listedechoix!$A$3,10,IF(BU8=Listedechoix!$A$4,5,0)))) -> 0 | GR8: =IF(BV8=Listedechoix!$A$1,20,IF(BV8=Listedechoix!$A$2,15,IF(BV8=Listedechoix!$A$3,10,IF(BV8=Listedechoix!$A$4,5,0)))) -> 0 | GS8: =IF(BW8=Listedechoix!$A$1,20,IF(BW8=Listedechoix!$A$2,15,IF(BW8=Listedechoix!$A$3,10,IF(BW8=Listedechoix!$A$4,5,0)))) -> 0 | GT8: =IF(BX8=Listedechoix!$A$1,20,IF(BX8=Listedechoix!$A$2,15,IF(BX8=Listedechoix!$A$3,10,IF(BX8=Listedechoix!$A$4,5,0)))) -> 0 | GU8: =IF(BY8=Listedechoix!$A$1,20,IF(BY8=Listedechoix!$A$2,15,IF(BY8=Listedechoix!$A$3,10,IF(BY8=Listedechoix!$A$4,5,0)))) -> 0 | GV8: NNot | GW8: NNot | GX8: =IF(BZ8=Listedechoix!$A$1,20,IF(BZ8=Listedechoix!$A$2,15,IF(BZ8=Listedechoix!$A$3,10,IF(BZ8=Listedechoix!$A$4,5,0)))) -> 15 | GY8: =IF(CA8=Listedechoix!$A$1,20,IF(CA8=Listedechoix!$A$2,15,IF(CA8=Listedechoix!$A$3,10,IF(CA8=Listedechoix!$A$4,5,0)))) -> 0 | GZ8: =IF(CB8=Listedechoix!$A$1,20,IF(CB8=Listedechoix!$A$2,15,IF(CB8=Listedechoix!$A$3,10,IF(CB8=Listedechoix!$A$4,5,0)))) -> 0 | HA8: =IF(CC8=Listedechoix!$A$1,20,IF(CC8=Listedechoix!$A$2,15,IF(CC8=Listedechoix!$A$3,10,IF(CC8=Listedechoix!$A$4,5,0)))) -> 0 | HB8: =IF(CD8=Listedechoix!$A$1,20,IF(CD8=Listedechoix!$A$2,15,IF(CD8=Listedechoix!$A$3,10,IF(CD8=Listedechoix!$A$4,5,0)))) -> 0 | HC8: =IF(CE8=Listedechoix!$A$1,20,IF(CE8=Listedechoix!$A$2,15,IF(CE8=Listedechoix!$A$3,10,IF(CE8=Listedechoix!$A$4,5,0)))) -> 0 | HD8: =IF(CF8=Listedechoix!$A$1,20,IF(CF8=Listedechoix!$A$2,15,IF(CF8=Listedechoix!$A$3,10,IF(CF8=Listedechoix!$A$4,5,0)))) -> 0 | HE8: =IF(CG8=Listedechoix!$A$1,20,IF(CG8=Listedechoix!$A$2,15,IF(CG8=Listedechoix!$A$3,10,IF(CG8=Listedechoix!$A$4,5,0)))) -> 0 | HF8: =IF(CH8=Listedechoix!$A$1,20,IF(CH8=Listedechoix!$A$2,15,IF(CH8=Listedechoix!$A$3,10,IF(CH8=Listedechoix!$A$4,5,0)))) -> 5 | HG8: =IF(CI8=Listedechoix!$A$1,20,IF(CI8=Listedechoix!$A$2,15,IF(CI8=Listedechoix!$A$3,10,IF(CI8=Listedechoix!$A$4,5,0)))) -> 0 | HH8: =IF(CJ8=Listedechoix!$A$1,20,IF(CJ8=Listedechoix!$A$2,15,IF(CJ8=Listedechoix!$A$3,10,IF(CJ8=Listedechoix!$A$4,5,0)))) -> 0 | HI8: =IF(CK8=Listedechoix!$A$1,20,IF(CK8=Listedechoix!$A$2,15,IF(CK8=Listedechoix!$A$3,10,IF(CK8=Listedechoix!$A$4,5,0)))) -> 0 | HJ8: =IF(CL8=Listedechoix!$A$1,20,IF(CL8=Listedechoix!$A$2,15,IF(CL8=Listedechoix!$A$3,10,IF(CL8=Listedechoix!$A$4,5,0)))) -> 0 | HK8: =IF(CM8=Listedechoix!$A$1,20,IF(CM8=Listedechoix!$A$2,15,IF(CM8=Listedechoix!$A$3,10,IF(CM8=Listedechoix!$A$4,5,0)))) -> 10 | HL8: 10.71428571 | HM8: 0.5357142857
CR9: 0 | CX9: 0 | CY9: NNot | DD9: 0 | DE9: NNot | DJ9: 0 | DK9: NNot | DP9: 0 | DQ9: NNot | DR9: =IF(F9=Listedechoix!$A$1,20,IF(F9=Listedechoix!$A$2,15,IF(F9=Listedechoix!$A$3,10,IF(F9=Listedechoix!$A$4,5,0)))) -> 0 | DS9: =IF(G9=Listedechoix!$A$1,20,IF(G9=Listedechoix!$A$2,15,IF(G9=Listedechoix!$A$3,10,IF(G9=Listedechoix!$A$4,5,0)))) -> 0 | DT9: =IF(H9=Listedechoix!$A$1,20,IF(H9=Listedechoix!$A$2,15,IF(H9=Listedechoix!$A$3,10,IF(H9=Listedechoix!$A$4,5,0)))) -> 0 | DU9: =IF(I9=Listedechoix!$A$1,20,IF(I9=Listedechoix!$A$2,15,IF(I9=Listedechoix!$A$3,10,IF(I9=Listedechoix!$A$4,5,0)))) -> 0 | DV9: =IF(J9=Listedechoix!$A$1,20,IF(J9=Listedechoix!$A$2,15,IF(J9=Listedechoix!$A$3,10,IF(J9=Listedechoix!$A$4,5,0)))) -> 0 | DW9: =IF(K9=Listedechoix!$A$1,20,IF(K9=Listedechoix!$A$2,15,IF(K9=Listedechoix!$A$3,10,IF(K9=Listedechoix!$A$4,5,0)))) -> 0 | DX9: =IF(L9=Listedechoix!$A$1,20,IF(L9=Listedechoix!$A$2,15,IF(L9=Listedechoix!$A$3,10,IF(L9=Listedechoix!$A$4,5,0)))) -> 0 | DY9: =IF(M9=Listedechoix!$A$1,20,IF(M9=Listedechoix!$A$2,15,IF(M9=Listedechoix!$A$3,10,IF(M9=Listedechoix!$A$4,5,0)))) -> 0 | DZ9: =IF(N9=Listedechoix!$A$1,20,IF(N9=Listedechoix!$A$2,15,IF(N9=Listedechoix!$A$3,10,IF(N9=Listedechoix!$A$4,5,0)))) -> 0 | EA9: =IF(O9=Listedechoix!$A$1,20,IF(O9=Listedechoix!$A$2,15,IF(O9=Listedechoix!$A$3,10,IF(O9=Listedechoix!$A$4,5,0)))) -> 0 | EB9: =IF(P9=Listedechoix!$A$1,20,IF(P9=Listedechoix!$A$2,15,IF(P9=Listedechoix!$A$3,10,IF(P9=Listedechoix!$A$4,5,0)))) -> 0 | EC9: NNot | ED9: NNot | EE9: =IF(Q9=Listedechoix!$A$1,20,IF(Q9=Listedechoix!$A$2,15,IF(Q9=Listedechoix!$A$3,10,IF(Q9=Listedechoix!$A$4,5,0)))) -> 0 | EF9: =IF(R9=Listedechoix!$A$1,20,IF(R9=Listedechoix!$A$2,15,IF(R9=Listedechoix!$A$3,10,IF(R9=Listedechoix!$A$4,5,0)))) -> 0 | EG9: =IF(S9=Listedechoix!$A$1,20,IF(S9=Listedechoix!$A$2,15,IF(S9=Listedechoix!$A$3,10,IF(S9=Listedechoix!$A$4,5,0)))) -> 0 | EH9: =IF(T9=Listedechoix!$A$1,20,IF(T9=Listedechoix!$A$2,15,IF(T9=Listedechoix!$A$3,10,IF(T9=Listedechoix!$A$4,5,0)))) -> 0 | EI9: =IF(U9=Listedechoix!$A$1,20,IF(U9=Listedechoix!$A$2,15,IF(U9=Listedechoix!$A$3,10,IF(U9=Listedechoix!$A$4,5,0)))) -> 0 | EJ9: =IF(V9=Listedechoix!$A$1,20,IF(V9=Listedechoix!$A$2,15,IF(V9=Listedechoix!$A$3,10,IF(V9=Listedechoix!$A$4,5,0)))) -> 0 | EK9: =IF(W9=Listedechoix!$A$1,20,IF(W9=Listedechoix!$A$2,15,IF(W9=Listedechoix!$A$3,10,IF(W9=Listedechoix!$A$4,5,0)))) -> 0 | EL9: =IF(X9=Listedechoix!$A$1,20,IF(X9=Listedechoix!$A$2,15,IF(X9=Listedechoix!$A$3,10,IF(X9=Listedechoix!$A$4,5,0)))) -> 0 | EM9: =IF(Y9=Listedechoix!$A$1,20,IF(Y9=Listedechoix!$A$2,15,IF(Y9=Listedechoix!$A$3,10,IF(Y9=Listedechoix!$A$4,5,0)))) -> 0 | EN9: =IF(Z9=Listedechoix!$A$1,20,IF(Z9=Listedechoix!$A$2,15,IF(Z9=Listedechoix!$A$3,10,IF(Z9=Listedechoix!$A$4,5,0)))) -> 0 | EO9: =IF(AA9=Listedechoix!$A$1,20,IF(AA9=Listedechoix!$A$2,15,IF(AA9=Listedechoix!$A$3,10,IF(AA9=Listedechoix!$A$4,5,0)))) -> 0 | EP9: NNot | EQ9: NNot | ER9: =IF(AB9=Listedechoix!$A$1,20,IF(AB9=Listedechoix!$A$2,15,IF(AB9=Listedechoix!$A$3,10,IF(AB9=Listedechoix!$A$4,5,0)))) -> 0 | ES9: =IF(AC9=Listedechoix!$A$1,20,IF(AC9=Listedechoix!$A$2,15,IF(AC9=Listedechoix!$A$3,10,IF(AC9=Listedechoix!$A$4,5,0)))) -> 0 | ET9: =IF(AD9=Listedechoix!$A$1,20,IF(AD9=Listedechoix!$A$2,15,IF(AD9=Listedechoix!$A$3,10,IF(AD9=Listedechoix!$A$4,5,0)))) -> 0 | EU9: =IF(AE9=Listedechoix!$A$1,20,IF(AE9=Listedechoix!$A$2,15,IF(AE9=Listedechoix!$A$3,10,IF(AE9=Listedechoix!$A$4,5,0)))) -> 0 | EV9: =IF(AF9=Listedechoix!$A$1,20,IF(AF9=Listedechoix!$A$2,15,IF(AF9=Listedechoix!$A$3,10,IF(AF9=Listedechoix!$A$4,5,0)))) -> 0 | EW9: =IF(AG9=Listedechoix!$A$1,20,IF(AG9=Listedechoix!$A$2,15,IF(AG9=Listedechoix!$A$3,10,IF(AG9=Listedechoix!$A$4,5,0)))) -> 0 | EX9: =IF(AH9=Listedechoix!$A$1,20,IF(AH9=Listedechoix!$A$2,15,IF(AH9=Listedechoix!$A$3,10,IF(AH9=Listedechoix!$A$4,5,0)))) -> 0 | EY9: =IF(AI9=Listedechoix!$A$1,20,IF(AI9=Listedechoix!$A$2,15,IF(AI9=Listedechoix!$A$3,10,IF(AI9=Listedechoix!$A$4,5,0)))) -> 0 | EZ9: =IF(AJ9=Listedechoix!$A$1,20,IF(AJ9=Listedechoix!$A$2,15,IF(AJ9=Listedechoix!$A$3,10,IF(AJ9=Listedechoix!$A$4,5,0)))) -> 0 | FA9: =IF(AK9=Listedechoix!$A$1,20,IF(AK9=Listedechoix!$A$2,15,IF(AK9=Listedechoix!$A$3,10,IF(AK9=Listedechoix!$A$4,5,0)))) -> 0 | FB9: =IF(AL9=Listedechoix!$A$1,20,IF(AL9=Listedechoix!$A$2,15,IF(AL9=Listedechoix!$A$3,10,IF(AL9=Listedechoix!$A$4,5,0)))) -> 0 | FC9: =IF(AM9=Listedechoix!$A$1,20,IF(AM9=Listedechoix!$A$2,15,IF(AM9=Listedechoix!$A$3,10,IF(AM9=Listedechoix!$A$4,5,0)))) -> 0 | FD9: =IF(AN9=Listedechoix!$A$1,20,IF(AN9=Listedechoix!$A$2,15,IF(AN9=Listedechoix!$A$3,10,IF(AN9=Listedechoix!$A$4,5,0)))) -> 0 | FE9: =IF(AO9=Listedechoix!$A$1,20,IF(AO9=Listedechoix!$A$2,15,IF(AO9=Listedechoix!$A$3,10,IF(AO9=Listedechoix!$A$4,5,0)))) -> 0 | FF9: NNot | FG9: NNot | FH9: =IF(AP9=Listedechoix!$A$1,20,IF(AP9=Listedechoix!$A$2,15,IF(AP9=Listedechoix!$A$3,10,IF(AP9=Listedechoix!$A$4,5,0)))) -> 0 | FI9: =IF(AQ9=Listedechoix!$A$1,20,IF(AQ9=Listedechoix!$A$2,15,IF(AQ9=Listedechoix!$A$3,10,IF(AQ9=Listedechoix!$A$4,5,0)))) -> 0 | FJ9: =IF(AR9=Listedechoix!$A$1,20,IF(AR9=Listedechoix!$A$2,15,IF(AR9=Listedechoix!$A$3,10,IF(AR9=Listedechoix!$A$4,5,0)))) -> 0 | FK9: =IF(AS9=Listedechoix!$A$1,20,IF(AS9=Listedechoix!$A$2,15,IF(AS9=Listedechoix!$A$3,10,IF(AS9=Listedechoix!$A$4,5,0)))) -> 0 | FL9: =IF(AT9=Listedechoix!$A$1,20,IF(AT9=Listedechoix!$A$2,15,IF(AT9=Listedechoix!$A$3,10,IF(AT9=Listedechoix!$A$4,5,0)))) -> 0 | FM9: =IF(AU9=Listedechoix!$A$1,20,IF(AU9=Listedechoix!$A$2,15,IF(AU9=Listedechoix!$A$3,10,IF(AU9=Listedechoix!$A$4,5,0)))) -> 0 | FN9: =IF(AV9=Listedechoix!$A$1,20,IF(AV9=Listedechoix!$A$2,15,IF(AV9=Listedechoix!$A$3,10,IF(AV9=Listedechoix!$A$4,5,0)))) -> 0 | FO9: =IF(AW9=Listedechoix!$A$1,20,IF(AW9=Listedechoix!$A$2,15,IF(AW9=Listedechoix!$A$3,10,IF(AW9=Listedechoix!$A$4,5,0)))) -> 0 | FP9: =IF(AX9=Listedechoix!$A$1,20,IF(AX9=Listedechoix!$A$2,15,IF(AX9=Listedechoix!$A$3,10,IF(AX9=Listedechoix!$A$4,5,0)))) -> 0 | FQ9: =IF(AY9=Listedechoix!$A$1,20,IF(AY9=Listedechoix!$A$2,15,IF(AY9=Listedechoix!$A$3,10,IF(AY9=Listedechoix!$A$4,5,0)))) -> 0 | FR9: =IF(AZ9=Listedechoix!$A$1,20,IF(AZ9=Listedechoix!$A$2,15,IF(AZ9=Listedechoix!$A$3,10,IF(AZ9=Listedechoix!$A$4,5,0)))) -> 0 | FS9: =IF(BA9=Listedechoix!$A$1,20,IF(BA9=Listedechoix!$A$2,15,IF(BA9=Listedechoix!$A$3,10,IF(BA9=Listedechoix!$A$4,5,0)))) -> 0 | FT9: =IF(BB9=Listedechoix!$A$1,20,IF(BB9=Listedechoix!$A$2,15,IF(BB9=Listedechoix!$A$3,10,IF(BB9=Listedechoix!$A$4,5,0)))) -> 0 | FU9: =IF(BC9=Listedechoix!$A$1,20,IF(BC9=Listedechoix!$A$2,15,IF(BC9=Listedechoix!$A$3,10,IF(BC9=Listedechoix!$A$4,5,0)))) -> 0 | FV9: NNot | FW9: NNot | FX9: =IF(BD9=Listedechoix!$A$1,20,IF(BD9=Listedechoix!$A$2,15,IF(BD9=Listedechoix!$A$3,10,IF(BD9=Listedechoix!$A$4,5,0)))) -> 0 | FY9: =IF(BE9=Listedechoix!$A$1,20,IF(BE9=Listedechoix!$A$2,15,IF(BE9=Listedechoix!$A$3,10,IF(BE9=Listedechoix!$A$4,5,0)))) -> 0 | FZ9: =IF(BF9=Listedechoix!$A$1,20,IF(BF9=Listedechoix!$A$2,15,IF(BF9=Listedechoix!$A$3,10,IF(BF9=Listedechoix!$A$4,5,0)))) -> 0 | GA9: =IF(BG9=Listedechoix!$A$1,20,IF(BG9=Listedechoix!$A$2,15,IF(BG9=Listedechoix!$A$3,10,IF(BG9=Listedechoix!$A$4,5,0)))) -> 0 | GB9: =IF(BH9=Listedechoix!$A$1,20,IF(BH9=Listedechoix!$A$2,15,IF(BH9=Listedechoix!$A$3,10,IF(BH9=Listedechoix!$A$4,5,0)))) -> 0 | GC9: =IF(BI9=Listedechoix!$A$1,20,IF(BI9=Listedechoix!$A$2,15,IF(BI9=Listedechoix!$A$3,10,IF(BI9=Listedechoix!$A$4,5,0)))) -> 0 | GD9: =IF(BJ9=Listedechoix!$A$1,20,IF(BJ9=Listedechoix!$A$2,15,IF(BJ9=Listedechoix!$A$3,10,IF(BJ9=Listedechoix!$A$4,5,0)))) -> 0 | GE9: =IF(BK9=Listedechoix!$A$1,20,IF(BK9=Listedechoix!$A$2,15,IF(BK9=Listedechoix!$A$3,10,IF(BK9=Listedechoix!$A$4,5,0)))) -> 0 | GF9: =IF(BL9=Listedechoix!$A$1,20,IF(BL9=Listedechoix!$A$2,15,IF(BL9=Listedechoix!$A$3,10,IF(BL9=Listedechoix!$A$4,5,0)))) -> 0 | GG9: =IF(BM9=Listedechoix!$A$1,20,IF(BM9=Listedechoix!$A$2,15,IF(BM9=Listedechoix!$A$3,10,IF(BM9=Listedechoix!$A$4,5,0)))) -> 0 | GH9: =IF(BN9=Listedechoix!$A$1,20,IF(BN9=Listedechoix!$A$2,15,IF(BN9=Listedechoix!$A$3,10,IF(BN9=Listedechoix!$A$4,5,0)))) -> 0 | GI9: NNot | GJ9: NNot | GK9: =IF(BO9=Listedechoix!$A$1,20,IF(BO9=Listedechoix!$A$2,15,IF(BO9=Listedechoix!$A$3,10,IF(BO9=Listedechoix!$A$4,5,0)))) -> 0 | GL9: =IF(BP9=Listedechoix!$A$1,20,IF(BP9=Listedechoix!$A$2,15,IF(BP9=Listedechoix!$A$3,10,IF(BP9=Listedechoix!$A$4,5,0)))) -> 0 | GM9: =IF(BQ9=Listedechoix!$A$1,20,IF(BQ9=Listedechoix!$A$2,15,IF(BQ9=Listedechoix!$A$3,10,IF(BQ9=Listedechoix!$A$4,5,0)))) -> 0 | GN9: =IF(BR9=Listedechoix!$A$1,20,IF(BR9=Listedechoix!$A$2,15,IF(BR9=Listedechoix!$A$3,10,IF(BR9=Listedechoix!$A$4,5,0)))) -> 0 | GO9: =IF(BS9=Listedechoix!$A$1,20,IF(BS9=Listedechoix!$A$2,15,IF(BS9=Listedechoix!$A$3,10,IF(BS9=Listedechoix!$A$4,5,0)))) -> 0 | GP9: =IF(BT9=Listedechoix!$A$1,20,IF(BT9=Listedechoix!$A$2,15,IF(BT9=Listedechoix!$A$3,10,IF(BT9=Listedechoix!$A$4,5,0)))) -> 0 | GQ9: =IF(BU9=Listedechoix!$A$1,20,IF(BU9=Listedechoix!$A$2,15,IF(BU9=Listedechoix!$A$3,10,IF(BU9=Listedechoix!$A$4,5,0)))) -> 0 | GR9: =IF(BV9=Listedechoix!$A$1,20,IF(BV9=Listedechoix!$A$2,15,IF(BV9=Listedechoix!$A$3,10,IF(BV9=Listedechoix!$A$4,5,0)))) -> 0 | GS9: =IF(BW9=Listedechoix!$A$1,20,IF(BW9=Listedechoix!$A$2,15,IF(BW9=Listedechoix!$A$3,10,IF(BW9=Listedechoix!$A$4,5,0)))) -> 0 | GT9: =IF(BX9=Listedechoix!$A$1,20,IF(BX9=Listedechoix!$A$2,15,IF(BX9=Listedechoix!$A$3,10,IF(BX9=Listedechoix!$A$4,5,0)))) -> 0 | GU9: =IF(BY9=Listedechoix!$A$1,20,IF(BY9=Listedechoix!$A$2,15,IF(BY9=Listedechoix!$A$3,10,IF(BY9=Listedechoix!$A$4,5,0)))) -> 0 | GV9: NNot | GW9: NNot | GX9: =IF(BZ9=Listedechoix!$A$1,20,IF(BZ9=Listedechoix!$A$2,15,IF(BZ9=Listedechoix!$A$3,10,IF(BZ9=Listedechoix!$A$4,5,0)))) -> 0 | GY9: =IF(CA9=Listedechoix!$A$1,20,IF(CA9=Listedechoix!$A$2,15,IF(CA9=Listedechoix!$A$3,10,IF(CA9=Listedechoix!$A$4,5,0)))) -> 0 | GZ9: =IF(CB9=Listedechoix!$A$1,20,IF(CB9=Listedechoix!$A$2,15,IF(CB9=Listedechoix!$A$3,10,IF(CB9=Listedechoix!$A$4,5,0)))) -> 0 | HA9: =IF(CC9=Listedechoix!$A$1,20,IF(CC9=Listedechoix!$A$2,15,IF(CC9=Listedechoix!$A$3,10,IF(CC9=Listedechoix!$A$4,5,0)))) -> 0 | HB9: =IF(CD9=Listedechoix!$A$1,20,IF(CD9=Listedechoix!$A$2,15,IF(CD9=Listedechoix!$A$3,10,IF(CD9=Listedechoix!$A$4,5,0)))) -> 0 | HC9: =IF(CE9=Listedechoix!$A$1,20,IF(CE9=Listedechoix!$A$2,15,IF(CE9=Listedechoix!$A$3,10,IF(CE9=Listedechoix!$A$4,5,0)))) -> 0 | HD9: =IF(CF9=Listedechoix!$A$1,20,IF(CF9=Listedechoix!$A$2,15,IF(CF9=Listedechoix!$A$3,10,IF(CF9=Listedechoix!$A$4,5,0)))) -> 0 | HE9: =IF(CG9=Listedechoix!$A$1,20,IF(CG9=Listedechoix!$A$2,15,IF(CG9=Listedechoix!$A$3,10,IF(CG9=Listedechoix!$A$4,5,0)))) -> 0 | HF9: =IF(CH9=Listedechoix!$A$1,20,IF(CH9=Listedechoix!$A$2,15,IF(CH9=Listedechoix!$A$3,10,IF(CH9=Listedechoix!$A$4,5,0)))) -> 0 | HG9: =IF(CI9=Listedechoix!$A$1,20,IF(CI9=Listedechoix!$A$2,15,IF(CI9=Listedechoix!$A$3,10,IF(CI9=Listedechoix!$A$4,5,0)))) -> 0 | HH9: =IF(CJ9=Listedechoix!$A$1,20,IF(CJ9=Listedechoix!$A$2,15,IF(CJ9=Listedechoix!$A$3,10,IF(CJ9=Listedechoix!$A$4,5,0)))) -> 0 | HI9: =IF(CK9=Listedechoix!$A$1,20,IF(CK9=Listedechoix!$A$2,15,IF(CK9=Listedechoix!$A$3,10,IF(CK9=Listedechoix!$A$4,5,0)))) -> 0 | HJ9: =IF(CL9=Listedechoix!$A$1,20,IF(CL9=Listedechoix!$A$2,15,IF(CL9=Listedechoix!$A$3,10,IF(CL9=Listedechoix!$A$4,5,0)))) -> 0 | HK9: =IF(CM9=Listedechoix!$A$1,20,IF(CM9=Listedechoix!$A$2,15,IF(CM9=Listedechoix!$A$3,10,IF(CM9=Listedechoix!$A$4,5,0)))) -> 0 | HL9: =IF(SUM(GX9:HK9)>0,(GX9*$GX$3+GY9*$GY$3+GZ9*$GZ$3+HA9*$HA$3+HB9*$HB$3+HC9*$HC$3+HD9*$HD$3+HE9*$HE$3+HF9*$HF$3+HG9*$HG$3+HH9*$HH$3+HI9*$HI$3+HJ9*$HJ$3+HK9*$HK$3)/(IF(GX9>0,$GX$3,0)+IF(GY9>0,$GY$3,0)+IF(GZ9>0,$GZ$3,0)+IF(HA9>0,$HA$3,0)+IF(HB9>0,$HB$3,0)+IF(HC9>0,$HC$3,0)+IF(HD9>0,#REF!,0)+IF(HE9>0,$HE$3,0)+IF(HF9>0,$HF$3,0)+IF(HG9>0,$HG$3,0)+IF(HH9>0,$HH$3,0)+IF(HI9>0,$HI$3,0)+IF(HJ9>0,$HJ$3,0)+IF(HK9>0,$HK$3,0)),"NNot") -> NNot | HM9: NNot
CR10: 0 | CX10: 0 | CY10: NNot | DD10: 0 | DE10: NNot | DJ10: 0 | DK10: NNot | DP10: 0 | DQ10: NNot | DR10: =IF(F10=Listedechoix!$A$1,20,IF(F10=Listedechoix!$A$2,15,IF(F10=Listedechoix!$A$3,10,IF(F10=Listedechoix!$A$4,5,0)))) -> 0 | DS10: =IF(G10=Listedechoix!$A$1,20,IF(G10=Listedechoix!$A$2,15,IF(G10=Listedechoix!$A$3,10,IF(G10=Listedechoix!$A$4,5,0)))) -> 0 | DT10: =IF(H10=Listedechoix!$A$1,20,IF(H10=Listedechoix!$A$2,15,IF(H10=Listedechoix!$A$3,10,IF(H10=Listedechoix!$A$4,5,0)))) -> 0 | DU10: =IF(I10=Listedechoix!$A$1,20,IF(I10=Listedechoix!$A$2,15,IF(I10=Listedechoix!$A$3,10,IF(I10=Listedechoix!$A$4,5,0)))) -> 0 | DV10: =IF(J10=Listedechoix!$A$1,20,IF(J10=Listedechoix!$A$2,15,IF(J10=Listedechoix!$A$3,10,IF(J10=Listedechoix!$A$4,5,0)))) -> 0 | DW10: =IF(K10=Listedechoix!$A$1,20,IF(K10=Listedechoix!$A$2,15,IF(K10=Listedechoix!$A$3,10,IF(K10=Listedechoix!$A$4,5,0)))) -> 0 | DX10: =IF(L10=Listedechoix!$A$1,20,IF(L10=Listedechoix!$A$2,15,IF(L10=Listedechoix!$A$3,10,IF(L10=Listedechoix!$A$4,5,0)))) -> 0 | DY10: =IF(M10=Listedechoix!$A$1,20,IF(M10=Listedechoix!$A$2,15,IF(M10=Listedechoix!$A$3,10,IF(M10=Listedechoix!$A$4,5,0)))) -> 0 | DZ10: =IF(N10=Listedechoix!$A$1,20,IF(N10=Listedechoix!$A$2,15,IF(N10=Listedechoix!$A$3,10,IF(N10=Listedechoix!$A$4,5,0)))) -> 0 | EA10: =IF(O10=Listedechoix!$A$1,20,IF(O10=Listedechoix!$A$2,15,IF(O10=Listedechoix!$A$3,10,IF(O10=Listedechoix!$A$4,5,0)))) -> 0 | EB10: =IF(P10=Listedechoix!$A$1,20,IF(P10=Listedechoix!$A$2,15,IF(P10=Listedechoix!$A$3,10,IF(P10=Listedechoix!$A$4,5,0)))) -> 0 | EC10: NNot | ED10: NNot | EE10: =IF(Q10=Listedechoix!$A$1,20,IF(Q10=Listedechoix!$A$2,15,IF(Q10=Listedechoix!$A$3,10,IF(Q10=Listedechoix!$A$4,5,0)))) -> 0 | EF10: =IF(R10=Listedechoix!$A$1,20,IF(R10=Listedechoix!$A$2,15,IF(R10=Listedechoix!$A$3,10,IF(R10=Listedechoix!$A$4,5,0)))) -> 0 | EG10: =IF(S10=Listedechoix!$A$1,20,IF(S10=Listedechoix!$A$2,15,IF(S10=Listedechoix!$A$3,10,IF(S10=Listedechoix!$A$4,5,0)))) -> 0 | EH10: =IF(T10=Listedechoix!$A$1,20,IF(T10=Listedechoix!$A$2,15,IF(T10=Listedechoix!$A$3,10,IF(T10=Listedechoix!$A$4,5,0)))) -> 0 | EI10: =IF(U10=Listedechoix!$A$1,20,IF(U10=Listedechoix!$A$2,15,IF(U10=Listedechoix!$A$3,10,IF(U10=Listedechoix!$A$4,5,0)))) -> 0 | EJ10: =IF(V10=Listedechoix!$A$1,20,IF(V10=Listedechoix!$A$2,15,IF(V10=Listedechoix!$A$3,10,IF(V10=Listedechoix!$A$4,5,0)))) -> 0 | EK10: =IF(W10=Listedechoix!$A$1,20,IF(W10=Listedechoix!$A$2,15,IF(W10=Listedechoix!$A$3,10,IF(W10=Listedechoix!$A$4,5,0)))) -> 0 | EL10: =IF(X10=Listedechoix!$A$1,20,IF(X10=Listedechoix!$A$2,15,IF(X10=Listedechoix!$A$3,10,IF(X10=Listedechoix!$A$4,5,0)))) -> 0 | EM10: =IF(Y10=Listedechoix!$A$1,20,IF(Y10=Listedechoix!$A$2,15,IF(Y10=Listedechoix!$A$3,10,IF(Y10=Listedechoix!$A$4,5,0)))) -> 0 | EN10: =IF(Z10=Listedechoix!$A$1,20,IF(Z10=Listedechoix!$A$2,15,IF(Z10=Listedechoix!$A$3,10,IF(Z10=Listedechoix!$A$4,5,0)))) -> 0 | EO10: =IF(AA10=Listedechoix!$A$1,20,IF(AA10=Listedechoix!$A$2,15,IF(AA10=Listedechoix!$A$3,10,IF(AA10=Listedechoix!$A$4,5,0)))) -> 0 | EP10: NNot | EQ10: NNot | ER10: =IF(AB10=Listedechoix!$A$1,20,IF(AB10=Listedechoix!$A$2,15,IF(AB10=Listedechoix!$A$3,10,IF(AB10=Listedechoix!$A$4,5,0)))) -> 0 | ES10: =IF(AC10=Listedechoix!$A$1,20,IF(AC10=Listedechoix!$A$2,15,IF(AC10=Listedechoix!$A$3,10,IF(AC10=Listedechoix!$A$4,5,0)))) -> 0 | ET10: =IF(AD10=Listedechoix!$A$1,20,IF(AD10=Listedechoix!$A$2,15,IF(AD10=Listedechoix!$A$3,10,IF(AD10=Listedechoix!$A$4,5,0)))) -> 0 | EU10: =IF(AE10=Listedechoix!$A$1,20,IF(AE10=Listedechoix!$A$2,15,IF(AE10=Listedechoix!$A$3,10,IF(AE10=Listedechoix!$A$4,5,0)))) -> 0 | EV10: =IF(AF10=Listedechoix!$A$1,20,IF(AF10=Listedechoix!$A$2,15,IF(AF10=Listedechoix!$A$3,10,IF(AF10=Listedechoix!$A$4,5,0)))) -> 0 | EW10: =IF(AG10=Listedechoix!$A$1,20,IF(AG10=Listedechoix!$A$2,15,IF(AG10=Listedechoix!$A$3,10,IF(AG10=Listedechoix!$A$4,5,0)))) -> 0 | EX10: =IF(AH10=Listedechoix!$A$1,20,IF(AH10=Listedechoix!$A$2,15,IF(AH10=Listedechoix!$A$3,10,IF(AH10=Listedechoix!$A$4,5,0)))) -> 0 | EY10: =IF(AI10=Listedechoix!$A$1,20,IF(AI10=Listedechoix!$A$2,15,IF(AI10=Listedechoix!$A$3,10,IF(AI10=Listedechoix!$A$4,5,0)))) -> 0 | EZ10: =IF(AJ10=Listedechoix!$A$1,20,IF(AJ10=Listedechoix!$A$2,15,IF(AJ10=Listedechoix!$A$3,10,IF(AJ10=Listedechoix!$A$4,5,0)))) -> 0 | FA10: =IF(AK10=Listedechoix!$A$1,20,IF(AK10=Listedechoix!$A$2,15,IF(AK10=Listedechoix!$A$3,10,IF(AK10=Listedechoix!$A$4,5,0)))) -> 0 | FB10: =IF(AL10=Listedechoix!$A$1,20,IF(AL10=Listedechoix!$A$2,15,IF(AL10=Listedechoix!$A$3,10,IF(AL10=Listedechoix!$A$4,5,0)))) -> 0 | FC10: =IF(AM10=Listedechoix!$A$1,20,IF(AM10=Listedechoix!$A$2,15,IF(AM10=Listedechoix!$A$3,10,IF(AM10=Listedechoix!$A$4,5,0)))) -> 0 | FD10: =IF(AN10=Listedechoix!$A$1,20,IF(AN10=Listedechoix!$A$2,15,IF(AN10=Listedechoix!$A$3,10,IF(AN10=Listedechoix!$A$4,5,0)))) -> 0 | FE10: =IF(AO10=Listedechoix!$A$1,20,IF(AO10=Listedechoix!$A$2,15,IF(AO10=Listedechoix!$A$3,10,IF(AO10=Listedechoix!$A$4,5,0)))) -> 0 | FF10: NNot | FG10: NNot | FH10: =IF(AP10=Listedechoix!$A$1,20,IF(AP10=Listedechoix!$A$2,15,IF(AP10=Listedechoix!$A$3,10,IF(AP10=Listedechoix!$A$4,5,0)))) -> 0 | FI10: =IF(AQ10=Listedechoix!$A$1,20,IF(AQ10=Listedechoix!$A$2,15,IF(AQ10=Listedechoix!$A$3,10,IF(AQ10=Listedechoix!$A$4,5,0)))) -> 0 | FJ10: =IF(AR10=Listedechoix!$A$1,20,IF(AR10=Listedechoix!$A$2,15,IF(AR10=Listedechoix!$A$3,10,IF(AR10=Listedechoix!$A$4,5,0)))) -> 0 | FK10: =IF(AS10=Listedechoix!$A$1,20,IF(AS10=Listedechoix!$A$2,15,IF(AS10=Listedechoix!$A$3,10,IF(AS10=Listedechoix!$A$4,5,0)))) -> 0 | FL10: =IF(AT10=Listedechoix!$A$1,20,IF(AT10=Listedechoix!$A$2,15,IF(AT10=Listedechoix!$A$3,10,IF(AT10=Listedechoix!$A$4,5,0)))) -> 0 | FM10: =IF(AU10=Listedechoix!$A$1,20,IF(AU10=Listedechoix!$A$2,15,IF(AU10=Listedechoix!$A$3,10,IF(AU10=Listedechoix!$A$4,5,0)))) -> 0 | FN10: =IF(AV10=Listedechoix!$A$1,20,IF(AV10=Listedechoix!$A$2,15,IF(AV10=Listedechoix!$A$3,10,IF(AV10=Listedechoix!$A$4,5,0)))) -> 0 | FO10: =IF(AW10=Listedechoix!$A$1,20,IF(AW10=Listedechoix!$A$2,15,IF(AW10=Listedechoix!$A$3,10,IF(AW10=Listedechoix!$A$4,5,0)))) -> 0 | FP10: =IF(AX10=Listedechoix!$A$1,20,IF(AX10=Listedechoix!$A$2,15,IF(AX10=Listedechoix!$A$3,10,IF(AX10=Listedechoix!$A$4,5,0)))) -> 0 | FQ10: =IF(AY10=Listedechoix!$A$1,20,IF(AY10=Listedechoix!$A$2,15,IF(AY10=Listedechoix!$A$3,10,IF(AY10=Listedechoix!$A$4,5,0)))) -> 0 | FR10: =IF(AZ10=Listedechoix!$A$1,20,IF(AZ10=Listedechoix!$A$2,15,IF(AZ10=Listedechoix!$A$3,10,IF(AZ10=Listedechoix!$A$4,5,0)))) -> 0 | FS10: =IF(BA10=Listedechoix!$A$1,20,IF(BA10=Listedechoix!$A$2,15,IF(BA10=Listedechoix!$A$3,10,IF(BA10=Listedechoix!$A$4,5,0)))) -> 0 | FT10: =IF(BB10=Listedechoix!$A$1,20,IF(BB10=Listedechoix!$A$2,15,IF(BB10=Listedechoix!$A$3,10,IF(BB10=Listedechoix!$A$4,5,0)))) -> 0 | FU10: =IF(BC10=Listedechoix!$A$1,20,IF(BC10=Listedechoix!$A$2,15,IF(BC10=Listedechoix!$A$3,10,IF(BC10=Listedechoix!$A$4,5,0)))) -> 0 | FV10: NNot | FW10: NNot | FX10: =IF(BD10=Listedechoix!$A$1,20,IF(BD10=Listedechoix!$A$2,15,IF(BD10=Listedechoix!$A$3,10,IF(BD10=Listedechoix!$A$4,5,0)))) -> 0 | FY10: =IF(BE10=Listedechoix!$A$1,20,IF(BE10=Listedechoix!$A$2,15,IF(BE10=Listedechoix!$A$3,10,IF(BE10=Listedechoix!$A$4,5,0)))) -> 0 | FZ10: =IF(BF10=Listedechoix!$A$1,20,IF(BF10=Listedechoix!$A$2,15,IF(BF10=Listedechoix!$A$3,10,IF(BF10=Listedechoix!$A$4,5,0)))) -> 0 | GA10: =IF(BG10=Listedechoix!$A$1,20,IF(BG10=Listedechoix!$A$2,15,IF(BG10=Listedechoix!$A$3,10,IF(BG10=Listedechoix!$A$4,5,0)))) -> 0 | GB10: =IF(BH10=Listedechoix!$A$1,20,IF(BH10=Listedechoix!$A$2,15,IF(BH10=Listedechoix!$A$3,10,IF(BH10=Listedechoix!$A$4,5,0)))) -> 0 | GC10: =IF(BI10=Listedechoix!$A$1,20,IF(BI10=Listedechoix!$A$2,15,IF(BI10=Listedechoix!$A$3,10,IF(BI10=Listedechoix!$A$4,5,0)))) -> 0 | GD10: =IF(BJ10=Listedechoix!$A$1,20,IF(BJ10=Listedechoix!$A$2,15,IF(BJ10=Listedechoix!$A$3,10,IF(BJ10=Listedechoix!$A$4,5,0)))) -> 0 | GE10: =IF(BK10=Listedechoix!$A$1,20,IF(BK10=Listedechoix!$A$2,15,IF(BK10=Listedechoix!$A$3,10,IF(BK10=Listedechoix!$A$4,5,0)))) -> 0 | GF10: =IF(BL10=Listedechoix!$A$1,20,IF(BL10=Listedechoix!$A$2,15,IF(BL10=Listedechoix!$A$3,10,IF(BL10=Listedechoix!$A$4,5,0)))) -> 0 | GG10: =IF(BM10=Listedechoix!$A$1,20,IF(BM10=Listedechoix!$A$2,15,IF(BM10=Listedechoix!$A$3,10,IF(BM10=Listedechoix!$A$4,5,0)))) -> 0 | GH10: =IF(BN10=Listedechoix!$A$1,20,IF(BN10=Listedechoix!$A$2,15,IF(BN10=Listedechoix!$A$3,10,IF(BN10=Listedechoix!$A$4,5,0)))) -> 0 | GI10: NNot | GJ10: NNot | GK10: =IF(BO10=Listedechoix!$A$1,20,IF(BO10=Listedechoix!$A$2,15,IF(BO10=Listedechoix!$A$3,10,IF(BO10=Listedechoix!$A$4,5,0)))) -> 0 | GL10: =IF(BP10=Listedechoix!$A$1,20,IF(BP10=Listedechoix!$A$2,15,IF(BP10=Listedechoix!$A$3,10,IF(BP10=Listedechoix!$A$4,5,0)))) -> 0 | GM10: =IF(BQ10=Listedechoix!$A$1,20,IF(BQ10=Listedechoix!$A$2,15,IF(BQ10=Listedechoix!$A$3,10,IF(BQ10=Listedechoix!$A$4,5,0)))) -> 0 | GN10: =IF(BR10=Listedechoix!$A$1,20,IF(BR10=Listedechoix!$A$2,15,IF(BR10=Listedechoix!$A$3,10,IF(BR10=Listedechoix!$A$4,5,0)))) -> 0 | GO10: =IF(BS10=Listedechoix!$A$1,20,IF(BS10=Listedechoix!$A$2,15,IF(BS10=Listedechoix!$A$3,10,IF(BS10=Listedechoix!$A$4,5,0)))) -> 0 | GP10: =IF(BT10=Listedechoix!$A$1,20,IF(BT10=Listedechoix!$A$2,15,IF(BT10=Listedechoix!$A$3,10,IF(BT10=Listedechoix!$A$4,5,0)))) -> 0 | GQ10: =IF(BU10=Listedechoix!$A$1,20,IF(BU10=Listedechoix!$A$2,15,IF(BU10=Listedechoix!$A$3,10,IF(BU10=Listedechoix!$A$4,5,0)))) -> 0 | GR10: =IF(BV10=Listedechoix!$A$1,20,IF(BV10=Listedechoix!$A$2,15,IF(BV10=Listedechoix!$A$3,10,IF(BV10=Listedechoix!$A$4,5,0)))) -> 0 | GS10: =IF(BW10=Listedechoix!$A$1,20,IF(BW10=Listedechoix!$A$2,15,IF(BW10=Listedechoix!$A$3,10,IF(BW10=Listedechoix!$A$4,5,0)))) -> 0 | GT10: =IF(BX10=Listedechoix!$A$1,20,IF(BX10=Listedechoix!$A$2,15,IF(BX10=Listedechoix!$A$3,10,IF(BX10=Listedechoix!$A$4,5,0)))) -> 0 | GU10: =IF(BY10=Listedechoix!$A$1,20,IF(BY10=Listedechoix!$A$2,15,IF(BY10=Listedechoix!$A$3,10,IF(BY10=Listedechoix!$A$4,5,0)))) -> 0 | GV10: NNot | GW10: NNot | GX10: =IF(BZ10=Listedechoix!$A$1,20,IF(BZ10=Listedechoix!$A$2,15,IF(BZ10=Listedechoix!$A$3,10,IF(BZ10=Listedechoix!$A$4,5,0)))) -> 0 | GY10: =IF(CA10=Listedechoix!$A$1,20,IF(CA10=Listedechoix!$A$2,15,IF(CA10=Listedechoix!$A$3,10,IF(CA10=Listedechoix!$A$4,5,0)))) -> 0 | GZ10: =IF(CB10=Listedechoix!$A$1,20,IF(CB10=Listedechoix!$A$2,15,IF(CB10=Listedechoix!$A$3,10,IF(CB10=Listedechoix!$A$4,5,0)))) -> 0 | HA10: =IF(CC10=Listedechoix!$A$1,20,IF(CC10=Listedechoix!$A$2,15,IF(CC10=Listedechoix!$A$3,10,IF(CC10=Listedechoix!$A$4,5,0)))) -> 0 | HB10: =IF(CD10=Listedechoix!$A$1,20,IF(CD10=Listedechoix!$A$2,15,IF(CD10=Listedechoix!$A$3,10,IF(CD10=Listedechoix!$A$4,5,0)))) -> 0 | HC10: =IF(CE10=Listedechoix!$A$1,20,IF(CE10=Listedechoix!$A$2,15,IF(CE10=Listedechoix!$A$3,10,IF(CE10=Listedechoix!$A$4,5,0)))) -> 0 | HD10: =IF(CF10=Listedechoix!$A$1,20,IF(CF10=Listedechoix!$A$2,15,IF(CF10=Listedechoix!$A$3,10,IF(CF10=Listedechoix!$A$4,5,0)))) -> 0 | HE10: =IF(CG10=Listedechoix!$A$1,20,IF(CG10=Listedechoix!$A$2,15,IF(CG10=Listedechoix!$A$3,10,IF(CG10=Listedechoix!$A$4,5,0)))) -> 0 | HF10: =IF(CH10=Listedechoix!$A$1,20,IF(CH10=Listedechoix!$A$2,15,IF(CH10=Listedechoix!$A$3,10,IF(CH10=Listedechoix!$A$4,5,0)))) -> 0 | HG10: =IF(CI10=Listedechoix!$A$1,20,IF(CI10=Listedechoix!$A$2,15,IF(CI10=Listedechoix!$A$3,10,IF(CI10=Listedechoix!$A$4,5,0)))) -> 0 | HH10: =IF(CJ10=Listedechoix!$A$1,20,IF(CJ10=Listedechoix!$A$2,15,IF(CJ10=Listedechoix!$A$3,10,IF(CJ10=Listedechoix!$A$4,5,0)))) -> 0 | HI10: =IF(CK10=Listedechoix!$A$1,20,IF(CK10=Listedechoix!$A$2,15,IF(CK10=Listedechoix!$A$3,10,IF(CK10=Listedechoix!$A$4,5,0)))) -> 0 | HJ10: =IF(CL10=Listedechoix!$A$1,20,IF(CL10=Listedechoix!$A$2,15,IF(CL10=Listedechoix!$A$3,10,IF(CL10=Listedechoix!$A$4,5,0)))) -> 0 | HK10: =IF(CM10=Listedechoix!$A$1,20,IF(CM10=Listedechoix!$A$2,15,IF(CM10=Listedechoix!$A$3,10,IF(CM10=Listedechoix!$A$4,5,0)))) -> 0 | HL10: =IF(SUM(GX10:HK10)>0,(GX10*$GX$3+GY10*$GY$3+GZ10*$GZ$3+HA10*$HA$3+HB10*$HB$3+HC10*$HC$3+HD10*$HD$3+HE10*$HE$3+HF10*$HF$3+HG10*$HG$3+HH10*$HH$3+HI10*$HI$3+HJ10*$HJ$3+HK10*$HK$3)/(IF(GX10>0,$GX$3,0)+IF(GY10>0,$GY$3,0)+IF(GZ10>0,$GZ$3,0)+IF(HA10>0,$HA$3,0)+IF(HB10>0,$HB$3,0)+IF(HC10>0,$HC$3,0)+IF(HD10>0,#REF!,0)+IF(HE10>0,$HE$3,0)+IF(HF10>0,$HF$3,0)+IF(HG10>0,$HG$3,0)+IF(HH10>0,$HH$3,0)+IF(HI10>0,$HI$3,0)+IF(HJ10>0,$HJ$3,0)+IF(HK10>0,$HK$3,0)),"NNot") -> NNot | HM10: NNot
CR11: 0 | CX11: 0 | CY11: NNot | DD11: 0 | DE11: NNot | DJ11: 0 | DK11: NNot | DP11: 0 | DQ11: NNot | DR11: =IF(F11=Listedechoix!$A$1,20,IF(F11=Listedechoix!$A$2,15,IF(F11=Listedechoix!$A$3,10,IF(F11=Listedechoix!$A$4,5,0)))) -> 0 | DS11: =IF(G11=Listedechoix!$A$1,20,IF(G11=Listedechoix!$A$2,15,IF(G11=Listedechoix!$A$3,10,IF(G11=Listedechoix!$A$4,5,0)))) -> 0 | DT11: =IF(H11=Listedechoix!$A$1,20,IF(H11=Listedechoix!$A$2,15,IF(H11=Listedechoix!$A$3,10,IF(H11=Listedechoix!$A$4,5,0)))) -> 0 | DU11: =IF(I11=Listedechoix!$A$1,20,IF(I11=Listedechoix!$A$2,15,IF(I11=Listedechoix!$A$3,10,IF(I11=Listedechoix!$A$4,5,0)))) -> 0 | DV11: =IF(J11=Listedechoix!$A$1,20,IF(J11=Listedechoix!$A$2,15,IF(J11=Listedechoix!$A$3,10,IF(J11=Listedechoix!$A$4,5,0)))) -> 0 | DW11: =IF(K11=Listedechoix!$A$1,20,IF(K11=Listedechoix!$A$2,15,IF(K11=Listedechoix!$A$3,10,IF(K11=Listedechoix!$A$4,5,0)))) -> 0 | DX11: =IF(L11=Listedechoix!$A$1,20,IF(L11=Listedechoix!$A$2,15,IF(L11=Listedechoix!$A$3,10,IF(L11=Listedechoix!$A$4,5,0)))) -> 0 | DY11: =IF(M11=Listedechoix!$A$1,20,IF(M11=Listedechoix!$A$2,15,IF(M11=Listedechoix!$A$3,10,IF(M11=Listedechoix!$A$4,5,0)))) -> 0 | DZ11: =IF(N11=Listedechoix!$A$1,20,IF(N11=Listedechoix!$A$2,15,IF(N11=Listedechoix!$A$3,10,IF(N11=Listedechoix!$A$4,5,0)))) -> 0 | EA11: =IF(O11=Listedechoix!$A$1,20,IF(O11=Listedechoix!$A$2,15,IF(O11=Listedechoix!$A$3,10,IF(O11=Listedechoix!$A$4,5,0)))) -> 0 | EB11: =IF(P11=Listedechoix!$A$1,20,IF(P11=Listedechoix!$A$2,15,IF(P11=Listedechoix!$A$3,10,IF(P11=Listedechoix!$A$4,5,0)))) -> 0 | EC11: NNot | ED11: NNot | EE11: =IF(Q11=Listedechoix!$A$1,20,IF(Q11=Listedechoix!$A$2,15,IF(Q11=Listedechoix!$A$3,10,IF(Q11=Listedechoix!$A$4,5,0)))) -> 0 | EF11: =IF(R11=Listedechoix!$A$1,20,IF(R11=Listedechoix!$A$2,15,IF(R11=Listedechoix!$A$3,10,IF(R11=Listedechoix!$A$4,5,0)))) -> 0 | EG11: =IF(S11=Listedechoix!$A$1,20,IF(S11=Listedechoix!$A$2,15,IF(S11=Listedechoix!$A$3,10,IF(S11=Listedechoix!$A$4,5,0)))) -> 0 | EH11: =IF(T11=Listedechoix!$A$1,20,IF(T11=Listedechoix!$A$2,15,IF(T11=Listedechoix!$A$3,10,IF(T11=Listedechoix!$A$4,5,0)))) -> 0 | EI11: =IF(U11=Listedechoix!$A$1,20,IF(U11=Listedechoix!$A$2,15,IF(U11=Listedechoix!$A$3,10,IF(U11=Listedechoix!$A$4,5,0)))) -> 0 | EJ11: =IF(V11=Listedechoix!$A$1,20,IF(V11=Listedechoix!$A$2,15,IF(V11=Listedechoix!$A$3,10,IF(V11=Listedechoix!$A$4,5,0)))) -> 0 | EK11: =IF(W11=Listedechoix!$A$1,20,IF(W11=Listedechoix!$A$2,15,IF(W11=Listedechoix!$A$3,10,IF(W11=Listedechoix!$A$4,5,0)))) -> 0 | EL11: =IF(X11=Listedechoix!$A$1,20,IF(X11=Listedechoix!$A$2,15,IF(X11=Listedechoix!$A$3,10,IF(X11=Listedechoix!$A$4,5,0)))) -> 0 | EM11: =IF(Y11=Listedechoix!$A$1,20,IF(Y11=Listedechoix!$A$2,15,IF(Y11=Listedechoix!$A$3,10,IF(Y11=Listedechoix!$A$4,5,0)))) -> 0 | EN11: =IF(Z11=Listedechoix!$A$1,20,IF(Z11=Listedechoix!$A$2,15,IF(Z11=Listedechoix!$A$3,10,IF(Z11=Listedechoix!$A$4,5,0)))) -> 0 | EO11: =IF(AA11=Listedechoix!$A$1,20,IF(AA11=Listedechoix!$A$2,15,IF(AA11=Listedechoix!$A$3,10,IF(AA11=Listedechoix!$A$4,5,0)))) -> 0 | EP11: NNot | EQ11: NNot | ER11: =IF(AB11=Listedechoix!$A$1,20,IF(AB11=Listedechoix!$A$2,15,IF(AB11=Listedechoix!$A$3,10,IF(AB11=Listedechoix!$A$4,5,0)))) -> 0 | ES11: =IF(AC11=Listedechoix!$A$1,20,IF(AC11=Listedechoix!$A$2,15,IF(AC11=Listedechoix!$A$3,10,IF(AC11=Listedechoix!$A$4,5,0)))) -> 0 | ET11: =IF(AD11=Listedechoix!$A$1,20,IF(AD11=Listedechoix!$A$2,15,IF(AD11=Listedechoix!$A$3,10,IF(AD11=Listedechoix!$A$4,5,0)))) -> 0 | EU11: =IF(AE11=Listedechoix!$A$1,20,IF(AE11=Listedechoix!$A$2,15,IF(AE11=Listedechoix!$A$3,10,IF(AE11=Listedechoix!$A$4,5,0)))) -> 0 | EV11: =IF(AF11=Listedechoix!$A$1,20,IF(AF11=Listedechoix!$A$2,15,IF(AF11=Listedechoix!$A$3,10,IF(AF11=Listedechoix!$A$4,5,0)))) -> 0 | EW11: =IF(AG11=Listedechoix!$A$1,20,IF(AG11=Listedechoix!$A$2,15,IF(AG11=Listedechoix!$A$3,10,IF(AG11=Listedechoix!$A$4,5,0)))) -> 0 | EX11: =IF(AH11=Listedechoix!$A$1,20,IF(AH11=Listedechoix!$A$2,15,IF(AH11=Listedechoix!$A$3,10,IF(AH11=Listedechoix!$A$4,5,0)))) -> 0 | EY11: =IF(AI11=Listedechoix!$A$1,20,IF(AI11=Listedechoix!$A$2,15,IF(AI11=Listedechoix!$A$3,10,IF(AI11=Listedechoix!$A$4,5,0)))) -> 0 | EZ11: =IF(AJ11=Listedechoix!$A$1,20,IF(AJ11=Listedechoix!$A$2,15,IF(AJ11=Listedechoix!$A$3,10,IF(AJ11=Listedechoix!$A$4,5,0)))) -> 0 | FA11: =IF(AK11=Listedechoix!$A$1,20,IF(AK11=Listedechoix!$A$2,15,IF(AK11=Listedechoix!$A$3,10,IF(AK11=Listedechoix!$A$4,5,0)))) -> 0 | FB11: =IF(AL11=Listedechoix!$A$1,20,IF(AL11=Listedechoix!$A$2,15,IF(AL11=Listedechoix!$A$3,10,IF(AL11=Listedechoix!$A$4,5,0)))) -> 0 | FC11: =IF(AM11=Listedechoix!$A$1,20,IF(AM11=Listedechoix!$A$2,15,IF(AM11=Listedechoix!$A$3,10,IF(AM11=Listedechoix!$A$4,5,0)))) -> 0 | FD11: =IF(AN11=Listedechoix!$A$1,20,IF(AN11=Listedechoix!$A$2,15,IF(AN11=Listedechoix!$A$3,10,IF(AN11=Listedechoix!$A$4,5,0)))) -> 0 | FE11: =IF(AO11=Listedechoix!$A$1,20,IF(AO11=Listedechoix!$A$2,15,IF(AO11=Listedechoix!$A$3,10,IF(AO11=Listedechoix!$A$4,5,0)))) -> 0 | FF11: NNot | FG11: NNot | FH11: =IF(AP11=Listedechoix!$A$1,20,IF(AP11=Listedechoix!$A$2,15,IF(AP11=Listedechoix!$A$3,10,IF(AP11=Listedechoix!$A$4,5,0)))) -> 0 | FI11: =IF(AQ11=Listedechoix!$A$1,20,IF(AQ11=Listedechoix!$A$2,15,IF(AQ11=Listedechoix!$A$3,10,IF(AQ11=Listedechoix!$A$4,5,0)))) -> 0 | FJ11: =IF(AR11=Listedechoix!$A$1,20,IF(AR11=Listedechoix!$A$2,15,IF(AR11=Listedechoix!$A$3,10,IF(AR11=Listedechoix!$A$4,5,0)))) -> 0 | FK11: =IF(AS11=Listedechoix!$A$1,20,IF(AS11=Listedechoix!$A$2,15,IF(AS11=Listedechoix!$A$3,10,IF(AS11=Listedechoix!$A$4,5,0)))) -> 0 | FL11: =IF(AT11=Listedechoix!$A$1,20,IF(AT11=Listedechoix!$A$2,15,IF(AT11=Listedechoix!$A$3,10,IF(AT11=Listedechoix!$A$4,5,0)))) -> 0 | FM11: =IF(AU11=Listedechoix!$A$1,20,IF(AU11=Listedechoix!$A$2,15,IF(AU11=Listedechoix!$A$3,10,IF(AU11=Listedechoix!$A$4,5,0)))) -> 0 | FN11: =IF(AV11=Listedechoix!$A$1,20,IF(AV11=Listedechoix!$A$2,15,IF(AV11=Listedechoix!$A$3,10,IF(AV11=Listedechoix!$A$4,5,0)))) -> 0 | FO11: =IF(AW11=Listedechoix!$A$1,20,IF(AW11=Listedechoix!$A$2,15,IF(AW11=Listedechoix!$A$3,10,IF(AW11=Listedechoix!$A$4,5,0)))) -> 0 | FP11: =IF(AX11=Listedechoix!$A$1,20,IF(AX11=Listedechoix!$A$2,15,IF(AX11=Listedechoix!$A$3,10,IF(AX11=Listedechoix!$A$4,5,0)))) -> 0 | FQ11: =IF(AY11=Listedechoix!$A$1,20,IF(AY11=Listedechoix!$A$2,15,IF(AY11=Listedechoix!$A$3,10,IF(AY11=Listedechoix!$A$4,5,0)))) -> 0 | FR11: =IF(AZ11=Listedechoix!$A$1,20,IF(AZ11=Listedechoix!$A$2,15,IF(AZ11=Listedechoix!$A$3,10,IF(AZ11=Listedechoix!$A$4,5,0)))) -> 0 | FS11: =IF(BA11=Listedechoix!$A$1,20,IF(BA11=Listedechoix!$A$2,15,IF(BA11=Listedechoix!$A$3,10,IF(BA11=Listedechoix!$A$4,5,0)))) -> 0 | FT11: =IF(BB11=Listedechoix!$A$1,20,IF(BB11=Listedechoix!$A$2,15,IF(BB11=Listedechoix!$A$3,10,IF(BB11=Listedechoix!$A$4,5,0)))) -> 0 | FU11: =IF(BC11=Listedechoix!$A$1,20,IF(BC11=Listedechoix!$A$2,15,IF(BC11=Listedechoix!$A$3,10,IF(BC11=Listedechoix!$A$4,5,0)))) -> 0 | FV11: NNot | FW11: NNot | FX11: =IF(BD11=Listedechoix!$A$1,20,IF(BD11=Listedechoix!$A$2,15,IF(BD11=Listedechoix!$A$3,10,IF(BD11=Listedechoix!$A$4,5,0)))) -> 0 | FY11: =IF(BE11=Listedechoix!$A$1,20,IF(BE11=Listedechoix!$A$2,15,IF(BE11=Listedechoix!$A$3,10,IF(BE11=Listedechoix!$A$4,5,0)))) -> 0 | FZ11: =IF(BF11=Listedechoix!$A$1,20,IF(BF11=Listedechoix!$A$2,15,IF(BF11=Listedechoix!$A$3,10,IF(BF11=Listedechoix!$A$4,5,0)))) -> 0 | GA11: =IF(BG11=Listedechoix!$A$1,20,IF(BG11=Listedechoix!$A$2,15,IF(BG11=Listedechoix!$A$3,10,IF(BG11=Listedechoix!$A$4,5,0)))) -> 0 | GB11: =IF(BH11=Listedechoix!$A$1,20,IF(BH11=Listedechoix!$A$2,15,IF(BH11=Listedechoix!$A$3,10,IF(BH11=Listedechoix!$A$4,5,0)))) -> 0 | GC11: =IF(BI11=Listedechoix!$A$1,20,IF(BI11=Listedechoix!$A$2,15,IF(BI11=Listedechoix!$A$3,10,IF(BI11=Listedechoix!$A$4,5,0)))) -> 0 | GD11: =IF(BJ11=Listedechoix!$A$1,20,IF(BJ11=Listedechoix!$A$2,15,IF(BJ11=Listedechoix!$A$3,10,IF(BJ11=Listedechoix!$A$4,5,0)))) -> 0 | GE11: =IF(BK11=Listedechoix!$A$1,20,IF(BK11=Listedechoix!$A$2,15,IF(BK11=Listedechoix!$A$3,10,IF(BK11=Listedechoix!$A$4,5,0)))) -> 0 | GF11: =IF(BL11=Listedechoix!$A$1,20,IF(BL11=Listedechoix!$A$2,15,IF(BL11=Listedechoix!$A$3,10,IF(BL11=Listedechoix!$A$4,5,0)))) -> 0 | GG11: =IF(BM11=Listedechoix!$A$1,20,IF(BM11=Listedechoix!$A$2,15,IF(BM11=Listedechoix!$A$3,10,IF(BM11=Listedechoix!$A$4,5,0)))) -> 0 | GH11: =IF(BN11=Listedechoix!$A$1,20,IF(BN11=Listedechoix!$A$2,15,IF(BN11=Listedechoix!$A$3,10,IF(BN11=Listedechoix!$A$4,5,0)))) -> 0 | GI11: NNot | GJ11: NNot | GK11: =IF(BO11=Listedechoix!$A$1,20,IF(BO11=Listedechoix!$A$2,15,IF(BO11=Listedechoix!$A$3,10,IF(BO11=Listedechoix!$A$4,5,0)))) -> 0 | GL11: =IF(BP11=Listedechoix!$A$1,20,IF(BP11=Listedechoix!$A$2,15,IF(BP11=Listedechoix!$A$3,10,IF(BP11=Listedechoix!$A$4,5,0)))) -> 0 | GM11: =IF(BQ11=Listedechoix!$A$1,20,IF(BQ11=Listedechoix!$A$2,15,IF(BQ11=Listedechoix!$A$3,10,IF(BQ11=Listedechoix!$A$4,5,0)))) -> 0 | GN11: =IF(BR11=Listedechoix!$A$1,20,IF(BR11=Listedechoix!$A$2,15,IF(BR11=Listedechoix!$A$3,10,IF(BR11=Listedechoix!$A$4,5,0)))) -> 0 | GO11: =IF(BS11=Listedechoix!$A$1,20,IF(BS11=Listedechoix!$A$2,15,IF(BS11=Listedechoix!$A$3,10,IF(BS11=Listedechoix!$A$4,5,0)))) -> 0 | GP11: =IF(BT11=Listedechoix!$A$1,20,IF(BT11=Listedechoix!$A$2,15,IF(BT11=Listedechoix!$A$3,10,IF(BT11=Listedechoix!$A$4,5,0)))) -> 0 | GQ11: =IF(BU11=Listedechoix!$A$1,20,IF(BU11=Listedechoix!$A$2,15,IF(BU11=Listedechoix!$A$3,10,IF(BU11=Listedechoix!$A$4,5,0)))) -> 0 | GR11: =IF(BV11=Listedechoix!$A$1,20,IF(BV11=Listedechoix!$A$2,15,IF(BV11=Listedechoix!$A$3,10,IF(BV11=Listedechoix!$A$4,5,0)))) -> 0 | GS11: =IF(BW11=Listedechoix!$A$1,20,IF(BW11=Listedechoix!$A$2,15,IF(BW11=Listedechoix!$A$3,10,IF(BW11=Listedechoix!$A$4,5,0)))) -> 0 | GT11: =IF(BX11=Listedechoix!$A$1,20,IF(BX11=Listedechoix!$A$2,15,IF(BX11=Listedechoix!$A$3,10,IF(BX11=Listedechoix!$A$4,5,0)))) -> 0 | GU11: =IF(BY11=Listedechoix!$A$1,20,IF(BY11=Listedechoix!$A$2,15,IF(BY11=Listedechoix!$A$3,10,IF(BY11=Listedechoix!$A$4,5,0)))) -> 0 | GV11: NNot | GW11: NNot | GX11: =IF(BZ11=Listedechoix!$A$1,20,IF(BZ11=Listedechoix!$A$2,15,IF(BZ11=Listedechoix!$A$3,10,IF(BZ11=Listedechoix!$A$4,5,0)))) -> 0 | GY11: =IF(CA11=Listedechoix!$A$1,20,IF(CA11=Listedechoix!$A$2,15,IF(CA11=Listedechoix!$A$3,10,IF(CA11=Listedechoix!$A$4,5,0)))) -> 0 | GZ11: =IF(CB11=Listedechoix!$A$1,20,IF(CB11=Listedechoix!$A$2,15,IF(CB11=Listedechoix!$A$3,10,IF(CB11=Listedechoix!$A$4,5,0)))) -> 0 | HA11: =IF(CC11=Listedechoix!$A$1,20,IF(CC11=Listedechoix!$A$2,15,IF(CC11=Listedechoix!$A$3,10,IF(CC11=Listedechoix!$A$4,5,0)))) -> 0 | HB11: =IF(CD11=Listedechoix!$A$1,20,IF(CD11=Listedechoix!$A$2,15,IF(CD11=Listedechoix!$A$3,10,IF(CD11=Listedechoix!$A$4,5,0)))) -> 0 | HC11: =IF(CE11=Listedechoix!$A$1,20,IF(CE11=Listedechoix!$A$2,15,IF(CE11=Listedechoix!$A$3,10,IF(CE11=Listedechoix!$A$4,5,0)))) -> 0 | HD11: =IF(CF11=Listedechoix!$A$1,20,IF(CF11=Listedechoix!$A$2,15,IF(CF11=Listedechoix!$A$3,10,IF(CF11=Listedechoix!$A$4,5,0)))) -> 0 | HE11: =IF(CG11=Listedechoix!$A$1,20,IF(CG11=Listedechoix!$A$2,15,IF(CG11=Listedechoix!$A$3,10,IF(CG11=Listedechoix!$A$4,5,0)))) -> 0 | HF11: =IF(CH11=Listedechoix!$A$1,20,IF(CH11=Listedechoix!$A$2,15,IF(CH11=Listedechoix!$A$3,10,IF(CH11=Listedechoix!$A$4,5,0)))) -> 0 | HG11: =IF(CI11=Listedechoix!$A$1,20,IF(CI11=Listedechoix!$A$2,15,IF(CI11=Listedechoix!$A$3,10,IF(CI11=Listedechoix!$A$4,5,0)))) -> 0 | HH11: =IF(CJ11=Listedechoix!$A$1,20,IF(CJ11=Listedechoix!$A$2,15,IF(CJ11=Listedechoix!$A$3,10,IF(CJ11=Listedechoix!$A$4,5,0)))) -> 0 | HI11: =IF(CK11=Listedechoix!$A$1,20,IF(CK11=Listedechoix!$A$2,15,IF(CK11=Listedechoix!$A$3,10,IF(CK11=Listedechoix!$A$4,5,0)))) -> 0 | HJ11: =IF(CL11=Listedechoix!$A$1,20,IF(CL11=Listedechoix!$A$2,15,IF(CL11=Listedechoix!$A$3,10,IF(CL11=Listedechoix!$A$4,5,0)))) -> 0 | HK11: =IF(CM11=Listedechoix!$A$1,20,IF(CM11=Listedechoix!$A$2,15,IF(CM11=Listedechoix!$A$3,10,IF(CM11=Listedechoix!$A$4,5,0)))) -> 0 | HL11: NNot | HM11: NNot
CR12: 0 | CX12: 0 | CY12: NNot | DD12: 0 | DE12: NNot | DJ12: 0 | DK12: NNot | DP12: 0 | DQ12: NNot | DR12: =IF(F12=Listedechoix!$A$1,20,IF(F12=Listedechoix!$A$2,15,IF(F12=Listedechoix!$A$3,10,IF(F12=Listedechoix!$A$4,5,0)))) -> 0 | DS12: =IF(G12=Listedechoix!$A$1,20,IF(G12=Listedechoix!$A$2,15,IF(G12=Listedechoix!$A$3,10,IF(G12=Listedechoix!$A$4,5,0)))) -> 0 | DT12: =IF(H12=Listedechoix!$A$1,20,IF(H12=Listedechoix!$A$2,15,IF(H12=Listedechoix!$A$3,10,IF(H12=Listedechoix!$A$4,5,0)))) -> 0 | DU12: =IF(I12=Listedechoix!$A$1,20,IF(I12=Listedechoix!$A$2,15,IF(I12=Listedechoix!$A$3,10,IF(I12=Listedechoix!$A$4,5,0)))) -> 0 | DV12: =IF(J12=Listedechoix!$A$1,20,IF(J12=Listedechoix!$A$2,15,IF(J12=Listedechoix!$A$3,10,IF(J12=Listedechoix!$A$4,5,0)))) -> 0 | DW12: =IF(K12=Listedechoix!$A$1,20,IF(K12=Listedechoix!$A$2,15,IF(K12=Listedechoix!$A$3,10,IF(K12=Listedechoix!$A$4,5,0)))) -> 0 | DX12: =IF(L12=Listedechoix!$A$1,20,IF(L12=Listedechoix!$A$2,15,IF(L12=Listedechoix!$A$3,10,IF(L12=Listedechoix!$A$4,5,0)))) -> 0 | DY12: =IF(M12=Listedechoix!$A$1,20,IF(M12=Listedechoix!$A$2,15,IF(M12=Listedechoix!$A$3,10,IF(M12=Listedechoix!$A$4,5,0)))) -> 0 | DZ12: =IF(N12=Listedechoix!$A$1,20,IF(N12=Listedechoix!$A$2,15,IF(N12=Listedechoix!$A$3,10,IF(N12=Listedechoix!$A$4,5,0)))) -> 0 | EA12: =IF(O12=Listedechoix!$A$1,20,IF(O12=Listedechoix!$A$2,15,IF(O12=Listedechoix!$A$3,10,IF(O12=Listedechoix!$A$4,5,0)))) -> 0 | EB12: =IF(P12=Listedechoix!$A$1,20,IF(P12=Listedechoix!$A$2,15,IF(P12=Listedechoix!$A$3,10,IF(P12=Listedechoix!$A$4,5,0)))) -> 0 | EC12: NNot | ED12: NNot | EE12: =IF(Q12=Listedechoix!$A$1,20,IF(Q12=Listedechoix!$A$2,15,IF(Q12=Listedechoix!$A$3,10,IF(Q12=Listedechoix!$A$4,5,0)))) -> 0 | EF12: =IF(R12=Listedechoix!$A$1,20,IF(R12=Listedechoix!$A$2,15,IF(R12=Listedechoix!$A$3,10,IF(R12=Listedechoix!$A$4,5,0)))) -> 0 | EG12: =IF(S12=Listedechoix!$A$1,20,IF(S12=Listedechoix!$A$2,15,IF(S12=Listedechoix!$A$3,10,IF(S12=Listedechoix!$A$4,5,0)))) -> 0 | EH12: =IF(T12=Listedechoix!$A$1,20,IF(T12=Listedechoix!$A$2,15,IF(T12=Listedechoix!$A$3,10,IF(T12=Listedechoix!$A$4,5,0)))) -> 0 | EI12: =IF(U12=Listedechoix!$A$1,20,IF(U12=Listedechoix!$A$2,15,IF(U12=Listedechoix!$A$3,10,IF(U12=Listedechoix!$A$4,5,0)))) -> 0 | EJ12: =IF(V12=Listedechoix!$A$1,20,IF(V12=Listedechoix!$A$2,15,IF(V12=Listedechoix!$A$3,10,IF(V12=Listedechoix!$A$4,5,0)))) -> 0 | EK12: =IF(W12=Listedechoix!$A$1,20,IF(W12=Listedechoix!$A$2,15,IF(W12=Listedechoix!$A$3,10,IF(W12=Listedechoix!$A$4,5,0)))) -> 0 | EL12: =IF(X12=Listedechoix!$A$1,20,IF(X12=Listedechoix!$A$2,15,IF(X12=Listedechoix!$A$3,10,IF(X12=Listedechoix!$A$4,5,0)))) -> 0 | EM12: =IF(Y12=Listedechoix!$A$1,20,IF(Y12=Listedechoix!$A$2,15,IF(Y12=Listedechoix!$A$3,10,IF(Y12=Listedechoix!$A$4,5,0)))) -> 0 | EN12: =IF(Z12=Listedechoix!$A$1,20,IF(Z12=Listedechoix!$A$2,15,IF(Z12=Listedechoix!$A$3,10,IF(Z12=Listedechoix!$A$4,5,0)))) -> 0 | EO12: =IF(AA12=Listedechoix!$A$1,20,IF(AA12=Listedechoix!$A$2,15,IF(AA12=Listedechoix!$A$3,10,IF(AA12=Listedechoix!$A$4,5,0)))) -> 0 | EP12: NNot | EQ12: NNot | ER12: =IF(AB12=Listedechoix!$A$1,20,IF(AB12=Listedechoix!$A$2,15,IF(AB12=Listedechoix!$A$3,10,IF(AB12=Listedechoix!$A$4,5,0)))) -> 0 | ES12: =IF(AC12=Listedechoix!$A$1,20,IF(AC12=Listedechoix!$A$2,15,IF(AC12=Listedechoix!$A$3,10,IF(AC12=Listedechoix!$A$4,5,0)))) -> 0 | ET12: =IF(AD12=Listedechoix!$A$1,20,IF(AD12=Listedechoix!$A$2,15,IF(AD12=Listedechoix!$A$3,10,IF(AD12=Listedechoix!$A$4,5,0)))) -> 0 | EU12: =IF(AE12=Listedechoix!$A$1,20,IF(AE12=Listedechoix!$A$2,15,IF(AE12=Listedechoix!$A$3,10,IF(AE12=Listedechoix!$A$4,5,0)))) -> 0 | EV12: =IF(AF12=Listedechoix!$A$1,20,IF(AF12=Listedechoix!$A$2,15,IF(AF12=Listedechoix!$A$3,10,IF(AF12=Listedechoix!$A$4,5,0)))) -> 0 | EW12: =IF(AG12=Listedechoix!$A$1,20,IF(AG12=Listedechoix!$A$2,15,IF(AG12=Listedechoix!$A$3,10,IF(AG12=Listedechoix!$A$4,5,0)))) -> 0 | EX12: =IF(AH12=Listedechoix!$A$1,20,IF(AH12=Listedechoix!$A$2,15,IF(AH12=Listedechoix!$A$3,10,IF(AH12=Listedechoix!$A$4,5,0)))) -> 0 | EY12: =IF(AI12=Listedechoix!$A$1,20,IF(AI12=Listedechoix!$A$2,15,IF(AI12=Listedechoix!$A$3,10,IF(AI12=Listedechoix!$A$4,5,0)))) -> 0 | EZ12: =IF(AJ12=Listedechoix!$A$1,20,IF(AJ12=Listedechoix!$A$2,15,IF(AJ12=Listedechoix!$A$3,10,IF(AJ12=Listedechoix!$A$4,5,0)))) -> 0 | FA12: =IF(AK12=Listedechoix!$A$1,20,IF(AK12=Listedechoix!$A$2,15,IF(AK12=Listedechoix!$A$3,10,IF(AK12=Listedechoix!$A$4,5,0)))) -> 0 | FB12: =IF(AL12=Listedechoix!$A$1,20,IF(AL12=Listedechoix!$A$2,15,IF(AL12=Listedechoix!$A$3,10,IF(AL12=Listedechoix!$A$4,5,0)))) -> 0 | FC12: =IF(AM12=Listedechoix!$A$1,20,IF(AM12=Listedechoix!$A$2,15,IF(AM12=Listedechoix!$A$3,10,IF(AM12=Listedechoix!$A$4,5,0)))) -> 0 | FD12: =IF(AN12=Listedechoix!$A$1,20,IF(AN12=Listedechoix!$A$2,15,IF(AN12=Listedechoix!$A$3,10,IF(AN12=Listedechoix!$A$4,5,0)))) -> 0 | FE12: =IF(AO12=Listedechoix!$A$1,20,IF(AO12=Listedechoix!$A$2,15,IF(AO12=Listedechoix!$A$3,10,IF(AO12=Listedechoix!$A$4,5,0)))) -> 0 | FF12: NNot | FG12: NNot | FH12: =IF(AP12=Listedechoix!$A$1,20,IF(AP12=Listedechoix!$A$2,15,IF(AP12=Listedechoix!$A$3,10,IF(AP12=Listedechoix!$A$4,5,0)))) -> 0 | FI12: =IF(AQ12=Listedechoix!$A$1,20,IF(AQ12=Listedechoix!$A$2,15,IF(AQ12=Listedechoix!$A$3,10,IF(AQ12=Listedechoix!$A$4,5,0)))) -> 0 | FJ12: =IF(AR12=Listedechoix!$A$1,20,IF(AR12=Listedechoix!$A$2,15,IF(AR12=Listedechoix!$A$3,10,IF(AR12=Listedechoix!$A$4,5,0)))) -> 0 | FK12: =IF(AS12=Listedechoix!$A$1,20,IF(AS12=Listedechoix!$A$2,15,IF(AS12=Listedechoix!$A$3,10,IF(AS12=Listedechoix!$A$4,5,0)))) -> 0 | FL12: =IF(AT12=Listedechoix!$A$1,20,IF(AT12=Listedechoix!$A$2,15,IF(AT12=Listedechoix!$A$3,10,IF(AT12=Listedechoix!$A$4,5,0)))) -> 0 | FM12: =IF(AU12=Listedechoix!$A$1,20,IF(AU12=Listedechoix!$A$2,15,IF(AU12=Listedechoix!$A$3,10,IF(AU12=Listedechoix!$A$4,5,0)))) -> 0 | FN12: =IF(AV12=Listedechoix!$A$1,20,IF(AV12=Listedechoix!$A$2,15,IF(AV12=Listedechoix!$A$3,10,IF(AV12=Listedechoix!$A$4,5,0)))) -> 0 | FO12: =IF(AW12=Listedechoix!$A$1,20,IF(AW12=Listedechoix!$A$2,15,IF(AW12=Listedechoix!$A$3,10,IF(AW12=Listedechoix!$A$4,5,0)))) -> 0 | FP12: =IF(AX12=Listedechoix!$A$1,20,IF(AX12=Listedechoix!$A$2,15,IF(AX12=Listedechoix!$A$3,10,IF(AX12=Listedechoix!$A$4,5,0)))) -> 0 | FQ12: =IF(AY12=Listedechoix!$A$1,20,IF(AY12=Listedechoix!$A$2,15,IF(AY12=Listedechoix!$A$3,10,IF(AY12=Listedechoix!$A$4,5,0)))) -> 0 | FR12: =IF(AZ12=Listedechoix!$A$1,20,IF(AZ12=Listedechoix!$A$2,15,IF(AZ12=Listedechoix!$A$3,10,IF(AZ12=Listedechoix!$A$4,5,0)))) -> 0 | FS12: =IF(BA12=Listedechoix!$A$1,20,IF(BA12=Listedechoix!$A$2,15,IF(BA12=Listedechoix!$A$3,10,IF(BA12=Listedechoix!$A$4,5,0)))) -> 0 | FT12: =IF(BB12=Listedechoix!$A$1,20,IF(BB12=Listedechoix!$A$2,15,IF(BB12=Listedechoix!$A$3,10,IF(BB12=Listedechoix!$A$4,5,0)))) -> 0 | FU12: =IF(BC12=Listedechoix!$A$1,20,IF(BC12=Listedechoix!$A$2,15,IF(BC12=Listedechoix!$A$3,10,IF(BC12=Listedechoix!$A$4,5,0)))) -> 0 | FV12: NNot | FW12: NNot | FX12: =IF(BD12=Listedechoix!$A$1,20,IF(BD12=Listedechoix!$A$2,15,IF(BD12=Listedechoix!$A$3,10,IF(BD12=Listedechoix!$A$4,5,0)))) -> 0 | FY12: =IF(BE12=Listedechoix!$A$1,20,IF(BE12=Listedechoix!$A$2,15,IF(BE12=Listedechoix!$A$3,10,IF(BE12=Listedechoix!$A$4,5,0)))) -> 0 | FZ12: =IF(BF12=Listedechoix!$A$1,20,IF(BF12=Listedechoix!$A$2,15,IF(BF12=Listedechoix!$A$3,10,IF(BF12=Listedechoix!$A$4,5,0)))) -> 0 | GA12: =IF(BG12=Listedechoix!$A$1,20,IF(BG12=Listedechoix!$A$2,15,IF(BG12=Listedechoix!$A$3,10,IF(BG12=Listedechoix!$A$4,5,0)))) -> 0 | GB12: =IF(BH12=Listedechoix!$A$1,20,IF(BH12=Listedechoix!$A$2,15,IF(BH12=Listedechoix!$A$3,10,IF(BH12=Listedechoix!$A$4,5,0)))) -> 0 | GC12: =IF(BI12=Listedechoix!$A$1,20,IF(BI12=Listedechoix!$A$2,15,IF(BI12=Listedechoix!$A$3,10,IF(BI12=Listedechoix!$A$4,5,0)))) -> 0 | GD12: =IF(BJ12=Listedechoix!$A$1,20,IF(BJ12=Listedechoix!$A$2,15,IF(BJ12=Listedechoix!$A$3,10,IF(BJ12=Listedechoix!$A$4,5,0)))) -> 0 | GE12: =IF(BK12=Listedechoix!$A$1,20,IF(BK12=Listedechoix!$A$2,15,IF(BK12=Listedechoix!$A$3,10,IF(BK12=Listedechoix!$A$4,5,0)))) -> 0 | GF12: =IF(BL12=Listedechoix!$A$1,20,IF(BL12=Listedechoix!$A$2,15,IF(BL12=Listedechoix!$A$3,10,IF(BL12=Listedechoix!$A$4,5,0)))) -> 0 | GG12: =IF(BM12=Listedechoix!$A$1,20,IF(BM12=Listedechoix!$A$2,15,IF(BM12=Listedechoix!$A$3,10,IF(BM12=Listedechoix!$A$4,5,0)))) -> 0 | GH12: =IF(BN12=Listedechoix!$A$1,20,IF(BN12=Listedechoix!$A$2,15,IF(BN12=Listedechoix!$A$3,10,IF(BN12=Listedechoix!$A$4,5,0)))) -> 0 | GI12: NNot | GJ12: NNot | GK12: =IF(BO12=Listedechoix!$A$1,20,IF(BO12=Listedechoix!$A$2,15,IF(BO12=Listedechoix!$A$3,10,IF(BO12=Listedechoix!$A$4,5,0)))) -> 0 | GL12: =IF(BP12=Listedechoix!$A$1,20,IF(BP12=Listedechoix!$A$2,15,IF(BP12=Listedechoix!$A$3,10,IF(BP12=Listedechoix!$A$4,5,0)))) -> 0 | GM12: =IF(BQ12=Listedechoix!$A$1,20,IF(BQ12=Listedechoix!$A$2,15,IF(BQ12=Listedechoix!$A$3,10,IF(BQ12=Listedechoix!$A$4,5,0)))) -> 0 | GN12: =IF(BR12=Listedechoix!$A$1,20,IF(BR12=Listedechoix!$A$2,15,IF(BR12=Listedechoix!$A$3,10,IF(BR12=Listedechoix!$A$4,5,0)))) -> 0 | GO12: =IF(BS12=Listedechoix!$A$1,20,IF(BS12=Listedechoix!$A$2,15,IF(BS12=Listedechoix!$A$3,10,IF(BS12=Listedechoix!$A$4,5,0)))) -> 0 | GP12: =IF(BT12=Listedechoix!$A$1,20,IF(BT12=Listedechoix!$A$2,15,IF(BT12=Listedechoix!$A$3,10,IF(BT12=Listedechoix!$A$4,5,0)))) -> 0 | GQ12: =IF(BU12=Listedechoix!$A$1,20,IF(BU12=Listedechoix!$A$2,15,IF(BU12=Listedechoix!$A$3,10,IF(BU12=Listedechoix!$A$4,5,0)))) -> 0 | GR12: =IF(BV12=Listedechoix!$A$1,20,IF(BV12=Listedechoix!$A$2,15,IF(BV12=Listedechoix!$A$3,10,IF(BV12=Listedechoix!$A$4,5,0)))) -> 0 | GS12: =IF(BW12=Listedechoix!$A$1,20,IF(BW12=Listedechoix!$A$2,15,IF(BW12=Listedechoix!$A$3,10,IF(BW12=Listedechoix!$A$4,5,0)))) -> 0 | GT12: =IF(BX12=Listedechoix!$A$1,20,IF(BX12=Listedechoix!$A$2,15,IF(BX12=Listedechoix!$A$3,10,IF(BX12=Listedechoix!$A$4,5,0)))) -> 0 | GU12: =IF(BY12=Listedechoix!$A$1,20,IF(BY12=Listedechoix!$A$2,15,IF(BY12=Listedechoix!$A$3,10,IF(BY12=Listedechoix!$A$4,5,0)))) -> 0 | GV12: NNot | GW12: NNot | GX12: =IF(BZ12=Listedechoix!$A$1,20,IF(BZ12=Listedechoix!$A$2,15,IF(BZ12=Listedechoix!$A$3,10,IF(BZ12=Listedechoix!$A$4,5,0)))) -> 0 | GY12: =IF(CA12=Listedechoix!$A$1,20,IF(CA12=Listedechoix!$A$2,15,IF(CA12=Listedechoix!$A$3,10,IF(CA12=Listedechoix!$A$4,5,0)))) -> 0 | GZ12: =IF(CB12=Listedechoix!$A$1,20,IF(CB12=Listedechoix!$A$2,15,IF(CB12=Listedechoix!$A$3,10,IF(CB12=Listedechoix!$A$4,5,0)))) -> 0 | HA12: =IF(CC12=Listedechoix!$A$1,20,IF(CC12=Listedechoix!$A$2,15,IF(CC12=Listedechoix!$A$3,10,IF(CC12=Listedechoix!$A$4,5,0)))) -> 0 | HB12: =IF(CD12=Listedechoix!$A$1,20,IF(CD12=Listedechoix!$A$2,15,IF(CD12=Listedechoix!$A$3,10,IF(CD12=Listedechoix!$A$4,5,0)))) -> 0 | HC12: =IF(CE12=Listedechoix!$A$1,20,IF(CE12=Listedechoix!$A$2,15,IF(CE12=Listedechoix!$A$3,10,IF(CE12=Listedechoix!$A$4,5,0)))) -> 0 | HD12: =IF(CF12=Listedechoix!$A$1,20,IF(CF12=Listedechoix!$A$2,15,IF(CF12=Listedechoix!$A$3,10,IF(CF12=Listedechoix!$A$4,5,0)))) -> 0 | HE12: =IF(CG12=Listedechoix!$A$1,20,IF(CG12=Listedechoix!$A$2,15,IF(CG12=Listedechoix!$A$3,10,IF(CG12=Listedechoix!$A$4,5,0)))) -> 0 | HF12: =IF(CH12=Listedechoix!$A$1,20,IF(CH12=Listedechoix!$A$2,15,IF(CH12=Listedechoix!$A$3,10,IF(CH12=Listedechoix!$A$4,5,0)))) -> 0 | HG12: =IF(CI12=Listedechoix!$A$1,20,IF(CI12=Listedechoix!$A$2,15,IF(CI12=Listedechoix!$A$3,10,IF(CI12=Listedechoix!$A$4,5,0)))) -> 0 | HH12: =IF(CJ12=Listedechoix!$A$1,20,IF(CJ12=Listedechoix!$A$2,15,IF(CJ12=Listedechoix!$A$3,10,IF(CJ12=Listedechoix!$A$4,5,0)))) -> 0 | HI12: =IF(CK12=Listedechoix!$A$1,20,IF(CK12=Listedechoix!$A$2,15,IF(CK12=Listedechoix!$A$3,10,IF(CK12=Listedechoix!$A$4,5,0)))) -> 0 | HJ12: =IF(CL12=Listedechoix!$A$1,20,IF(CL12=Listedechoix!$A$2,15,IF(CL12=Listedechoix!$A$3,10,IF(CL12=Listedechoix!$A$4,5,0)))) -> 0 | HK12: =IF(CM12=Listedechoix!$A$1,20,IF(CM12=Listedechoix!$A$2,15,IF(CM12=Listedechoix!$A$3,10,IF(CM12=Listedechoix!$A$4,5,0)))) -> 0 | HL12: NNot | HM12: NNot
CR13: 0 | CX13: 0 | CY13: NNot | DD13: 0 | DE13: NNot | DJ13: 0 | DK13: NNot | DP13: 0 | DQ13: NNot | DR13: =IF(F13=Listedechoix!$A$1,20,IF(F13=Listedechoix!$A$2,15,IF(F13=Listedechoix!$A$3,10,IF(F13=Listedechoix!$A$4,5,0)))) -> 0 | DS13: =IF(G13=Listedechoix!$A$1,20,IF(G13=Listedechoix!$A$2,15,IF(G13=Listedechoix!$A$3,10,IF(G13=Listedechoix!$A$4,5,0)))) -> 0 | DT13: =IF(H13=Listedechoix!$A$1,20,IF(H13=Listedechoix!$A$2,15,IF(H13=Listedechoix!$A$3,10,IF(H13=Listedechoix!$A$4,5,0)))) -> 0 | DU13: =IF(I13=Listedechoix!$A$1,20,IF(I13=Listedechoix!$A$2,15,IF(I13=Listedechoix!$A$3,10,IF(I13=Listedechoix!$A$4,5,0)))) -> 0 | DV13: =IF(J13=Listedechoix!$A$1,20,IF(J13=Listedechoix!$A$2,15,IF(J13=Listedechoix!$A$3,10,IF(J13=Listedechoix!$A$4,5,0)))) -> 0 | DW13: =IF(K13=Listedechoix!$A$1,20,IF(K13=Listedechoix!$A$2,15,IF(K13=Listedechoix!$A$3,10,IF(K13=Listedechoix!$A$4,5,0)))) -> 0 | DX13: =IF(L13=Listedechoix!$A$1,20,IF(L13=Listedechoix!$A$2,15,IF(L13=Listedechoix!$A$3,10,IF(L13=Listedechoix!$A$4,5,0)))) -> 0 | DY13: =IF(M13=Listedechoix!$A$1,20,IF(M13=Listedechoix!$A$2,15,IF(M13=Listedechoix!$A$3,10,IF(M13=Listedechoix!$A$4,5,0)))) -> 0 | DZ13: =IF(N13=Listedechoix!$A$1,20,IF(N13=Listedechoix!$A$2,15,IF(N13=Listedechoix!$A$3,10,IF(N13=Listedechoix!$A$4,5,0)))) -> 0 | EA13: =IF(O13=Listedechoix!$A$1,20,IF(O13=Listedechoix!$A$2,15,IF(O13=Listedechoix!$A$3,10,IF(O13=Listedechoix!$A$4,5,0)))) -> 0 | EB13: =IF(P13=Listedechoix!$A$1,20,IF(P13=Listedechoix!$A$2,15,IF(P13=Listedechoix!$A$3,10,IF(P13=Listedechoix!$A$4,5,0)))) -> 0 | EC13: NNot | ED13: NNot | EE13: =IF(Q13=Listedechoix!$A$1,20,IF(Q13=Listedechoix!$A$2,15,IF(Q13=Listedechoix!$A$3,10,IF(Q13=Listedechoix!$A$4,5,0)))) -> 0 | EF13: =IF(R13=Listedechoix!$A$1,20,IF(R13=Listedechoix!$A$2,15,IF(R13=Listedechoix!$A$3,10,IF(R13=Listedechoix!$A$4,5,0)))) -> 0 | EG13: =IF(S13=Listedechoix!$A$1,20,IF(S13=Listedechoix!$A$2,15,IF(S13=Listedechoix!$A$3,10,IF(S13=Listedechoix!$A$4,5,0)))) -> 0 | EH13: =IF(T13=Listedechoix!$A$1,20,IF(T13=Listedechoix!$A$2,15,IF(T13=Listedechoix!$A$3,10,IF(T13=Listedechoix!$A$4,5,0)))) -> 0 | EI13: =IF(U13=Listedechoix!$A$1,20,IF(U13=Listedechoix!$A$2,15,IF(U13=Listedechoix!$A$3,10,IF(U13=Listedechoix!$A$4,5,0)))) -> 0 | EJ13: =IF(V13=Listedechoix!$A$1,20,IF(V13=Listedechoix!$A$2,15,IF(V13=Listedechoix!$A$3,10,IF(V13=Listedechoix!$A$4,5,0)))) -> 0 | EK13: =IF(W13=Listedechoix!$A$1,20,IF(W13=Listedechoix!$A$2,15,IF(W13=Listedechoix!$A$3,10,IF(W13=Listedechoix!$A$4,5,0)))) -> 0 | EL13: =IF(X13=Listedechoix!$A$1,20,IF(X13=Listedechoix!$A$2,15,IF(X13=Listedechoix!$A$3,10,IF(X13=Listedechoix!$A$4,5,0)))) -> 0 | EM13: =IF(Y13=Listedechoix!$A$1,20,IF(Y13=Listedechoix!$A$2,15,IF(Y13=Listedechoix!$A$3,10,IF(Y13=Listedechoix!$A$4,5,0)))) -> 0 | EN13: =IF(Z13=Listedechoix!$A$1,20,IF(Z13=Listedechoix!$A$2,15,IF(Z13=Listedechoix!$A$3,10,IF(Z13=Listedechoix!$A$4,5,0)))) -> 0 | EO13: =IF(AA13=Listedechoix!$A$1,20,IF(AA13=Listedechoix!$A$2,15,IF(AA13=Listedechoix!$A$3,10,IF(AA13=Listedechoix!$A$4,5,0)))) -> 0 | EP13: NNot | EQ13: NNot | ER13: =IF(AB13=Listedechoix!$A$1,20,IF(AB13=Listedechoix!$A$2,15,IF(AB13=Listedechoix!$A$3,10,IF(AB13=Listedechoix!$A$4,5,0)))) -> 0 | ES13: =IF(AC13=Listedechoix!$A$1,20,IF(AC13=Listedechoix!$A$2,15,IF(AC13=Listedechoix!$A$3,10,IF(AC13=Listedechoix!$A$4,5,0)))) -> 0 | ET13: =IF(AD13=Listedechoix!$A$1,20,IF(AD13=Listedechoix!$A$2,15,IF(AD13=Listedechoix!$A$3,10,IF(AD13=Listedechoix!$A$4,5,0)))) -> 0 | EU13: =IF(AE13=Listedechoix!$A$1,20,IF(AE13=Listedechoix!$A$2,15,IF(AE13=Listedechoix!$A$3,10,IF(AE13=Listedechoix!$A$4,5,0)))) -> 0 | EV13: =IF(AF13=Listedechoix!$A$1,20,IF(AF13=Listedechoix!$A$2,15,IF(AF13=Listedechoix!$A$3,10,IF(AF13=Listedechoix!$A$4,5,0)))) -> 0 | EW13: =IF(AG13=Listedechoix!$A$1,20,IF(AG13=Listedechoix!$A$2,15,IF(AG13=Listedechoix!$A$3,10,IF(AG13=Listedechoix!$A$4,5,0)))) -> 0 | EX13: =IF(AH13=Listedechoix!$A$1,20,IF(AH13=Listedechoix!$A$2,15,IF(AH13=Listedechoix!$A$3,10,IF(AH13=Listedechoix!$A$4,5,0)))) -> 0 | EY13: =IF(AI13=Listedechoix!$A$1,20,IF(AI13=Listedechoix!$A$2,15,IF(AI13=Listedechoix!$A$3,10,IF(AI13=Listedechoix!$A$4,5,0)))) -> 0 | EZ13: =IF(AJ13=Listedechoix!$A$1,20,IF(AJ13=Listedechoix!$A$2,15,IF(AJ13=Listedechoix!$A$3,10,IF(AJ13=Listedechoix!$A$4,5,0)))) -> 0 | FA13: =IF(AK13=Listedechoix!$A$1,20,IF(AK13=Listedechoix!$A$2,15,IF(AK13=Listedechoix!$A$3,10,IF(AK13=Listedechoix!$A$4,5,0)))) -> 0 | FB13: =IF(AL13=Listedechoix!$A$1,20,IF(AL13=Listedechoix!$A$2,15,IF(AL13=Listedechoix!$A$3,10,IF(AL13=Listedechoix!$A$4,5,0)))) -> 0 | FC13: =IF(AM13=Listedechoix!$A$1,20,IF(AM13=Listedechoix!$A$2,15,IF(AM13=Listedechoix!$A$3,10,IF(AM13=Listedechoix!$A$4,5,0)))) -> 0 | FD13: =IF(AN13=Listedechoix!$A$1,20,IF(AN13=Listedechoix!$A$2,15,IF(AN13=Listedechoix!$A$3,10,IF(AN13=Listedechoix!$A$4,5,0)))) -> 0 | FE13: =IF(AO13=Listedechoix!$A$1,20,IF(AO13=Listedechoix!$A$2,15,IF(AO13=Listedechoix!$A$3,10,IF(AO13=Listedechoix!$A$4,5,0)))) -> 0 | FF13: NNot | FG13: NNot | FH13: =IF(AP13=Listedechoix!$A$1,20,IF(AP13=Listedechoix!$A$2,15,IF(AP13=Listedechoix!$A$3,10,IF(AP13=Listedechoix!$A$4,5,0)))) -> 0 | FI13: =IF(AQ13=Listedechoix!$A$1,20,IF(AQ13=Listedechoix!$A$2,15,IF(AQ13=Listedechoix!$A$3,10,IF(AQ13=Listedechoix!$A$4,5,0)))) -> 0 | FJ13: =IF(AR13=Listedechoix!$A$1,20,IF(AR13=Listedechoix!$A$2,15,IF(AR13=Listedechoix!$A$3,10,IF(AR13=Listedechoix!$A$4,5,0)))) -> 0 | FK13: =IF(AS13=Listedechoix!$A$1,20,IF(AS13=Listedechoix!$A$2,15,IF(AS13=Listedechoix!$A$3,10,IF(AS13=Listedechoix!$A$4,5,0)))) -> 0 | FL13: =IF(AT13=Listedechoix!$A$1,20,IF(AT13=Listedechoix!$A$2,15,IF(AT13=Listedechoix!$A$3,10,IF(AT13=Listedechoix!$A$4,5,0)))) -> 0 | FM13: =IF(AU13=Listedechoix!$A$1,20,IF(AU13=Listedechoix!$A$2,15,IF(AU13=Listedechoix!$A$3,10,IF(AU13=Listedechoix!$A$4,5,0)))) -> 0 | FN13: =IF(AV13=Listedechoix!$A$1,20,IF(AV13=Listedechoix!$A$2,15,IF(AV13=Listedechoix!$A$3,10,IF(AV13=Listedechoix!$A$4,5,0)))) -> 0 | FO13: =IF(AW13=Listedechoix!$A$1,20,IF(AW13=Listedechoix!$A$2,15,IF(AW13=Listedechoix!$A$3,10,IF(AW13=Listedechoix!$A$4,5,0)))) -> 0 | FP13: =IF(AX13=Listedechoix!$A$1,20,IF(AX13=Listedechoix!$A$2,15,IF(AX13=Listedechoix!$A$3,10,IF(AX13=Listedechoix!$A$4,5,0)))) -> 0 | FQ13: =IF(AY13=Listedechoix!$A$1,20,IF(AY13=Listedechoix!$A$2,15,IF(AY13=Listedechoix!$A$3,10,IF(AY13=Listedechoix!$A$4,5,0)))) -> 0 | FR13: =IF(AZ13=Listedechoix!$A$1,20,IF(AZ13=Listedechoix!$A$2,15,IF(AZ13=Listedechoix!$A$3,10,IF(AZ13=Listedechoix!$A$4,5,0)))) -> 0 | FS13: =IF(BA13=Listedechoix!$A$1,20,IF(BA13=Listedechoix!$A$2,15,IF(BA13=Listedechoix!$A$3,10,IF(BA13=Listedechoix!$A$4,5,0)))) -> 0 | FT13: =IF(BB13=Listedechoix!$A$1,20,IF(BB13=Listedechoix!$A$2,15,IF(BB13=Listedechoix!$A$3,10,IF(BB13=Listedechoix!$A$4,5,0)))) -> 0 | FU13: =IF(BC13=Listedechoix!$A$1,20,IF(BC13=Listedechoix!$A$2,15,IF(BC13=Listedechoix!$A$3,10,IF(BC13=Listedechoix!$A$4,5,0)))) -> 0 | FV13: NNot | FW13: NNot | FX13: =IF(BD13=Listedechoix!$A$1,20,IF(BD13=Listedechoix!$A$2,15,IF(BD13=Listedechoix!$A$3,10,IF(BD13=Listedechoix!$A$4,5,0)))) -> 0 | FY13: =IF(BE13=Listedechoix!$A$1,20,IF(BE13=Listedechoix!$A$2,15,IF(BE13=Listedechoix!$A$3,10,IF(BE13=Listedechoix!$A$4,5,0)))) -> 0 | FZ13: =IF(BF13=Listedechoix!$A$1,20,IF(BF13=Listedechoix!$A$2,15,IF(BF13=Listedechoix!$A$3,10,IF(BF13=Listedechoix!$A$4,5,0)))) -> 0 | GA13: =IF(BG13=Listedechoix!$A$1,20,IF(BG13=Listedechoix!$A$2,15,IF(BG13=Listedechoix!$A$3,10,IF(BG13=Listedechoix!$A$4,5,0)))) -> 0 | GB13: =IF(BH13=Listedechoix!$A$1,20,IF(BH13=Listedechoix!$A$2,15,IF(BH13=Listedechoix!$A$3,10,IF(BH13=Listedechoix!$A$4,5,0)))) -> 0 | GC13: =IF(BI13=Listedechoix!$A$1,20,IF(BI13=Listedechoix!$A$2,15,IF(BI13=Listedechoix!$A$3,10,IF(BI13=Listedechoix!$A$4,5,0)))) -> 0 | GD13: =IF(BJ13=Listedechoix!$A$1,20,IF(BJ13=Listedechoix!$A$2,15,IF(BJ13=Listedechoix!$A$3,10,IF(BJ13=Listedechoix!$A$4,5,0)))) -> 0 | GE13: =IF(BK13=Listedechoix!$A$1,20,IF(BK13=Listedechoix!$A$2,15,IF(BK13=Listedechoix!$A$3,10,IF(BK13=Listedechoix!$A$4,5,0)))) -> 0 | GF13: =IF(BL13=Listedechoix!$A$1,20,IF(BL13=Listedechoix!$A$2,15,IF(BL13=Listedechoix!$A$3,10,IF(BL13=Listedechoix!$A$4,5,0)))) -> 0 | GG13: =IF(BM13=Listedechoix!$A$1,20,IF(BM13=Listedechoix!$A$2,15,IF(BM13=Listedechoix!$A$3,10,IF(BM13=Listedechoix!$A$4,5,0)))) -> 0 | GH13: =IF(BN13=Listedechoix!$A$1,20,IF(BN13=Listedechoix!$A$2,15,IF(BN13=Listedechoix!$A$3,10,IF(BN13=Listedechoix!$A$4,5,0)))) -> 0 | GI13: NNot | GJ13: NNot | GK13: =IF(BO13=Listedechoix!$A$1,20,IF(BO13=Listedechoix!$A$2,15,IF(BO13=Listedechoix!$A$3,10,IF(BO13=Listedechoix!$A$4,5,0)))) -> 0 | GL13: =IF(BP13=Listedechoix!$A$1,20,IF(BP13=Listedechoix!$A$2,15,IF(BP13=Listedechoix!$A$3,10,IF(BP13=Listedechoix!$A$4,5,0)))) -> 0 | GM13: =IF(BQ13=Listedechoix!$A$1,20,IF(BQ13=Listedechoix!$A$2,15,IF(BQ13=Listedechoix!$A$3,10,IF(BQ13=Listedechoix!$A$4,5,0)))) -> 0 | GN13: =IF(BR13=Listedechoix!$A$1,20,IF(BR13=Listedechoix!$A$2,15,IF(BR13=Listedechoix!$A$3,10,IF(BR13=Listedechoix!$A$4,5,0)))) -> 0 | GO13: =IF(BS13=Listedechoix!$A$1,20,IF(BS13=Listedechoix!$A$2,15,IF(BS13=Listedechoix!$A$3,10,IF(BS13=Listedechoix!$A$4,5,0)))) -> 0 | GP13: =IF(BT13=Listedechoix!$A$1,20,IF(BT13=Listedechoix!$A$2,15,IF(BT13=Listedechoix!$A$3,10,IF(BT13=Listedechoix!$A$4,5,0)))) -> 0 | GQ13: =IF(BU13=Listedechoix!$A$1,20,IF(BU13=Listedechoix!$A$2,15,IF(BU13=Listedechoix!$A$3,10,IF(BU13=Listedechoix!$A$4,5,0)))) -> 0 | GR13: =IF(BV13=Listedechoix!$A$1,20,IF(BV13=Listedechoix!$A$2,15,IF(BV13=Listedechoix!$A$3,10,IF(BV13=Listedechoix!$A$4,5,0)))) -> 0 | GS13: =IF(BW13=Listedechoix!$A$1,20,IF(BW13=Listedechoix!$A$2,15,IF(BW13=Listedechoix!$A$3,10,IF(BW13=Listedechoix!$A$4,5,0)))) -> 0 | GT13: =IF(BX13=Listedechoix!$A$1,20,IF(BX13=Listedechoix!$A$2,15,IF(BX13=Listedechoix!$A$3,10,IF(BX13=Listedechoix!$A$4,5,0)))) -> 0 | GU13: =IF(BY13=Listedechoix!$A$1,20,IF(BY13=Listedechoix!$A$2,15,IF(BY13=Listedechoix!$A$3,10,IF(BY13=Listedechoix!$A$4,5,0)))) -> 0 | GV13: NNot | GW13: NNot | GX13: =IF(BZ13=Listedechoix!$A$1,20,IF(BZ13=Listedechoix!$A$2,15,IF(BZ13=Listedechoix!$A$3,10,IF(BZ13=Listedechoix!$A$4,5,0)))) -> 0 | GY13: =IF(CA13=Listedechoix!$A$1,20,IF(CA13=Listedechoix!$A$2,15,IF(CA13=Listedechoix!$A$3,10,IF(CA13=Listedechoix!$A$4,5,0)))) -> 0 | GZ13: =IF(CB13=Listedechoix!$A$1,20,IF(CB13=Listedechoix!$A$2,15,IF(CB13=Listedechoix!$A$3,10,IF(CB13=Listedechoix!$A$4,5,0)))) -> 0 | HA13: =IF(CC13=Listedechoix!$A$1,20,IF(CC13=Listedechoix!$A$2,15,IF(CC13=Listedechoix!$A$3,10,IF(CC13=Listedechoix!$A$4,5,0)))) -> 0 | HB13: =IF(CD13=Listedechoix!$A$1,20,IF(CD13=Listedechoix!$A$2,15,IF(CD13=Listedechoix!$A$3,10,IF(CD13=Listedechoix!$A$4,5,0)))) -> 0 | HC13: =IF(CE13=Listedechoix!$A$1,20,IF(CE13=Listedechoix!$A$2,15,IF(CE13=Listedechoix!$A$3,10,IF(CE13=Listedechoix!$A$4,5,0)))) -> 0 | HD13: =IF(CF13=Listedechoix!$A$1,20,IF(CF13=Listedechoix!$A$2,15,IF(CF13=Listedechoix!$A$3,10,IF(CF13=Listedechoix!$A$4,5,0)))) -> 0 | HE13: =IF(CG13=Listedechoix!$A$1,20,IF(CG13=Listedechoix!$A$2,15,IF(CG13=Listedechoix!$A$3,10,IF(CG13=Listedechoix!$A$4,5,0)))) -> 0 | HF13: =IF(CH13=Listedechoix!$A$1,20,IF(CH13=Listedechoix!$A$2,15,IF(CH13=Listedechoix!$A$3,10,IF(CH13=Listedechoix!$A$4,5,0)))) -> 0 | HG13: =IF(CI13=Listedechoix!$A$1,20,IF(CI13=Listedechoix!$A$2,15,IF(CI13=Listedechoix!$A$3,10,IF(CI13=Listedechoix!$A$4,5,0)))) -> 0 | HH13: =IF(CJ13=Listedechoix!$A$1,20,IF(CJ13=Listedechoix!$A$2,15,IF(CJ13=Listedechoix!$A$3,10,IF(CJ13=Listedechoix!$A$4,5,0)))) -> 0 | HI13: =IF(CK13=Listedechoix!$A$1,20,IF(CK13=Listedechoix!$A$2,15,IF(CK13=Listedechoix!$A$3,10,IF(CK13=Listedechoix!$A$4,5,0)))) -> 0 | HJ13: =IF(CL13=Listedechoix!$A$1,20,IF(CL13=Listedechoix!$A$2,15,IF(CL13=Listedechoix!$A$3,10,IF(CL13=Listedechoix!$A$4,5,0)))) -> 0 | HK13: =IF(CM13=Listedechoix!$A$1,20,IF(CM13=Listedechoix!$A$2,15,IF(CM13=Listedechoix!$A$3,10,IF(CM13=Listedechoix!$A$4,5,0)))) -> 0 | HL13: NNot | HM13: NNot
CR14: 0 | CX14: 0 | CY14: NNot | DD14: 0 | DE14: NNot | DJ14: 0 | DK14: NNot | DP14: 0 | DQ14: NNot | DR14: =IF(F14=Listedechoix!$A$1,20,IF(F14=Listedechoix!$A$2,15,IF(F14=Listedechoix!$A$3,10,IF(F14=Listedechoix!$A$4,5,0)))) -> 0 | DS14: =IF(G14=Listedechoix!$A$1,20,IF(G14=Listedechoix!$A$2,15,IF(G14=Listedechoix!$A$3,10,IF(G14=Listedechoix!$A$4,5,0)))) -> 0 | DT14: =IF(H14=Listedechoix!$A$1,20,IF(H14=Listedechoix!$A$2,15,IF(H14=Listedechoix!$A$3,10,IF(H14=Listedechoix!$A$4,5,0)))) -> 0 | DU14: =IF(I14=Listedechoix!$A$1,20,IF(I14=Listedechoix!$A$2,15,IF(I14=Listedechoix!$A$3,10,IF(I14=Listedechoix!$A$4,5,0)))) -> 0 | DV14: =IF(J14=Listedechoix!$A$1,20,IF(J14=Listedechoix!$A$2,15,IF(J14=Listedechoix!$A$3,10,IF(J14=Listedechoix!$A$4,5,0)))) -> 0 | DW14: =IF(K14=Listedechoix!$A$1,20,IF(K14=Listedechoix!$A$2,15,IF(K14=Listedechoix!$A$3,10,IF(K14=Listedechoix!$A$4,5,0)))) -> 0 | DX14: =IF(L14=Listedechoix!$A$1,20,IF(L14=Listedechoix!$A$2,15,IF(L14=Listedechoix!$A$3,10,IF(L14=Listedechoix!$A$4,5,0)))) -> 0 | DY14: =IF(M14=Listedechoix!$A$1,20,IF(M14=Listedechoix!$A$2,15,IF(M14=Listedechoix!$A$3,10,IF(M14=Listedechoix!$A$4,5,0)))) -> 0 | DZ14: =IF(N14=Listedechoix!$A$1,20,IF(N14=Listedechoix!$A$2,15,IF(N14=Listedechoix!$A$3,10,IF(N14=Listedechoix!$A$4,5,0)))) -> 0 | EA14: =IF(O14=Listedechoix!$A$1,20,IF(O14=Listedechoix!$A$2,15,IF(O14=Listedechoix!$A$3,10,IF(O14=Listedechoix!$A$4,5,0)))) -> 0 | EB14: =IF(P14=Listedechoix!$A$1,20,IF(P14=Listedechoix!$A$2,15,IF(P14=Listedechoix!$A$3,10,IF(P14=Listedechoix!$A$4,5,0)))) -> 0 | EC14: NNot | ED14: NNot | EE14: =IF(Q14=Listedechoix!$A$1,20,IF(Q14=Listedechoix!$A$2,15,IF(Q14=Listedechoix!$A$3,10,IF(Q14=Listedechoix!$A$4,5,0)))) -> 0 | EF14: =IF(R14=Listedechoix!$A$1,20,IF(R14=Listedechoix!$A$2,15,IF(R14=Listedechoix!$A$3,10,IF(R14=Listedechoix!$A$4,5,0)))) -> 0 | EG14: =IF(S14=Listedechoix!$A$1,20,IF(S14=Listedechoix!$A$2,15,IF(S14=Listedechoix!$A$3,10,IF(S14=Listedechoix!$A$4,5,0)))) -> 0 | EH14: =IF(T14=Listedechoix!$A$1,20,IF(T14=Listedechoix!$A$2,15,IF(T14=Listedechoix!$A$3,10,IF(T14=Listedechoix!$A$4,5,0)))) -> 0 | EI14: =IF(U14=Listedechoix!$A$1,20,IF(U14=Listedechoix!$A$2,15,IF(U14=Listedechoix!$A$3,10,IF(U14=Listedechoix!$A$4,5,0)))) -> 0 | EJ14: =IF(V14=Listedechoix!$A$1,20,IF(V14=Listedechoix!$A$2,15,IF(V14=Listedechoix!$A$3,10,IF(V14=Listedechoix!$A$4,5,0)))) -> 0 | EK14: =IF(W14=Listedechoix!$A$1,20,IF(W14=Listedechoix!$A$2,15,IF(W14=Listedechoix!$A$3,10,IF(W14=Listedechoix!$A$4,5,0)))) -> 0 | EL14: =IF(X14=Listedechoix!$A$1,20,IF(X14=Listedechoix!$A$2,15,IF(X14=Listedechoix!$A$3,10,IF(X14=Listedechoix!$A$4,5,0)))) -> 0 | EM14: =IF(Y14=Listedechoix!$A$1,20,IF(Y14=Listedechoix!$A$2,15,IF(Y14=Listedechoix!$A$3,10,IF(Y14=Listedechoix!$A$4,5,0)))) -> 0 | EN14: =IF(Z14=Listedechoix!$A$1,20,IF(Z14=Listedechoix!$A$2,15,IF(Z14=Listedechoix!$A$3,10,IF(Z14=Listedechoix!$A$4,5,0)))) -> 0 | EO14: =IF(AA14=Listedechoix!$A$1,20,IF(AA14=Listedechoix!$A$2,15,IF(AA14=Listedechoix!$A$3,10,IF(AA14=Listedechoix!$A$4,5,0)))) -> 0 | EP14: NNot | EQ14: NNot | ER14: =IF(AB14=Listedechoix!$A$1,20,IF(AB14=Listedechoix!$A$2,15,IF(AB14=Listedechoix!$A$3,10,IF(AB14=Listedechoix!$A$4,5,0)))) -> 0 | ES14: =IF(AC14=Listedechoix!$A$1,20,IF(AC14=Listedechoix!$A$2,15,IF(AC14=Listedechoix!$A$3,10,IF(AC14=Listedechoix!$A$4,5,0)))) -> 0 | ET14: =IF(AD14=Listedechoix!$A$1,20,IF(AD14=Listedechoix!$A$2,15,IF(AD14=Listedechoix!$A$3,10,IF(AD14=Listedechoix!$A$4,5,0)))) -> 0 | EU14: =IF(AE14=Listedechoix!$A$1,20,IF(AE14=Listedechoix!$A$2,15,IF(AE14=Listedechoix!$A$3,10,IF(AE14=Listedechoix!$A$4,5,0)))) -> 0 | EV14: =IF(AF14=Listedechoix!$A$1,20,IF(AF14=Listedechoix!$A$2,15,IF(AF14=Listedechoix!$A$3,10,IF(AF14=Listedechoix!$A$4,5,0)))) -> 0 | EW14: =IF(AG14=Listedechoix!$A$1,20,IF(AG14=Listedechoix!$A$2,15,IF(AG14=Listedechoix!$A$3,10,IF(AG14=Listedechoix!$A$4,5,0)))) -> 0 | EX14: =IF(AH14=Listedechoix!$A$1,20,IF(AH14=Listedechoix!$A$2,15,IF(AH14=Listedechoix!$A$3,10,IF(AH14=Listedechoix!$A$4,5,0)))) -> 0 | EY14: =IF(AI14=Listedechoix!$A$1,20,IF(AI14=Listedechoix!$A$2,15,IF(AI14=Listedechoix!$A$3,10,IF(AI14=Listedechoix!$A$4,5,0)))) -> 0 | EZ14: =IF(AJ14=Listedechoix!$A$1,20,IF(AJ14=Listedechoix!$A$2,15,IF(AJ14=Listedechoix!$A$3,10,IF(AJ14=Listedechoix!$A$4,5,0)))) -> 0 | FA14: =IF(AK14=Listedechoix!$A$1,20,IF(AK14=Listedechoix!$A$2,15,IF(AK14=Listedechoix!$A$3,10,IF(AK14=Listedechoix!$A$4,5,0)))) -> 0 | FB14: =IF(AL14=Listedechoix!$A$1,20,IF(AL14=Listedechoix!$A$2,15,IF(AL14=Listedechoix!$A$3,10,IF(AL14=Listedechoix!$A$4,5,0)))) -> 0 | FC14: =IF(AM14=Listedechoix!$A$1,20,IF(AM14=Listedechoix!$A$2,15,IF(AM14=Listedechoix!$A$3,10,IF(AM14=Listedechoix!$A$4,5,0)))) -> 0 | FD14: =IF(AN14=Listedechoix!$A$1,20,IF(AN14=Listedechoix!$A$2,15,IF(AN14=Listedechoix!$A$3,10,IF(AN14=Listedechoix!$A$4,5,0)))) -> 0 | FE14: =IF(AO14=Listedechoix!$A$1,20,IF(AO14=Listedechoix!$A$2,15,IF(AO14=Listedechoix!$A$3,10,IF(AO14=Listedechoix!$A$4,5,0)))) -> 0 | FF14: NNot | FG14: NNot | FH14: =IF(AP14=Listedechoix!$A$1,20,IF(AP14=Listedechoix!$A$2,15,IF(AP14=Listedechoix!$A$3,10,IF(AP14=Listedechoix!$A$4,5,0)))) -> 0 | FI14: =IF(AQ14=Listedechoix!$A$1,20,IF(AQ14=Listedechoix!$A$2,15,IF(AQ14=Listedechoix!$A$3,10,IF(AQ14=Listedechoix!$A$4,5,0)))) -> 0 | FJ14: =IF(AR14=Listedechoix!$A$1,20,IF(AR14=Listedechoix!$A$2,15,IF(AR14=Listedechoix!$A$3,10,IF(AR14=Listedechoix!$A$4,5,0)))) -> 0 | FK14: =IF(AS14=Listedechoix!$A$1,20,IF(AS14=Listedechoix!$A$2,15,IF(AS14=Listedechoix!$A$3,10,IF(AS14=Listedechoix!$A$4,5,0)))) -> 0 | FL14: =IF(AT14=Listedechoix!$A$1,20,IF(AT14=Listedechoix!$A$2,15,IF(AT14=Listedechoix!$A$3,10,IF(AT14=Listedechoix!$A$4,5,0)))) -> 0 | FM14: =IF(AU14=Listedechoix!$A$1,20,IF(AU14=Listedechoix!$A$2,15,IF(AU14=Listedechoix!$A$3,10,IF(AU14=Listedechoix!$A$4,5,0)))) -> 0 | FN14: =IF(AV14=Listedechoix!$A$1,20,IF(AV14=Listedechoix!$A$2,15,IF(AV14=Listedechoix!$A$3,10,IF(AV14=Listedechoix!$A$4,5,0)))) -> 0 | FO14: =IF(AW14=Listedechoix!$A$1,20,IF(AW14=Listedechoix!$A$2,15,IF(AW14=Listedechoix!$A$3,10,IF(AW14=Listedechoix!$A$4,5,0)))) -> 0 | FP14: =IF(AX14=Listedechoix!$A$1,20,IF(AX14=Listedechoix!$A$2,15,IF(AX14=Listedechoix!$A$3,10,IF(AX14=Listedechoix!$A$4,5,0)))) -> 0 | FQ14: =IF(AY14=Listedechoix!$A$1,20,IF(AY14=Listedechoix!$A$2,15,IF(AY14=Listedechoix!$A$3,10,IF(AY14=Listedechoix!$A$4,5,0)))) -> 0 | FR14: =IF(AZ14=Listedechoix!$A$1,20,IF(AZ14=Listedechoix!$A$2,15,IF(AZ14=Listedechoix!$A$3,10,IF(AZ14=Listedechoix!$A$4,5,0)))) -> 0 | FS14: =IF(BA14=Listedechoix!$A$1,20,IF(BA14=Listedechoix!$A$2,15,IF(BA14=Listedechoix!$A$3,10,IF(BA14=Listedechoix!$A$4,5,0)))) -> 0 | FT14: =IF(BB14=Listedechoix!$A$1,20,IF(BB14=Listedechoix!$A$2,15,IF(BB14=Listedechoix!$A$3,10,IF(BB14=Listedechoix!$A$4,5,0)))) -> 0 | FU14: =IF(BC14=Listedechoix!$A$1,20,IF(BC14=Listedechoix!$A$2,15,IF(BC14=Listedechoix!$A$3,10,IF(BC14=Listedechoix!$A$4,5,0)))) -> 0 | FV14: NNot | FW14: NNot | FX14: =IF(BD14=Listedechoix!$A$1,20,IF(BD14=Listedechoix!$A$2,15,IF(BD14=Listedechoix!$A$3,10,IF(BD14=Listedechoix!$A$4,5,0)))) -> 0 | FY14: =IF(BE14=Listedechoix!$A$1,20,IF(BE14=Listedechoix!$A$2,15,IF(BE14=Listedechoix!$A$3,10,IF(BE14=Listedechoix!$A$4,5,0)))) -> 0 | FZ14: =IF(BF14=Listedechoix!$A$1,20,IF(BF14=Listedechoix!$A$2,15,IF(BF14=Listedechoix!$A$3,10,IF(BF14=Listedechoix!$A$4,5,0)))) -> 0 | GA14: =IF(BG14=Listedechoix!$A$1,20,IF(BG14=Listedechoix!$A$2,15,IF(BG14=Listedechoix!$A$3,10,IF(BG14=Listedechoix!$A$4,5,0)))) -> 0 | GB14: =IF(BH14=Listedechoix!$A$1,20,IF(BH14=Listedechoix!$A$2,15,IF(BH14=Listedechoix!$A$3,10,IF(BH14=Listedechoix!$A$4,5,0)))) -> 0 | GC14: =IF(BI14=Listedechoix!$A$1,20,IF(BI14=Listedechoix!$A$2,15,IF(BI14=Listedechoix!$A$3,10,IF(BI14=Listedechoix!$A$4,5,0)))) -> 0 | GD14: =IF(BJ14=Listedechoix!$A$1,20,IF(BJ14=Listedechoix!$A$2,15,IF(BJ14=Listedechoix!$A$3,10,IF(BJ14=Listedechoix!$A$4,5,0)))) -> 0 | GE14: =IF(BK14=Listedechoix!$A$1,20,IF(BK14=Listedechoix!$A$2,15,IF(BK14=Listedechoix!$A$3,10,IF(BK14=Listedechoix!$A$4,5,0)))) -> 0 | GF14: =IF(BL14=Listedechoix!$A$1,20,IF(BL14=Listedechoix!$A$2,15,IF(BL14=Listedechoix!$A$3,10,IF(BL14=Listedechoix!$A$4,5,0)))) -> 0 | GG14: =IF(BM14=Listedechoix!$A$1,20,IF(BM14=Listedechoix!$A$2,15,IF(BM14=Listedechoix!$A$3,10,IF(BM14=Listedechoix!$A$4,5,0)))) -> 0 | GH14: =IF(BN14=Listedechoix!$A$1,20,IF(BN14=Listedechoix!$A$2,15,IF(BN14=Listedechoix!$A$3,10,IF(BN14=Listedechoix!$A$4,5,0)))) -> 0 | GI14: NNot | GJ14: NNot | GK14: =IF(BO14=Listedechoix!$A$1,20,IF(BO14=Listedechoix!$A$2,15,IF(BO14=Listedechoix!$A$3,10,IF(BO14=Listedechoix!$A$4,5,0)))) -> 0 | GL14: =IF(BP14=Listedechoix!$A$1,20,IF(BP14=Listedechoix!$A$2,15,IF(BP14=Listedechoix!$A$3,10,IF(BP14=Listedechoix!$A$4,5,0)))) -> 0 | GM14: =IF(BQ14=Listedechoix!$A$1,20,IF(BQ14=Listedechoix!$A$2,15,IF(BQ14=Listedechoix!$A$3,10,IF(BQ14=Listedechoix!$A$4,5,0)))) -> 0 | GN14: =IF(BR14=Listedechoix!$A$1,20,IF(BR14=Listedechoix!$A$2,15,IF(BR14=Listedechoix!$A$3,10,IF(BR14=Listedechoix!$A$4,5,0)))) -> 0 | GO14: =IF(BS14=Listedechoix!$A$1,20,IF(BS14=Listedechoix!$A$2,15,IF(BS14=Listedechoix!$A$3,10,IF(BS14=Listedechoix!$A$4,5,0)))) -> 0 | GP14: =IF(BT14=Listedechoix!$A$1,20,IF(BT14=Listedechoix!$A$2,15,IF(BT14=Listedechoix!$A$3,10,IF(BT14=Listedechoix!$A$4,5,0)))) -> 0 | GQ14: =IF(BU14=Listedechoix!$A$1,20,IF(BU14=Listedechoix!$A$2,15,IF(BU14=Listedechoix!$A$3,10,IF(BU14=Listedechoix!$A$4,5,0)))) -> 0 | GR14: =IF(BV14=Listedechoix!$A$1,20,IF(BV14=Listedechoix!$A$2,15,IF(BV14=Listedechoix!$A$3,10,IF(BV14=Listedechoix!$A$4,5,0)))) -> 0 | GS14: =IF(BW14=Listedechoix!$A$1,20,IF(BW14=Listedechoix!$A$2,15,IF(BW14=Listedechoix!$A$3,10,IF(BW14=Listedechoix!$A$4,5,0)))) -> 0 | GT14: =IF(BX14=Listedechoix!$A$1,20,IF(BX14=Listedechoix!$A$2,15,IF(BX14=Listedechoix!$A$3,10,IF(BX14=Listedechoix!$A$4,5,0)))) -> 0 | GU14: =IF(BY14=Listedechoix!$A$1,20,IF(BY14=Listedechoix!$A$2,15,IF(BY14=Listedechoix!$A$3,10,IF(BY14=Listedechoix!$A$4,5,0)))) -> 0 | GV14: NNot | GW14: NNot | GX14: =IF(BZ14=Listedechoix!$A$1,20,IF(BZ14=Listedechoix!$A$2,15,IF(BZ14=Listedechoix!$A$3,10,IF(BZ14=Listedechoix!$A$4,5,0)))) -> 0 | GY14: =IF(CA14=Listedechoix!$A$1,20,IF(CA14=Listedechoix!$A$2,15,IF(CA14=Listedechoix!$A$3,10,IF(CA14=Listedechoix!$A$4,5,0)))) -> 0 | GZ14: =IF(CB14=Listedechoix!$A$1,20,IF(CB14=Listedechoix!$A$2,15,IF(CB14=Listedechoix!$A$3,10,IF(CB14=Listedechoix!$A$4,5,0)))) -> 0 | HA14: =IF(CC14=Listedechoix!$A$1,20,IF(CC14=Listedechoix!$A$2,15,IF(CC14=Listedechoix!$A$3,10,IF(CC14=Listedechoix!$A$4,5,0)))) -> 0 | HB14: =IF(CD14=Listedechoix!$A$1,20,IF(CD14=Listedechoix!$A$2,15,IF(CD14=Listedechoix!$A$3,10,IF(CD14=Listedechoix!$A$4,5,0)))) -> 0 | HC14: =IF(CE14=Listedechoix!$A$1,20,IF(CE14=Listedechoix!$A$2,15,IF(CE14=Listedechoix!$A$3,10,IF(CE14=Listedechoix!$A$4,5,0)))) -> 0 | HD14: =IF(CF14=Listedechoix!$A$1,20,IF(CF14=Listedechoix!$A$2,15,IF(CF14=Listedechoix!$A$3,10,IF(CF14=Listedechoix!$A$4,5,0)))) -> 0 | HE14: =IF(CG14=Listedechoix!$A$1,20,IF(CG14=Listedechoix!$A$2,15,IF(CG14=Listedechoix!$A$3,10,IF(CG14=Listedechoix!$A$4,5,0)))) -> 0 | HF14: =IF(CH14=Listedechoix!$A$1,20,IF(CH14=Listedechoix!$A$2,15,IF(CH14=Listedechoix!$A$3,10,IF(CH14=Listedechoix!$A$4,5,0)))) -> 0 | HG14: =IF(CI14=Listedechoix!$A$1,20,IF(CI14=Listedechoix!$A$2,15,IF(CI14=Listedechoix!$A$3,10,IF(CI14=Listedechoix!$A$4,5,0)))) -> 0 | HH14: =IF(CJ14=Listedechoix!$A$1,20,IF(CJ14=Listedechoix!$A$2,15,IF(CJ14=Listedechoix!$A$3,10,IF(CJ14=Listedechoix!$A$4,5,0)))) -> 0 | HI14: =IF(CK14=Listedechoix!$A$1,20,IF(CK14=Listedechoix!$A$2,15,IF(CK14=Listedechoix!$A$3,10,IF(CK14=Listedechoix!$A$4,5,0)))) -> 0 | HJ14: =IF(CL14=Listedechoix!$A$1,20,IF(CL14=Listedechoix!$A$2,15,IF(CL14=Listedechoix!$A$3,10,IF(CL14=Listedechoix!$A$4,5,0)))) -> 0 | HK14: =IF(CM14=Listedechoix!$A$1,20,IF(CM14=Listedechoix!$A$2,15,IF(CM14=Listedechoix!$A$3,10,IF(CM14=Listedechoix!$A$4,5,0)))) -> 0 | HL14: NNot | HM14: NNot
CR15: 0 | CX15: 0 | CY15: NNot | DD15: 0 | DE15: NNot | DJ15: 0 | DK15: NNot | DP15: 0 | DQ15: NNot | DR15: =IF(F15=Listedechoix!$A$1,20,IF(F15=Listedechoix!$A$2,15,IF(F15=Listedechoix!$A$3,10,IF(F15=Listedechoix!$A$4,5,0)))) -> 0 | DS15: =IF(G15=Listedechoix!$A$1,20,IF(G15=Listedechoix!$A$2,15,IF(G15=Listedechoix!$A$3,10,IF(G15=Listedechoix!$A$4,5,0)))) -> 0 | DT15: =IF(H15=Listedechoix!$A$1,20,IF(H15=Listedechoix!$A$2,15,IF(H15=Listedechoix!$A$3,10,IF(H15=Listedechoix!$A$4,5,0)))) -> 0 | DU15: =IF(I15=Listedechoix!$A$1,20,IF(I15=Listedechoix!$A$2,15,IF(I15=Listedechoix!$A$3,10,IF(I15=Listedechoix!$A$4,5,0)))) -> 0 | DV15: =IF(J15=Listedechoix!$A$1,20,IF(J15=Listedechoix!$A$2,15,IF(J15=Listedechoix!$A$3,10,IF(J15=Listedechoix!$A$4,5,0)))) -> 0 | DW15: =IF(K15=Listedechoix!$A$1,20,IF(K15=Listedechoix!$A$2,15,IF(K15=Listedechoix!$A$3,10,IF(K15=Listedechoix!$A$4,5,0)))) -> 0 | DX15: =IF(L15=Listedechoix!$A$1,20,IF(L15=Listedechoix!$A$2,15,IF(L15=Listedechoix!$A$3,10,IF(L15=Listedechoix!$A$4,5,0)))) -> 0 | DY15: =IF(M15=Listedechoix!$A$1,20,IF(M15=Listedechoix!$A$2,15,IF(M15=Listedechoix!$A$3,10,IF(M15=Listedechoix!$A$4,5,0)))) -> 0 | DZ15: =IF(N15=Listedechoix!$A$1,20,IF(N15=Listedechoix!$A$2,15,IF(N15=Listedechoix!$A$3,10,IF(N15=Listedechoix!$A$4,5,0)))) -> 0 | EA15: =IF(O15=Listedechoix!$A$1,20,IF(O15=Listedechoix!$A$2,15,IF(O15=Listedechoix!$A$3,10,IF(O15=Listedechoix!$A$4,5,0)))) -> 0 | EB15: =IF(P15=Listedechoix!$A$1,20,IF(P15=Listedechoix!$A$2,15,IF(P15=Listedechoix!$A$3,10,IF(P15=Listedechoix!$A$4,5,0)))) -> 0 | EC15: NNot | ED15: NNot | EE15: =IF(Q15=Listedechoix!$A$1,20,IF(Q15=Listedechoix!$A$2,15,IF(Q15=Listedechoix!$A$3,10,IF(Q15=Listedechoix!$A$4,5,0)))) -> 0 | EF15: =IF(R15=Listedechoix!$A$1,20,IF(R15=Listedechoix!$A$2,15,IF(R15=Listedechoix!$A$3,10,IF(R15=Listedechoix!$A$4,5,0)))) -> 0 | EG15: =IF(S15=Listedechoix!$A$1,20,IF(S15=Listedechoix!$A$2,15,IF(S15=Listedechoix!$A$3,10,IF(S15=Listedechoix!$A$4,5,0)))) -> 0 | EH15: =IF(T15=Listedechoix!$A$1,20,IF(T15=Listedechoix!$A$2,15,IF(T15=Listedechoix!$A$3,10,IF(T15=Listedechoix!$A$4,5,0)))) -> 0 | EI15: =IF(U15=Listedechoix!$A$1,20,IF(U15=Listedechoix!$A$2,15,IF(U15=Listedechoix!$A$3,10,IF(U15=Listedechoix!$A$4,5,0)))) -> 0 | EJ15: =IF(V15=Listedechoix!$A$1,20,IF(V15=Listedechoix!$A$2,15,IF(V15=Listedechoix!$A$3,10,IF(V15=Listedechoix!$A$4,5,0)))) -> 0 | EK15: =IF(W15=Listedechoix!$A$1,20,IF(W15=Listedechoix!$A$2,15,IF(W15=Listedechoix!$A$3,10,IF(W15=Listedechoix!$A$4,5,0)))) -> 0 | EL15: =IF(X15=Listedechoix!$A$1,20,IF(X15=Listedechoix!$A$2,15,IF(X15=Listedechoix!$A$3,10,IF(X15=Listedechoix!$A$4,5,0)))) -> 0 | EM15: =IF(Y15=Listedechoix!$A$1,20,IF(Y15=Listedechoix!$A$2,15,IF(Y15=Listedechoix!$A$3,10,IF(Y15=Listedechoix!$A$4,5,0)))) -> 0 | EN15: =IF(Z15=Listedechoix!$A$1,20,IF(Z15=Listedechoix!$A$2,15,IF(Z15=Listedechoix!$A$3,10,IF(Z15=Listedechoix!$A$4,5,0)))) -> 0 | EO15: =IF(AA15=Listedechoix!$A$1,20,IF(AA15=Listedechoix!$A$2,15,IF(AA15=Listedechoix!$A$3,10,IF(AA15=Listedechoix!$A$4,5,0)))) -> 0 | EP15: NNot | EQ15: NNot | ER15: =IF(AB15=Listedechoix!$A$1,20,IF(AB15=Listedechoix!$A$2,15,IF(AB15=Listedechoix!$A$3,10,IF(AB15=Listedechoix!$A$4,5,0)))) -> 0 | ES15: =IF(AC15=Listedechoix!$A$1,20,IF(AC15=Listedechoix!$A$2,15,IF(AC15=Listedechoix!$A$3,10,IF(AC15=Listedechoix!$A$4,5,0)))) -> 0 | ET15: =IF(AD15=Listedechoix!$A$1,20,IF(AD15=Listedechoix!$A$2,15,IF(AD15=Listedechoix!$A$3,10,IF(AD15=Listedechoix!$A$4,5,0)))) -> 0 | EU15: =IF(AE15=Listedechoix!$A$1,20,IF(AE15=Listedechoix!$A$2,15,IF(AE15=Listedechoix!$A$3,10,IF(AE15=Listedechoix!$A$4,5,0)))) -> 0 | EV15: =IF(AF15=Listedechoix!$A$1,20,IF(AF15=Listedechoix!$A$2,15,IF(AF15=Listedechoix!$A$3,10,IF(AF15=Listedechoix!$A$4,5,0)))) -> 0 | EW15: =IF(AG15=Listedechoix!$A$1,20,IF(AG15=Listedechoix!$A$2,15,IF(AG15=Listedechoix!$A$3,10,IF(AG15=Listedechoix!$A$4,5,0)))) -> 0 | EX15: =IF(AH15=Listedechoix!$A$1,20,IF(AH15=Listedechoix!$A$2,15,IF(AH15=Listedechoix!$A$3,10,IF(AH15=Listedechoix!$A$4,5,0)))) -> 0 | EY15: =IF(AI15=Listedechoix!$A$1,20,IF(AI15=Listedechoix!$A$2,15,IF(AI15=Listedechoix!$A$3,10,IF(AI15=Listedechoix!$A$4,5,0)))) -> 0 | EZ15: =IF(AJ15=Listedechoix!$A$1,20,IF(AJ15=Listedechoix!$A$2,15,IF(AJ15=Listedechoix!$A$3,10,IF(AJ15=Listedechoix!$A$4,5,0)))) -> 0 | FA15: =IF(AK15=Listedechoix!$A$1,20,IF(AK15=Listedechoix!$A$2,15,IF(AK15=Listedechoix!$A$3,10,IF(AK15=Listedechoix!$A$4,5,0)))) -> 0 | FB15: =IF(AL15=Listedechoix!$A$1,20,IF(AL15=Listedechoix!$A$2,15,IF(AL15=Listedechoix!$A$3,10,IF(AL15=Listedechoix!$A$4,5,0)))) -> 0 | FC15: =IF(AM15=Listedechoix!$A$1,20,IF(AM15=Listedechoix!$A$2,15,IF(AM15=Listedechoix!$A$3,10,IF(AM15=Listedechoix!$A$4,5,0)))) -> 0 | FD15: =IF(AN15=Listedechoix!$A$1,20,IF(AN15=Listedechoix!$A$2,15,IF(AN15=Listedechoix!$A$3,10,IF(AN15=Listedechoix!$A$4,5,0)))) -> 0 | FE15: =IF(AO15=Listedechoix!$A$1,20,IF(AO15=Listedechoix!$A$2,15,IF(AO15=Listedechoix!$A$3,10,IF(AO15=Listedechoix!$A$4,5,0)))) -> 0 | FF15: NNot | FG15: NNot | FH15: =IF(AP15=Listedechoix!$A$1,20,IF(AP15=Listedechoix!$A$2,15,IF(AP15=Listedechoix!$A$3,10,IF(AP15=Listedechoix!$A$4,5,0)))) -> 0 | FI15: =IF(AQ15=Listedechoix!$A$1,20,IF(AQ15=Listedechoix!$A$2,15,IF(AQ15=Listedechoix!$A$3,10,IF(AQ15=Listedechoix!$A$4,5,0)))) -> 0 | FJ15: =IF(AR15=Listedechoix!$A$1,20,IF(AR15=Listedechoix!$A$2,15,IF(AR15=Listedechoix!$A$3,10,IF(AR15=Listedechoix!$A$4,5,0)))) -> 0 | FK15: =IF(AS15=Listedechoix!$A$1,20,IF(AS15=Listedechoix!$A$2,15,IF(AS15=Listedechoix!$A$3,10,IF(AS15=Listedechoix!$A$4,5,0)))) -> 0 | FL15: =IF(AT15=Listedechoix!$A$1,20,IF(AT15=Listedechoix!$A$2,15,IF(AT15=Listedechoix!$A$3,10,IF(AT15=Listedechoix!$A$4,5,0)))) -> 0 | FM15: =IF(AU15=Listedechoix!$A$1,20,IF(AU15=Listedechoix!$A$2,15,IF(AU15=Listedechoix!$A$3,10,IF(AU15=Listedechoix!$A$4,5,0)))) -> 0 | FN15: =IF(AV15=Listedechoix!$A$1,20,IF(AV15=Listedechoix!$A$2,15,IF(AV15=Listedechoix!$A$3,10,IF(AV15=Listedechoix!$A$4,5,0)))) -> 0 | FO15: =IF(AW15=Listedechoix!$A$1,20,IF(AW15=Listedechoix!$A$2,15,IF(AW15=Listedechoix!$A$3,10,IF(AW15=Listedechoix!$A$4,5,0)))) -> 0 | FP15: =IF(AX15=Listedechoix!$A$1,20,IF(AX15=Listedechoix!$A$2,15,IF(AX15=Listedechoix!$A$3,10,IF(AX15=Listedechoix!$A$4,5,0)))) -> 0 | FQ15: =IF(AY15=Listedechoix!$A$1,20,IF(AY15=Listedechoix!$A$2,15,IF(AY15=Listedechoix!$A$3,10,IF(AY15=Listedechoix!$A$4,5,0)))) -> 0 | FR15: =IF(AZ15=Listedechoix!$A$1,20,IF(AZ15=Listedechoix!$A$2,15,IF(AZ15=Listedechoix!$A$3,10,IF(AZ15=Listedechoix!$A$4,5,0)))) -> 0 | FS15: =IF(BA15=Listedechoix!$A$1,20,IF(BA15=Listedechoix!$A$2,15,IF(BA15=Listedechoix!$A$3,10,IF(BA15=Listedechoix!$A$4,5,0)))) -> 0 | FT15: =IF(BB15=Listedechoix!$A$1,20,IF(BB15=Listedechoix!$A$2,15,IF(BB15=Listedechoix!$A$3,10,IF(BB15=Listedechoix!$A$4,5,0)))) -> 0 | FU15: =IF(BC15=Listedechoix!$A$1,20,IF(BC15=Listedechoix!$A$2,15,IF(BC15=Listedechoix!$A$3,10,IF(BC15=Listedechoix!$A$4,5,0)))) -> 0 | FV15: NNot | FW15: NNot | FX15: =IF(BD15=Listedechoix!$A$1,20,IF(BD15=Listedechoix!$A$2,15,IF(BD15=Listedechoix!$A$3,10,IF(BD15=Listedechoix!$A$4,5,0)))) -> 0 | FY15: =IF(BE15=Listedechoix!$A$1,20,IF(BE15=Listedechoix!$A$2,15,IF(BE15=Listedechoix!$A$3,10,IF(BE15=Listedechoix!$A$4,5,0)))) -> 0 | FZ15: =IF(BF15=Listedechoix!$A$1,20,IF(BF15=Listedechoix!$A$2,15,IF(BF15=Listedechoix!$A$3,10,IF(BF15=Listedechoix!$A$4,5,0)))) -> 0 | GA15: =IF(BG15=Listedechoix!$A$1,20,IF(BG15=Listedechoix!$A$2,15,IF(BG15=Listedechoix!$A$3,10,IF(BG15=Listedechoix!$A$4,5,0)))) -> 0 | GB15: =IF(BH15=Listedechoix!$A$1,20,IF(BH15=Listedechoix!$A$2,15,IF(BH15=Listedechoix!$A$3,10,IF(BH15=Listedechoix!$A$4,5,0)))) -> 0 | GC15: =IF(BI15=Listedechoix!$A$1,20,IF(BI15=Listedechoix!$A$2,15,IF(BI15=Listedechoix!$A$3,10,IF(BI15=Listedechoix!$A$4,5,0)))) -> 0 | GD15: =IF(BJ15=Listedechoix!$A$1,20,IF(BJ15=Listedechoix!$A$2,15,IF(BJ15=Listedechoix!$A$3,10,IF(BJ15=Listedechoix!$A$4,5,0)))) -> 0 | GE15: =IF(BK15=Listedechoix!$A$1,20,IF(BK15=Listedechoix!$A$2,15,IF(BK15=Listedechoix!$A$3,10,IF(BK15=Listedechoix!$A$4,5,0)))) -> 0 | GF15: =IF(BL15=Listedechoix!$A$1,20,IF(BL15=Listedechoix!$A$2,15,IF(BL15=Listedechoix!$A$3,10,IF(BL15=Listedechoix!$A$4,5,0)))) -> 0 | GG15: =IF(BM15=Listedechoix!$A$1,20,IF(BM15=Listedechoix!$A$2,15,IF(BM15=Listedechoix!$A$3,10,IF(BM15=Listedechoix!$A$4,5,0)))) -> 0 | GH15: =IF(BN15=Listedechoix!$A$1,20,IF(BN15=Listedechoix!$A$2,15,IF(BN15=Listedechoix!$A$3,10,IF(BN15=Listedechoix!$A$4,5,0)))) -> 0 | GI15: NNot | GJ15: NNot | GK15: =IF(BO15=Listedechoix!$A$1,20,IF(BO15=Listedechoix!$A$2,15,IF(BO15=Listedechoix!$A$3,10,IF(BO15=Listedechoix!$A$4,5,0)))) -> 0 | GL15: =IF(BP15=Listedechoix!$A$1,20,IF(BP15=Listedechoix!$A$2,15,IF(BP15=Listedechoix!$A$3,10,IF(BP15=Listedechoix!$A$4,5,0)))) -> 0 | GM15: =IF(BQ15=Listedechoix!$A$1,20,IF(BQ15=Listedechoix!$A$2,15,IF(BQ15=Listedechoix!$A$3,10,IF(BQ15=Listedechoix!$A$4,5,0)))) -> 0 | GN15: =IF(BR15=Listedechoix!$A$1,20,IF(BR15=Listedechoix!$A$2,15,IF(BR15=Listedechoix!$A$3,10,IF(BR15=Listedechoix!$A$4,5,0)))) -> 0 | GO15: =IF(BS15=Listedechoix!$A$1,20,IF(BS15=Listedechoix!$A$2,15,IF(BS15=Listedechoix!$A$3,10,IF(BS15=Listedechoix!$A$4,5,0)))) -> 0 | GP15: =IF(BT15=Listedechoix!$A$1,20,IF(BT15=Listedechoix!$A$2,15,IF(BT15=Listedechoix!$A$3,10,IF(BT15=Listedechoix!$A$4,5,0)))) -> 0 | GQ15: =IF(BU15=Listedechoix!$A$1,20,IF(BU15=Listedechoix!$A$2,15,IF(BU15=Listedechoix!$A$3,10,IF(BU15=Listedechoix!$A$4,5,0)))) -> 0 | GR15: =IF(BV15=Listedechoix!$A$1,20,IF(BV15=Listedechoix!$A$2,15,IF(BV15=Listedechoix!$A$3,10,IF(BV15=Listedechoix!$A$4,5,0)))) -> 0 | GS15: =IF(BW15=Listedechoix!$A$1,20,IF(BW15=Listedechoix!$A$2,15,IF(BW15=Listedechoix!$A$3,10,IF(BW15=Listedechoix!$A$4,5,0)))) -> 0 | GT15: =IF(BX15=Listedechoix!$A$1,20,IF(BX15=Listedechoix!$A$2,15,IF(BX15=Listedechoix!$A$3,10,IF(BX15=Listedechoix!$A$4,5,0)))) -> 0 | GU15: =IF(BY15=Listedechoix!$A$1,20,IF(BY15=Listedechoix!$A$2,15,IF(BY15=Listedechoix!$A$3,10,IF(BY15=Listedechoix!$A$4,5,0)))) -> 0 | GV15: NNot | GW15: NNot | GX15: =IF(BZ15=Listedechoix!$A$1,20,IF(BZ15=Listedechoix!$A$2,15,IF(BZ15=Listedechoix!$A$3,10,IF(BZ15=Listedechoix!$A$4,5,0)))) -> 0 | GY15: =IF(CA15=Listedechoix!$A$1,20,IF(CA15=Listedechoix!$A$2,15,IF(CA15=Listedechoix!$A$3,10,IF(CA15=Listedechoix!$A$4,5,0)))) -> 0 | GZ15: =IF(CB15=Listedechoix!$A$1,20,IF(CB15=Listedechoix!$A$2,15,IF(CB15=Listedechoix!$A$3,10,IF(CB15=Listedechoix!$A$4,5,0)))) -> 0 | HA15: =IF(CC15=Listedechoix!$A$1,20,IF(CC15=Listedechoix!$A$2,15,IF(CC15=Listedechoix!$A$3,10,IF(CC15=Listedechoix!$A$4,5,0)))) -> 0 | HB15: =IF(CD15=Listedechoix!$A$1,20,IF(CD15=Listedechoix!$A$2,15,IF(CD15=Listedechoix!$A$3,10,IF(CD15=Listedechoix!$A$4,5,0)))) -> 0 | HC15: =IF(CE15=Listedechoix!$A$1,20,IF(CE15=Listedechoix!$A$2,15,IF(CE15=Listedechoix!$A$3,10,IF(CE15=Listedechoix!$A$4,5,0)))) -> 0 | HD15: =IF(CF15=Listedechoix!$A$1,20,IF(CF15=Listedechoix!$A$2,15,IF(CF15=Listedechoix!$A$3,10,IF(CF15=Listedechoix!$A$4,5,0)))) -> 0 | HE15: =IF(CG15=Listedechoix!$A$1,20,IF(CG15=Listedechoix!$A$2,15,IF(CG15=Listedechoix!$A$3,10,IF(CG15=Listedechoix!$A$4,5,0)))) -> 0 | HF15: =IF(CH15=Listedechoix!$A$1,20,IF(CH15=Listedechoix!$A$2,15,IF(CH15=Listedechoix!$A$3,10,IF(CH15=Listedechoix!$A$4,5,0)))) -> 0 | HG15: =IF(CI15=Listedechoix!$A$1,20,IF(CI15=Listedechoix!$A$2,15,IF(CI15=Listedechoix!$A$3,10,IF(CI15=Listedechoix!$A$4,5,0)))) -> 0 | HH15: =IF(CJ15=Listedechoix!$A$1,20,IF(CJ15=Listedechoix!$A$2,15,IF(CJ15=Listedechoix!$A$3,10,IF(CJ15=Listedechoix!$A$4,5,0)))) -> 0 | HI15: =IF(CK15=Listedechoix!$A$1,20,IF(CK15=Listedechoix!$A$2,15,IF(CK15=Listedechoix!$A$3,10,IF(CK15=Listedechoix!$A$4,5,0)))) -> 0 | HJ15: =IF(CL15=Listedechoix!$A$1,20,IF(CL15=Listedechoix!$A$2,15,IF(CL15=Listedechoix!$A$3,10,IF(CL15=Listedechoix!$A$4,5,0)))) -> 0 | HK15: =IF(CM15=Listedechoix!$A$1,20,IF(CM15=Listedechoix!$A$2,15,IF(CM15=Listedechoix!$A$3,10,IF(CM15=Listedechoix!$A$4,5,0)))) -> 0 | HL15: NNot | HM15: NNot
CR16: 0 | CX16: 0 | CY16: NNot | DD16: 0 | DE16: NNot | DJ16: 0 | DK16: NNot | DP16: 0 | DQ16: NNot | DR16: =IF(F16=Listedechoix!$A$1,20,IF(F16=Listedechoix!$A$2,15,IF(F16=Listedechoix!$A$3,10,IF(F16=Listedechoix!$A$4,5,0)))) -> 0 | DS16: =IF(G16=Listedechoix!$A$1,20,IF(G16=Listedechoix!$A$2,15,IF(G16=Listedechoix!$A$3,10,IF(G16=Listedechoix!$A$4,5,0)))) -> 0 | DT16: =IF(H16=Listedechoix!$A$1,20,IF(H16=Listedechoix!$A$2,15,IF(H16=Listedechoix!$A$3,10,IF(H16=Listedechoix!$A$4,5,0)))) -> 0 | DU16: =IF(I16=Listedechoix!$A$1,20,IF(I16=Listedechoix!$A$2,15,IF(I16=Listedechoix!$A$3,10,IF(I16=Listedechoix!$A$4,5,0)))) -> 0 | DV16: =IF(J16=Listedechoix!$A$1,20,IF(J16=Listedechoix!$A$2,15,IF(J16=Listedechoix!$A$3,10,IF(J16=Listedechoix!$A$4,5,0)))) -> 0 | DW16: =IF(K16=Listedechoix!$A$1,20,IF(K16=Listedechoix!$A$2,15,IF(K16=Listedechoix!$A$3,10,IF(K16=Listedechoix!$A$4,5,0)))) -> 0 | DX16: =IF(L16=Listedechoix!$A$1,20,IF(L16=Listedechoix!$A$2,15,IF(L16=Listedechoix!$A$3,10,IF(L16=Listedechoix!$A$4,5,0)))) -> 0 | DY16: =IF(M16=Listedechoix!$A$1,20,IF(M16=Listedechoix!$A$2,15,IF(M16=Listedechoix!$A$3,10,IF(M16=Listedechoix!$A$4,5,0)))) -> 0 | DZ16: =IF(N16=Listedechoix!$A$1,20,IF(N16=Listedechoix!$A$2,15,IF(N16=Listedechoix!$A$3,10,IF(N16=Listedechoix!$A$4,5,0)))) -> 0 | EA16: =IF(O16=Listedechoix!$A$1,20,IF(O16=Listedechoix!$A$2,15,IF(O16=Listedechoix!$A$3,10,IF(O16=Listedechoix!$A$4,5,0)))) -> 0 | EB16: =IF(P16=Listedechoix!$A$1,20,IF(P16=Listedechoix!$A$2,15,IF(P16=Listedechoix!$A$3,10,IF(P16=Listedechoix!$A$4,5,0)))) -> 0 | EC16: NNot | ED16: NNot | EE16: =IF(Q16=Listedechoix!$A$1,20,IF(Q16=Listedechoix!$A$2,15,IF(Q16=Listedechoix!$A$3,10,IF(Q16=Listedechoix!$A$4,5,0)))) -> 0 | EF16: =IF(R16=Listedechoix!$A$1,20,IF(R16=Listedechoix!$A$2,15,IF(R16=Listedechoix!$A$3,10,IF(R16=Listedechoix!$A$4,5,0)))) -> 0 | EG16: =IF(S16=Listedechoix!$A$1,20,IF(S16=Listedechoix!$A$2,15,IF(S16=Listedechoix!$A$3,10,IF(S16=Listedechoix!$A$4,5,0)))) -> 0 | EH16: =IF(T16=Listedechoix!$A$1,20,IF(T16=Listedechoix!$A$2,15,IF(T16=Listedechoix!$A$3,10,IF(T16=Listedechoix!$A$4,5,0)))) -> 0 | EI16: =IF(U16=Listedechoix!$A$1,20,IF(U16=Listedechoix!$A$2,15,IF(U16=Listedechoix!$A$3,10,IF(U16=Listedechoix!$A$4,5,0)))) -> 0 | EJ16: =IF(V16=Listedechoix!$A$1,20,IF(V16=Listedechoix!$A$2,15,IF(V16=Listedechoix!$A$3,10,IF(V16=Listedechoix!$A$4,5,0)))) -> 0 | EK16: =IF(W16=Listedechoix!$A$1,20,IF(W16=Listedechoix!$A$2,15,IF(W16=Listedechoix!$A$3,10,IF(W16=Listedechoix!$A$4,5,0)))) -> 0 | EL16: =IF(X16=Listedechoix!$A$1,20,IF(X16=Listedechoix!$A$2,15,IF(X16=Listedechoix!$A$3,10,IF(X16=Listedechoix!$A$4,5,0)))) -> 0 | EM16: =IF(Y16=Listedechoix!$A$1,20,IF(Y16=Listedechoix!$A$2,15,IF(Y16=Listedechoix!$A$3,10,IF(Y16=Listedechoix!$A$4,5,0)))) -> 0 | EN16: =IF(Z16=Listedechoix!$A$1,20,IF(Z16=Listedechoix!$A$2,15,IF(Z16=Listedechoix!$A$3,10,IF(Z16=Listedechoix!$A$4,5,0)))) -> 0 | EO16: =IF(AA16=Listedechoix!$A$1,20,IF(AA16=Listedechoix!$A$2,15,IF(AA16=Listedechoix!$A$3,10,IF(AA16=Listedechoix!$A$4,5,0)))) -> 0 | EP16: NNot | EQ16: NNot | ER16: =IF(AB16=Listedechoix!$A$1,20,IF(AB16=Listedechoix!$A$2,15,IF(AB16=Listedechoix!$A$3,10,IF(AB16=Listedechoix!$A$4,5,0)))) -> 0 | ES16: =IF(AC16=Listedechoix!$A$1,20,IF(AC16=Listedechoix!$A$2,15,IF(AC16=Listedechoix!$A$3,10,IF(AC16=Listedechoix!$A$4,5,0)))) -> 0 | ET16: =IF(AD16=Listedechoix!$A$1,20,IF(AD16=Listedechoix!$A$2,15,IF(AD16=Listedechoix!$A$3,10,IF(AD16=Listedechoix!$A$4,5,0)))) -> 0 | EU16: =IF(AE16=Listedechoix!$A$1,20,IF(AE16=Listedechoix!$A$2,15,IF(AE16=Listedechoix!$A$3,10,IF(AE16=Listedechoix!$A$4,5,0)))) -> 0 | EV16: =IF(AF16=Listedechoix!$A$1,20,IF(AF16=Listedechoix!$A$2,15,IF(AF16=Listedechoix!$A$3,10,IF(AF16=Listedechoix!$A$4,5,0)))) -> 0 | EW16: =IF(AG16=Listedechoix!$A$1,20,IF(AG16=Listedechoix!$A$2,15,IF(AG16=Listedechoix!$A$3,10,IF(AG16=Listedechoix!$A$4,5,0)))) -> 0 | EX16: =IF(AH16=Listedechoix!$A$1,20,IF(AH16=Listedechoix!$A$2,15,IF(AH16=Listedechoix!$A$3,10,IF(AH16=Listedechoix!$A$4,5,0)))) -> 0 | EY16: =IF(AI16=Listedechoix!$A$1,20,IF(AI16=Listedechoix!$A$2,15,IF(AI16=Listedechoix!$A$3,10,IF(AI16=Listedechoix!$A$4,5,0)))) -> 0 | EZ16: =IF(AJ16=Listedechoix!$A$1,20,IF(AJ16=Listedechoix!$A$2,15,IF(AJ16=Listedechoix!$A$3,10,IF(AJ16=Listedechoix!$A$4,5,0)))) -> 0 | FA16: =IF(AK16=Listedechoix!$A$1,20,IF(AK16=Listedechoix!$A$2,15,IF(AK16=Listedechoix!$A$3,10,IF(AK16=Listedechoix!$A$4,5,0)))) -> 0 | FB16: =IF(AL16=Listedechoix!$A$1,20,IF(AL16=Listedechoix!$A$2,15,IF(AL16=Listedechoix!$A$3,10,IF(AL16=Listedechoix!$A$4,5,0)))) -> 0 | FC16: =IF(AM16=Listedechoix!$A$1,20,IF(AM16=Listedechoix!$A$2,15,IF(AM16=Listedechoix!$A$3,10,IF(AM16=Listedechoix!$A$4,5,0)))) -> 0 | FD16: =IF(AN16=Listedechoix!$A$1,20,IF(AN16=Listedechoix!$A$2,15,IF(AN16=Listedechoix!$A$3,10,IF(AN16=Listedechoix!$A$4,5,0)))) -> 0 | FE16: =IF(AO16=Listedechoix!$A$1,20,IF(AO16=Listedechoix!$A$2,15,IF(AO16=Listedechoix!$A$3,10,IF(AO16=Listedechoix!$A$4,5,0)))) -> 0 | FF16: NNot | FG16: NNot | FH16: =IF(AP16=Listedechoix!$A$1,20,IF(AP16=Listedechoix!$A$2,15,IF(AP16=Listedechoix!$A$3,10,IF(AP16=Listedechoix!$A$4,5,0)))) -> 0 | FI16: =IF(AQ16=Listedechoix!$A$1,20,IF(AQ16=Listedechoix!$A$2,15,IF(AQ16=Listedechoix!$A$3,10,IF(AQ16=Listedechoix!$A$4,5,0)))) -> 0 | FJ16: =IF(AR16=Listedechoix!$A$1,20,IF(AR16=Listedechoix!$A$2,15,IF(AR16=Listedechoix!$A$3,10,IF(AR16=Listedechoix!$A$4,5,0)))) -> 0 | FK16: =IF(AS16=Listedechoix!$A$1,20,IF(AS16=Listedechoix!$A$2,15,IF(AS16=Listedechoix!$A$3,10,IF(AS16=Listedechoix!$A$4,5,0)))) -> 0 | FL16: =IF(AT16=Listedechoix!$A$1,20,IF(AT16=Listedechoix!$A$2,15,IF(AT16=Listedechoix!$A$3,10,IF(AT16=Listedechoix!$A$4,5,0)))) -> 0 | FM16: =IF(AU16=Listedechoix!$A$1,20,IF(AU16=Listedechoix!$A$2,15,IF(AU16=Listedechoix!$A$3,10,IF(AU16=Listedechoix!$A$4,5,0)))) -> 0 | FN16: =IF(AV16=Listedechoix!$A$1,20,IF(AV16=Listedechoix!$A$2,15,IF(AV16=Listedechoix!$A$3,10,IF(AV16=Listedechoix!$A$4,5,0)))) -> 0 | FO16: =IF(AW16=Listedechoix!$A$1,20,IF(AW16=Listedechoix!$A$2,15,IF(AW16=Listedechoix!$A$3,10,IF(AW16=Listedechoix!$A$4,5,0)))) -> 0 | FP16: =IF(AX16=Listedechoix!$A$1,20,IF(AX16=Listedechoix!$A$2,15,IF(AX16=Listedechoix!$A$3,10,IF(AX16=Listedechoix!$A$4,5,0)))) -> 0 | FQ16: =IF(AY16=Listedechoix!$A$1,20,IF(AY16=Listedechoix!$A$2,15,IF(AY16=Listedechoix!$A$3,10,IF(AY16=Listedechoix!$A$4,5,0)))) -> 0 | FR16: =IF(AZ16=Listedechoix!$A$1,20,IF(AZ16=Listedechoix!$A$2,15,IF(AZ16=Listedechoix!$A$3,10,IF(AZ16=Listedechoix!$A$4,5,0)))) -> 0 | FS16: =IF(BA16=Listedechoix!$A$1,20,IF(BA16=Listedechoix!$A$2,15,IF(BA16=Listedechoix!$A$3,10,IF(BA16=Listedechoix!$A$4,5,0)))) -> 0 | FT16: =IF(BB16=Listedechoix!$A$1,20,IF(BB16=Listedechoix!$A$2,15,IF(BB16=Listedechoix!$A$3,10,IF(BB16=Listedechoix!$A$4,5,0)))) -> 0 | FU16: =IF(BC16=Listedechoix!$A$1,20,IF(BC16=Listedechoix!$A$2,15,IF(BC16=Listedechoix!$A$3,10,IF(BC16=Listedechoix!$A$4,5,0)))) -> 0 | FV16: NNot | FW16: NNot | FX16: =IF(BD16=Listedechoix!$A$1,20,IF(BD16=Listedechoix!$A$2,15,IF(BD16=Listedechoix!$A$3,10,IF(BD16=Listedechoix!$A$4,5,0)))) -> 0 | FY16: =IF(BE16=Listedechoix!$A$1,20,IF(BE16=Listedechoix!$A$2,15,IF(BE16=Listedechoix!$A$3,10,IF(BE16=Listedechoix!$A$4,5,0)))) -> 0 | FZ16: =IF(BF16=Listedechoix!$A$1,20,IF(BF16=Listedechoix!$A$2,15,IF(BF16=Listedechoix!$A$3,10,IF(BF16=Listedechoix!$A$4,5,0)))) -> 0 | GA16: =IF(BG16=Listedechoix!$A$1,20,IF(BG16=Listedechoix!$A$2,15,IF(BG16=Listedechoix!$A$3,10,IF(BG16=Listedechoix!$A$4,5,0)))) -> 0 | GB16: =IF(BH16=Listedechoix!$A$1,20,IF(BH16=Listedechoix!$A$2,15,IF(BH16=Listedechoix!$A$3,10,IF(BH16=Listedechoix!$A$4,5,0)))) -> 0 | GC16: =IF(BI16=Listedechoix!$A$1,20,IF(BI16=Listedechoix!$A$2,15,IF(BI16=Listedechoix!$A$3,10,IF(BI16=Listedechoix!$A$4,5,0)))) -> 0 | GD16: =IF(BJ16=Listedechoix!$A$1,20,IF(BJ16=Listedechoix!$A$2,15,IF(BJ16=Listedechoix!$A$3,10,IF(BJ16=Listedechoix!$A$4,5,0)))) -> 0 | GE16: =IF(BK16=Listedechoix!$A$1,20,IF(BK16=Listedechoix!$A$2,15,IF(BK16=Listedechoix!$A$3,10,IF(BK16=Listedechoix!$A$4,5,0)))) -> 0 | GF16: =IF(BL16=Listedechoix!$A$1,20,IF(BL16=Listedechoix!$A$2,15,IF(BL16=Listedechoix!$A$3,10,IF(BL16=Listedechoix!$A$4,5,0)))) -> 0 | GG16: =IF(BM16=Listedechoix!$A$1,20,IF(BM16=Listedechoix!$A$2,15,IF(BM16=Listedechoix!$A$3,10,IF(BM16=Listedechoix!$A$4,5,0)))) -> 0 | GH16: =IF(BN16=Listedechoix!$A$1,20,IF(BN16=Listedechoix!$A$2,15,IF(BN16=Listedechoix!$A$3,10,IF(BN16=Listedechoix!$A$4,5,0)))) -> 0 | GI16: NNot | GJ16: NNot | GK16: =IF(BO16=Listedechoix!$A$1,20,IF(BO16=Listedechoix!$A$2,15,IF(BO16=Listedechoix!$A$3,10,IF(BO16=Listedechoix!$A$4,5,0)))) -> 0 | GL16: =IF(BP16=Listedechoix!$A$1,20,IF(BP16=Listedechoix!$A$2,15,IF(BP16=Listedechoix!$A$3,10,IF(BP16=Listedechoix!$A$4,5,0)))) -> 0 | GM16: =IF(BQ16=Listedechoix!$A$1,20,IF(BQ16=Listedechoix!$A$2,15,IF(BQ16=Listedechoix!$A$3,10,IF(BQ16=Listedechoix!$A$4,5,0)))) -> 0 | GN16: =IF(BR16=Listedechoix!$A$1,20,IF(BR16=Listedechoix!$A$2,15,IF(BR16=Listedechoix!$A$3,10,IF(BR16=Listedechoix!$A$4,5,0)))) -> 0 | GO16: =IF(BS16=Listedechoix!$A$1,20,IF(BS16=Listedechoix!$A$2,15,IF(BS16=Listedechoix!$A$3,10,IF(BS16=Listedechoix!$A$4,5,0)))) -> 0 | GP16: =IF(BT16=Listedechoix!$A$1,20,IF(BT16=Listedechoix!$A$2,15,IF(BT16=Listedechoix!$A$3,10,IF(BT16=Listedechoix!$A$4,5,0)))) -> 0 | GQ16: =IF(BU16=Listedechoix!$A$1,20,IF(BU16=Listedechoix!$A$2,15,IF(BU16=Listedechoix!$A$3,10,IF(BU16=Listedechoix!$A$4,5,0)))) -> 0 | GR16: =IF(BV16=Listedechoix!$A$1,20,IF(BV16=Listedechoix!$A$2,15,IF(BV16=Listedechoix!$A$3,10,IF(BV16=Listedechoix!$A$4,5,0)))) -> 0 | GS16: =IF(BW16=Listedechoix!$A$1,20,IF(BW16=Listedechoix!$A$2,15,IF(BW16=Listedechoix!$A$3,10,IF(BW16=Listedechoix!$A$4,5,0)))) -> 0 | GT16: =IF(BX16=Listedechoix!$A$1,20,IF(BX16=Listedechoix!$A$2,15,IF(BX16=Listedechoix!$A$3,10,IF(BX16=Listedechoix!$A$4,5,0)))) -> 0 | GU16: =IF(BY16=Listedechoix!$A$1,20,IF(BY16=Listedechoix!$A$2,15,IF(BY16=Listedechoix!$A$3,10,IF(BY16=Listedechoix!$A$4,5,0)))) -> 0 | GV16: NNot | GW16: NNot | GX16: =IF(BZ16=Listedechoix!$A$1,20,IF(BZ16=Listedechoix!$A$2,15,IF(BZ16=Listedechoix!$A$3,10,IF(BZ16=Listedechoix!$A$4,5,0)))) -> 0 | GY16: =IF(CA16=Listedechoix!$A$1,20,IF(CA16=Listedechoix!$A$2,15,IF(CA16=Listedechoix!$A$3,10,IF(CA16=Listedechoix!$A$4,5,0)))) -> 0 | GZ16: =IF(CB16=Listedechoix!$A$1,20,IF(CB16=Listedechoix!$A$2,15,IF(CB16=Listedechoix!$A$3,10,IF(CB16=Listedechoix!$A$4,5,0)))) -> 0 | HA16: =IF(CC16=Listedechoix!$A$1,20,IF(CC16=Listedechoix!$A$2,15,IF(CC16=Listedechoix!$A$3,10,IF(CC16=Listedechoix!$A$4,5,0)))) -> 0 | HB16: =IF(CD16=Listedechoix!$A$1,20,IF(CD16=Listedechoix!$A$2,15,IF(CD16=Listedechoix!$A$3,10,IF(CD16=Listedechoix!$A$4,5,0)))) -> 0 | HC16: =IF(CE16=Listedechoix!$A$1,20,IF(CE16=Listedechoix!$A$2,15,IF(CE16=Listedechoix!$A$3,10,IF(CE16=Listedechoix!$A$4,5,0)))) -> 0 | HD16: =IF(CF16=Listedechoix!$A$1,20,IF(CF16=Listedechoix!$A$2,15,IF(CF16=Listedechoix!$A$3,10,IF(CF16=Listedechoix!$A$4,5,0)))) -> 0 | HE16: =IF(CG16=Listedechoix!$A$1,20,IF(CG16=Listedechoix!$A$2,15,IF(CG16=Listedechoix!$A$3,10,IF(CG16=Listedechoix!$A$4,5,0)))) -> 0 | HF16: =IF(CH16=Listedechoix!$A$1,20,IF(CH16=Listedechoix!$A$2,15,IF(CH16=Listedechoix!$A$3,10,IF(CH16=Listedechoix!$A$4,5,0)))) -> 0 | HG16: =IF(CI16=Listedechoix!$A$1,20,IF(CI16=Listedechoix!$A$2,15,IF(CI16=Listedechoix!$A$3,10,IF(CI16=Listedechoix!$A$4,5,0)))) -> 0 | HH16: =IF(CJ16=Listedechoix!$A$1,20,IF(CJ16=Listedechoix!$A$2,15,IF(CJ16=Listedechoix!$A$3,10,IF(CJ16=Listedechoix!$A$4,5,0)))) -> 0 | HI16: =IF(CK16=Listedechoix!$A$1,20,IF(CK16=Listedechoix!$A$2,15,IF(CK16=Listedechoix!$A$3,10,IF(CK16=Listedechoix!$A$4,5,0)))) -> 0 | HJ16: =IF(CL16=Listedechoix!$A$1,20,IF(CL16=Listedechoix!$A$2,15,IF(CL16=Listedechoix!$A$3,10,IF(CL16=Listedechoix!$A$4,5,0)))) -> 0 | HK16: =IF(CM16=Listedechoix!$A$1,20,IF(CM16=Listedechoix!$A$2,15,IF(CM16=Listedechoix!$A$3,10,IF(CM16=Listedechoix!$A$4,5,0)))) -> 0 | HL16: NNot | HM16: NNot
CR17: 0 | CX17: 0 | CY17: NNot | DD17: 0 | DE17: NNot | DJ17: 0 | DK17: NNot | DP17: 0 | DQ17: NNot | DR17: =IF(F17=Listedechoix!$A$1,20,IF(F17=Listedechoix!$A$2,15,IF(F17=Listedechoix!$A$3,10,IF(F17=Listedechoix!$A$4,5,0)))) -> 0 | DS17: =IF(G17=Listedechoix!$A$1,20,IF(G17=Listedechoix!$A$2,15,IF(G17=Listedechoix!$A$3,10,IF(G17=Listedechoix!$A$4,5,0)))) -> 0 | DT17: =IF(H17=Listedechoix!$A$1,20,IF(H17=Listedechoix!$A$2,15,IF(H17=Listedechoix!$A$3,10,IF(H17=Listedechoix!$A$4,5,0)))) -> 0 | DU17: =IF(I17=Listedechoix!$A$1,20,IF(I17=Listedechoix!$A$2,15,IF(I17=Listedechoix!$A$3,10,IF(I17=Listedechoix!$A$4,5,0)))) -> 0 | DV17: =IF(J17=Listedechoix!$A$1,20,IF(J17=Listedechoix!$A$2,15,IF(J17=Listedechoix!$A$3,10,IF(J17=Listedechoix!$A$4,5,0)))) -> 0 | DW17: =IF(K17=Listedechoix!$A$1,20,IF(K17=Listedechoix!$A$2,15,IF(K17=Listedechoix!$A$3,10,IF(K17=Listedechoix!$A$4,5,0)))) -> 0 | DX17: =IF(L17=Listedechoix!$A$1,20,IF(L17=Listedechoix!$A$2,15,IF(L17=Listedechoix!$A$3,10,IF(L17=Listedechoix!$A$4,5,0)))) -> 0 | DY17: =IF(M17=Listedechoix!$A$1,20,IF(M17=Listedechoix!$A$2,15,IF(M17=Listedechoix!$A$3,10,IF(M17=Listedechoix!$A$4,5,0)))) -> 0 | DZ17: =IF(N17=Listedechoix!$A$1,20,IF(N17=Listedechoix!$A$2,15,IF(N17=Listedechoix!$A$3,10,IF(N17=Listedechoix!$A$4,5,0)))) -> 0 | EA17: =IF(O17=Listedechoix!$A$1,20,IF(O17=Listedechoix!$A$2,15,IF(O17=Listedechoix!$A$3,10,IF(O17=Listedechoix!$A$4,5,0)))) -> 0 | EB17: =IF(P17=Listedechoix!$A$1,20,IF(P17=Listedechoix!$A$2,15,IF(P17=Listedechoix!$A$3,10,IF(P17=Listedechoix!$A$4,5,0)))) -> 0 | EC17: NNot | ED17: NNot | EE17: =IF(Q17=Listedechoix!$A$1,20,IF(Q17=Listedechoix!$A$2,15,IF(Q17=Listedechoix!$A$3,10,IF(Q17=Listedechoix!$A$4,5,0)))) -> 0 | EF17: =IF(R17=Listedechoix!$A$1,20,IF(R17=Listedechoix!$A$2,15,IF(R17=Listedechoix!$A$3,10,IF(R17=Listedechoix!$A$4,5,0)))) -> 0 | EG17: =IF(S17=Listedechoix!$A$1,20,IF(S17=Listedechoix!$A$2,15,IF(S17=Listedechoix!$A$3,10,IF(S17=Listedechoix!$A$4,5,0)))) -> 0 | EH17: =IF(T17=Listedechoix!$A$1,20,IF(T17=Listedechoix!$A$2,15,IF(T17=Listedechoix!$A$3,10,IF(T17=Listedechoix!$A$4,5,0)))) -> 0 | EI17: =IF(U17=Listedechoix!$A$1,20,IF(U17=Listedechoix!$A$2,15,IF(U17=Listedechoix!$A$3,10,IF(U17=Listedechoix!$A$4,5,0)))) -> 0 | EJ17: =IF(V17=Listedechoix!$A$1,20,IF(V17=Listedechoix!$A$2,15,IF(V17=Listedechoix!$A$3,10,IF(V17=Listedechoix!$A$4,5,0)))) -> 0 | EK17: =IF(W17=Listedechoix!$A$1,20,IF(W17=Listedechoix!$A$2,15,IF(W17=Listedechoix!$A$3,10,IF(W17=Listedechoix!$A$4,5,0)))) -> 0 | EL17: =IF(X17=Listedechoix!$A$1,20,IF(X17=Listedechoix!$A$2,15,IF(X17=Listedechoix!$A$3,10,IF(X17=Listedechoix!$A$4,5,0)))) -> 0 | EM17: =IF(Y17=Listedechoix!$A$1,20,IF(Y17=Listedechoix!$A$2,15,IF(Y17=Listedechoix!$A$3,10,IF(Y17=Listedechoix!$A$4,5,0)))) -> 0 | EN17: =IF(Z17=Listedechoix!$A$1,20,IF(Z17=Listedechoix!$A$2,15,IF(Z17=Listedechoix!$A$3,10,IF(Z17=Listedechoix!$A$4,5,0)))) -> 0 | EO17: =IF(AA17=Listedechoix!$A$1,20,IF(AA17=Listedechoix!$A$2,15,IF(AA17=Listedechoix!$A$3,10,IF(AA17=Listedechoix!$A$4,5,0)))) -> 0 | EP17: NNot | EQ17: NNot | ER17: =IF(AB17=Listedechoix!$A$1,20,IF(AB17=Listedechoix!$A$2,15,IF(AB17=Listedechoix!$A$3,10,IF(AB17=Listedechoix!$A$4,5,0)))) -> 0 | ES17: =IF(AC17=Listedechoix!$A$1,20,IF(AC17=Listedechoix!$A$2,15,IF(AC17=Listedechoix!$A$3,10,IF(AC17=Listedechoix!$A$4,5,0)))) -> 0 | ET17: =IF(AD17=Listedechoix!$A$1,20,IF(AD17=Listedechoix!$A$2,15,IF(AD17=Listedechoix!$A$3,10,IF(AD17=Listedechoix!$A$4,5,0)))) -> 0 | EU17: =IF(AE17=Listedechoix!$A$1,20,IF(AE17=Listedechoix!$A$2,15,IF(AE17=Listedechoix!$A$3,10,IF(AE17=Listedechoix!$A$4,5,0)))) -> 0 | EV17: =IF(AF17=Listedechoix!$A$1,20,IF(AF17=Listedechoix!$A$2,15,IF(AF17=Listedechoix!$A$3,10,IF(AF17=Listedechoix!$A$4,5,0)))) -> 0 | EW17: =IF(AG17=Listedechoix!$A$1,20,IF(AG17=Listedechoix!$A$2,15,IF(AG17=Listedechoix!$A$3,10,IF(AG17=Listedechoix!$A$4,5,0)))) -> 0 | EX17: =IF(AH17=Listedechoix!$A$1,20,IF(AH17=Listedechoix!$A$2,15,IF(AH17=Listedechoix!$A$3,10,IF(AH17=Listedechoix!$A$4,5,0)))) -> 0 | EY17: =IF(AI17=Listedechoix!$A$1,20,IF(AI17=Listedechoix!$A$2,15,IF(AI17=Listedechoix!$A$3,10,IF(AI17=Listedechoix!$A$4,5,0)))) -> 0 | EZ17: =IF(AJ17=Listedechoix!$A$1,20,IF(AJ17=Listedechoix!$A$2,15,IF(AJ17=Listedechoix!$A$3,10,IF(AJ17=Listedechoix!$A$4,5,0)))) -> 0 | FA17: =IF(AK17=Listedechoix!$A$1,20,IF(AK17=Listedechoix!$A$2,15,IF(AK17=Listedechoix!$A$3,10,IF(AK17=Listedechoix!$A$4,5,0)))) -> 0 | FB17: =IF(AL17=Listedechoix!$A$1,20,IF(AL17=Listedechoix!$A$2,15,IF(AL17=Listedechoix!$A$3,10,IF(AL17=Listedechoix!$A$4,5,0)))) -> 0 | FC17: =IF(AM17=Listedechoix!$A$1,20,IF(AM17=Listedechoix!$A$2,15,IF(AM17=Listedechoix!$A$3,10,IF(AM17=Listedechoix!$A$4,5,0)))) -> 0 | FD17: =IF(AN17=Listedechoix!$A$1,20,IF(AN17=Listedechoix!$A$2,15,IF(AN17=Listedechoix!$A$3,10,IF(AN17=Listedechoix!$A$4,5,0)))) -> 0 | FE17: =IF(AO17=Listedechoix!$A$1,20,IF(AO17=Listedechoix!$A$2,15,IF(AO17=Listedechoix!$A$3,10,IF(AO17=Listedechoix!$A$4,5,0)))) -> 0 | FF17: NNot | FG17: NNot | FH17: =IF(AP17=Listedechoix!$A$1,20,IF(AP17=Listedechoix!$A$2,15,IF(AP17=Listedechoix!$A$3,10,IF(AP17=Listedechoix!$A$4,5,0)))) -> 0 | FI17: =IF(AQ17=Listedechoix!$A$1,20,IF(AQ17=Listedechoix!$A$2,15,IF(AQ17=Listedechoix!$A$3,10,IF(AQ17=Listedechoix!$A$4,5,0)))) -> 0 | FJ17: =IF(AR17=Listedechoix!$A$1,20,IF(AR17=Listedechoix!$A$2,15,IF(AR17=Listedechoix!$A$3,10,IF(AR17=Listedechoix!$A$4,5,0)))) -> 0 | FK17: =IF(AS17=Listedechoix!$A$1,20,IF(AS17=Listedechoix!$A$2,15,IF(AS17=Listedechoix!$A$3,10,IF(AS17=Listedechoix!$A$4,5,0)))) -> 0 | FL17: =IF(AT17=Listedechoix!$A$1,20,IF(AT17=Listedechoix!$A$2,15,IF(AT17=Listedechoix!$A$3,10,IF(AT17=Listedechoix!$A$4,5,0)))) -> 0 | FM17: =IF(AU17=Listedechoix!$A$1,20,IF(AU17=Listedechoix!$A$2,15,IF(AU17=Listedechoix!$A$3,10,IF(AU17=Listedechoix!$A$4,5,0)))) -> 0 | FN17: =IF(AV17=Listedechoix!$A$1,20,IF(AV17=Listedechoix!$A$2,15,IF(AV17=Listedechoix!$A$3,10,IF(AV17=Listedechoix!$A$4,5,0)))) -> 0 | FO17: =IF(AW17=Listedechoix!$A$1,20,IF(AW17=Listedechoix!$A$2,15,IF(AW17=Listedechoix!$A$3,10,IF(AW17=Listedechoix!$A$4,5,0)))) -> 0 | FP17: =IF(AX17=Listedechoix!$A$1,20,IF(AX17=Listedechoix!$A$2,15,IF(AX17=Listedechoix!$A$3,10,IF(AX17=Listedechoix!$A$4,5,0)))) -> 0 | FQ17: =IF(AY17=Listedechoix!$A$1,20,IF(AY17=Listedechoix!$A$2,15,IF(AY17=Listedechoix!$A$3,10,IF(AY17=Listedechoix!$A$4,5,0)))) -> 0 | FR17: =IF(AZ17=Listedechoix!$A$1,20,IF(AZ17=Listedechoix!$A$2,15,IF(AZ17=Listedechoix!$A$3,10,IF(AZ17=Listedechoix!$A$4,5,0)))) -> 0 | FS17: =IF(BA17=Listedechoix!$A$1,20,IF(BA17=Listedechoix!$A$2,15,IF(BA17=Listedechoix!$A$3,10,IF(BA17=Listedechoix!$A$4,5,0)))) -> 0 | FT17: =IF(BB17=Listedechoix!$A$1,20,IF(BB17=Listedechoix!$A$2,15,IF(BB17=Listedechoix!$A$3,10,IF(BB17=Listedechoix!$A$4,5,0)))) -> 0 | FU17: =IF(BC17=Listedechoix!$A$1,20,IF(BC17=Listedechoix!$A$2,15,IF(BC17=Listedechoix!$A$3,10,IF(BC17=Listedechoix!$A$4,5,0)))) -> 0 | FV17: NNot | FW17: NNot | FX17: =IF(BD17=Listedechoix!$A$1,20,IF(BD17=Listedechoix!$A$2,15,IF(BD17=Listedechoix!$A$3,10,IF(BD17=Listedechoix!$A$4,5,0)))) -> 0 | FY17: =IF(BE17=Listedechoix!$A$1,20,IF(BE17=Listedechoix!$A$2,15,IF(BE17=Listedechoix!$A$3,10,IF(BE17=Listedechoix!$A$4,5,0)))) -> 0 | FZ17: =IF(BF17=Listedechoix!$A$1,20,IF(BF17=Listedechoix!$A$2,15,IF(BF17=Listedechoix!$A$3,10,IF(BF17=Listedechoix!$A$4,5,0)))) -> 0 | GA17: =IF(BG17=Listedechoix!$A$1,20,IF(BG17=Listedechoix!$A$2,15,IF(BG17=Listedechoix!$A$3,10,IF(BG17=Listedechoix!$A$4,5,0)))) -> 0 | GB17: =IF(BH17=Listedechoix!$A$1,20,IF(BH17=Listedechoix!$A$2,15,IF(BH17=Listedechoix!$A$3,10,IF(BH17=Listedechoix!$A$4,5,0)))) -> 0 | GC17: =IF(BI17=Listedechoix!$A$1,20,IF(BI17=Listedechoix!$A$2,15,IF(BI17=Listedechoix!$A$3,10,IF(BI17=Listedechoix!$A$4,5,0)))) -> 0 | GD17: =IF(BJ17=Listedechoix!$A$1,20,IF(BJ17=Listedechoix!$A$2,15,IF(BJ17=Listedechoix!$A$3,10,IF(BJ17=Listedechoix!$A$4,5,0)))) -> 0 | GE17: =IF(BK17=Listedechoix!$A$1,20,IF(BK17=Listedechoix!$A$2,15,IF(BK17=Listedechoix!$A$3,10,IF(BK17=Listedechoix!$A$4,5,0)))) -> 0 | GF17: =IF(BL17=Listedechoix!$A$1,20,IF(BL17=Listedechoix!$A$2,15,IF(BL17=Listedechoix!$A$3,10,IF(BL17=Listedechoix!$A$4,5,0)))) -> 0 | GG17: =IF(BM17=Listedechoix!$A$1,20,IF(BM17=Listedechoix!$A$2,15,IF(BM17=Listedechoix!$A$3,10,IF(BM17=Listedechoix!$A$4,5,0)))) -> 0 | GH17: =IF(BN17=Listedechoix!$A$1,20,IF(BN17=Listedechoix!$A$2,15,IF(BN17=Listedechoix!$A$3,10,IF(BN17=Listedechoix!$A$4,5,0)))) -> 0 | GI17: NNot | GJ17: NNot | GK17: =IF(BO17=Listedechoix!$A$1,20,IF(BO17=Listedechoix!$A$2,15,IF(BO17=Listedechoix!$A$3,10,IF(BO17=Listedechoix!$A$4,5,0)))) -> 0 | GL17: =IF(BP17=Listedechoix!$A$1,20,IF(BP17=Listedechoix!$A$2,15,IF(BP17=Listedechoix!$A$3,10,IF(BP17=Listedechoix!$A$4,5,0)))) -> 0 | GM17: =IF(BQ17=Listedechoix!$A$1,20,IF(BQ17=Listedechoix!$A$2,15,IF(BQ17=Listedechoix!$A$3,10,IF(BQ17=Listedechoix!$A$4,5,0)))) -> 0 | GN17: =IF(BR17=Listedechoix!$A$1,20,IF(BR17=Listedechoix!$A$2,15,IF(BR17=Listedechoix!$A$3,10,IF(BR17=Listedechoix!$A$4,5,0)))) -> 0 | GO17: =IF(BS17=Listedechoix!$A$1,20,IF(BS17=Listedechoix!$A$2,15,IF(BS17=Listedechoix!$A$3,10,IF(BS17=Listedechoix!$A$4,5,0)))) -> 0 | GP17: =IF(BT17=Listedechoix!$A$1,20,IF(BT17=Listedechoix!$A$2,15,IF(BT17=Listedechoix!$A$3,10,IF(BT17=Listedechoix!$A$4,5,0)))) -> 0 | GQ17: =IF(BU17=Listedechoix!$A$1,20,IF(BU17=Listedechoix!$A$2,15,IF(BU17=Listedechoix!$A$3,10,IF(BU17=Listedechoix!$A$4,5,0)))) -> 0 | GR17: =IF(BV17=Listedechoix!$A$1,20,IF(BV17=Listedechoix!$A$2,15,IF(BV17=Listedechoix!$A$3,10,IF(BV17=Listedechoix!$A$4,5,0)))) -> 0 | GS17: =IF(BW17=Listedechoix!$A$1,20,IF(BW17=Listedechoix!$A$2,15,IF(BW17=Listedechoix!$A$3,10,IF(BW17=Listedechoix!$A$4,5,0)))) -> 0 | GT17: =IF(BX17=Listedechoix!$A$1,20,IF(BX17=Listedechoix!$A$2,15,IF(BX17=Listedechoix!$A$3,10,IF(BX17=Listedechoix!$A$4,5,0)))) -> 0 | GU17: =IF(BY17=Listedechoix!$A$1,20,IF(BY17=Listedechoix!$A$2,15,IF(BY17=Listedechoix!$A$3,10,IF(BY17=Listedechoix!$A$4,5,0)))) -> 0 | GV17: NNot | GW17: NNot | GX17: =IF(BZ17=Listedechoix!$A$1,20,IF(BZ17=Listedechoix!$A$2,15,IF(BZ17=Listedechoix!$A$3,10,IF(BZ17=Listedechoix!$A$4,5,0)))) -> 0 | GY17: =IF(CA17=Listedechoix!$A$1,20,IF(CA17=Listedechoix!$A$2,15,IF(CA17=Listedechoix!$A$3,10,IF(CA17=Listedechoix!$A$4,5,0)))) -> 0 | GZ17: =IF(CB17=Listedechoix!$A$1,20,IF(CB17=Listedechoix!$A$2,15,IF(CB17=Listedechoix!$A$3,10,IF(CB17=Listedechoix!$A$4,5,0)))) -> 0 | HA17: =IF(CC17=Listedechoix!$A$1,20,IF(CC17=Listedechoix!$A$2,15,IF(CC17=Listedechoix!$A$3,10,IF(CC17=Listedechoix!$A$4,5,0)))) -> 0 | HB17: =IF(CD17=Listedechoix!$A$1,20,IF(CD17=Listedechoix!$A$2,15,IF(CD17=Listedechoix!$A$3,10,IF(CD17=Listedechoix!$A$4,5,0)))) -> 0 | HC17: =IF(CE17=Listedechoix!$A$1,20,IF(CE17=Listedechoix!$A$2,15,IF(CE17=Listedechoix!$A$3,10,IF(CE17=Listedechoix!$A$4,5,0)))) -> 0 | HD17: =IF(CF17=Listedechoix!$A$1,20,IF(CF17=Listedechoix!$A$2,15,IF(CF17=Listedechoix!$A$3,10,IF(CF17=Listedechoix!$A$4,5,0)))) -> 0 | HE17: =IF(CG17=Listedechoix!$A$1,20,IF(CG17=Listedechoix!$A$2,15,IF(CG17=Listedechoix!$A$3,10,IF(CG17=Listedechoix!$A$4,5,0)))) -> 0 | HF17: =IF(CH17=Listedechoix!$A$1,20,IF(CH17=Listedechoix!$A$2,15,IF(CH17=Listedechoix!$A$3,10,IF(CH17=Listedechoix!$A$4,5,0)))) -> 0 | HG17: =IF(CI17=Listedechoix!$A$1,20,IF(CI17=Listedechoix!$A$2,15,IF(CI17=Listedechoix!$A$3,10,IF(CI17=Listedechoix!$A$4,5,0)))) -> 0 | HH17: =IF(CJ17=Listedechoix!$A$1,20,IF(CJ17=Listedechoix!$A$2,15,IF(CJ17=Listedechoix!$A$3,10,IF(CJ17=Listedechoix!$A$4,5,0)))) -> 0 | HI17: =IF(CK17=Listedechoix!$A$1,20,IF(CK17=Listedechoix!$A$2,15,IF(CK17=Listedechoix!$A$3,10,IF(CK17=Listedechoix!$A$4,5,0)))) -> 0 | HJ17: =IF(CL17=Listedechoix!$A$1,20,IF(CL17=Listedechoix!$A$2,15,IF(CL17=Listedechoix!$A$3,10,IF(CL17=Listedechoix!$A$4,5,0)))) -> 0 | HK17: =IF(CM17=Listedechoix!$A$1,20,IF(CM17=Listedechoix!$A$2,15,IF(CM17=Listedechoix!$A$3,10,IF(CM17=Listedechoix!$A$4,5,0)))) -> 0 | HL17: NNot | HM17: NNot
CR18: 0 | CX18: 0 | CY18: NNot | CZ18: =IF($D18>0,COUNTIFS($F18:$CM18,CZ$4,$F$4:$CM$4,$CZ$2),"") ->  | DD18: 0 | DE18: NNot | DJ18: 0 | DK18: NNot | DP18: 0 | DQ18: NNot | DR18: =IF(F18=Listedechoix!$A$1,20,IF(F18=Listedechoix!$A$2,15,IF(F18=Listedechoix!$A$3,10,IF(F18=Listedechoix!$A$4,5,0)))) -> 0 | DS18: =IF(G18=Listedechoix!$A$1,20,IF(G18=Listedechoix!$A$2,15,IF(G18=Listedechoix!$A$3,10,IF(G18=Listedechoix!$A$4,5,0)))) -> 0 | DT18: =IF(H18=Listedechoix!$A$1,20,IF(H18=Listedechoix!$A$2,15,IF(H18=Listedechoix!$A$3,10,IF(H18=Listedechoix!$A$4,5,0)))) -> 0 | DU18: =IF(I18=Listedechoix!$A$1,20,IF(I18=Listedechoix!$A$2,15,IF(I18=Listedechoix!$A$3,10,IF(I18=Listedechoix!$A$4,5,0)))) -> 0 | DV18: =IF(J18=Listedechoix!$A$1,20,IF(J18=Listedechoix!$A$2,15,IF(J18=Listedechoix!$A$3,10,IF(J18=Listedechoix!$A$4,5,0)))) -> 0 | DW18: =IF(K18=Listedechoix!$A$1,20,IF(K18=Listedechoix!$A$2,15,IF(K18=Listedechoix!$A$3,10,IF(K18=Listedechoix!$A$4,5,0)))) -> 0 | DX18: =IF(L18=Listedechoix!$A$1,20,IF(L18=Listedechoix!$A$2,15,IF(L18=Listedechoix!$A$3,10,IF(L18=Listedechoix!$A$4,5,0)))) -> 0 | DY18: =IF(M18=Listedechoix!$A$1,20,IF(M18=Listedechoix!$A$2,15,IF(M18=Listedechoix!$A$3,10,IF(M18=Listedechoix!$A$4,5,0)))) -> 0 | DZ18: =IF(N18=Listedechoix!$A$1,20,IF(N18=Listedechoix!$A$2,15,IF(N18=Listedechoix!$A$3,10,IF(N18=Listedechoix!$A$4,5,0)))) -> 0 | EA18: =IF(O18=Listedechoix!$A$1,20,IF(O18=Listedechoix!$A$2,15,IF(O18=Listedechoix!$A$3,10,IF(O18=Listedechoix!$A$4,5,0)))) -> 0 | EB18: =IF(P18=Listedechoix!$A$1,20,IF(P18=Listedechoix!$A$2,15,IF(P18=Listedechoix!$A$3,10,IF(P18=Listedechoix!$A$4,5,0)))) -> 0 | EC18: NNot | ED18: NNot | EE18: =IF(Q18=Listedechoix!$A$1,20,IF(Q18=Listedechoix!$A$2,15,IF(Q18=Listedechoix!$A$3,10,IF(Q18=Listedechoix!$A$4,5,0)))) -> 0 | EF18: =IF(R18=Listedechoix!$A$1,20,IF(R18=Listedechoix!$A$2,15,IF(R18=Listedechoix!$A$3,10,IF(R18=Listedechoix!$A$4,5,0)))) -> 0 | EG18: =IF(S18=Listedechoix!$A$1,20,IF(S18=Listedechoix!$A$2,15,IF(S18=Listedechoix!$A$3,10,IF(S18=Listedechoix!$A$4,5,0)))) -> 0 | EH18: =IF(T18=Listedechoix!$A$1,20,IF(T18=Listedechoix!$A$2,15,IF(T18=Listedechoix!$A$3,10,IF(T18=Listedechoix!$A$4,5,0)))) -> 0 | EI18: =IF(U18=Listedechoix!$A$1,20,IF(U18=Listedechoix!$A$2,15,IF(U18=Listedechoix!$A$3,10,IF(U18=Listedechoix!$A$4,5,0)))) -> 0 | EJ18: =IF(V18=Listedechoix!$A$1,20,IF(V18=Listedechoix!$A$2,15,IF(V18=Listedechoix!$A$3,10,IF(V18=Listedechoix!$A$4,5,0)))) -> 0 | EK18: =IF(W18=Listedechoix!$A$1,20,IF(W18=Listedechoix!$A$2,15,IF(W18=Listedechoix!$A$3,10,IF(W18=Listedechoix!$A$4,5,0)))) -> 0 | EL18: =IF(X18=Listedechoix!$A$1,20,IF(X18=Listedechoix!$A$2,15,IF(X18=Listedechoix!$A$3,10,IF(X18=Listedechoix!$A$4,5,0)))) -> 0 | EM18: =IF(Y18=Listedechoix!$A$1,20,IF(Y18=Listedechoix!$A$2,15,IF(Y18=Listedechoix!$A$3,10,IF(Y18=Listedechoix!$A$4,5,0)))) -> 0 | EN18: =IF(Z18=Listedechoix!$A$1,20,IF(Z18=Listedechoix!$A$2,15,IF(Z18=Listedechoix!$A$3,10,IF(Z18=Listedechoix!$A$4,5,0)))) -> 0 | EO18: =IF(AA18=Listedechoix!$A$1,20,IF(AA18=Listedechoix!$A$2,15,IF(AA18=Listedechoix!$A$3,10,IF(AA18=Listedechoix!$A$4,5,0)))) -> 0 | EP18: NNot | EQ18: NNot | ER18: =IF(AB18=Listedechoix!$A$1,20,IF(AB18=Listedechoix!$A$2,15,IF(AB18=Listedechoix!$A$3,10,IF(AB18=Listedechoix!$A$4,5,0)))) -> 0 | ES18: =IF(AC18=Listedechoix!$A$1,20,IF(AC18=Listedechoix!$A$2,15,IF(AC18=Listedechoix!$A$3,10,IF(AC18=Listedechoix!$A$4,5,0)))) -> 0 | ET18: =IF(AD18=Listedechoix!$A$1,20,IF(AD18=Listedechoix!$A$2,15,IF(AD18=Listedechoix!$A$3,10,IF(AD18=Listedechoix!$A$4,5,0)))) -> 0 | EU18: =IF(AE18=Listedechoix!$A$1,20,IF(AE18=Listedechoix!$A$2,15,IF(AE18=Listedechoix!$A$3,10,IF(AE18=Listedechoix!$A$4,5,0)))) -> 0 | EV18: =IF(AF18=Listedechoix!$A$1,20,IF(AF18=Listedechoix!$A$2,15,IF(AF18=Listedechoix!$A$3,10,IF(AF18=Listedechoix!$A$4,5,0)))) -> 0 | EW18: =IF(AG18=Listedechoix!$A$1,20,IF(AG18=Listedechoix!$A$2,15,IF(AG18=Listedechoix!$A$3,10,IF(AG18=Listedechoix!$A$4,5,0)))) -> 0 | EX18: =IF(AH18=Listedechoix!$A$1,20,IF(AH18=Listedechoix!$A$2,15,IF(AH18=Listedechoix!$A$3,10,IF(AH18=Listedechoix!$A$4,5,0)))) -> 0 | EY18: =IF(AI18=Listedechoix!$A$1,20,IF(AI18=Listedechoix!$A$2,15,IF(AI18=Listedechoix!$A$3,10,IF(AI18=Listedechoix!$A$4,5,0)))) -> 0 | EZ18: =IF(AJ18=Listedechoix!$A$1,20,IF(AJ18=Listedechoix!$A$2,15,IF(AJ18=Listedechoix!$A$3,10,IF(AJ18=Listedechoix!$A$4,5,0)))) -> 0 | FA18: =IF(AK18=Listedechoix!$A$1,20,IF(AK18=Listedechoix!$A$2,15,IF(AK18=Listedechoix!$A$3,10,IF(AK18=Listedechoix!$A$4,5,0)))) -> 0 | FB18: =IF(AL18=Listedechoix!$A$1,20,IF(AL18=Listedechoix!$A$2,15,IF(AL18=Listedechoix!$A$3,10,IF(AL18=Listedechoix!$A$4,5,0)))) -> 0 | FC18: =IF(AM18=Listedechoix!$A$1,20,IF(AM18=Listedechoix!$A$2,15,IF(AM18=Listedechoix!$A$3,10,IF(AM18=Listedechoix!$A$4,5,0)))) -> 0 | FD18: =IF(AN18=Listedechoix!$A$1,20,IF(AN18=Listedechoix!$A$2,15,IF(AN18=Listedechoix!$A$3,10,IF(AN18=Listedechoix!$A$4,5,0)))) -> 0 | FE18: =IF(AO18=Listedechoix!$A$1,20,IF(AO18=Listedechoix!$A$2,15,IF(AO18=Listedechoix!$A$3,10,IF(AO18=Listedechoix!$A$4,5,0)))) -> 0 | FF18: NNot | FG18: NNot | FH18: =IF(AP18=Listedechoix!$A$1,20,IF(AP18=Listedechoix!$A$2,15,IF(AP18=Listedechoix!$A$3,10,IF(AP18=Listedechoix!$A$4,5,0)))) -> 0 | FI18: =IF(AQ18=Listedechoix!$A$1,20,IF(AQ18=Listedechoix!$A$2,15,IF(AQ18=Listedechoix!$A$3,10,IF(AQ18=Listedechoix!$A$4,5,0)))) -> 0 | FJ18: =IF(AR18=Listedechoix!$A$1,20,IF(AR18=Listedechoix!$A$2,15,IF(AR18=Listedechoix!$A$3,10,IF(AR18=Listedechoix!$A$4,5,0)))) -> 0 | FK18: =IF(AS18=Listedechoix!$A$1,20,IF(AS18=Listedechoix!$A$2,15,IF(AS18=Listedechoix!$A$3,10,IF(AS18=Listedechoix!$A$4,5,0)))) -> 0 | FL18: =IF(AT18=Listedechoix!$A$1,20,IF(AT18=Listedechoix!$A$2,15,IF(AT18=Listedechoix!$A$3,10,IF(AT18=Listedechoix!$A$4,5,0)))) -> 0 | FM18: =IF(AU18=Listedechoix!$A$1,20,IF(AU18=Listedechoix!$A$2,15,IF(AU18=Listedechoix!$A$3,10,IF(AU18=Listedechoix!$A$4,5,0)))) -> 0 | FN18: =IF(AV18=Listedechoix!$A$1,20,IF(AV18=Listedechoix!$A$2,15,IF(AV18=Listedechoix!$A$3,10,IF(AV18=Listedechoix!$A$4,5,0)))) -> 0 | FO18: =IF(AW18=Listedechoix!$A$1,20,IF(AW18=Listedechoix!$A$2,15,IF(AW18=Listedechoix!$A$3,10,IF(AW18=Listedechoix!$A$4,5,0)))) -> 0 | FP18: =IF(AX18=Listedechoix!$A$1,20,IF(AX18=Listedechoix!$A$2,15,IF(AX18=Listedechoix!$A$3,10,IF(AX18=Listedechoix!$A$4,5,0)))) -> 0 | FQ18: =IF(AY18=Listedechoix!$A$1,20,IF(AY18=Listedechoix!$A$2,15,IF(AY18=Listedechoix!$A$3,10,IF(AY18=Listedechoix!$A$4,5,0)))) -> 0 | FR18: =IF(AZ18=Listedechoix!$A$1,20,IF(AZ18=Listedechoix!$A$2,15,IF(AZ18=Listedechoix!$A$3,10,IF(AZ18=Listedechoix!$A$4,5,0)))) -> 0 | FS18: =IF(BA18=Listedechoix!$A$1,20,IF(BA18=Listedechoix!$A$2,15,IF(BA18=Listedechoix!$A$3,10,IF(BA18=Listedechoix!$A$4,5,0)))) -> 0 | FT18: =IF(BB18=Listedechoix!$A$1,20,IF(BB18=Listedechoix!$A$2,15,IF(BB18=Listedechoix!$A$3,10,IF(BB18=Listedechoix!$A$4,5,0)))) -> 0 | FU18: =IF(BC18=Listedechoix!$A$1,20,IF(BC18=Listedechoix!$A$2,15,IF(BC18=Listedechoix!$A$3,10,IF(BC18=Listedechoix!$A$4,5,0)))) -> 0 | FV18: NNot | FW18: NNot | FX18: =IF(BD18=Listedechoix!$A$1,20,IF(BD18=Listedechoix!$A$2,15,IF(BD18=Listedechoix!$A$3,10,IF(BD18=Listedechoix!$A$4,5,0)))) -> 0 | FY18: =IF(BE18=Listedechoix!$A$1,20,IF(BE18=Listedechoix!$A$2,15,IF(BE18=Listedechoix!$A$3,10,IF(BE18=Listedechoix!$A$4,5,0)))) -> 0 | FZ18: =IF(BF18=Listedechoix!$A$1,20,IF(BF18=Listedechoix!$A$2,15,IF(BF18=Listedechoix!$A$3,10,IF(BF18=Listedechoix!$A$4,5,0)))) -> 0 | GA18: =IF(BG18=Listedechoix!$A$1,20,IF(BG18=Listedechoix!$A$2,15,IF(BG18=Listedechoix!$A$3,10,IF(BG18=Listedechoix!$A$4,5,0)))) -> 0 | GB18: =IF(BH18=Listedechoix!$A$1,20,IF(BH18=Listedechoix!$A$2,15,IF(BH18=Listedechoix!$A$3,10,IF(BH18=Listedechoix!$A$4,5,0)))) -> 0 | GC18: =IF(BI18=Listedechoix!$A$1,20,IF(BI18=Listedechoix!$A$2,15,IF(BI18=Listedechoix!$A$3,10,IF(BI18=Listedechoix!$A$4,5,0)))) -> 0 | GD18: =IF(BJ18=Listedechoix!$A$1,20,IF(BJ18=Listedechoix!$A$2,15,IF(BJ18=Listedechoix!$A$3,10,IF(BJ18=Listedechoix!$A$4,5,0)))) -> 0 | GE18: =IF(BK18=Listedechoix!$A$1,20,IF(BK18=Listedechoix!$A$2,15,IF(BK18=Listedechoix!$A$3,10,IF(BK18=Listedechoix!$A$4,5,0)))) -> 0 | GF18: =IF(BL18=Listedechoix!$A$1,20,IF(BL18=Listedechoix!$A$2,15,IF(BL18=Listedechoix!$A$3,10,IF(BL18=Listedechoix!$A$4,5,0)))) -> 0 | GG18: =IF(BM18=Listedechoix!$A$1,20,IF(BM18=Listedechoix!$A$2,15,IF(BM18=Listedechoix!$A$3,10,IF(BM18=Listedechoix!$A$4,5,0)))) -> 0 | GH18: =IF(BN18=Listedechoix!$A$1,20,IF(BN18=Listedechoix!$A$2,15,IF(BN18=Listedechoix!$A$3,10,IF(BN18=Listedechoix!$A$4,5,0)))) -> 0 | GI18: NNot | GJ18: NNot | GK18: =IF(BO18=Listedechoix!$A$1,20,IF(BO18=Listedechoix!$A$2,15,IF(BO18=Listedechoix!$A$3,10,IF(BO18=Listedechoix!$A$4,5,0)))) -> 0 | GL18: =IF(BP18=Listedechoix!$A$1,20,IF(BP18=Listedechoix!$A$2,15,IF(BP18=Listedechoix!$A$3,10,IF(BP18=Listedechoix!$A$4,5,0)))) -> 0 | GM18: =IF(BQ18=Listedechoix!$A$1,20,IF(BQ18=Listedechoix!$A$2,15,IF(BQ18=Listedechoix!$A$3,10,IF(BQ18=Listedechoix!$A$4,5,0)))) -> 0 | GN18: =IF(BR18=Listedechoix!$A$1,20,IF(BR18=Listedechoix!$A$2,15,IF(BR18=Listedechoix!$A$3,10,IF(BR18=Listedechoix!$A$4,5,0)))) -> 0 | GO18: =IF(BS18=Listedechoix!$A$1,20,IF(BS18=Listedechoix!$A$2,15,IF(BS18=Listedechoix!$A$3,10,IF(BS18=Listedechoix!$A$4,5,0)))) -> 0 | GP18: =IF(BT18=Listedechoix!$A$1,20,IF(BT18=Listedechoix!$A$2,15,IF(BT18=Listedechoix!$A$3,10,IF(BT18=Listedechoix!$A$4,5,0)))) -> 0 | GQ18: =IF(BU18=Listedechoix!$A$1,20,IF(BU18=Listedechoix!$A$2,15,IF(BU18=Listedechoix!$A$3,10,IF(BU18=Listedechoix!$A$4,5,0)))) -> 0 | GR18: =IF(BV18=Listedechoix!$A$1,20,IF(BV18=Listedechoix!$A$2,15,IF(BV18=Listedechoix!$A$3,10,IF(BV18=Listedechoix!$A$4,5,0)))) -> 0 | GS18: =IF(BW18=Listedechoix!$A$1,20,IF(BW18=Listedechoix!$A$2,15,IF(BW18=Listedechoix!$A$3,10,IF(BW18=Listedechoix!$A$4,5,0)))) -> 0 | GT18: =IF(BX18=Listedechoix!$A$1,20,IF(BX18=Listedechoix!$A$2,15,IF(BX18=Listedechoix!$A$3,10,IF(BX18=Listedechoix!$A$4,5,0)))) -> 0 | GU18: =IF(BY18=Listedechoix!$A$1,20,IF(BY18=Listedechoix!$A$2,15,IF(BY18=Listedechoix!$A$3,10,IF(BY18=Listedechoix!$A$4,5,0)))) -> 0 | GV18: NNot | GW18: NNot | GX18: =IF(BZ18=Listedechoix!$A$1,20,IF(BZ18=Listedechoix!$A$2,15,IF(BZ18=Listedechoix!$A$3,10,IF(BZ18=Listedechoix!$A$4,5,0)))) -> 0 | GY18: =IF(CA18=Listedechoix!$A$1,20,IF(CA18=Listedechoix!$A$2,15,IF(CA18=Listedechoix!$A$3,10,IF(CA18=Listedechoix!$A$4,5,0)))) -> 0 | GZ18: =IF(CB18=Listedechoix!$A$1,20,IF(CB18=Listedechoix!$A$2,15,IF(CB18=Listedechoix!$A$3,10,IF(CB18=Listedechoix!$A$4,5,0)))) -> 0 | HA18: =IF(CC18=Listedechoix!$A$1,20,IF(CC18=Listedechoix!$A$2,15,IF(CC18=Listedechoix!$A$3,10,IF(CC18=Listedechoix!$A$4,5,0)))) -> 0 | HB18: =IF(CD18=Listedechoix!$A$1,20,IF(CD18=Listedechoix!$A$2,15,IF(CD18=Listedechoix!$A$3,10,IF(CD18=Listedechoix!$A$4,5,0)))) -> 0 | HC18: =IF(CE18=Listedechoix!$A$1,20,IF(CE18=Listedechoix!$A$2,15,IF(CE18=Listedechoix!$A$3,10,IF(CE18=Listedechoix!$A$4,5,0)))) -> 0 | HD18: =IF(CF18=Listedechoix!$A$1,20,IF(CF18=Listedechoix!$A$2,15,IF(CF18=Listedechoix!$A$3,10,IF(CF18=Listedechoix!$A$4,5,0)))) -> 0 | HE18: =IF(CG18=Listedechoix!$A$1,20,IF(CG18=Listedechoix!$A$2,15,IF(CG18=Listedechoix!$A$3,10,IF(CG18=Listedechoix!$A$4,5,0)))) -> 0 | HF18: =IF(CH18=Listedechoix!$A$1,20,IF(CH18=Listedechoix!$A$2,15,IF(CH18=Listedechoix!$A$3,10,IF(CH18=Listedechoix!$A$4,5,0)))) -> 0 | HG18: =IF(CI18=Listedechoix!$A$1,20,IF(CI18=Listedechoix!$A$2,15,IF(CI18=Listedechoix!$A$3,10,IF(CI18=Listedechoix!$A$4,5,0)))) -> 0 | HH18: =IF(CJ18=Listedechoix!$A$1,20,IF(CJ18=Listedechoix!$A$2,15,IF(CJ18=Listedechoix!$A$3,10,IF(CJ18=Listedechoix!$A$4,5,0)))) -> 0 | HI18: =IF(CK18=Listedechoix!$A$1,20,IF(CK18=Listedechoix!$A$2,15,IF(CK18=Listedechoix!$A$3,10,IF(CK18=Listedechoix!$A$4,5,0)))) -> 0 | HJ18: =IF(CL18=Listedechoix!$A$1,20,IF(CL18=Listedechoix!$A$2,15,IF(CL18=Listedechoix!$A$3,10,IF(CL18=Listedechoix!$A$4,5,0)))) -> 0 | HK18: =IF(CM18=Listedechoix!$A$1,20,IF(CM18=Listedechoix!$A$2,15,IF(CM18=Listedechoix!$A$3,10,IF(CM18=Listedechoix!$A$4,5,0)))) -> 0 | HL18: NNot | HM18: NNot
CR19: 0 | CX19: 0 | CY19: NNot | DD19: 0 | DE19: NNot | DJ19: 0 | DK19: NNot | DP19: 0 | DQ19: NNot | DR19: =IF(F19=Listedechoix!$A$1,20,IF(F19=Listedechoix!$A$2,15,IF(F19=Listedechoix!$A$3,10,IF(F19=Listedechoix!$A$4,5,0)))) -> 0 | DS19: =IF(G19=Listedechoix!$A$1,20,IF(G19=Listedechoix!$A$2,15,IF(G19=Listedechoix!$A$3,10,IF(G19=Listedechoix!$A$4,5,0)))) -> 0 | DT19: =IF(H19=Listedechoix!$A$1,20,IF(H19=Listedechoix!$A$2,15,IF(H19=Listedechoix!$A$3,10,IF(H19=Listedechoix!$A$4,5,0)))) -> 0 | DU19: =IF(I19=Listedechoix!$A$1,20,IF(I19=Listedechoix!$A$2,15,IF(I19=Listedechoix!$A$3,10,IF(I19=Listedechoix!$A$4,5,0)))) -> 0 | DV19: =IF(J19=Listedechoix!$A$1,20,IF(J19=Listedechoix!$A$2,15,IF(J19=Listedechoix!$A$3,10,IF(J19=Listedechoix!$A$4,5,0)))) -> 0 | DW19: =IF(K19=Listedechoix!$A$1,20,IF(K19=Listedechoix!$A$2,15,IF(K19=Listedechoix!$A$3,10,IF(K19=Listedechoix!$A$4,5,0)))) -> 0 | DX19: =IF(L19=Listedechoix!$A$1,20,IF(L19=Listedechoix!$A$2,15,IF(L19=Listedechoix!$A$3,10,IF(L19=Listedechoix!$A$4,5,0)))) -> 0 | DY19: =IF(M19=Listedechoix!$A$1,20,IF(M19=Listedechoix!$A$2,15,IF(M19=Listedechoix!$A$3,10,IF(M19=Listedechoix!$A$4,5,0)))) -> 0 | DZ19: =IF(N19=Listedechoix!$A$1,20,IF(N19=Listedechoix!$A$2,15,IF(N19=Listedechoix!$A$3,10,IF(N19=Listedechoix!$A$4,5,0)))) -> 0 | EA19: =IF(O19=Listedechoix!$A$1,20,IF(O19=Listedechoix!$A$2,15,IF(O19=Listedechoix!$A$3,10,IF(O19=Listedechoix!$A$4,5,0)))) -> 0 | EB19: =IF(P19=Listedechoix!$A$1,20,IF(P19=Listedechoix!$A$2,15,IF(P19=Listedechoix!$A$3,10,IF(P19=Listedechoix!$A$4,5,0)))) -> 0 | EC19: NNot | ED19: NNot | EE19: =IF(Q19=Listedechoix!$A$1,20,IF(Q19=Listedechoix!$A$2,15,IF(Q19=Listedechoix!$A$3,10,IF(Q19=Listedechoix!$A$4,5,0)))) -> 0 | EF19: =IF(R19=Listedechoix!$A$1,20,IF(R19=Listedechoix!$A$2,15,IF(R19=Listedechoix!$A$3,10,IF(R19=Listedechoix!$A$4,5,0)))) -> 0 | EG19: =IF(S19=Listedechoix!$A$1,20,IF(S19=Listedechoix!$A$2,15,IF(S19=Listedechoix!$A$3,10,IF(S19=Listedechoix!$A$4,5,0)))) -> 0 | EH19: =IF(T19=Listedechoix!$A$1,20,IF(T19=Listedechoix!$A$2,15,IF(T19=Listedechoix!$A$3,10,IF(T19=Listedechoix!$A$4,5,0)))) -> 0 | EI19: =IF(U19=Listedechoix!$A$1,20,IF(U19=Listedechoix!$A$2,15,IF(U19=Listedechoix!$A$3,10,IF(U19=Listedechoix!$A$4,5,0)))) -> 0 | EJ19: =IF(V19=Listedechoix!$A$1,20,IF(V19=Listedechoix!$A$2,15,IF(V19=Listedechoix!$A$3,10,IF(V19=Listedechoix!$A$4,5,0)))) -> 0 | EK19: =IF(W19=Listedechoix!$A$1,20,IF(W19=Listedechoix!$A$2,15,IF(W19=Listedechoix!$A$3,10,IF(W19=Listedechoix!$A$4,5,0)))) -> 0 | EL19: =IF(X19=Listedechoix!$A$1,20,IF(X19=Listedechoix!$A$2,15,IF(X19=Listedechoix!$A$3,10,IF(X19=Listedechoix!$A$4,5,0)))) -> 0 | EM19: =IF(Y19=Listedechoix!$A$1,20,IF(Y19=Listedechoix!$A$2,15,IF(Y19=Listedechoix!$A$3,10,IF(Y19=Listedechoix!$A$4,5,0)))) -> 0 | EN19: =IF(Z19=Listedechoix!$A$1,20,IF(Z19=Listedechoix!$A$2,15,IF(Z19=Listedechoix!$A$3,10,IF(Z19=Listedechoix!$A$4,5,0)))) -> 0 | EO19: =IF(AA19=Listedechoix!$A$1,20,IF(AA19=Listedechoix!$A$2,15,IF(AA19=Listedechoix!$A$3,10,IF(AA19=Listedechoix!$A$4,5,0)))) -> 0 | EP19: NNot | EQ19: NNot | ER19: =IF(AB19=Listedechoix!$A$1,20,IF(AB19=Listedechoix!$A$2,15,IF(AB19=Listedechoix!$A$3,10,IF(AB19=Listedechoix!$A$4,5,0)))) -> 0 | ES19: =IF(AC19=Listedechoix!$A$1,20,IF(AC19=Listedechoix!$A$2,15,IF(AC19=Listedechoix!$A$3,10,IF(AC19=Listedechoix!$A$4,5,0)))) -> 0 | ET19: =IF(AD19=Listedechoix!$A$1,20,IF(AD19=Listedechoix!$A$2,15,IF(AD19=Listedechoix!$A$3,10,IF(AD19=Listedechoix!$A$4,5,0)))) -> 0 | EU19: =IF(AE19=Listedechoix!$A$1,20,IF(AE19=Listedechoix!$A$2,15,IF(AE19=Listedechoix!$A$3,10,IF(AE19=Listedechoix!$A$4,5,0)))) -> 0 | EV19: =IF(AF19=Listedechoix!$A$1,20,IF(AF19=Listedechoix!$A$2,15,IF(AF19=Listedechoix!$A$3,10,IF(AF19=Listedechoix!$A$4,5,0)))) -> 0 | EW19: =IF(AG19=Listedechoix!$A$1,20,IF(AG19=Listedechoix!$A$2,15,IF(AG19=Listedechoix!$A$3,10,IF(AG19=Listedechoix!$A$4,5,0)))) -> 0 | EX19: =IF(AH19=Listedechoix!$A$1,20,IF(AH19=Listedechoix!$A$2,15,IF(AH19=Listedechoix!$A$3,10,IF(AH19=Listedechoix!$A$4,5,0)))) -> 0 | EY19: =IF(AI19=Listedechoix!$A$1,20,IF(AI19=Listedechoix!$A$2,15,IF(AI19=Listedechoix!$A$3,10,IF(AI19=Listedechoix!$A$4,5,0)))) -> 0 | EZ19: =IF(AJ19=Listedechoix!$A$1,20,IF(AJ19=Listedechoix!$A$2,15,IF(AJ19=Listedechoix!$A$3,10,IF(AJ19=Listedechoix!$A$4,5,0)))) -> 0 | FA19: =IF(AK19=Listedechoix!$A$1,20,IF(AK19=Listedechoix!$A$2,15,IF(AK19=Listedechoix!$A$3,10,IF(AK19=Listedechoix!$A$4,5,0)))) -> 0 | FB19: =IF(AL19=Listedechoix!$A$1,20,IF(AL19=Listedechoix!$A$2,15,IF(AL19=Listedechoix!$A$3,10,IF(AL19=Listedechoix!$A$4,5,0)))) -> 0 | FC19: =IF(AM19=Listedechoix!$A$1,20,IF(AM19=Listedechoix!$A$2,15,IF(AM19=Listedechoix!$A$3,10,IF(AM19=Listedechoix!$A$4,5,0)))) -> 0 | FD19: =IF(AN19=Listedechoix!$A$1,20,IF(AN19=Listedechoix!$A$2,15,IF(AN19=Listedechoix!$A$3,10,IF(AN19=Listedechoix!$A$4,5,0)))) -> 0 | FE19: =IF(AO19=Listedechoix!$A$1,20,IF(AO19=Listedechoix!$A$2,15,IF(AO19=Listedechoix!$A$3,10,IF(AO19=Listedechoix!$A$4,5,0)))) -> 0 | FF19: NNot | FG19: NNot | FH19: =IF(AP19=Listedechoix!$A$1,20,IF(AP19=Listedechoix!$A$2,15,IF(AP19=Listedechoix!$A$3,10,IF(AP19=Listedechoix!$A$4,5,0)))) -> 0 | FI19: =IF(AQ19=Listedechoix!$A$1,20,IF(AQ19=Listedechoix!$A$2,15,IF(AQ19=Listedechoix!$A$3,10,IF(AQ19=Listedechoix!$A$4,5,0)))) -> 0 | FJ19: =IF(AR19=Listedechoix!$A$1,20,IF(AR19=Listedechoix!$A$2,15,IF(AR19=Listedechoix!$A$3,10,IF(AR19=Listedechoix!$A$4,5,0)))) -> 0 | FK19: =IF(AS19=Listedechoix!$A$1,20,IF(AS19=Listedechoix!$A$2,15,IF(AS19=Listedechoix!$A$3,10,IF(AS19=Listedechoix!$A$4,5,0)))) -> 0 | FL19: =IF(AT19=Listedechoix!$A$1,20,IF(AT19=Listedechoix!$A$2,15,IF(AT19=Listedechoix!$A$3,10,IF(AT19=Listedechoix!$A$4,5,0)))) -> 0 | FM19: =IF(AU19=Listedechoix!$A$1,20,IF(AU19=Listedechoix!$A$2,15,IF(AU19=Listedechoix!$A$3,10,IF(AU19=Listedechoix!$A$4,5,0)))) -> 0 | FN19: =IF(AV19=Listedechoix!$A$1,20,IF(AV19=Listedechoix!$A$2,15,IF(AV19=Listedechoix!$A$3,10,IF(AV19=Listedechoix!$A$4,5,0)))) -> 0 | FO19: =IF(AW19=Listedechoix!$A$1,20,IF(AW19=Listedechoix!$A$2,15,IF(AW19=Listedechoix!$A$3,10,IF(AW19=Listedechoix!$A$4,5,0)))) -> 0 | FP19: =IF(AX19=Listedechoix!$A$1,20,IF(AX19=Listedechoix!$A$2,15,IF(AX19=Listedechoix!$A$3,10,IF(AX19=Listedechoix!$A$4,5,0)))) -> 0 | FQ19: =IF(AY19=Listedechoix!$A$1,20,IF(AY19=Listedechoix!$A$2,15,IF(AY19=Listedechoix!$A$3,10,IF(AY19=Listedechoix!$A$4,5,0)))) -> 0 | FR19: =IF(AZ19=Listedechoix!$A$1,20,IF(AZ19=Listedechoix!$A$2,15,IF(AZ19=Listedechoix!$A$3,10,IF(AZ19=Listedechoix!$A$4,5,0)))) -> 0 | FS19: =IF(BA19=Listedechoix!$A$1,20,IF(BA19=Listedechoix!$A$2,15,IF(BA19=Listedechoix!$A$3,10,IF(BA19=Listedechoix!$A$4,5,0)))) -> 0 | FT19: =IF(BB19=Listedechoix!$A$1,20,IF(BB19=Listedechoix!$A$2,15,IF(BB19=Listedechoix!$A$3,10,IF(BB19=Listedechoix!$A$4,5,0)))) -> 0 | FU19: =IF(BC19=Listedechoix!$A$1,20,IF(BC19=Listedechoix!$A$2,15,IF(BC19=Listedechoix!$A$3,10,IF(BC19=Listedechoix!$A$4,5,0)))) -> 0 | FV19: NNot | FW19: NNot | FX19: =IF(BD19=Listedechoix!$A$1,20,IF(BD19=Listedechoix!$A$2,15,IF(BD19=Listedechoix!$A$3,10,IF(BD19=Listedechoix!$A$4,5,0)))) -> 0 | FY19: =IF(BE19=Listedechoix!$A$1,20,IF(BE19=Listedechoix!$A$2,15,IF(BE19=Listedechoix!$A$3,10,IF(BE19=Listedechoix!$A$4,5,0)))) -> 0 | FZ19: =IF(BF19=Listedechoix!$A$1,20,IF(BF19=Listedechoix!$A$2,15,IF(BF19=Listedechoix!$A$3,10,IF(BF19=Listedechoix!$A$4,5,0)))) -> 0 | GA19: =IF(BG19=Listedechoix!$A$1,20,IF(BG19=Listedechoix!$A$2,15,IF(BG19=Listedechoix!$A$3,10,IF(BG19=Listedechoix!$A$4,5,0)))) -> 0 | GB19: =IF(BH19=Listedechoix!$A$1,20,IF(BH19=Listedechoix!$A$2,15,IF(BH19=Listedechoix!$A$3,10,IF(BH19=Listedechoix!$A$4,5,0)))) -> 0 | GC19: =IF(BI19=Listedechoix!$A$1,20,IF(BI19=Listedechoix!$A$2,15,IF(BI19=Listedechoix!$A$3,10,IF(BI19=Listedechoix!$A$4,5,0)))) -> 0 | GD19: =IF(BJ19=Listedechoix!$A$1,20,IF(BJ19=Listedechoix!$A$2,15,IF(BJ19=Listedechoix!$A$3,10,IF(BJ19=Listedechoix!$A$4,5,0)))) -> 0 | GE19: =IF(BK19=Listedechoix!$A$1,20,IF(BK19=Listedechoix!$A$2,15,IF(BK19=Listedechoix!$A$3,10,IF(BK19=Listedechoix!$A$4,5,0)))) -> 0 | GF19: =IF(BL19=Listedechoix!$A$1,20,IF(BL19=Listedechoix!$A$2,15,IF(BL19=Listedechoix!$A$3,10,IF(BL19=Listedechoix!$A$4,5,0)))) -> 0 | GG19: =IF(BM19=Listedechoix!$A$1,20,IF(BM19=Listedechoix!$A$2,15,IF(BM19=Listedechoix!$A$3,10,IF(BM19=Listedechoix!$A$4,5,0)))) -> 0 | GH19: =IF(BN19=Listedechoix!$A$1,20,IF(BN19=Listedechoix!$A$2,15,IF(BN19=Listedechoix!$A$3,10,IF(BN19=Listedechoix!$A$4,5,0)))) -> 0 | GI19: NNot | GJ19: NNot | GK19: =IF(BO19=Listedechoix!$A$1,20,IF(BO19=Listedechoix!$A$2,15,IF(BO19=Listedechoix!$A$3,10,IF(BO19=Listedechoix!$A$4,5,0)))) -> 0 | GL19: =IF(BP19=Listedechoix!$A$1,20,IF(BP19=Listedechoix!$A$2,15,IF(BP19=Listedechoix!$A$3,10,IF(BP19=Listedechoix!$A$4,5,0)))) -> 0 | GM19: =IF(BQ19=Listedechoix!$A$1,20,IF(BQ19=Listedechoix!$A$2,15,IF(BQ19=Listedechoix!$A$3,10,IF(BQ19=Listedechoix!$A$4,5,0)))) -> 0 | GN19: =IF(BR19=Listedechoix!$A$1,20,IF(BR19=Listedechoix!$A$2,15,IF(BR19=Listedechoix!$A$3,10,IF(BR19=Listedechoix!$A$4,5,0)))) -> 0 | GO19: =IF(BS19=Listedechoix!$A$1,20,IF(BS19=Listedechoix!$A$2,15,IF(BS19=Listedechoix!$A$3,10,IF(BS19=Listedechoix!$A$4,5,0)))) -> 0 | GP19: =IF(BT19=Listedechoix!$A$1,20,IF(BT19=Listedechoix!$A$2,15,IF(BT19=Listedechoix!$A$3,10,IF(BT19=Listedechoix!$A$4,5,0)))) -> 0 | GQ19: =IF(BU19=Listedechoix!$A$1,20,IF(BU19=Listedechoix!$A$2,15,IF(BU19=Listedechoix!$A$3,10,IF(BU19=Listedechoix!$A$4,5,0)))) -> 0 | GR19: =IF(BV19=Listedechoix!$A$1,20,IF(BV19=Listedechoix!$A$2,15,IF(BV19=Listedechoix!$A$3,10,IF(BV19=Listedechoix!$A$4,5,0)))) -> 0 | GS19: =IF(BW19=Listedechoix!$A$1,20,IF(BW19=Listedechoix!$A$2,15,IF(BW19=Listedechoix!$A$3,10,IF(BW19=Listedechoix!$A$4,5,0)))) -> 0 | GT19: =IF(BX19=Listedechoix!$A$1,20,IF(BX19=Listedechoix!$A$2,15,IF(BX19=Listedechoix!$A$3,10,IF(BX19=Listedechoix!$A$4,5,0)))) -> 0 | GU19: =IF(BY19=Listedechoix!$A$1,20,IF(BY19=Listedechoix!$A$2,15,IF(BY19=Listedechoix!$A$3,10,IF(BY19=Listedechoix!$A$4,5,0)))) -> 0 | GV19: NNot | GW19: NNot | GX19: =IF(BZ19=Listedechoix!$A$1,20,IF(BZ19=Listedechoix!$A$2,15,IF(BZ19=Listedechoix!$A$3,10,IF(BZ19=Listedechoix!$A$4,5,0)))) -> 0 | GY19: =IF(CA19=Listedechoix!$A$1,20,IF(CA19=Listedechoix!$A$2,15,IF(CA19=Listedechoix!$A$3,10,IF(CA19=Listedechoix!$A$4,5,0)))) -> 0 | GZ19: =IF(CB19=Listedechoix!$A$1,20,IF(CB19=Listedechoix!$A$2,15,IF(CB19=Listedechoix!$A$3,10,IF(CB19=Listedechoix!$A$4,5,0)))) -> 0 | HA19: =IF(CC19=Listedechoix!$A$1,20,IF(CC19=Listedechoix!$A$2,15,IF(CC19=Listedechoix!$A$3,10,IF(CC19=Listedechoix!$A$4,5,0)))) -> 0 | HB19: =IF(CD19=Listedechoix!$A$1,20,IF(CD19=Listedechoix!$A$2,15,IF(CD19=Listedechoix!$A$3,10,IF(CD19=Listedechoix!$A$4,5,0)))) -> 0 | HC19: =IF(CE19=Listedechoix!$A$1,20,IF(CE19=Listedechoix!$A$2,15,IF(CE19=Listedechoix!$A$3,10,IF(CE19=Listedechoix!$A$4,5,0)))) -> 0 | HD19: =IF(CF19=Listedechoix!$A$1,20,IF(CF19=Listedechoix!$A$2,15,IF(CF19=Listedechoix!$A$3,10,IF(CF19=Listedechoix!$A$4,5,0)))) -> 0 | HE19: =IF(CG19=Listedechoix!$A$1,20,IF(CG19=Listedechoix!$A$2,15,IF(CG19=Listedechoix!$A$3,10,IF(CG19=Listedechoix!$A$4,5,0)))) -> 0 | HF19: =IF(CH19=Listedechoix!$A$1,20,IF(CH19=Listedechoix!$A$2,15,IF(CH19=Listedechoix!$A$3,10,IF(CH19=Listedechoix!$A$4,5,0)))) -> 0 | HG19: =IF(CI19=Listedechoix!$A$1,20,IF(CI19=Listedechoix!$A$2,15,IF(CI19=Listedechoix!$A$3,10,IF(CI19=Listedechoix!$A$4,5,0)))) -> 0 | HH19: =IF(CJ19=Listedechoix!$A$1,20,IF(CJ19=Listedechoix!$A$2,15,IF(CJ19=Listedechoix!$A$3,10,IF(CJ19=Listedechoix!$A$4,5,0)))) -> 0 | HI19: =IF(CK19=Listedechoix!$A$1,20,IF(CK19=Listedechoix!$A$2,15,IF(CK19=Listedechoix!$A$3,10,IF(CK19=Listedechoix!$A$4,5,0)))) -> 0 | HJ19: =IF(CL19=Listedechoix!$A$1,20,IF(CL19=Listedechoix!$A$2,15,IF(CL19=Listedechoix!$A$3,10,IF(CL19=Listedechoix!$A$4,5,0)))) -> 0 | HK19: =IF(CM19=Listedechoix!$A$1,20,IF(CM19=Listedechoix!$A$2,15,IF(CM19=Listedechoix!$A$3,10,IF(CM19=Listedechoix!$A$4,5,0)))) -> 0 | HL19: NNot | HM19: NNot
CR20: 0 | CX20: 0 | CY20: NNot | DD20: 0 | DE20: NNot | DJ20: 0 | DK20: NNot | DP20: 0 | DQ20: NNot | DR20: =IF(F20=Listedechoix!$A$1,20,IF(F20=Listedechoix!$A$2,15,IF(F20=Listedechoix!$A$3,10,IF(F20=Listedechoix!$A$4,5,0)))) -> 0 | DS20: =IF(G20=Listedechoix!$A$1,20,IF(G20=Listedechoix!$A$2,15,IF(G20=Listedechoix!$A$3,10,IF(G20=Listedechoix!$A$4,5,0)))) -> 0 | DT20: =IF(H20=Listedechoix!$A$1,20,IF(H20=Listedechoix!$A$2,15,IF(H20=Listedechoix!$A$3,10,IF(H20=Listedechoix!$A$4,5,0)))) -> 0 | DU20: =IF(I20=Listedechoix!$A$1,20,IF(I20=Listedechoix!$A$2,15,IF(I20=Listedechoix!$A$3,10,IF(I20=Listedechoix!$A$4,5,0)))) -> 0 | DV20: =IF(J20=Listedechoix!$A$1,20,IF(J20=Listedechoix!$A$2,15,IF(J20=Listedechoix!$A$3,10,IF(J20=Listedechoix!$A$4,5,0)))) -> 0 | DW20: =IF(K20=Listedechoix!$A$1,20,IF(K20=Listedechoix!$A$2,15,IF(K20=Listedechoix!$A$3,10,IF(K20=Listedechoix!$A$4,5,0)))) -> 0 | DX20: =IF(L20=Listedechoix!$A$1,20,IF(L20=Listedechoix!$A$2,15,IF(L20=Listedechoix!$A$3,10,IF(L20=Listedechoix!$A$4,5,0)))) -> 0 | DY20: =IF(M20=Listedechoix!$A$1,20,IF(M20=Listedechoix!$A$2,15,IF(M20=Listedechoix!$A$3,10,IF(M20=Listedechoix!$A$4,5,0)))) -> 0 | DZ20: =IF(N20=Listedechoix!$A$1,20,IF(N20=Listedechoix!$A$2,15,IF(N20=Listedechoix!$A$3,10,IF(N20=Listedechoix!$A$4,5,0)))) -> 0 | EA20: =IF(O20=Listedechoix!$A$1,20,IF(O20=Listedechoix!$A$2,15,IF(O20=Listedechoix!$A$3,10,IF(O20=Listedechoix!$A$4,5,0)))) -> 0 | EB20: =IF(P20=Listedechoix!$A$1,20,IF(P20=Listedechoix!$A$2,15,IF(P20=Listedechoix!$A$3,10,IF(P20=Listedechoix!$A$4,5,0)))) -> 0 | EC20: NNot | ED20: NNot | EE20: =IF(Q20=Listedechoix!$A$1,20,IF(Q20=Listedechoix!$A$2,15,IF(Q20=Listedechoix!$A$3,10,IF(Q20=Listedechoix!$A$4,5,0)))) -> 0 | EF20: =IF(R20=Listedechoix!$A$1,20,IF(R20=Listedechoix!$A$2,15,IF(R20=Listedechoix!$A$3,10,IF(R20=Listedechoix!$A$4,5,0)))) -> 0 | EG20: =IF(S20=Listedechoix!$A$1,20,IF(S20=Listedechoix!$A$2,15,IF(S20=Listedechoix!$A$3,10,IF(S20=Listedechoix!$A$4,5,0)))) -> 0 | EH20: =IF(T20=Listedechoix!$A$1,20,IF(T20=Listedechoix!$A$2,15,IF(T20=Listedechoix!$A$3,10,IF(T20=Listedechoix!$A$4,5,0)))) -> 0 | EI20: =IF(U20=Listedechoix!$A$1,20,IF(U20=Listedechoix!$A$2,15,IF(U20=Listedechoix!$A$3,10,IF(U20=Listedechoix!$A$4,5,0)))) -> 0 | EJ20: =IF(V20=Listedechoix!$A$1,20,IF(V20=Listedechoix!$A$2,15,IF(V20=Listedechoix!$A$3,10,IF(V20=Listedechoix!$A$4,5,0)))) -> 0 | EK20: =IF(W20=Listedechoix!$A$1,20,IF(W20=Listedechoix!$A$2,15,IF(W20=Listedechoix!$A$3,10,IF(W20=Listedechoix!$A$4,5,0)))) -> 0 | EL20: =IF(X20=Listedechoix!$A$1,20,IF(X20=Listedechoix!$A$2,15,IF(X20=Listedechoix!$A$3,10,IF(X20=Listedechoix!$A$4,5,0)))) -> 0 | EM20: =IF(Y20=Listedechoix!$A$1,20,IF(Y20=Listedechoix!$A$2,15,IF(Y20=Listedechoix!$A$3,10,IF(Y20=Listedechoix!$A$4,5,0)))) -> 0 | EN20: =IF(Z20=Listedechoix!$A$1,20,IF(Z20=Listedechoix!$A$2,15,IF(Z20=Listedechoix!$A$3,10,IF(Z20=Listedechoix!$A$4,5,0)))) -> 0 | EO20: =IF(AA20=Listedechoix!$A$1,20,IF(AA20=Listedechoix!$A$2,15,IF(AA20=Listedechoix!$A$3,10,IF(AA20=Listedechoix!$A$4,5,0)))) -> 0 | EP20: NNot | EQ20: NNot | ER20: =IF(AB20=Listedechoix!$A$1,20,IF(AB20=Listedechoix!$A$2,15,IF(AB20=Listedechoix!$A$3,10,IF(AB20=Listedechoix!$A$4,5,0)))) -> 0 | ES20: =IF(AC20=Listedechoix!$A$1,20,IF(AC20=Listedechoix!$A$2,15,IF(AC20=Listedechoix!$A$3,10,IF(AC20=Listedechoix!$A$4,5,0)))) -> 0 | ET20: =IF(AD20=Listedechoix!$A$1,20,IF(AD20=Listedechoix!$A$2,15,IF(AD20=Listedechoix!$A$3,10,IF(AD20=Listedechoix!$A$4,5,0)))) -> 0 | EU20: =IF(AE20=Listedechoix!$A$1,20,IF(AE20=Listedechoix!$A$2,15,IF(AE20=Listedechoix!$A$3,10,IF(AE20=Listedechoix!$A$4,5,0)))) -> 0 | EV20: =IF(AF20=Listedechoix!$A$1,20,IF(AF20=Listedechoix!$A$2,15,IF(AF20=Listedechoix!$A$3,10,IF(AF20=Listedechoix!$A$4,5,0)))) -> 0 | EW20: =IF(AG20=Listedechoix!$A$1,20,IF(AG20=Listedechoix!$A$2,15,IF(AG20=Listedechoix!$A$3,10,IF(AG20=Listedechoix!$A$4,5,0)))) -> 0 | EX20: =IF(AH20=Listedechoix!$A$1,20,IF(AH20=Listedechoix!$A$2,15,IF(AH20=Listedechoix!$A$3,10,IF(AH20=Listedechoix!$A$4,5,0)))) -> 0 | EY20: =IF(AI20=Listedechoix!$A$1,20,IF(AI20=Listedechoix!$A$2,15,IF(AI20=Listedechoix!$A$3,10,IF(AI20=Listedechoix!$A$4,5,0)))) -> 0 | EZ20: =IF(AJ20=Listedechoix!$A$1,20,IF(AJ20=Listedechoix!$A$2,15,IF(AJ20=Listedechoix!$A$3,10,IF(AJ20=Listedechoix!$A$4,5,0)))) -> 0 | FA20: =IF(AK20=Listedechoix!$A$1,20,IF(AK20=Listedechoix!$A$2,15,IF(AK20=Listedechoix!$A$3,10,IF(AK20=Listedechoix!$A$4,5,0)))) -> 0 | FB20: =IF(AL20=Listedechoix!$A$1,20,IF(AL20=Listedechoix!$A$2,15,IF(AL20=Listedechoix!$A$3,10,IF(AL20=Listedechoix!$A$4,5,0)))) -> 0 | FC20: =IF(AM20=Listedechoix!$A$1,20,IF(AM20=Listedechoix!$A$2,15,IF(AM20=Listedechoix!$A$3,10,IF(AM20=Listedechoix!$A$4,5,0)))) -> 0 | FD20: =IF(AN20=Listedechoix!$A$1,20,IF(AN20=Listedechoix!$A$2,15,IF(AN20=Listedechoix!$A$3,10,IF(AN20=Listedechoix!$A$4,5,0)))) -> 0 | FE20: =IF(AO20=Listedechoix!$A$1,20,IF(AO20=Listedechoix!$A$2,15,IF(AO20=Listedechoix!$A$3,10,IF(AO20=Listedechoix!$A$4,5,0)))) -> 0 | FF20: NNot | FG20: NNot | FH20: =IF(AP20=Listedechoix!$A$1,20,IF(AP20=Listedechoix!$A$2,15,IF(AP20=Listedechoix!$A$3,10,IF(AP20=Listedechoix!$A$4,5,0)))) -> 0 | FI20: =IF(AQ20=Listedechoix!$A$1,20,IF(AQ20=Listedechoix!$A$2,15,IF(AQ20=Listedechoix!$A$3,10,IF(AQ20=Listedechoix!$A$4,5,0)))) -> 0 | FJ20: =IF(AR20=Listedechoix!$A$1,20,IF(AR20=Listedechoix!$A$2,15,IF(AR20=Listedechoix!$A$3,10,IF(AR20=Listedechoix!$A$4,5,0)))) -> 0 | FK20: =IF(AS20=Listedechoix!$A$1,20,IF(AS20=Listedechoix!$A$2,15,IF(AS20=Listedechoix!$A$3,10,IF(AS20=Listedechoix!$A$4,5,0)))) -> 0 | FL20: =IF(AT20=Listedechoix!$A$1,20,IF(AT20=Listedechoix!$A$2,15,IF(AT20=Listedechoix!$A$3,10,IF(AT20=Listedechoix!$A$4,5,0)))) -> 0 | FM20: =IF(AU20=Listedechoix!$A$1,20,IF(AU20=Listedechoix!$A$2,15,IF(AU20=Listedechoix!$A$3,10,IF(AU20=Listedechoix!$A$4,5,0)))) -> 0 | FN20: =IF(AV20=Listedechoix!$A$1,20,IF(AV20=Listedechoix!$A$2,15,IF(AV20=Listedechoix!$A$3,10,IF(AV20=Listedechoix!$A$4,5,0)))) -> 0 | FO20: =IF(AW20=Listedechoix!$A$1,20,IF(AW20=Listedechoix!$A$2,15,IF(AW20=Listedechoix!$A$3,10,IF(AW20=Listedechoix!$A$4,5,0)))) -> 0 | FP20: =IF(AX20=Listedechoix!$A$1,20,IF(AX20=Listedechoix!$A$2,15,IF(AX20=Listedechoix!$A$3,10,IF(AX20=Listedechoix!$A$4,5,0)))) -> 0 | FQ20: =IF(AY20=Listedechoix!$A$1,20,IF(AY20=Listedechoix!$A$2,15,IF(AY20=Listedechoix!$A$3,10,IF(AY20=Listedechoix!$A$4,5,0)))) -> 0 | FR20: =IF(AZ20=Listedechoix!$A$1,20,IF(AZ20=Listedechoix!$A$2,15,IF(AZ20=Listedechoix!$A$3,10,IF(AZ20=Listedechoix!$A$4,5,0)))) -> 0 | FS20: =IF(BA20=Listedechoix!$A$1,20,IF(BA20=Listedechoix!$A$2,15,IF(BA20=Listedechoix!$A$3,10,IF(BA20=Listedechoix!$A$4,5,0)))) -> 0 | FT20: =IF(BB20=Listedechoix!$A$1,20,IF(BB20=Listedechoix!$A$2,15,IF(BB20=Listedechoix!$A$3,10,IF(BB20=Listedechoix!$A$4,5,0)))) -> 0 | FU20: =IF(BC20=Listedechoix!$A$1,20,IF(BC20=Listedechoix!$A$2,15,IF(BC20=Listedechoix!$A$3,10,IF(BC20=Listedechoix!$A$4,5,0)))) -> 0 | FV20: NNot | FW20: NNot | FX20: =IF(BD20=Listedechoix!$A$1,20,IF(BD20=Listedechoix!$A$2,15,IF(BD20=Listedechoix!$A$3,10,IF(BD20=Listedechoix!$A$4,5,0)))) -> 0 | FY20: =IF(BE20=Listedechoix!$A$1,20,IF(BE20=Listedechoix!$A$2,15,IF(BE20=Listedechoix!$A$3,10,IF(BE20=Listedechoix!$A$4,5,0)))) -> 0 | FZ20: =IF(BF20=Listedechoix!$A$1,20,IF(BF20=Listedechoix!$A$2,15,IF(BF20=Listedechoix!$A$3,10,IF(BF20=Listedechoix!$A$4,5,0)))) -> 0 | GA20: =IF(BG20=Listedechoix!$A$1,20,IF(BG20=Listedechoix!$A$2,15,IF(BG20=Listedechoix!$A$3,10,IF(BG20=Listedechoix!$A$4,5,0)))) -> 0 | GB20: =IF(BH20=Listedechoix!$A$1,20,IF(BH20=Listedechoix!$A$2,15,IF(BH20=Listedechoix!$A$3,10,IF(BH20=Listedechoix!$A$4,5,0)))) -> 0 | GC20: =IF(BI20=Listedechoix!$A$1,20,IF(BI20=Listedechoix!$A$2,15,IF(BI20=Listedechoix!$A$3,10,IF(BI20=Listedechoix!$A$4,5,0)))) -> 0 | GD20: =IF(BJ20=Listedechoix!$A$1,20,IF(BJ20=Listedechoix!$A$2,15,IF(BJ20=Listedechoix!$A$3,10,IF(BJ20=Listedechoix!$A$4,5,0)))) -> 0 | GE20: =IF(BK20=Listedechoix!$A$1,20,IF(BK20=Listedechoix!$A$2,15,IF(BK20=Listedechoix!$A$3,10,IF(BK20=Listedechoix!$A$4,5,0)))) -> 0 | GF20: =IF(BL20=Listedechoix!$A$1,20,IF(BL20=Listedechoix!$A$2,15,IF(BL20=Listedechoix!$A$3,10,IF(BL20=Listedechoix!$A$4,5,0)))) -> 0 | GG20: =IF(BM20=Listedechoix!$A$1,20,IF(BM20=Listedechoix!$A$2,15,IF(BM20=Listedechoix!$A$3,10,IF(BM20=Listedechoix!$A$4,5,0)))) -> 0 | GH20: =IF(BN20=Listedechoix!$A$1,20,IF(BN20=Listedechoix!$A$2,15,IF(BN20=Listedechoix!$A$3,10,IF(BN20=Listedechoix!$A$4,5,0)))) -> 0 | GI20: NNot | GJ20: NNot | GK20: =IF(BO20=Listedechoix!$A$1,20,IF(BO20=Listedechoix!$A$2,15,IF(BO20=Listedechoix!$A$3,10,IF(BO20=Listedechoix!$A$4,5,0)))) -> 0 | GL20: =IF(BP20=Listedechoix!$A$1,20,IF(BP20=Listedechoix!$A$2,15,IF(BP20=Listedechoix!$A$3,10,IF(BP20=Listedechoix!$A$4,5,0)))) -> 0 | GM20: =IF(BQ20=Listedechoix!$A$1,20,IF(BQ20=Listedechoix!$A$2,15,IF(BQ20=Listedechoix!$A$3,10,IF(BQ20=Listedechoix!$A$4,5,0)))) -> 0 | GN20: =IF(BR20=Listedechoix!$A$1,20,IF(BR20=Listedechoix!$A$2,15,IF(BR20=Listedechoix!$A$3,10,IF(BR20=Listedechoix!$A$4,5,0)))) -> 0 | GO20: =IF(BS20=Listedechoix!$A$1,20,IF(BS20=Listedechoix!$A$2,15,IF(BS20=Listedechoix!$A$3,10,IF(BS20=Listedechoix!$A$4,5,0)))) -> 0 | GP20: =IF(BT20=Listedechoix!$A$1,20,IF(BT20=Listedechoix!$A$2,15,IF(BT20=Listedechoix!$A$3,10,IF(BT20=Listedechoix!$A$4,5,0)))) -> 0 | GQ20: =IF(BU20=Listedechoix!$A$1,20,IF(BU20=Listedechoix!$A$2,15,IF(BU20=Listedechoix!$A$3,10,IF(BU20=Listedechoix!$A$4,5,0)))) -> 0 | GR20: =IF(BV20=Listedechoix!$A$1,20,IF(BV20=Listedechoix!$A$2,15,IF(BV20=Listedechoix!$A$3,10,IF(BV20=Listedechoix!$A$4,5,0)))) -> 0 | GS20: =IF(BW20=Listedechoix!$A$1,20,IF(BW20=Listedechoix!$A$2,15,IF(BW20=Listedechoix!$A$3,10,IF(BW20=Listedechoix!$A$4,5,0)))) -> 0 | GT20: =IF(BX20=Listedechoix!$A$1,20,IF(BX20=Listedechoix!$A$2,15,IF(BX20=Listedechoix!$A$3,10,IF(BX20=Listedechoix!$A$4,5,0)))) -> 0 | GU20: =IF(BY20=Listedechoix!$A$1,20,IF(BY20=Listedechoix!$A$2,15,IF(BY20=Listedechoix!$A$3,10,IF(BY20=Listedechoix!$A$4,5,0)))) -> 0 | GV20: NNot | GW20: NNot | GX20: =IF(BZ20=Listedechoix!$A$1,20,IF(BZ20=Listedechoix!$A$2,15,IF(BZ20=Listedechoix!$A$3,10,IF(BZ20=Listedechoix!$A$4,5,0)))) -> 0 | GY20: =IF(CA20=Listedechoix!$A$1,20,IF(CA20=Listedechoix!$A$2,15,IF(CA20=Listedechoix!$A$3,10,IF(CA20=Listedechoix!$A$4,5,0)))) -> 0 | GZ20: =IF(CB20=Listedechoix!$A$1,20,IF(CB20=Listedechoix!$A$2,15,IF(CB20=Listedechoix!$A$3,10,IF(CB20=Listedechoix!$A$4,5,0)))) -> 0 | HA20: =IF(CC20=Listedechoix!$A$1,20,IF(CC20=Listedechoix!$A$2,15,IF(CC20=Listedechoix!$A$3,10,IF(CC20=Listedechoix!$A$4,5,0)))) -> 0 | HB20: =IF(CD20=Listedechoix!$A$1,20,IF(CD20=Listedechoix!$A$2,15,IF(CD20=Listedechoix!$A$3,10,IF(CD20=Listedechoix!$A$4,5,0)))) -> 0 | HC20: =IF(CE20=Listedechoix!$A$1,20,IF(CE20=Listedechoix!$A$2,15,IF(CE20=Listedechoix!$A$3,10,IF(CE20=Listedechoix!$A$4,5,0)))) -> 0 | HD20: =IF(CF20=Listedechoix!$A$1,20,IF(CF20=Listedechoix!$A$2,15,IF(CF20=Listedechoix!$A$3,10,IF(CF20=Listedechoix!$A$4,5,0)))) -> 0 | HE20: =IF(CG20=Listedechoix!$A$1,20,IF(CG20=Listedechoix!$A$2,15,IF(CG20=Listedechoix!$A$3,10,IF(CG20=Listedechoix!$A$4,5,0)))) -> 0 | HF20: =IF(CH20=Listedechoix!$A$1,20,IF(CH20=Listedechoix!$A$2,15,IF(CH20=Listedechoix!$A$3,10,IF(CH20=Listedechoix!$A$4,5,0)))) -> 0 | HG20: =IF(CI20=Listedechoix!$A$1,20,IF(CI20=Listedechoix!$A$2,15,IF(CI20=Listedechoix!$A$3,10,IF(CI20=Listedechoix!$A$4,5,0)))) -> 0 | HH20: =IF(CJ20=Listedechoix!$A$1,20,IF(CJ20=Listedechoix!$A$2,15,IF(CJ20=Listedechoix!$A$3,10,IF(CJ20=Listedechoix!$A$4,5,0)))) -> 0 | HI20: =IF(CK20=Listedechoix!$A$1,20,IF(CK20=Listedechoix!$A$2,15,IF(CK20=Listedechoix!$A$3,10,IF(CK20=Listedechoix!$A$4,5,0)))) -> 0 | HJ20: =IF(CL20=Listedechoix!$A$1,20,IF(CL20=Listedechoix!$A$2,15,IF(CL20=Listedechoix!$A$3,10,IF(CL20=Listedechoix!$A$4,5,0)))) -> 0 | HK20: =IF(CM20=Listedechoix!$A$1,20,IF(CM20=Listedechoix!$A$2,15,IF(CM20=Listedechoix!$A$3,10,IF(CM20=Listedechoix!$A$4,5,0)))) -> 0 | HL20: NNot | HM20: NNot
CR21: 0 | CX21: 0 | CY21: NNot | DD21: 0 | DE21: NNot | DJ21: 0 | DK21: NNot | DP21: 0 | DQ21: NNot | DR21: =IF(F21=Listedechoix!$A$1,20,IF(F21=Listedechoix!$A$2,15,IF(F21=Listedechoix!$A$3,10,IF(F21=Listedechoix!$A$4,5,0)))) -> 0 | DS21: =IF(G21=Listedechoix!$A$1,20,IF(G21=Listedechoix!$A$2,15,IF(G21=Listedechoix!$A$3,10,IF(G21=Listedechoix!$A$4,5,0)))) -> 0 | DT21: =IF(H21=Listedechoix!$A$1,20,IF(H21=Listedechoix!$A$2,15,IF(H21=Listedechoix!$A$3,10,IF(H21=Listedechoix!$A$4,5,0)))) -> 0 | DU21: =IF(I21=Listedechoix!$A$1,20,IF(I21=Listedechoix!$A$2,15,IF(I21=Listedechoix!$A$3,10,IF(I21=Listedechoix!$A$4,5,0)))) -> 0 | DV21: =IF(J21=Listedechoix!$A$1,20,IF(J21=Listedechoix!$A$2,15,IF(J21=Listedechoix!$A$3,10,IF(J21=Listedechoix!$A$4,5,0)))) -> 0 | DW21: =IF(K21=Listedechoix!$A$1,20,IF(K21=Listedechoix!$A$2,15,IF(K21=Listedechoix!$A$3,10,IF(K21=Listedechoix!$A$4,5,0)))) -> 0 | DX21: =IF(L21=Listedechoix!$A$1,20,IF(L21=Listedechoix!$A$2,15,IF(L21=Listedechoix!$A$3,10,IF(L21=Listedechoix!$A$4,5,0)))) -> 0 | DY21: =IF(M21=Listedechoix!$A$1,20,IF(M21=Listedechoix!$A$2,15,IF(M21=Listedechoix!$A$3,10,IF(M21=Listedechoix!$A$4,5,0)))) -> 0 | DZ21: =IF(N21=Listedechoix!$A$1,20,IF(N21=Listedechoix!$A$2,15,IF(N21=Listedechoix!$A$3,10,IF(N21=Listedechoix!$A$4,5,0)))) -> 0 | EA21: =IF(O21=Listedechoix!$A$1,20,IF(O21=Listedechoix!$A$2,15,IF(O21=Listedechoix!$A$3,10,IF(O21=Listedechoix!$A$4,5,0)))) -> 0 | EB21: =IF(P21=Listedechoix!$A$1,20,IF(P21=Listedechoix!$A$2,15,IF(P21=Listedechoix!$A$3,10,IF(P21=Listedechoix!$A$4,5,0)))) -> 0 | EC21: NNot | ED21: NNot | EE21: =IF(Q21=Listedechoix!$A$1,20,IF(Q21=Listedechoix!$A$2,15,IF(Q21=Listedechoix!$A$3,10,IF(Q21=Listedechoix!$A$4,5,0)))) -> 0 | EF21: =IF(R21=Listedechoix!$A$1,20,IF(R21=Listedechoix!$A$2,15,IF(R21=Listedechoix!$A$3,10,IF(R21=Listedechoix!$A$4,5,0)))) -> 0 | EG21: =IF(S21=Listedechoix!$A$1,20,IF(S21=Listedechoix!$A$2,15,IF(S21=Listedechoix!$A$3,10,IF(S21=Listedechoix!$A$4,5,0)))) -> 0 | EH21: =IF(T21=Listedechoix!$A$1,20,IF(T21=Listedechoix!$A$2,15,IF(T21=Listedechoix!$A$3,10,IF(T21=Listedechoix!$A$4,5,0)))) -> 0 | EI21: =IF(U21=Listedechoix!$A$1,20,IF(U21=Listedechoix!$A$2,15,IF(U21=Listedechoix!$A$3,10,IF(U21=Listedechoix!$A$4,5,0)))) -> 0 | EJ21: =IF(V21=Listedechoix!$A$1,20,IF(V21=Listedechoix!$A$2,15,IF(V21=Listedechoix!$A$3,10,IF(V21=Listedechoix!$A$4,5,0)))) -> 0 | EK21: =IF(W21=Listedechoix!$A$1,20,IF(W21=Listedechoix!$A$2,15,IF(W21=Listedechoix!$A$3,10,IF(W21=Listedechoix!$A$4,5,0)))) -> 0 | EL21: =IF(X21=Listedechoix!$A$1,20,IF(X21=Listedechoix!$A$2,15,IF(X21=Listedechoix!$A$3,10,IF(X21=Listedechoix!$A$4,5,0)))) -> 0 | EM21: =IF(Y21=Listedechoix!$A$1,20,IF(Y21=Listedechoix!$A$2,15,IF(Y21=Listedechoix!$A$3,10,IF(Y21=Listedechoix!$A$4,5,0)))) -> 0 | EN21: =IF(Z21=Listedechoix!$A$1,20,IF(Z21=Listedechoix!$A$2,15,IF(Z21=Listedechoix!$A$3,10,IF(Z21=Listedechoix!$A$4,5,0)))) -> 0 | EO21: =IF(AA21=Listedechoix!$A$1,20,IF(AA21=Listedechoix!$A$2,15,IF(AA21=Listedechoix!$A$3,10,IF(AA21=Listedechoix!$A$4,5,0)))) -> 0 | EP21: NNot | EQ21: NNot | ER21: =IF(AB21=Listedechoix!$A$1,20,IF(AB21=Listedechoix!$A$2,15,IF(AB21=Listedechoix!$A$3,10,IF(AB21=Listedechoix!$A$4,5,0)))) -> 0 | ES21: =IF(AC21=Listedechoix!$A$1,20,IF(AC21=Listedechoix!$A$2,15,IF(AC21=Listedechoix!$A$3,10,IF(AC21=Listedechoix!$A$4,5,0)))) -> 0 | ET21: =IF(AD21=Listedechoix!$A$1,20,IF(AD21=Listedechoix!$A$2,15,IF(AD21=Listedechoix!$A$3,10,IF(AD21=Listedechoix!$A$4,5,0)))) -> 0 | EU21: =IF(AE21=Listedechoix!$A$1,20,IF(AE21=Listedechoix!$A$2,15,IF(AE21=Listedechoix!$A$3,10,IF(AE21=Listedechoix!$A$4,5,0)))) -> 0 | EV21: =IF(AF21=Listedechoix!$A$1,20,IF(AF21=Listedechoix!$A$2,15,IF(AF21=Listedechoix!$A$3,10,IF(AF21=Listedechoix!$A$4,5,0)))) -> 0 | EW21: =IF(AG21=Listedechoix!$A$1,20,IF(AG21=Listedechoix!$A$2,15,IF(AG21=Listedechoix!$A$3,10,IF(AG21=Listedechoix!$A$4,5,0)))) -> 0 | EX21: =IF(AH21=Listedechoix!$A$1,20,IF(AH21=Listedechoix!$A$2,15,IF(AH21=Listedechoix!$A$3,10,IF(AH21=Listedechoix!$A$4,5,0)))) -> 0 | EY21: =IF(AI21=Listedechoix!$A$1,20,IF(AI21=Listedechoix!$A$2,15,IF(AI21=Listedechoix!$A$3,10,IF(AI21=Listedechoix!$A$4,5,0)))) -> 0 | EZ21: =IF(AJ21=Listedechoix!$A$1,20,IF(AJ21=Listedechoix!$A$2,15,IF(AJ21=Listedechoix!$A$3,10,IF(AJ21=Listedechoix!$A$4,5,0)))) -> 0 | FA21: =IF(AK21=Listedechoix!$A$1,20,IF(AK21=Listedechoix!$A$2,15,IF(AK21=Listedechoix!$A$3,10,IF(AK21=Listedechoix!$A$4,5,0)))) -> 0 | FB21: =IF(AL21=Listedechoix!$A$1,20,IF(AL21=Listedechoix!$A$2,15,IF(AL21=Listedechoix!$A$3,10,IF(AL21=Listedechoix!$A$4,5,0)))) -> 0 | FC21: =IF(AM21=Listedechoix!$A$1,20,IF(AM21=Listedechoix!$A$2,15,IF(AM21=Listedechoix!$A$3,10,IF(AM21=Listedechoix!$A$4,5,0)))) -> 0 | FD21: =IF(AN21=Listedechoix!$A$1,20,IF(AN21=Listedechoix!$A$2,15,IF(AN21=Listedechoix!$A$3,10,IF(AN21=Listedechoix!$A$4,5,0)))) -> 0 | FE21: =IF(AO21=Listedechoix!$A$1,20,IF(AO21=Listedechoix!$A$2,15,IF(AO21=Listedechoix!$A$3,10,IF(AO21=Listedechoix!$A$4,5,0)))) -> 0 | FF21: NNot | FG21: NNot | FH21: =IF(AP21=Listedechoix!$A$1,20,IF(AP21=Listedechoix!$A$2,15,IF(AP21=Listedechoix!$A$3,10,IF(AP21=Listedechoix!$A$4,5,0)))) -> 0 | FI21: =IF(AQ21=Listedechoix!$A$1,20,IF(AQ21=Listedechoix!$A$2,15,IF(AQ21=Listedechoix!$A$3,10,IF(AQ21=Listedechoix!$A$4,5,0)))) -> 0 | FJ21: =IF(AR21=Listedechoix!$A$1,20,IF(AR21=Listedechoix!$A$2,15,IF(AR21=Listedechoix!$A$3,10,IF(AR21=Listedechoix!$A$4,5,0)))) -> 0 | FK21: =IF(AS21=Listedechoix!$A$1,20,IF(AS21=Listedechoix!$A$2,15,IF(AS21=Listedechoix!$A$3,10,IF(AS21=Listedechoix!$A$4,5,0)))) -> 0 | FL21: =IF(AT21=Listedechoix!$A$1,20,IF(AT21=Listedechoix!$A$2,15,IF(AT21=Listedechoix!$A$3,10,IF(AT21=Listedechoix!$A$4,5,0)))) -> 0 | FM21: =IF(AU21=Listedechoix!$A$1,20,IF(AU21=Listedechoix!$A$2,15,IF(AU21=Listedechoix!$A$3,10,IF(AU21=Listedechoix!$A$4,5,0)))) -> 0 | FN21: =IF(AV21=Listedechoix!$A$1,20,IF(AV21=Listedechoix!$A$2,15,IF(AV21=Listedechoix!$A$3,10,IF(AV21=Listedechoix!$A$4,5,0)))) -> 0 | FO21: =IF(AW21=Listedechoix!$A$1,20,IF(AW21=Listedechoix!$A$2,15,IF(AW21=Listedechoix!$A$3,10,IF(AW21=Listedechoix!$A$4,5,0)))) -> 0 | FP21: =IF(AX21=Listedechoix!$A$1,20,IF(AX21=Listedechoix!$A$2,15,IF(AX21=Listedechoix!$A$3,10,IF(AX21=Listedechoix!$A$4,5,0)))) -> 0 | FQ21: =IF(AY21=Listedechoix!$A$1,20,IF(AY21=Listedechoix!$A$2,15,IF(AY21=Listedechoix!$A$3,10,IF(AY21=Listedechoix!$A$4,5,0)))) -> 0 | FR21: =IF(AZ21=Listedechoix!$A$1,20,IF(AZ21=Listedechoix!$A$2,15,IF(AZ21=Listedechoix!$A$3,10,IF(AZ21=Listedechoix!$A$4,5,0)))) -> 0 | FS21: =IF(BA21=Listedechoix!$A$1,20,IF(BA21=Listedechoix!$A$2,15,IF(BA21=Listedechoix!$A$3,10,IF(BA21=Listedechoix!$A$4,5,0)))) -> 0 | FT21: =IF(BB21=Listedechoix!$A$1,20,IF(BB21=Listedechoix!$A$2,15,IF(BB21=Listedechoix!$A$3,10,IF(BB21=Listedechoix!$A$4,5,0)))) -> 0 | FU21: =IF(BC21=Listedechoix!$A$1,20,IF(BC21=Listedechoix!$A$2,15,IF(BC21=Listedechoix!$A$3,10,IF(BC21=Listedechoix!$A$4,5,0)))) -> 0 | FV21: NNot | FW21: NNot | FX21: =IF(BD21=Listedechoix!$A$1,20,IF(BD21=Listedechoix!$A$2,15,IF(BD21=Listedechoix!$A$3,10,IF(BD21=Listedechoix!$A$4,5,0)))) -> 0 | FY21: =IF(BE21=Listedechoix!$A$1,20,IF(BE21=Listedechoix!$A$2,15,IF(BE21=Listedechoix!$A$3,10,IF(BE21=Listedechoix!$A$4,5,0)))) -> 0 | FZ21: =IF(BF21=Listedechoix!$A$1,20,IF(BF21=Listedechoix!$A$2,15,IF(BF21=Listedechoix!$A$3,10,IF(BF21=Listedechoix!$A$4,5,0)))) -> 0 | GA21: =IF(BG21=Listedechoix!$A$1,20,IF(BG21=Listedechoix!$A$2,15,IF(BG21=Listedechoix!$A$3,10,IF(BG21=Listedechoix!$A$4,5,0)))) -> 0 | GB21: =IF(BH21=Listedechoix!$A$1,20,IF(BH21=Listedechoix!$A$2,15,IF(BH21=Listedechoix!$A$3,10,IF(BH21=Listedechoix!$A$4,5,0)))) -> 0 | GC21: =IF(BI21=Listedechoix!$A$1,20,IF(BI21=Listedechoix!$A$2,15,IF(BI21=Listedechoix!$A$3,10,IF(BI21=Listedechoix!$A$4,5,0)))) -> 0 | GD21: =IF(BJ21=Listedechoix!$A$1,20,IF(BJ21=Listedechoix!$A$2,15,IF(BJ21=Listedechoix!$A$3,10,IF(BJ21=Listedechoix!$A$4,5,0)))) -> 0 | GE21: =IF(BK21=Listedechoix!$A$1,20,IF(BK21=Listedechoix!$A$2,15,IF(BK21=Listedechoix!$A$3,10,IF(BK21=Listedechoix!$A$4,5,0)))) -> 0 | GF21: =IF(BL21=Listedechoix!$A$1,20,IF(BL21=Listedechoix!$A$2,15,IF(BL21=Listedechoix!$A$3,10,IF(BL21=Listedechoix!$A$4,5,0)))) -> 0 | GG21: =IF(BM21=Listedechoix!$A$1,20,IF(BM21=Listedechoix!$A$2,15,IF(BM21=Listedechoix!$A$3,10,IF(BM21=Listedechoix!$A$4,5,0)))) -> 0 | GH21: =IF(BN21=Listedechoix!$A$1,20,IF(BN21=Listedechoix!$A$2,15,IF(BN21=Listedechoix!$A$3,10,IF(BN21=Listedechoix!$A$4,5,0)))) -> 0 | GI21: NNot | GJ21: NNot | GK21: =IF(BO21=Listedechoix!$A$1,20,IF(BO21=Listedechoix!$A$2,15,IF(BO21=Listedechoix!$A$3,10,IF(BO21=Listedechoix!$A$4,5,0)))) -> 0 | GL21: =IF(BP21=Listedechoix!$A$1,20,IF(BP21=Listedechoix!$A$2,15,IF(BP21=Listedechoix!$A$3,10,IF(BP21=Listedechoix!$A$4,5,0)))) -> 0 | GM21: =IF(BQ21=Listedechoix!$A$1,20,IF(BQ21=Listedechoix!$A$2,15,IF(BQ21=Listedechoix!$A$3,10,IF(BQ21=Listedechoix!$A$4,5,0)))) -> 0 | GN21: =IF(BR21=Listedechoix!$A$1,20,IF(BR21=Listedechoix!$A$2,15,IF(BR21=Listedechoix!$A$3,10,IF(BR21=Listedechoix!$A$4,5,0)))) -> 0 | GO21: =IF(BS21=Listedechoix!$A$1,20,IF(BS21=Listedechoix!$A$2,15,IF(BS21=Listedechoix!$A$3,10,IF(BS21=Listedechoix!$A$4,5,0)))) -> 0 | GP21: =IF(BT21=Listedechoix!$A$1,20,IF(BT21=Listedechoix!$A$2,15,IF(BT21=Listedechoix!$A$3,10,IF(BT21=Listedechoix!$A$4,5,0)))) -> 0 | GQ21: =IF(BU21=Listedechoix!$A$1,20,IF(BU21=Listedechoix!$A$2,15,IF(BU21=Listedechoix!$A$3,10,IF(BU21=Listedechoix!$A$4,5,0)))) -> 0 | GR21: =IF(BV21=Listedechoix!$A$1,20,IF(BV21=Listedechoix!$A$2,15,IF(BV21=Listedechoix!$A$3,10,IF(BV21=Listedechoix!$A$4,5,0)))) -> 0 | GS21: =IF(BW21=Listedechoix!$A$1,20,IF(BW21=Listedechoix!$A$2,15,IF(BW21=Listedechoix!$A$3,10,IF(BW21=Listedechoix!$A$4,5,0)))) -> 0 | GT21: =IF(BX21=Listedechoix!$A$1,20,IF(BX21=Listedechoix!$A$2,15,IF(BX21=Listedechoix!$A$3,10,IF(BX21=Listedechoix!$A$4,5,0)))) -> 0 | GU21: =IF(BY21=Listedechoix!$A$1,20,IF(BY21=Listedechoix!$A$2,15,IF(BY21=Listedechoix!$A$3,10,IF(BY21=Listedechoix!$A$4,5,0)))) -> 0 | GV21: NNot | GW21: NNot | GX21: =IF(BZ21=Listedechoix!$A$1,20,IF(BZ21=Listedechoix!$A$2,15,IF(BZ21=Listedechoix!$A$3,10,IF(BZ21=Listedechoix!$A$4,5,0)))) -> 0 | GY21: =IF(CA21=Listedechoix!$A$1,20,IF(CA21=Listedechoix!$A$2,15,IF(CA21=Listedechoix!$A$3,10,IF(CA21=Listedechoix!$A$4,5,0)))) -> 0 | GZ21: =IF(CB21=Listedechoix!$A$1,20,IF(CB21=Listedechoix!$A$2,15,IF(CB21=Listedechoix!$A$3,10,IF(CB21=Listedechoix!$A$4,5,0)))) -> 0 | HA21: =IF(CC21=Listedechoix!$A$1,20,IF(CC21=Listedechoix!$A$2,15,IF(CC21=Listedechoix!$A$3,10,IF(CC21=Listedechoix!$A$4,5,0)))) -> 0 | HB21: =IF(CD21=Listedechoix!$A$1,20,IF(CD21=Listedechoix!$A$2,15,IF(CD21=Listedechoix!$A$3,10,IF(CD21=Listedechoix!$A$4,5,0)))) -> 0 | HC21: =IF(CE21=Listedechoix!$A$1,20,IF(CE21=Listedechoix!$A$2,15,IF(CE21=Listedechoix!$A$3,10,IF(CE21=Listedechoix!$A$4,5,0)))) -> 0 | HD21: =IF(CF21=Listedechoix!$A$1,20,IF(CF21=Listedechoix!$A$2,15,IF(CF21=Listedechoix!$A$3,10,IF(CF21=Listedechoix!$A$4,5,0)))) -> 0 | HE21: =IF(CG21=Listedechoix!$A$1,20,IF(CG21=Listedechoix!$A$2,15,IF(CG21=Listedechoix!$A$3,10,IF(CG21=Listedechoix!$A$4,5,0)))) -> 0 | HF21: =IF(CH21=Listedechoix!$A$1,20,IF(CH21=Listedechoix!$A$2,15,IF(CH21=Listedechoix!$A$3,10,IF(CH21=Listedechoix!$A$4,5,0)))) -> 0 | HG21: =IF(CI21=Listedechoix!$A$1,20,IF(CI21=Listedechoix!$A$2,15,IF(CI21=Listedechoix!$A$3,10,IF(CI21=Listedechoix!$A$4,5,0)))) -> 0 | HH21: =IF(CJ21=Listedechoix!$A$1,20,IF(CJ21=Listedechoix!$A$2,15,IF(CJ21=Listedechoix!$A$3,10,IF(CJ21=Listedechoix!$A$4,5,0)))) -> 0 | HI21: =IF(CK21=Listedechoix!$A$1,20,IF(CK21=Listedechoix!$A$2,15,IF(CK21=Listedechoix!$A$3,10,IF(CK21=Listedechoix!$A$4,5,0)))) -> 0 | HJ21: =IF(CL21=Listedechoix!$A$1,20,IF(CL21=Listedechoix!$A$2,15,IF(CL21=Listedechoix!$A$3,10,IF(CL21=Listedechoix!$A$4,5,0)))) -> 0 | HK21: =IF(CM21=Listedechoix!$A$1,20,IF(CM21=Listedechoix!$A$2,15,IF(CM21=Listedechoix!$A$3,10,IF(CM21=Listedechoix!$A$4,5,0)))) -> 0 | HL21: NNot | HM21: NNot
CR22: 0 | CX22: 0 | CY22: NNot | DD22: 0 | DE22: NNot | DJ22: 0 | DK22: NNot | DP22: 0 | DQ22: NNot | DR22: =IF(F22=Listedechoix!$A$1,20,IF(F22=Listedechoix!$A$2,15,IF(F22=Listedechoix!$A$3,10,IF(F22=Listedechoix!$A$4,5,0)))) -> 0 | DS22: =IF(G22=Listedechoix!$A$1,20,IF(G22=Listedechoix!$A$2,15,IF(G22=Listedechoix!$A$3,10,IF(G22=Listedechoix!$A$4,5,0)))) -> 0 | DT22: =IF(H22=Listedechoix!$A$1,20,IF(H22=Listedechoix!$A$2,15,IF(H22=Listedechoix!$A$3,10,IF(H22=Listedechoix!$A$4,5,0)))) -> 0 | DU22: =IF(I22=Listedechoix!$A$1,20,IF(I22=Listedechoix!$A$2,15,IF(I22=Listedechoix!$A$3,10,IF(I22=Listedechoix!$A$4,5,0)))) -> 0 | DV22: =IF(J22=Listedechoix!$A$1,20,IF(J22=Listedechoix!$A$2,15,IF(J22=Listedechoix!$A$3,10,IF(J22=Listedechoix!$A$4,5,0)))) -> 0 | DW22: =IF(K22=Listedechoix!$A$1,20,IF(K22=Listedechoix!$A$2,15,IF(K22=Listedechoix!$A$3,10,IF(K22=Listedechoix!$A$4,5,0)))) -> 0 | DX22: =IF(L22=Listedechoix!$A$1,20,IF(L22=Listedechoix!$A$2,15,IF(L22=Listedechoix!$A$3,10,IF(L22=Listedechoix!$A$4,5,0)))) -> 0 | DY22: =IF(M22=Listedechoix!$A$1,20,IF(M22=Listedechoix!$A$2,15,IF(M22=Listedechoix!$A$3,10,IF(M22=Listedechoix!$A$4,5,0)))) -> 0 | DZ22: =IF(N22=Listedechoix!$A$1,20,IF(N22=Listedechoix!$A$2,15,IF(N22=Listedechoix!$A$3,10,IF(N22=Listedechoix!$A$4,5,0)))) -> 0 | EA22: =IF(O22=Listedechoix!$A$1,20,IF(O22=Listedechoix!$A$2,15,IF(O22=Listedechoix!$A$3,10,IF(O22=Listedechoix!$A$4,5,0)))) -> 0 | EB22: =IF(P22=Listedechoix!$A$1,20,IF(P22=Listedechoix!$A$2,15,IF(P22=Listedechoix!$A$3,10,IF(P22=Listedechoix!$A$4,5,0)))) -> 0 | EC22: NNot | ED22: NNot | EE22: =IF(Q22=Listedechoix!$A$1,20,IF(Q22=Listedechoix!$A$2,15,IF(Q22=Listedechoix!$A$3,10,IF(Q22=Listedechoix!$A$4,5,0)))) -> 0 | EF22: =IF(R22=Listedechoix!$A$1,20,IF(R22=Listedechoix!$A$2,15,IF(R22=Listedechoix!$A$3,10,IF(R22=Listedechoix!$A$4,5,0)))) -> 0 | EG22: =IF(S22=Listedechoix!$A$1,20,IF(S22=Listedechoix!$A$2,15,IF(S22=Listedechoix!$A$3,10,IF(S22=Listedechoix!$A$4,5,0)))) -> 0 | EH22: =IF(T22=Listedechoix!$A$1,20,IF(T22=Listedechoix!$A$2,15,IF(T22=Listedechoix!$A$3,10,IF(T22=Listedechoix!$A$4,5,0)))) -> 0 | EI22: =IF(U22=Listedechoix!$A$1,20,IF(U22=Listedechoix!$A$2,15,IF(U22=Listedechoix!$A$3,10,IF(U22=Listedechoix!$A$4,5,0)))) -> 0 | EJ22: =IF(V22=Listedechoix!$A$1,20,IF(V22=Listedechoix!$A$2,15,IF(V22=Listedechoix!$A$3,10,IF(V22=Listedechoix!$A$4,5,0)))) -> 0 | EK22: =IF(W22=Listedechoix!$A$1,20,IF(W22=Listedechoix!$A$2,15,IF(W22=Listedechoix!$A$3,10,IF(W22=Listedechoix!$A$4,5,0)))) -> 0 | EL22: =IF(X22=Listedechoix!$A$1,20,IF(X22=Listedechoix!$A$2,15,IF(X22=Listedechoix!$A$3,10,IF(X22=Listedechoix!$A$4,5,0)))) -> 0 | EM22: =IF(Y22=Listedechoix!$A$1,20,IF(Y22=Listedechoix!$A$2,15,IF(Y22=Listedechoix!$A$3,10,IF(Y22=Listedechoix!$A$4,5,0)))) -> 0 | EN22: =IF(Z22=Listedechoix!$A$1,20,IF(Z22=Listedechoix!$A$2,15,IF(Z22=Listedechoix!$A$3,10,IF(Z22=Listedechoix!$A$4,5,0)))) -> 0 | EO22: =IF(AA22=Listedechoix!$A$1,20,IF(AA22=Listedechoix!$A$2,15,IF(AA22=Listedechoix!$A$3,10,IF(AA22=Listedechoix!$A$4,5,0)))) -> 0 | EP22: NNot | EQ22: NNot | ER22: =IF(AB22=Listedechoix!$A$1,20,IF(AB22=Listedechoix!$A$2,15,IF(AB22=Listedechoix!$A$3,10,IF(AB22=Listedechoix!$A$4,5,0)))) -> 0 | ES22: =IF(AC22=Listedechoix!$A$1,20,IF(AC22=Listedechoix!$A$2,15,IF(AC22=Listedechoix!$A$3,10,IF(AC22=Listedechoix!$A$4,5,0)))) -> 0 | ET22: =IF(AD22=Listedechoix!$A$1,20,IF(AD22=Listedechoix!$A$2,15,IF(AD22=Listedechoix!$A$3,10,IF(AD22=Listedechoix!$A$4,5,0)))) -> 0 | EU22: =IF(AE22=Listedechoix!$A$1,20,IF(AE22=Listedechoix!$A$2,15,IF(AE22=Listedechoix!$A$3,10,IF(AE22=Listedechoix!$A$4,5,0)))) -> 0 | EV22: =IF(AF22=Listedechoix!$A$1,20,IF(AF22=Listedechoix!$A$2,15,IF(AF22=Listedechoix!$A$3,10,IF(AF22=Listedechoix!$A$4,5,0)))) -> 0 | EW22: =IF(AG22=Listedechoix!$A$1,20,IF(AG22=Listedechoix!$A$2,15,IF(AG22=Listedechoix!$A$3,10,IF(AG22=Listedechoix!$A$4,5,0)))) -> 0 | EX22: =IF(AH22=Listedechoix!$A$1,20,IF(AH22=Listedechoix!$A$2,15,IF(AH22=Listedechoix!$A$3,10,IF(AH22=Listedechoix!$A$4,5,0)))) -> 0 | EY22: =IF(AI22=Listedechoix!$A$1,20,IF(AI22=Listedechoix!$A$2,15,IF(AI22=Listedechoix!$A$3,10,IF(AI22=Listedechoix!$A$4,5,0)))) -> 0 | EZ22: =IF(AJ22=Listedechoix!$A$1,20,IF(AJ22=Listedechoix!$A$2,15,IF(AJ22=Listedechoix!$A$3,10,IF(AJ22=Listedechoix!$A$4,5,0)))) -> 0 | FA22: =IF(AK22=Listedechoix!$A$1,20,IF(AK22=Listedechoix!$A$2,15,IF(AK22=Listedechoix!$A$3,10,IF(AK22=Listedechoix!$A$4,5,0)))) -> 0 | FB22: =IF(AL22=Listedechoix!$A$1,20,IF(AL22=Listedechoix!$A$2,15,IF(AL22=Listedechoix!$A$3,10,IF(AL22=Listedechoix!$A$4,5,0)))) -> 0 | FC22: =IF(AM22=Listedechoix!$A$1,20,IF(AM22=Listedechoix!$A$2,15,IF(AM22=Listedechoix!$A$3,10,IF(AM22=Listedechoix!$A$4,5,0)))) -> 0 | FD22: =IF(AN22=Listedechoix!$A$1,20,IF(AN22=Listedechoix!$A$2,15,IF(AN22=Listedechoix!$A$3,10,IF(AN22=Listedechoix!$A$4,5,0)))) -> 0 | FE22: =IF(AO22=Listedechoix!$A$1,20,IF(AO22=Listedechoix!$A$2,15,IF(AO22=Listedechoix!$A$3,10,IF(AO22=Listedechoix!$A$4,5,0)))) -> 0 | FF22: NNot | FG22: NNot | FH22: =IF(AP22=Listedechoix!$A$1,20,IF(AP22=Listedechoix!$A$2,15,IF(AP22=Listedechoix!$A$3,10,IF(AP22=Listedechoix!$A$4,5,0)))) -> 0 | FI22: =IF(AQ22=Listedechoix!$A$1,20,IF(AQ22=Listedechoix!$A$2,15,IF(AQ22=Listedechoix!$A$3,10,IF(AQ22=Listedechoix!$A$4,5,0)))) -> 0 | FJ22: =IF(AR22=Listedechoix!$A$1,20,IF(AR22=Listedechoix!$A$2,15,IF(AR22=Listedechoix!$A$3,10,IF(AR22=Listedechoix!$A$4,5,0)))) -> 0 | FK22: =IF(AS22=Listedechoix!$A$1,20,IF(AS22=Listedechoix!$A$2,15,IF(AS22=Listedechoix!$A$3,10,IF(AS22=Listedechoix!$A$4,5,0)))) -> 0 | FL22: =IF(AT22=Listedechoix!$A$1,20,IF(AT22=Listedechoix!$A$2,15,IF(AT22=Listedechoix!$A$3,10,IF(AT22=Listedechoix!$A$4,5,0)))) -> 0 | FM22: =IF(AU22=Listedechoix!$A$1,20,IF(AU22=Listedechoix!$A$2,15,IF(AU22=Listedechoix!$A$3,10,IF(AU22=Listedechoix!$A$4,5,0)))) -> 0 | FN22: =IF(AV22=Listedechoix!$A$1,20,IF(AV22=Listedechoix!$A$2,15,IF(AV22=Listedechoix!$A$3,10,IF(AV22=Listedechoix!$A$4,5,0)))) -> 0 | FO22: =IF(AW22=Listedechoix!$A$1,20,IF(AW22=Listedechoix!$A$2,15,IF(AW22=Listedechoix!$A$3,10,IF(AW22=Listedechoix!$A$4,5,0)))) -> 0 | FP22: =IF(AX22=Listedechoix!$A$1,20,IF(AX22=Listedechoix!$A$2,15,IF(AX22=Listedechoix!$A$3,10,IF(AX22=Listedechoix!$A$4,5,0)))) -> 0 | FQ22: =IF(AY22=Listedechoix!$A$1,20,IF(AY22=Listedechoix!$A$2,15,IF(AY22=Listedechoix!$A$3,10,IF(AY22=Listedechoix!$A$4,5,0)))) -> 0 | FR22: =IF(AZ22=Listedechoix!$A$1,20,IF(AZ22=Listedechoix!$A$2,15,IF(AZ22=Listedechoix!$A$3,10,IF(AZ22=Listedechoix!$A$4,5,0)))) -> 0 | FS22: =IF(BA22=Listedechoix!$A$1,20,IF(BA22=Listedechoix!$A$2,15,IF(BA22=Listedechoix!$A$3,10,IF(BA22=Listedechoix!$A$4,5,0)))) -> 0 | FT22: =IF(BB22=Listedechoix!$A$1,20,IF(BB22=Listedechoix!$A$2,15,IF(BB22=Listedechoix!$A$3,10,IF(BB22=Listedechoix!$A$4,5,0)))) -> 0 | FU22: =IF(BC22=Listedechoix!$A$1,20,IF(BC22=Listedechoix!$A$2,15,IF(BC22=Listedechoix!$A$3,10,IF(BC22=Listedechoix!$A$4,5,0)))) -> 0 | FV22: NNot | FW22: NNot | FX22: =IF(BD22=Listedechoix!$A$1,20,IF(BD22=Listedechoix!$A$2,15,IF(BD22=Listedechoix!$A$3,10,IF(BD22=Listedechoix!$A$4,5,0)))) -> 0 | FY22: =IF(BE22=Listedechoix!$A$1,20,IF(BE22=Listedechoix!$A$2,15,IF(BE22=Listedechoix!$A$3,10,IF(BE22=Listedechoix!$A$4,5,0)))) -> 0 | FZ22: =IF(BF22=Listedechoix!$A$1,20,IF(BF22=Listedechoix!$A$2,15,IF(BF22=Listedechoix!$A$3,10,IF(BF22=Listedechoix!$A$4,5,0)))) -> 0 | GA22: =IF(BG22=Listedechoix!$A$1,20,IF(BG22=Listedechoix!$A$2,15,IF(BG22=Listedechoix!$A$3,10,IF(BG22=Listedechoix!$A$4,5,0)))) -> 0 | GB22: =IF(BH22=Listedechoix!$A$1,20,IF(BH22=Listedechoix!$A$2,15,IF(BH22=Listedechoix!$A$3,10,IF(BH22=Listedechoix!$A$4,5,0)))) -> 0 | GC22: =IF(BI22=Listedechoix!$A$1,20,IF(BI22=Listedechoix!$A$2,15,IF(BI22=Listedechoix!$A$3,10,IF(BI22=Listedechoix!$A$4,5,0)))) -> 0 | GD22: =IF(BJ22=Listedechoix!$A$1,20,IF(BJ22=Listedechoix!$A$2,15,IF(BJ22=Listedechoix!$A$3,10,IF(BJ22=Listedechoix!$A$4,5,0)))) -> 0 | GE22: =IF(BK22=Listedechoix!$A$1,20,IF(BK22=Listedechoix!$A$2,15,IF(BK22=Listedechoix!$A$3,10,IF(BK22=Listedechoix!$A$4,5,0)))) -> 0 | GF22: =IF(BL22=Listedechoix!$A$1,20,IF(BL22=Listedechoix!$A$2,15,IF(BL22=Listedechoix!$A$3,10,IF(BL22=Listedechoix!$A$4,5,0)))) -> 0 | GG22: =IF(BM22=Listedechoix!$A$1,20,IF(BM22=Listedechoix!$A$2,15,IF(BM22=Listedechoix!$A$3,10,IF(BM22=Listedechoix!$A$4,5,0)))) -> 0 | GH22: =IF(BN22=Listedechoix!$A$1,20,IF(BN22=Listedechoix!$A$2,15,IF(BN22=Listedechoix!$A$3,10,IF(BN22=Listedechoix!$A$4,5,0)))) -> 0 | GI22: NNot | GJ22: NNot | GK22: =IF(BO22=Listedechoix!$A$1,20,IF(BO22=Listedechoix!$A$2,15,IF(BO22=Listedechoix!$A$3,10,IF(BO22=Listedechoix!$A$4,5,0)))) -> 0 | GL22: =IF(BP22=Listedechoix!$A$1,20,IF(BP22=Listedechoix!$A$2,15,IF(BP22=Listedechoix!$A$3,10,IF(BP22=Listedechoix!$A$4,5,0)))) -> 0 | GM22: =IF(BQ22=Listedechoix!$A$1,20,IF(BQ22=Listedechoix!$A$2,15,IF(BQ22=Listedechoix!$A$3,10,IF(BQ22=Listedechoix!$A$4,5,0)))) -> 0 | GN22: =IF(BR22=Listedechoix!$A$1,20,IF(BR22=Listedechoix!$A$2,15,IF(BR22=Listedechoix!$A$3,10,IF(BR22=Listedechoix!$A$4,5,0)))) -> 0 | GO22: =IF(BS22=Listedechoix!$A$1,20,IF(BS22=Listedechoix!$A$2,15,IF(BS22=Listedechoix!$A$3,10,IF(BS22=Listedechoix!$A$4,5,0)))) -> 0 | GP22: =IF(BT22=Listedechoix!$A$1,20,IF(BT22=Listedechoix!$A$2,15,IF(BT22=Listedechoix!$A$3,10,IF(BT22=Listedechoix!$A$4,5,0)))) -> 0 | GQ22: =IF(BU22=Listedechoix!$A$1,20,IF(BU22=Listedechoix!$A$2,15,IF(BU22=Listedechoix!$A$3,10,IF(BU22=Listedechoix!$A$4,5,0)))) -> 0 | GR22: =IF(BV22=Listedechoix!$A$1,20,IF(BV22=Listedechoix!$A$2,15,IF(BV22=Listedechoix!$A$3,10,IF(BV22=Listedechoix!$A$4,5,0)))) -> 0 | GS22: =IF(BW22=Listedechoix!$A$1,20,IF(BW22=Listedechoix!$A$2,15,IF(BW22=Listedechoix!$A$3,10,IF(BW22=Listedechoix!$A$4,5,0)))) -> 0 | GT22: =IF(BX22=Listedechoix!$A$1,20,IF(BX22=Listedechoix!$A$2,15,IF(BX22=Listedechoix!$A$3,10,IF(BX22=Listedechoix!$A$4,5,0)))) -> 0 | GU22: =IF(BY22=Listedechoix!$A$1,20,IF(BY22=Listedechoix!$A$2,15,IF(BY22=Listedechoix!$A$3,10,IF(BY22=Listedechoix!$A$4,5,0)))) -> 0 | GV22: NNot | GW22: NNot | GX22: =IF(BZ22=Listedechoix!$A$1,20,IF(BZ22=Listedechoix!$A$2,15,IF(BZ22=Listedechoix!$A$3,10,IF(BZ22=Listedechoix!$A$4,5,0)))) -> 0 | GY22: =IF(CA22=Listedechoix!$A$1,20,IF(CA22=Listedechoix!$A$2,15,IF(CA22=Listedechoix!$A$3,10,IF(CA22=Listedechoix!$A$4,5,0)))) -> 0 | GZ22: =IF(CB22=Listedechoix!$A$1,20,IF(CB22=Listedechoix!$A$2,15,IF(CB22=Listedechoix!$A$3,10,IF(CB22=Listedechoix!$A$4,5,0)))) -> 0 | HA22: =IF(CC22=Listedechoix!$A$1,20,IF(CC22=Listedechoix!$A$2,15,IF(CC22=Listedechoix!$A$3,10,IF(CC22=Listedechoix!$A$4,5,0)))) -> 0 | HB22: =IF(CD22=Listedechoix!$A$1,20,IF(CD22=Listedechoix!$A$2,15,IF(CD22=Listedechoix!$A$3,10,IF(CD22=Listedechoix!$A$4,5,0)))) -> 0 | HC22: =IF(CE22=Listedechoix!$A$1,20,IF(CE22=Listedechoix!$A$2,15,IF(CE22=Listedechoix!$A$3,10,IF(CE22=Listedechoix!$A$4,5,0)))) -> 0 | HD22: =IF(CF22=Listedechoix!$A$1,20,IF(CF22=Listedechoix!$A$2,15,IF(CF22=Listedechoix!$A$3,10,IF(CF22=Listedechoix!$A$4,5,0)))) -> 0 | HE22: =IF(CG22=Listedechoix!$A$1,20,IF(CG22=Listedechoix!$A$2,15,IF(CG22=Listedechoix!$A$3,10,IF(CG22=Listedechoix!$A$4,5,0)))) -> 0 | HF22: =IF(CH22=Listedechoix!$A$1,20,IF(CH22=Listedechoix!$A$2,15,IF(CH22=Listedechoix!$A$3,10,IF(CH22=Listedechoix!$A$4,5,0)))) -> 0 | HG22: =IF(CI22=Listedechoix!$A$1,20,IF(CI22=Listedechoix!$A$2,15,IF(CI22=Listedechoix!$A$3,10,IF(CI22=Listedechoix!$A$4,5,0)))) -> 0 | HH22: =IF(CJ22=Listedechoix!$A$1,20,IF(CJ22=Listedechoix!$A$2,15,IF(CJ22=Listedechoix!$A$3,10,IF(CJ22=Listedechoix!$A$4,5,0)))) -> 0 | HI22: =IF(CK22=Listedechoix!$A$1,20,IF(CK22=Listedechoix!$A$2,15,IF(CK22=Listedechoix!$A$3,10,IF(CK22=Listedechoix!$A$4,5,0)))) -> 0 | HJ22: =IF(CL22=Listedechoix!$A$1,20,IF(CL22=Listedechoix!$A$2,15,IF(CL22=Listedechoix!$A$3,10,IF(CL22=Listedechoix!$A$4,5,0)))) -> 0 | HK22: =IF(CM22=Listedechoix!$A$1,20,IF(CM22=Listedechoix!$A$2,15,IF(CM22=Listedechoix!$A$3,10,IF(CM22=Listedechoix!$A$4,5,0)))) -> 0 | HL22: NNot | HM22: NNot
CR23: 0 | CX23: 0 | CY23: NNot | DD23: 0 | DE23: NNot | DJ23: 0 | DK23: NNot | DP23: 0 | DQ23: NNot | DR23: =IF(F23=Listedechoix!$A$1,20,IF(F23=Listedechoix!$A$2,15,IF(F23=Listedechoix!$A$3,10,IF(F23=Listedechoix!$A$4,5,0)))) -> 0 | DS23: =IF(G23=Listedechoix!$A$1,20,IF(G23=Listedechoix!$A$2,15,IF(G23=Listedechoix!$A$3,10,IF(G23=Listedechoix!$A$4,5,0)))) -> 0 | DT23: =IF(H23=Listedechoix!$A$1,20,IF(H23=Listedechoix!$A$2,15,IF(H23=Listedechoix!$A$3,10,IF(H23=Listedechoix!$A$4,5,0)))) -> 0 | DU23: =IF(I23=Listedechoix!$A$1,20,IF(I23=Listedechoix!$A$2,15,IF(I23=Listedechoix!$A$3,10,IF(I23=Listedechoix!$A$4,5,0)))) -> 0 | DV23: =IF(J23=Listedechoix!$A$1,20,IF(J23=Listedechoix!$A$2,15,IF(J23=Listedechoix!$A$3,10,IF(J23=Listedechoix!$A$4,5,0)))) -> 0 | DW23: =IF(K23=Listedechoix!$A$1,20,IF(K23=Listedechoix!$A$2,15,IF(K23=Listedechoix!$A$3,10,IF(K23=Listedechoix!$A$4,5,0)))) -> 0 | DX23: =IF(L23=Listedechoix!$A$1,20,IF(L23=Listedechoix!$A$2,15,IF(L23=Listedechoix!$A$3,10,IF(L23=Listedechoix!$A$4,5,0)))) -> 0 | DY23: =IF(M23=Listedechoix!$A$1,20,IF(M23=Listedechoix!$A$2,15,IF(M23=Listedechoix!$A$3,10,IF(M23=Listedechoix!$A$4,5,0)))) -> 0 | DZ23: =IF(N23=Listedechoix!$A$1,20,IF(N23=Listedechoix!$A$2,15,IF(N23=Listedechoix!$A$3,10,IF(N23=Listedechoix!$A$4,5,0)))) -> 0 | EA23: =IF(O23=Listedechoix!$A$1,20,IF(O23=Listedechoix!$A$2,15,IF(O23=Listedechoix!$A$3,10,IF(O23=Listedechoix!$A$4,5,0)))) -> 0 | EB23: =IF(P23=Listedechoix!$A$1,20,IF(P23=Listedechoix!$A$2,15,IF(P23=Listedechoix!$A$3,10,IF(P23=Listedechoix!$A$4,5,0)))) -> 0 | EC23: NNot | ED23: NNot | EE23: =IF(Q23=Listedechoix!$A$1,20,IF(Q23=Listedechoix!$A$2,15,IF(Q23=Listedechoix!$A$3,10,IF(Q23=Listedechoix!$A$4,5,0)))) -> 0 | EF23: =IF(R23=Listedechoix!$A$1,20,IF(R23=Listedechoix!$A$2,15,IF(R23=Listedechoix!$A$3,10,IF(R23=Listedechoix!$A$4,5,0)))) -> 0 | EG23: =IF(S23=Listedechoix!$A$1,20,IF(S23=Listedechoix!$A$2,15,IF(S23=Listedechoix!$A$3,10,IF(S23=Listedechoix!$A$4,5,0)))) -> 0 | EH23: =IF(T23=Listedechoix!$A$1,20,IF(T23=Listedechoix!$A$2,15,IF(T23=Listedechoix!$A$3,10,IF(T23=Listedechoix!$A$4,5,0)))) -> 0 | EI23: =IF(U23=Listedechoix!$A$1,20,IF(U23=Listedechoix!$A$2,15,IF(U23=Listedechoix!$A$3,10,IF(U23=Listedechoix!$A$4,5,0)))) -> 0 | EJ23: =IF(V23=Listedechoix!$A$1,20,IF(V23=Listedechoix!$A$2,15,IF(V23=Listedechoix!$A$3,10,IF(V23=Listedechoix!$A$4,5,0)))) -> 0 | EK23: =IF(W23=Listedechoix!$A$1,20,IF(W23=Listedechoix!$A$2,15,IF(W23=Listedechoix!$A$3,10,IF(W23=Listedechoix!$A$4,5,0)))) -> 0 | EL23: =IF(X23=Listedechoix!$A$1,20,IF(X23=Listedechoix!$A$2,15,IF(X23=Listedechoix!$A$3,10,IF(X23=Listedechoix!$A$4,5,0)))) -> 0 | EM23: =IF(Y23=Listedechoix!$A$1,20,IF(Y23=Listedechoix!$A$2,15,IF(Y23=Listedechoix!$A$3,10,IF(Y23=Listedechoix!$A$4,5,0)))) -> 0 | EN23: =IF(Z23=Listedechoix!$A$1,20,IF(Z23=Listedechoix!$A$2,15,IF(Z23=Listedechoix!$A$3,10,IF(Z23=Listedechoix!$A$4,5,0)))) -> 0 | EO23: =IF(AA23=Listedechoix!$A$1,20,IF(AA23=Listedechoix!$A$2,15,IF(AA23=Listedechoix!$A$3,10,IF(AA23=Listedechoix!$A$4,5,0)))) -> 0 | EP23: NNot | EQ23: NNot | ER23: =IF(AB23=Listedechoix!$A$1,20,IF(AB23=Listedechoix!$A$2,15,IF(AB23=Listedechoix!$A$3,10,IF(AB23=Listedechoix!$A$4,5,0)))) -> 0 | ES23: =IF(AC23=Listedechoix!$A$1,20,IF(AC23=Listedechoix!$A$2,15,IF(AC23=Listedechoix!$A$3,10,IF(AC23=Listedechoix!$A$4,5,0)))) -> 0 | ET23: =IF(AD23=Listedechoix!$A$1,20,IF(AD23=Listedechoix!$A$2,15,IF(AD23=Listedechoix!$A$3,10,IF(AD23=Listedechoix!$A$4,5,0)))) -> 0 | EU23: =IF(AE23=Listedechoix!$A$1,20,IF(AE23=Listedechoix!$A$2,15,IF(AE23=Listedechoix!$A$3,10,IF(AE23=Listedechoix!$A$4,5,0)))) -> 0 | EV23: =IF(AF23=Listedechoix!$A$1,20,IF(AF23=Listedechoix!$A$2,15,IF(AF23=Listedechoix!$A$3,10,IF(AF23=Listedechoix!$A$4,5,0)))) -> 0 | EW23: =IF(AG23=Listedechoix!$A$1,20,IF(AG23=Listedechoix!$A$2,15,IF(AG23=Listedechoix!$A$3,10,IF(AG23=Listedechoix!$A$4,5,0)))) -> 0 | EX23: =IF(AH23=Listedechoix!$A$1,20,IF(AH23=Listedechoix!$A$2,15,IF(AH23=Listedechoix!$A$3,10,IF(AH23=Listedechoix!$A$4,5,0)))) -> 0 | EY23: =IF(AI23=Listedechoix!$A$1,20,IF(AI23=Listedechoix!$A$2,15,IF(AI23=Listedechoix!$A$3,10,IF(AI23=Listedechoix!$A$4,5,0)))) -> 0 | EZ23: =IF(AJ23=Listedechoix!$A$1,20,IF(AJ23=Listedechoix!$A$2,15,IF(AJ23=Listedechoix!$A$3,10,IF(AJ23=Listedechoix!$A$4,5,0)))) -> 0 | FA23: =IF(AK23=Listedechoix!$A$1,20,IF(AK23=Listedechoix!$A$2,15,IF(AK23=Listedechoix!$A$3,10,IF(AK23=Listedechoix!$A$4,5,0)))) -> 0 | FB23: =IF(AL23=Listedechoix!$A$1,20,IF(AL23=Listedechoix!$A$2,15,IF(AL23=Listedechoix!$A$3,10,IF(AL23=Listedechoix!$A$4,5,0)))) -> 0 | FC23: =IF(AM23=Listedechoix!$A$1,20,IF(AM23=Listedechoix!$A$2,15,IF(AM23=Listedechoix!$A$3,10,IF(AM23=Listedechoix!$A$4,5,0)))) -> 0 | FD23: =IF(AN23=Listedechoix!$A$1,20,IF(AN23=Listedechoix!$A$2,15,IF(AN23=Listedechoix!$A$3,10,IF(AN23=Listedechoix!$A$4,5,0)))) -> 0 | FE23: =IF(AO23=Listedechoix!$A$1,20,IF(AO23=Listedechoix!$A$2,15,IF(AO23=Listedechoix!$A$3,10,IF(AO23=Listedechoix!$A$4,5,0)))) -> 0 | FF23: NNot | FG23: NNot | FH23: =IF(AP23=Listedechoix!$A$1,20,IF(AP23=Listedechoix!$A$2,15,IF(AP23=Listedechoix!$A$3,10,IF(AP23=Listedechoix!$A$4,5,0)))) -> 0 | FI23: =IF(AQ23=Listedechoix!$A$1,20,IF(AQ23=Listedechoix!$A$2,15,IF(AQ23=Listedechoix!$A$3,10,IF(AQ23=Listedechoix!$A$4,5,0)))) -> 0 | FJ23: =IF(AR23=Listedechoix!$A$1,20,IF(AR23=Listedechoix!$A$2,15,IF(AR23=Listedechoix!$A$3,10,IF(AR23=Listedechoix!$A$4,5,0)))) -> 0 | FK23: =IF(AS23=Listedechoix!$A$1,20,IF(AS23=Listedechoix!$A$2,15,IF(AS23=Listedechoix!$A$3,10,IF(AS23=Listedechoix!$A$4,5,0)))) -> 0 | FL23: =IF(AT23=Listedechoix!$A$1,20,IF(AT23=Listedechoix!$A$2,15,IF(AT23=Listedechoix!$A$3,10,IF(AT23=Listedechoix!$A$4,5,0)))) -> 0 | FM23: =IF(AU23=Listedechoix!$A$1,20,IF(AU23=Listedechoix!$A$2,15,IF(AU23=Listedechoix!$A$3,10,IF(AU23=Listedechoix!$A$4,5,0)))) -> 0 | FN23: =IF(AV23=Listedechoix!$A$1,20,IF(AV23=Listedechoix!$A$2,15,IF(AV23=Listedechoix!$A$3,10,IF(AV23=Listedechoix!$A$4,5,0)))) -> 0 | FO23: =IF(AW23=Listedechoix!$A$1,20,IF(AW23=Listedechoix!$A$2,15,IF(AW23=Listedechoix!$A$3,10,IF(AW23=Listedechoix!$A$4,5,0)))) -> 0 | FP23: =IF(AX23=Listedechoix!$A$1,20,IF(AX23=Listedechoix!$A$2,15,IF(AX23=Listedechoix!$A$3,10,IF(AX23=Listedechoix!$A$4,5,0)))) -> 0 | FQ23: =IF(AY23=Listedechoix!$A$1,20,IF(AY23=Listedechoix!$A$2,15,IF(AY23=Listedechoix!$A$3,10,IF(AY23=Listedechoix!$A$4,5,0)))) -> 0 | FR23: =IF(AZ23=Listedechoix!$A$1,20,IF(AZ23=Listedechoix!$A$2,15,IF(AZ23=Listedechoix!$A$3,10,IF(AZ23=Listedechoix!$A$4,5,0)))) -> 0 | FS23: =IF(BA23=Listedechoix!$A$1,20,IF(BA23=Listedechoix!$A$2,15,IF(BA23=Listedechoix!$A$3,10,IF(BA23=Listedechoix!$A$4,5,0)))) -> 0 | FT23: =IF(BB23=Listedechoix!$A$1,20,IF(BB23=Listedechoix!$A$2,15,IF(BB23=Listedechoix!$A$3,10,IF(BB23=Listedechoix!$A$4,5,0)))) -> 0 | FU23: =IF(BC23=Listedechoix!$A$1,20,IF(BC23=Listedechoix!$A$2,15,IF(BC23=Listedechoix!$A$3,10,IF(BC23=Listedechoix!$A$4,5,0)))) -> 0 | FV23: NNot | FW23: NNot | FX23: =IF(BD23=Listedechoix!$A$1,20,IF(BD23=Listedechoix!$A$2,15,IF(BD23=Listedechoix!$A$3,10,IF(BD23=Listedechoix!$A$4,5,0)))) -> 0 | FY23: =IF(BE23=Listedechoix!$A$1,20,IF(BE23=Listedechoix!$A$2,15,IF(BE23=Listedechoix!$A$3,10,IF(BE23=Listedechoix!$A$4,5,0)))) -> 0 | FZ23: =IF(BF23=Listedechoix!$A$1,20,IF(BF23=Listedechoix!$A$2,15,IF(BF23=Listedechoix!$A$3,10,IF(BF23=Listedechoix!$A$4,5,0)))) -> 0 | GA23: =IF(BG23=Listedechoix!$A$1,20,IF(BG23=Listedechoix!$A$2,15,IF(BG23=Listedechoix!$A$3,10,IF(BG23=Listedechoix!$A$4,5,0)))) -> 0 | GB23: =IF(BH23=Listedechoix!$A$1,20,IF(BH23=Listedechoix!$A$2,15,IF(BH23=Listedechoix!$A$3,10,IF(BH23=Listedechoix!$A$4,5,0)))) -> 0 | GC23: =IF(BI23=Listedechoix!$A$1,20,IF(BI23=Listedechoix!$A$2,15,IF(BI23=Listedechoix!$A$3,10,IF(BI23=Listedechoix!$A$4,5,0)))) -> 0 | GD23: =IF(BJ23=Listedechoix!$A$1,20,IF(BJ23=Listedechoix!$A$2,15,IF(BJ23=Listedechoix!$A$3,10,IF(BJ23=Listedechoix!$A$4,5,0)))) -> 0 | GE23: =IF(BK23=Listedechoix!$A$1,20,IF(BK23=Listedechoix!$A$2,15,IF(BK23=Listedechoix!$A$3,10,IF(BK23=Listedechoix!$A$4,5,0)))) -> 0 | GF23: =IF(BL23=Listedechoix!$A$1,20,IF(BL23=Listedechoix!$A$2,15,IF(BL23=Listedechoix!$A$3,10,IF(BL23=Listedechoix!$A$4,5,0)))) -> 0 | GG23: =IF(BM23=Listedechoix!$A$1,20,IF(BM23=Listedechoix!$A$2,15,IF(BM23=Listedechoix!$A$3,10,IF(BM23=Listedechoix!$A$4,5,0)))) -> 0 | GH23: =IF(BN23=Listedechoix!$A$1,20,IF(BN23=Listedechoix!$A$2,15,IF(BN23=Listedechoix!$A$3,10,IF(BN23=Listedechoix!$A$4,5,0)))) -> 0 | GI23: NNot | GJ23: NNot | GK23: =IF(BO23=Listedechoix!$A$1,20,IF(BO23=Listedechoix!$A$2,15,IF(BO23=Listedechoix!$A$3,10,IF(BO23=Listedechoix!$A$4,5,0)))) -> 0 | GL23: =IF(BP23=Listedechoix!$A$1,20,IF(BP23=Listedechoix!$A$2,15,IF(BP23=Listedechoix!$A$3,10,IF(BP23=Listedechoix!$A$4,5,0)))) -> 0 | GM23: =IF(BQ23=Listedechoix!$A$1,20,IF(BQ23=Listedechoix!$A$2,15,IF(BQ23=Listedechoix!$A$3,10,IF(BQ23=Listedechoix!$A$4,5,0)))) -> 0 | GN23: =IF(BR23=Listedechoix!$A$1,20,IF(BR23=Listedechoix!$A$2,15,IF(BR23=Listedechoix!$A$3,10,IF(BR23=Listedechoix!$A$4,5,0)))) -> 0 | GO23: =IF(BS23=Listedechoix!$A$1,20,IF(BS23=Listedechoix!$A$2,15,IF(BS23=Listedechoix!$A$3,10,IF(BS23=Listedechoix!$A$4,5,0)))) -> 0 | GP23: =IF(BT23=Listedechoix!$A$1,20,IF(BT23=Listedechoix!$A$2,15,IF(BT23=Listedechoix!$A$3,10,IF(BT23=Listedechoix!$A$4,5,0)))) -> 0 | GQ23: =IF(BU23=Listedechoix!$A$1,20,IF(BU23=Listedechoix!$A$2,15,IF(BU23=Listedechoix!$A$3,10,IF(BU23=Listedechoix!$A$4,5,0)))) -> 0 | GR23: =IF(BV23=Listedechoix!$A$1,20,IF(BV23=Listedechoix!$A$2,15,IF(BV23=Listedechoix!$A$3,10,IF(BV23=Listedechoix!$A$4,5,0)))) -> 0 | GS23: =IF(BW23=Listedechoix!$A$1,20,IF(BW23=Listedechoix!$A$2,15,IF(BW23=Listedechoix!$A$3,10,IF(BW23=Listedechoix!$A$4,5,0)))) -> 0 | GT23: =IF(BX23=Listedechoix!$A$1,20,IF(BX23=Listedechoix!$A$2,15,IF(BX23=Listedechoix!$A$3,10,IF(BX23=Listedechoix!$A$4,5,0)))) -> 0 | GU23: =IF(BY23=Listedechoix!$A$1,20,IF(BY23=Listedechoix!$A$2,15,IF(BY23=Listedechoix!$A$3,10,IF(BY23=Listedechoix!$A$4,5,0)))) -> 0 | GV23: NNot | GW23: NNot | GX23: =IF(BZ23=Listedechoix!$A$1,20,IF(BZ23=Listedechoix!$A$2,15,IF(BZ23=Listedechoix!$A$3,10,IF(BZ23=Listedechoix!$A$4,5,0)))) -> 0 | GY23: =IF(CA23=Listedechoix!$A$1,20,IF(CA23=Listedechoix!$A$2,15,IF(CA23=Listedechoix!$A$3,10,IF(CA23=Listedechoix!$A$4,5,0)))) -> 0 | GZ23: =IF(CB23=Listedechoix!$A$1,20,IF(CB23=Listedechoix!$A$2,15,IF(CB23=Listedechoix!$A$3,10,IF(CB23=Listedechoix!$A$4,5,0)))) -> 0 | HA23: =IF(CC23=Listedechoix!$A$1,20,IF(CC23=Listedechoix!$A$2,15,IF(CC23=Listedechoix!$A$3,10,IF(CC23=Listedechoix!$A$4,5,0)))) -> 0 | HB23: =IF(CD23=Listedechoix!$A$1,20,IF(CD23=Listedechoix!$A$2,15,IF(CD23=Listedechoix!$A$3,10,IF(CD23=Listedechoix!$A$4,5,0)))) -> 0 | HC23: =IF(CE23=Listedechoix!$A$1,20,IF(CE23=Listedechoix!$A$2,15,IF(CE23=Listedechoix!$A$3,10,IF(CE23=Listedechoix!$A$4,5,0)))) -> 0 | HD23: =IF(CF23=Listedechoix!$A$1,20,IF(CF23=Listedechoix!$A$2,15,IF(CF23=Listedechoix!$A$3,10,IF(CF23=Listedechoix!$A$4,5,0)))) -> 0 | HE23: =IF(CG23=Listedechoix!$A$1,20,IF(CG23=Listedechoix!$A$2,15,IF(CG23=Listedechoix!$A$3,10,IF(CG23=Listedechoix!$A$4,5,0)))) -> 0 | HF23: =IF(CH23=Listedechoix!$A$1,20,IF(CH23=Listedechoix!$A$2,15,IF(CH23=Listedechoix!$A$3,10,IF(CH23=Listedechoix!$A$4,5,0)))) -> 0 | HG23: =IF(CI23=Listedechoix!$A$1,20,IF(CI23=Listedechoix!$A$2,15,IF(CI23=Listedechoix!$A$3,10,IF(CI23=Listedechoix!$A$4,5,0)))) -> 0 | HH23: =IF(CJ23=Listedechoix!$A$1,20,IF(CJ23=Listedechoix!$A$2,15,IF(CJ23=Listedechoix!$A$3,10,IF(CJ23=Listedechoix!$A$4,5,0)))) -> 0 | HI23: =IF(CK23=Listedechoix!$A$1,20,IF(CK23=Listedechoix!$A$2,15,IF(CK23=Listedechoix!$A$3,10,IF(CK23=Listedechoix!$A$4,5,0)))) -> 0 | HJ23: =IF(CL23=Listedechoix!$A$1,20,IF(CL23=Listedechoix!$A$2,15,IF(CL23=Listedechoix!$A$3,10,IF(CL23=Listedechoix!$A$4,5,0)))) -> 0 | HK23: =IF(CM23=Listedechoix!$A$1,20,IF(CM23=Listedechoix!$A$2,15,IF(CM23=Listedechoix!$A$3,10,IF(CM23=Listedechoix!$A$4,5,0)))) -> 0 | HL23: NNot | HM23: NNot
CR24: 0 | CX24: 0 | CY24: NNot | DD24: 0 | DE24: NNot | DJ24: 0 | DK24: NNot | DP24: 0 | DQ24: NNot | DR24: =IF(F24=Listedechoix!$A$1,20,IF(F24=Listedechoix!$A$2,15,IF(F24=Listedechoix!$A$3,10,IF(F24=Listedechoix!$A$4,5,0)))) -> 0 | DS24: =IF(G24=Listedechoix!$A$1,20,IF(G24=Listedechoix!$A$2,15,IF(G24=Listedechoix!$A$3,10,IF(G24=Listedechoix!$A$4,5,0)))) -> 0 | DT24: =IF(H24=Listedechoix!$A$1,20,IF(H24=Listedechoix!$A$2,15,IF(H24=Listedechoix!$A$3,10,IF(H24=Listedechoix!$A$4,5,0)))) -> 0 | DU24: =IF(I24=Listedechoix!$A$1,20,IF(I24=Listedechoix!$A$2,15,IF(I24=Listedechoix!$A$3,10,IF(I24=Listedechoix!$A$4,5,0)))) -> 0 | DV24: =IF(J24=Listedechoix!$A$1,20,IF(J24=Listedechoix!$A$2,15,IF(J24=Listedechoix!$A$3,10,IF(J24=Listedechoix!$A$4,5,0)))) -> 0 | DW24: =IF(K24=Listedechoix!$A$1,20,IF(K24=Listedechoix!$A$2,15,IF(K24=Listedechoix!$A$3,10,IF(K24=Listedechoix!$A$4,5,0)))) -> 0 | DX24: =IF(L24=Listedechoix!$A$1,20,IF(L24=Listedechoix!$A$2,15,IF(L24=Listedechoix!$A$3,10,IF(L24=Listedechoix!$A$4,5,0)))) -> 0 | DY24: =IF(M24=Listedechoix!$A$1,20,IF(M24=Listedechoix!$A$2,15,IF(M24=Listedechoix!$A$3,10,IF(M24=Listedechoix!$A$4,5,0)))) -> 0 | DZ24: =IF(N24=Listedechoix!$A$1,20,IF(N24=Listedechoix!$A$2,15,IF(N24=Listedechoix!$A$3,10,IF(N24=Listedechoix!$A$4,5,0)))) -> 0 | EA24: =IF(O24=Listedechoix!$A$1,20,IF(O24=Listedechoix!$A$2,15,IF(O24=Listedechoix!$A$3,10,IF(O24=Listedechoix!$A$4,5,0)))) -> 0 | EB24: =IF(P24=Listedechoix!$A$1,20,IF(P24=Listedechoix!$A$2,15,IF(P24=Listedechoix!$A$3,10,IF(P24=Listedechoix!$A$4,5,0)))) -> 0 | EC24: NNot | ED24: NNot | EE24: =IF(Q24=Listedechoix!$A$1,20,IF(Q24=Listedechoix!$A$2,15,IF(Q24=Listedechoix!$A$3,10,IF(Q24=Listedechoix!$A$4,5,0)))) -> 0 | EF24: =IF(R24=Listedechoix!$A$1,20,IF(R24=Listedechoix!$A$2,15,IF(R24=Listedechoix!$A$3,10,IF(R24=Listedechoix!$A$4,5,0)))) -> 0 | EG24: =IF(S24=Listedechoix!$A$1,20,IF(S24=Listedechoix!$A$2,15,IF(S24=Listedechoix!$A$3,10,IF(S24=Listedechoix!$A$4,5,0)))) -> 0 | EH24: =IF(T24=Listedechoix!$A$1,20,IF(T24=Listedechoix!$A$2,15,IF(T24=Listedechoix!$A$3,10,IF(T24=Listedechoix!$A$4,5,0)))) -> 0 | EI24: =IF(U24=Listedechoix!$A$1,20,IF(U24=Listedechoix!$A$2,15,IF(U24=Listedechoix!$A$3,10,IF(U24=Listedechoix!$A$4,5,0)))) -> 0 | EJ24: =IF(V24=Listedechoix!$A$1,20,IF(V24=Listedechoix!$A$2,15,IF(V24=Listedechoix!$A$3,10,IF(V24=Listedechoix!$A$4,5,0)))) -> 0 | EK24: =IF(W24=Listedechoix!$A$1,20,IF(W24=Listedechoix!$A$2,15,IF(W24=Listedechoix!$A$3,10,IF(W24=Listedechoix!$A$4,5,0)))) -> 0 | EL24: =IF(X24=Listedechoix!$A$1,20,IF(X24=Listedechoix!$A$2,15,IF(X24=Listedechoix!$A$3,10,IF(X24=Listedechoix!$A$4,5,0)))) -> 0 | EM24: =IF(Y24=Listedechoix!$A$1,20,IF(Y24=Listedechoix!$A$2,15,IF(Y24=Listedechoix!$A$3,10,IF(Y24=Listedechoix!$A$4,5,0)))) -> 0 | EN24: =IF(Z24=Listedechoix!$A$1,20,IF(Z24=Listedechoix!$A$2,15,IF(Z24=Listedechoix!$A$3,10,IF(Z24=Listedechoix!$A$4,5,0)))) -> 0 | EO24: =IF(AA24=Listedechoix!$A$1,20,IF(AA24=Listedechoix!$A$2,15,IF(AA24=Listedechoix!$A$3,10,IF(AA24=Listedechoix!$A$4,5,0)))) -> 0 | EP24: NNot | EQ24: NNot | ER24: =IF(AB24=Listedechoix!$A$1,20,IF(AB24=Listedechoix!$A$2,15,IF(AB24=Listedechoix!$A$3,10,IF(AB24=Listedechoix!$A$4,5,0)))) -> 0 | ES24: =IF(AC24=Listedechoix!$A$1,20,IF(AC24=Listedechoix!$A$2,15,IF(AC24=Listedechoix!$A$3,10,IF(AC24=Listedechoix!$A$4,5,0)))) -> 0 | ET24: =IF(AD24=Listedechoix!$A$1,20,IF(AD24=Listedechoix!$A$2,15,IF(AD24=Listedechoix!$A$3,10,IF(AD24=Listedechoix!$A$4,5,0)))) -> 0 | EU24: =IF(AE24=Listedechoix!$A$1,20,IF(AE24=Listedechoix!$A$2,15,IF(AE24=Listedechoix!$A$3,10,IF(AE24=Listedechoix!$A$4,5,0)))) -> 0 | EV24: =IF(AF24=Listedechoix!$A$1,20,IF(AF24=Listedechoix!$A$2,15,IF(AF24=Listedechoix!$A$3,10,IF(AF24=Listedechoix!$A$4,5,0)))) -> 0 | EW24: =IF(AG24=Listedechoix!$A$1,20,IF(AG24=Listedechoix!$A$2,15,IF(AG24=Listedechoix!$A$3,10,IF(AG24=Listedechoix!$A$4,5,0)))) -> 0 | EX24: =IF(AH24=Listedechoix!$A$1,20,IF(AH24=Listedechoix!$A$2,15,IF(AH24=Listedechoix!$A$3,10,IF(AH24=Listedechoix!$A$4,5,0)))) -> 0 | EY24: =IF(AI24=Listedechoix!$A$1,20,IF(AI24=Listedechoix!$A$2,15,IF(AI24=Listedechoix!$A$3,10,IF(AI24=Listedechoix!$A$4,5,0)))) -> 0 | EZ24: =IF(AJ24=Listedechoix!$A$1,20,IF(AJ24=Listedechoix!$A$2,15,IF(AJ24=Listedechoix!$A$3,10,IF(AJ24=Listedechoix!$A$4,5,0)))) -> 0 | FA24: =IF(AK24=Listedechoix!$A$1,20,IF(AK24=Listedechoix!$A$2,15,IF(AK24=Listedechoix!$A$3,10,IF(AK24=Listedechoix!$A$4,5,0)))) -> 0 | FB24: =IF(AL24=Listedechoix!$A$1,20,IF(AL24=Listedechoix!$A$2,15,IF(AL24=Listedechoix!$A$3,10,IF(AL24=Listedechoix!$A$4,5,0)))) -> 0 | FC24: =IF(AM24=Listedechoix!$A$1,20,IF(AM24=Listedechoix!$A$2,15,IF(AM24=Listedechoix!$A$3,10,IF(AM24=Listedechoix!$A$4,5,0)))) -> 0 | FD24: =IF(AN24=Listedechoix!$A$1,20,IF(AN24=Listedechoix!$A$2,15,IF(AN24=Listedechoix!$A$3,10,IF(AN24=Listedechoix!$A$4,5,0)))) -> 0 | FE24: =IF(AO24=Listedechoix!$A$1,20,IF(AO24=Listedechoix!$A$2,15,IF(AO24=Listedechoix!$A$3,10,IF(AO24=Listedechoix!$A$4,5,0)))) -> 0 | FF24: NNot | FG24: NNot | FH24: =IF(AP24=Listedechoix!$A$1,20,IF(AP24=Listedechoix!$A$2,15,IF(AP24=Listedechoix!$A$3,10,IF(AP24=Listedechoix!$A$4,5,0)))) -> 0 | FI24: =IF(AQ24=Listedechoix!$A$1,20,IF(AQ24=Listedechoix!$A$2,15,IF(AQ24=Listedechoix!$A$3,10,IF(AQ24=Listedechoix!$A$4,5,0)))) -> 0 | FJ24: =IF(AR24=Listedechoix!$A$1,20,IF(AR24=Listedechoix!$A$2,15,IF(AR24=Listedechoix!$A$3,10,IF(AR24=Listedechoix!$A$4,5,0)))) -> 0 | FK24: =IF(AS24=Listedechoix!$A$1,20,IF(AS24=Listedechoix!$A$2,15,IF(AS24=Listedechoix!$A$3,10,IF(AS24=Listedechoix!$A$4,5,0)))) -> 0 | FL24: =IF(AT24=Listedechoix!$A$1,20,IF(AT24=Listedechoix!$A$2,15,IF(AT24=Listedechoix!$A$3,10,IF(AT24=Listedechoix!$A$4,5,0)))) -> 0 | FM24: =IF(AU24=Listedechoix!$A$1,20,IF(AU24=Listedechoix!$A$2,15,IF(AU24=Listedechoix!$A$3,10,IF(AU24=Listedechoix!$A$4,5,0)))) -> 0 | FN24: =IF(AV24=Listedechoix!$A$1,20,IF(AV24=Listedechoix!$A$2,15,IF(AV24=Listedechoix!$A$3,10,IF(AV24=Listedechoix!$A$4,5,0)))) -> 0 | FO24: =IF(AW24=Listedechoix!$A$1,20,IF(AW24=Listedechoix!$A$2,15,IF(AW24=Listedechoix!$A$3,10,IF(AW24=Listedechoix!$A$4,5,0)))) -> 0 | FP24: =IF(AX24=Listedechoix!$A$1,20,IF(AX24=Listedechoix!$A$2,15,IF(AX24=Listedechoix!$A$3,10,IF(AX24=Listedechoix!$A$4,5,0)))) -> 0 | FQ24: =IF(AY24=Listedechoix!$A$1,20,IF(AY24=Listedechoix!$A$2,15,IF(AY24=Listedechoix!$A$3,10,IF(AY24=Listedechoix!$A$4,5,0)))) -> 0 | FR24: =IF(AZ24=Listedechoix!$A$1,20,IF(AZ24=Listedechoix!$A$2,15,IF(AZ24=Listedechoix!$A$3,10,IF(AZ24=Listedechoix!$A$4,5,0)))) -> 0 | FS24: =IF(BA24=Listedechoix!$A$1,20,IF(BA24=Listedechoix!$A$2,15,IF(BA24=Listedechoix!$A$3,10,IF(BA24=Listedechoix!$A$4,5,0)))) -> 0 | FT24: =IF(BB24=Listedechoix!$A$1,20,IF(BB24=Listedechoix!$A$2,15,IF(BB24=Listedechoix!$A$3,10,IF(BB24=Listedechoix!$A$4,5,0)))) -> 0 | FU24: =IF(BC24=Listedechoix!$A$1,20,IF(BC24=Listedechoix!$A$2,15,IF(BC24=Listedechoix!$A$3,10,IF(BC24=Listedechoix!$A$4,5,0)))) -> 0 | FV24: NNot | FW24: NNot | FX24: =IF(BD24=Listedechoix!$A$1,20,IF(BD24=Listedechoix!$A$2,15,IF(BD24=Listedechoix!$A$3,10,IF(BD24=Listedechoix!$A$4,5,0)))) -> 0 | FY24: =IF(BE24=Listedechoix!$A$1,20,IF(BE24=Listedechoix!$A$2,15,IF(BE24=Listedechoix!$A$3,10,IF(BE24=Listedechoix!$A$4,5,0)))) -> 0 | FZ24: =IF(BF24=Listedechoix!$A$1,20,IF(BF24=Listedechoix!$A$2,15,IF(BF24=Listedechoix!$A$3,10,IF(BF24=Listedechoix!$A$4,5,0)))) -> 0 | GA24: =IF(BG24=Listedechoix!$A$1,20,IF(BG24=Listedechoix!$A$2,15,IF(BG24=Listedechoix!$A$3,10,IF(BG24=Listedechoix!$A$4,5,0)))) -> 0 | GB24: =IF(BH24=Listedechoix!$A$1,20,IF(BH24=Listedechoix!$A$2,15,IF(BH24=Listedechoix!$A$3,10,IF(BH24=Listedechoix!$A$4,5,0)))) -> 0 | GC24: =IF(BI24=Listedechoix!$A$1,20,IF(BI24=Listedechoix!$A$2,15,IF(BI24=Listedechoix!$A$3,10,IF(BI24=Listedechoix!$A$4,5,0)))) -> 0 | GD24: =IF(BJ24=Listedechoix!$A$1,20,IF(BJ24=Listedechoix!$A$2,15,IF(BJ24=Listedechoix!$A$3,10,IF(BJ24=Listedechoix!$A$4,5,0)))) -> 0 | GE24: =IF(BK24=Listedechoix!$A$1,20,IF(BK24=Listedechoix!$A$2,15,IF(BK24=Listedechoix!$A$3,10,IF(BK24=Listedechoix!$A$4,5,0)))) -> 0 | GF24: =IF(BL24=Listedechoix!$A$1,20,IF(BL24=Listedechoix!$A$2,15,IF(BL24=Listedechoix!$A$3,10,IF(BL24=Listedechoix!$A$4,5,0)))) -> 0 | GG24: =IF(BM24=Listedechoix!$A$1,20,IF(BM24=Listedechoix!$A$2,15,IF(BM24=Listedechoix!$A$3,10,IF(BM24=Listedechoix!$A$4,5,0)))) -> 0 | GH24: =IF(BN24=Listedechoix!$A$1,20,IF(BN24=Listedechoix!$A$2,15,IF(BN24=Listedechoix!$A$3,10,IF(BN24=Listedechoix!$A$4,5,0)))) -> 0 | GI24: NNot | GJ24: NNot | GK24: =IF(BO24=Listedechoix!$A$1,20,IF(BO24=Listedechoix!$A$2,15,IF(BO24=Listedechoix!$A$3,10,IF(BO24=Listedechoix!$A$4,5,0)))) -> 0 | GL24: =IF(BP24=Listedechoix!$A$1,20,IF(BP24=Listedechoix!$A$2,15,IF(BP24=Listedechoix!$A$3,10,IF(BP24=Listedechoix!$A$4,5,0)))) -> 0 | GM24: =IF(BQ24=Listedechoix!$A$1,20,IF(BQ24=Listedechoix!$A$2,15,IF(BQ24=Listedechoix!$A$3,10,IF(BQ24=Listedechoix!$A$4,5,0)))) -> 0 | GN24: =IF(BR24=Listedechoix!$A$1,20,IF(BR24=Listedechoix!$A$2,15,IF(BR24=Listedechoix!$A$3,10,IF(BR24=Listedechoix!$A$4,5,0)))) -> 0 | GO24: =IF(BS24=Listedechoix!$A$1,20,IF(BS24=Listedechoix!$A$2,15,IF(BS24=Listedechoix!$A$3,10,IF(BS24=Listedechoix!$A$4,5,0)))) -> 0 | GP24: =IF(BT24=Listedechoix!$A$1,20,IF(BT24=Listedechoix!$A$2,15,IF(BT24=Listedechoix!$A$3,10,IF(BT24=Listedechoix!$A$4,5,0)))) -> 0 | GQ24: =IF(BU24=Listedechoix!$A$1,20,IF(BU24=Listedechoix!$A$2,15,IF(BU24=Listedechoix!$A$3,10,IF(BU24=Listedechoix!$A$4,5,0)))) -> 0 | GR24: =IF(BV24=Listedechoix!$A$1,20,IF(BV24=Listedechoix!$A$2,15,IF(BV24=Listedechoix!$A$3,10,IF(BV24=Listedechoix!$A$4,5,0)))) -> 0 | GS24: =IF(BW24=Listedechoix!$A$1,20,IF(BW24=Listedechoix!$A$2,15,IF(BW24=Listedechoix!$A$3,10,IF(BW24=Listedechoix!$A$4,5,0)))) -> 0 | GT24: =IF(BX24=Listedechoix!$A$1,20,IF(BX24=Listedechoix!$A$2,15,IF(BX24=Listedechoix!$A$3,10,IF(BX24=Listedechoix!$A$4,5,0)))) -> 0 | GU24: =IF(BY24=Listedechoix!$A$1,20,IF(BY24=Listedechoix!$A$2,15,IF(BY24=Listedechoix!$A$3,10,IF(BY24=Listedechoix!$A$4,5,0)))) -> 0 | GV24: NNot | GW24: NNot | GX24: =IF(BZ24=Listedechoix!$A$1,20,IF(BZ24=Listedechoix!$A$2,15,IF(BZ24=Listedechoix!$A$3,10,IF(BZ24=Listedechoix!$A$4,5,0)))) -> 0 | GY24: =IF(CA24=Listedechoix!$A$1,20,IF(CA24=Listedechoix!$A$2,15,IF(CA24=Listedechoix!$A$3,10,IF(CA24=Listedechoix!$A$4,5,0)))) -> 0 | GZ24: =IF(CB24=Listedechoix!$A$1,20,IF(CB24=Listedechoix!$A$2,15,IF(CB24=Listedechoix!$A$3,10,IF(CB24=Listedechoix!$A$4,5,0)))) -> 0 | HA24: =IF(CC24=Listedechoix!$A$1,20,IF(CC24=Listedechoix!$A$2,15,IF(CC24=Listedechoix!$A$3,10,IF(CC24=Listedechoix!$A$4,5,0)))) -> 0 | HB24: =IF(CD24=Listedechoix!$A$1,20,IF(CD24=Listedechoix!$A$2,15,IF(CD24=Listedechoix!$A$3,10,IF(CD24=Listedechoix!$A$4,5,0)))) -> 0 | HC24: =IF(CE24=Listedechoix!$A$1,20,IF(CE24=Listedechoix!$A$2,15,IF(CE24=Listedechoix!$A$3,10,IF(CE24=Listedechoix!$A$4,5,0)))) -> 0 | HD24: =IF(CF24=Listedechoix!$A$1,20,IF(CF24=Listedechoix!$A$2,15,IF(CF24=Listedechoix!$A$3,10,IF(CF24=Listedechoix!$A$4,5,0)))) -> 0 | HE24: =IF(CG24=Listedechoix!$A$1,20,IF(CG24=Listedechoix!$A$2,15,IF(CG24=Listedechoix!$A$3,10,IF(CG24=Listedechoix!$A$4,5,0)))) -> 0 | HF24: =IF(CH24=Listedechoix!$A$1,20,IF(CH24=Listedechoix!$A$2,15,IF(CH24=Listedechoix!$A$3,10,IF(CH24=Listedechoix!$A$4,5,0)))) -> 0 | HG24: =IF(CI24=Listedechoix!$A$1,20,IF(CI24=Listedechoix!$A$2,15,IF(CI24=Listedechoix!$A$3,10,IF(CI24=Listedechoix!$A$4,5,0)))) -> 0 | HH24: =IF(CJ24=Listedechoix!$A$1,20,IF(CJ24=Listedechoix!$A$2,15,IF(CJ24=Listedechoix!$A$3,10,IF(CJ24=Listedechoix!$A$4,5,0)))) -> 0 | HI24: =IF(CK24=Listedechoix!$A$1,20,IF(CK24=Listedechoix!$A$2,15,IF(CK24=Listedechoix!$A$3,10,IF(CK24=Listedechoix!$A$4,5,0)))) -> 0 | HJ24: =IF(CL24=Listedechoix!$A$1,20,IF(CL24=Listedechoix!$A$2,15,IF(CL24=Listedechoix!$A$3,10,IF(CL24=Listedechoix!$A$4,5,0)))) -> 0 | HK24: =IF(CM24=Listedechoix!$A$1,20,IF(CM24=Listedechoix!$A$2,15,IF(CM24=Listedechoix!$A$3,10,IF(CM24=Listedechoix!$A$4,5,0)))) -> 0 | HL24: NNot | HM24: NNot
CR25: 0 | CX25: 0 | CY25: NNot | DD25: 0 | DE25: NNot | DJ25: 0 | DK25: NNot | DP25: 0 | DQ25: NNot | DR25: =IF(F25=Listedechoix!$A$1,20,IF(F25=Listedechoix!$A$2,15,IF(F25=Listedechoix!$A$3,10,IF(F25=Listedechoix!$A$4,5,0)))) -> 0 | DS25: =IF(G25=Listedechoix!$A$1,20,IF(G25=Listedechoix!$A$2,15,IF(G25=Listedechoix!$A$3,10,IF(G25=Listedechoix!$A$4,5,0)))) -> 0 | DT25: =IF(H25=Listedechoix!$A$1,20,IF(H25=Listedechoix!$A$2,15,IF(H25=Listedechoix!$A$3,10,IF(H25=Listedechoix!$A$4,5,0)))) -> 0 | DU25: =IF(I25=Listedechoix!$A$1,20,IF(I25=Listedechoix!$A$2,15,IF(I25=Listedechoix!$A$3,10,IF(I25=Listedechoix!$A$4,5,0)))) -> 0 | DV25: =IF(J25=Listedechoix!$A$1,20,IF(J25=Listedechoix!$A$2,15,IF(J25=Listedechoix!$A$3,10,IF(J25=Listedechoix!$A$4,5,0)))) -> 0 | DW25: =IF(K25=Listedechoix!$A$1,20,IF(K25=Listedechoix!$A$2,15,IF(K25=Listedechoix!$A$3,10,IF(K25=Listedechoix!$A$4,5,0)))) -> 0 | DX25: =IF(L25=Listedechoix!$A$1,20,IF(L25=Listedechoix!$A$2,15,IF(L25=Listedechoix!$A$3,10,IF(L25=Listedechoix!$A$4,5,0)))) -> 0 | DY25: =IF(M25=Listedechoix!$A$1,20,IF(M25=Listedechoix!$A$2,15,IF(M25=Listedechoix!$A$3,10,IF(M25=Listedechoix!$A$4,5,0)))) -> 0 | DZ25: =IF(N25=Listedechoix!$A$1,20,IF(N25=Listedechoix!$A$2,15,IF(N25=Listedechoix!$A$3,10,IF(N25=Listedechoix!$A$4,5,0)))) -> 0 | EA25: =IF(O25=Listedechoix!$A$1,20,IF(O25=Listedechoix!$A$2,15,IF(O25=Listedechoix!$A$3,10,IF(O25=Listedechoix!$A$4,5,0)))) -> 0 | EB25: =IF(P25=Listedechoix!$A$1,20,IF(P25=Listedechoix!$A$2,15,IF(P25=Listedechoix!$A$3,10,IF(P25=Listedechoix!$A$4,5,0)))) -> 0 | EC25: NNot | ED25: NNot | EE25: =IF(Q25=Listedechoix!$A$1,20,IF(Q25=Listedechoix!$A$2,15,IF(Q25=Listedechoix!$A$3,10,IF(Q25=Listedechoix!$A$4,5,0)))) -> 0 | EF25: =IF(R25=Listedechoix!$A$1,20,IF(R25=Listedechoix!$A$2,15,IF(R25=Listedechoix!$A$3,10,IF(R25=Listedechoix!$A$4,5,0)))) -> 0 | EG25: =IF(S25=Listedechoix!$A$1,20,IF(S25=Listedechoix!$A$2,15,IF(S25=Listedechoix!$A$3,10,IF(S25=Listedechoix!$A$4,5,0)))) -> 0 | EH25: =IF(T25=Listedechoix!$A$1,20,IF(T25=Listedechoix!$A$2,15,IF(T25=Listedechoix!$A$3,10,IF(T25=Listedechoix!$A$4,5,0)))) -> 0 | EI25: =IF(U25=Listedechoix!$A$1,20,IF(U25=Listedechoix!$A$2,15,IF(U25=Listedechoix!$A$3,10,IF(U25=Listedechoix!$A$4,5,0)))) -> 0 | EJ25: =IF(V25=Listedechoix!$A$1,20,IF(V25=Listedechoix!$A$2,15,IF(V25=Listedechoix!$A$3,10,IF(V25=Listedechoix!$A$4,5,0)))) -> 0 | EK25: =IF(W25=Listedechoix!$A$1,20,IF(W25=Listedechoix!$A$2,15,IF(W25=Listedechoix!$A$3,10,IF(W25=Listedechoix!$A$4,5,0)))) -> 0 | EL25: =IF(X25=Listedechoix!$A$1,20,IF(X25=Listedechoix!$A$2,15,IF(X25=Listedechoix!$A$3,10,IF(X25=Listedechoix!$A$4,5,0)))) -> 0 | EM25: =IF(Y25=Listedechoix!$A$1,20,IF(Y25=Listedechoix!$A$2,15,IF(Y25=Listedechoix!$A$3,10,IF(Y25=Listedechoix!$A$4,5,0)))) -> 0 | EN25: =IF(Z25=Listedechoix!$A$1,20,IF(Z25=Listedechoix!$A$2,15,IF(Z25=Listedechoix!$A$3,10,IF(Z25=Listedechoix!$A$4,5,0)))) -> 0 | EO25: =IF(AA25=Listedechoix!$A$1,20,IF(AA25=Listedechoix!$A$2,15,IF(AA25=Listedechoix!$A$3,10,IF(AA25=Listedechoix!$A$4,5,0)))) -> 0 | EP25: NNot | EQ25: NNot | ER25: =IF(AB25=Listedechoix!$A$1,20,IF(AB25=Listedechoix!$A$2,15,IF(AB25=Listedechoix!$A$3,10,IF(AB25=Listedechoix!$A$4,5,0)))) -> 0 | ES25: =IF(AC25=Listedechoix!$A$1,20,IF(AC25=Listedechoix!$A$2,15,IF(AC25=Listedechoix!$A$3,10,IF(AC25=Listedechoix!$A$4,5,0)))) -> 0 | ET25: =IF(AD25=Listedechoix!$A$1,20,IF(AD25=Listedechoix!$A$2,15,IF(AD25=Listedechoix!$A$3,10,IF(AD25=Listedechoix!$A$4,5,0)))) -> 0 | EU25: =IF(AE25=Listedechoix!$A$1,20,IF(AE25=Listedechoix!$A$2,15,IF(AE25=Listedechoix!$A$3,10,IF(AE25=Listedechoix!$A$4,5,0)))) -> 0 | EV25: =IF(AF25=Listedechoix!$A$1,20,IF(AF25=Listedechoix!$A$2,15,IF(AF25=Listedechoix!$A$3,10,IF(AF25=Listedechoix!$A$4,5,0)))) -> 0 | EW25: =IF(AG25=Listedechoix!$A$1,20,IF(AG25=Listedechoix!$A$2,15,IF(AG25=Listedechoix!$A$3,10,IF(AG25=Listedechoix!$A$4,5,0)))) -> 0 | EX25: =IF(AH25=Listedechoix!$A$1,20,IF(AH25=Listedechoix!$A$2,15,IF(AH25=Listedechoix!$A$3,10,IF(AH25=Listedechoix!$A$4,5,0)))) -> 0 | EY25: =IF(AI25=Listedechoix!$A$1,20,IF(AI25=Listedechoix!$A$2,15,IF(AI25=Listedechoix!$A$3,10,IF(AI25=Listedechoix!$A$4,5,0)))) -> 0 | EZ25: =IF(AJ25=Listedechoix!$A$1,20,IF(AJ25=Listedechoix!$A$2,15,IF(AJ25=Listedechoix!$A$3,10,IF(AJ25=Listedechoix!$A$4,5,0)))) -> 0 | FA25: =IF(AK25=Listedechoix!$A$1,20,IF(AK25=Listedechoix!$A$2,15,IF(AK25=Listedechoix!$A$3,10,IF(AK25=Listedechoix!$A$4,5,0)))) -> 0 | FB25: =IF(AL25=Listedechoix!$A$1,20,IF(AL25=Listedechoix!$A$2,15,IF(AL25=Listedechoix!$A$3,10,IF(AL25=Listedechoix!$A$4,5,0)))) -> 0 | FC25: =IF(AM25=Listedechoix!$A$1,20,IF(AM25=Listedechoix!$A$2,15,IF(AM25=Listedechoix!$A$3,10,IF(AM25=Listedechoix!$A$4,5,0)))) -> 0 | FD25: =IF(AN25=Listedechoix!$A$1,20,IF(AN25=Listedechoix!$A$2,15,IF(AN25=Listedechoix!$A$3,10,IF(AN25=Listedechoix!$A$4,5,0)))) -> 0 | FE25: =IF(AO25=Listedechoix!$A$1,20,IF(AO25=Listedechoix!$A$2,15,IF(AO25=Listedechoix!$A$3,10,IF(AO25=Listedechoix!$A$4,5,0)))) -> 0 | FF25: NNot | FG25: NNot | FH25: =IF(AP25=Listedechoix!$A$1,20,IF(AP25=Listedechoix!$A$2,15,IF(AP25=Listedechoix!$A$3,10,IF(AP25=Listedechoix!$A$4,5,0)))) -> 0 | FI25: =IF(AQ25=Listedechoix!$A$1,20,IF(AQ25=Listedechoix!$A$2,15,IF(AQ25=Listedechoix!$A$3,10,IF(AQ25=Listedechoix!$A$4,5,0)))) -> 0 | FJ25: =IF(AR25=Listedechoix!$A$1,20,IF(AR25=Listedechoix!$A$2,15,IF(AR25=Listedechoix!$A$3,10,IF(AR25=Listedechoix!$A$4,5,0)))) -> 0 | FK25: =IF(AS25=Listedechoix!$A$1,20,IF(AS25=Listedechoix!$A$2,15,IF(AS25=Listedechoix!$A$3,10,IF(AS25=Listedechoix!$A$4,5,0)))) -> 0 | FL25: =IF(AT25=Listedechoix!$A$1,20,IF(AT25=Listedechoix!$A$2,15,IF(AT25=Listedechoix!$A$3,10,IF(AT25=Listedechoix!$A$4,5,0)))) -> 0 | FM25: =IF(AU25=Listedechoix!$A$1,20,IF(AU25=Listedechoix!$A$2,15,IF(AU25=Listedechoix!$A$3,10,IF(AU25=Listedechoix!$A$4,5,0)))) -> 0 | FN25: =IF(AV25=Listedechoix!$A$1,20,IF(AV25=Listedechoix!$A$2,15,IF(AV25=Listedechoix!$A$3,10,IF(AV25=Listedechoix!$A$4,5,0)))) -> 0 | FO25: =IF(AW25=Listedechoix!$A$1,20,IF(AW25=Listedechoix!$A$2,15,IF(AW25=Listedechoix!$A$3,10,IF(AW25=Listedechoix!$A$4,5,0)))) -> 0 | FP25: =IF(AX25=Listedechoix!$A$1,20,IF(AX25=Listedechoix!$A$2,15,IF(AX25=Listedechoix!$A$3,10,IF(AX25=Listedechoix!$A$4,5,0)))) -> 0 | FQ25: =IF(AY25=Listedechoix!$A$1,20,IF(AY25=Listedechoix!$A$2,15,IF(AY25=Listedechoix!$A$3,10,IF(AY25=Listedechoix!$A$4,5,0)))) -> 0 | FR25: =IF(AZ25=Listedechoix!$A$1,20,IF(AZ25=Listedechoix!$A$2,15,IF(AZ25=Listedechoix!$A$3,10,IF(AZ25=Listedechoix!$A$4,5,0)))) -> 0 | FS25: =IF(BA25=Listedechoix!$A$1,20,IF(BA25=Listedechoix!$A$2,15,IF(BA25=Listedechoix!$A$3,10,IF(BA25=Listedechoix!$A$4,5,0)))) -> 0 | FT25: =IF(BB25=Listedechoix!$A$1,20,IF(BB25=Listedechoix!$A$2,15,IF(BB25=Listedechoix!$A$3,10,IF(BB25=Listedechoix!$A$4,5,0)))) -> 0 | FU25: =IF(BC25=Listedechoix!$A$1,20,IF(BC25=Listedechoix!$A$2,15,IF(BC25=Listedechoix!$A$3,10,IF(BC25=Listedechoix!$A$4,5,0)))) -> 0 | FV25: NNot | FW25: NNot | FX25: =IF(BD25=Listedechoix!$A$1,20,IF(BD25=Listedechoix!$A$2,15,IF(BD25=Listedechoix!$A$3,10,IF(BD25=Listedechoix!$A$4,5,0)))) -> 0 | FY25: =IF(BE25=Listedechoix!$A$1,20,IF(BE25=Listedechoix!$A$2,15,IF(BE25=Listedechoix!$A$3,10,IF(BE25=Listedechoix!$A$4,5,0)))) -> 0 | FZ25: =IF(BF25=Listedechoix!$A$1,20,IF(BF25=Listedechoix!$A$2,15,IF(BF25=Listedechoix!$A$3,10,IF(BF25=Listedechoix!$A$4,5,0)))) -> 0 | GA25: =IF(BG25=Listedechoix!$A$1,20,IF(BG25=Listedechoix!$A$2,15,IF(BG25=Listedechoix!$A$3,10,IF(BG25=Listedechoix!$A$4,5,0)))) -> 0 | GB25: =IF(BH25=Listedechoix!$A$1,20,IF(BH25=Listedechoix!$A$2,15,IF(BH25=Listedechoix!$A$3,10,IF(BH25=Listedechoix!$A$4,5,0)))) -> 0 | GC25: =IF(BI25=Listedechoix!$A$1,20,IF(BI25=Listedechoix!$A$2,15,IF(BI25=Listedechoix!$A$3,10,IF(BI25=Listedechoix!$A$4,5,0)))) -> 0 | GD25: =IF(BJ25=Listedechoix!$A$1,20,IF(BJ25=Listedechoix!$A$2,15,IF(BJ25=Listedechoix!$A$3,10,IF(BJ25=Listedechoix!$A$4,5,0)))) -> 0 | GE25: =IF(BK25=Listedechoix!$A$1,20,IF(BK25=Listedechoix!$A$2,15,IF(BK25=Listedechoix!$A$3,10,IF(BK25=Listedechoix!$A$4,5,0)))) -> 0 | GF25: =IF(BL25=Listedechoix!$A$1,20,IF(BL25=Listedechoix!$A$2,15,IF(BL25=Listedechoix!$A$3,10,IF(BL25=Listedechoix!$A$4,5,0)))) -> 0 | GG25: =IF(BM25=Listedechoix!$A$1,20,IF(BM25=Listedechoix!$A$2,15,IF(BM25=Listedechoix!$A$3,10,IF(BM25=Listedechoix!$A$4,5,0)))) -> 0 | GH25: =IF(BN25=Listedechoix!$A$1,20,IF(BN25=Listedechoix!$A$2,15,IF(BN25=Listedechoix!$A$3,10,IF(BN25=Listedechoix!$A$4,5,0)))) -> 0 | GI25: NNot | GJ25: NNot | GK25: =IF(BO25=Listedechoix!$A$1,20,IF(BO25=Listedechoix!$A$2,15,IF(BO25=Listedechoix!$A$3,10,IF(BO25=Listedechoix!$A$4,5,0)))) -> 0 | GL25: =IF(BP25=Listedechoix!$A$1,20,IF(BP25=Listedechoix!$A$2,15,IF(BP25=Listedechoix!$A$3,10,IF(BP25=Listedechoix!$A$4,5,0)))) -> 0 | GM25: =IF(BQ25=Listedechoix!$A$1,20,IF(BQ25=Listedechoix!$A$2,15,IF(BQ25=Listedechoix!$A$3,10,IF(BQ25=Listedechoix!$A$4,5,0)))) -> 0 | GN25: =IF(BR25=Listedechoix!$A$1,20,IF(BR25=Listedechoix!$A$2,15,IF(BR25=Listedechoix!$A$3,10,IF(BR25=Listedechoix!$A$4,5,0)))) -> 0 | GO25: =IF(BS25=Listedechoix!$A$1,20,IF(BS25=Listedechoix!$A$2,15,IF(BS25=Listedechoix!$A$3,10,IF(BS25=Listedechoix!$A$4,5,0)))) -> 0 | GP25: =IF(BT25=Listedechoix!$A$1,20,IF(BT25=Listedechoix!$A$2,15,IF(BT25=Listedechoix!$A$3,10,IF(BT25=Listedechoix!$A$4,5,0)))) -> 0 | GQ25: =IF(BU25=Listedechoix!$A$1,20,IF(BU25=Listedechoix!$A$2,15,IF(BU25=Listedechoix!$A$3,10,IF(BU25=Listedechoix!$A$4,5,0)))) -> 0 | GR25: =IF(BV25=Listedechoix!$A$1,20,IF(BV25=Listedechoix!$A$2,15,IF(BV25=Listedechoix!$A$3,10,IF(BV25=Listedechoix!$A$4,5,0)))) -> 0 | GS25: =IF(BW25=Listedechoix!$A$1,20,IF(BW25=Listedechoix!$A$2,15,IF(BW25=Listedechoix!$A$3,10,IF(BW25=Listedechoix!$A$4,5,0)))) -> 0 | GT25: =IF(BX25=Listedechoix!$A$1,20,IF(BX25=Listedechoix!$A$2,15,IF(BX25=Listedechoix!$A$3,10,IF(BX25=Listedechoix!$A$4,5,0)))) -> 0 | GU25: =IF(BY25=Listedechoix!$A$1,20,IF(BY25=Listedechoix!$A$2,15,IF(BY25=Listedechoix!$A$3,10,IF(BY25=Listedechoix!$A$4,5,0)))) -> 0 | GV25: NNot | GW25: NNot | GX25: =IF(BZ25=Listedechoix!$A$1,20,IF(BZ25=Listedechoix!$A$2,15,IF(BZ25=Listedechoix!$A$3,10,IF(BZ25=Listedechoix!$A$4,5,0)))) -> 0 | GY25: =IF(CA25=Listedechoix!$A$1,20,IF(CA25=Listedechoix!$A$2,15,IF(CA25=Listedechoix!$A$3,10,IF(CA25=Listedechoix!$A$4,5,0)))) -> 0 | GZ25: =IF(CB25=Listedechoix!$A$1,20,IF(CB25=Listedechoix!$A$2,15,IF(CB25=Listedechoix!$A$3,10,IF(CB25=Listedechoix!$A$4,5,0)))) -> 0 | HA25: =IF(CC25=Listedechoix!$A$1,20,IF(CC25=Listedechoix!$A$2,15,IF(CC25=Listedechoix!$A$3,10,IF(CC25=Listedechoix!$A$4,5,0)))) -> 0 | HB25: =IF(CD25=Listedechoix!$A$1,20,IF(CD25=Listedechoix!$A$2,15,IF(CD25=Listedechoix!$A$3,10,IF(CD25=Listedechoix!$A$4,5,0)))) -> 0 | HC25: =IF(CE25=Listedechoix!$A$1,20,IF(CE25=Listedechoix!$A$2,15,IF(CE25=Listedechoix!$A$3,10,IF(CE25=Listedechoix!$A$4,5,0)))) -> 0 | HD25: =IF(CF25=Listedechoix!$A$1,20,IF(CF25=Listedechoix!$A$2,15,IF(CF25=Listedechoix!$A$3,10,IF(CF25=Listedechoix!$A$4,5,0)))) -> 0 | HE25: =IF(CG25=Listedechoix!$A$1,20,IF(CG25=Listedechoix!$A$2,15,IF(CG25=Listedechoix!$A$3,10,IF(CG25=Listedechoix!$A$4,5,0)))) -> 0 | HF25: =IF(CH25=Listedechoix!$A$1,20,IF(CH25=Listedechoix!$A$2,15,IF(CH25=Listedechoix!$A$3,10,IF(CH25=Listedechoix!$A$4,5,0)))) -> 0 | HG25: =IF(CI25=Listedechoix!$A$1,20,IF(CI25=Listedechoix!$A$2,15,IF(CI25=Listedechoix!$A$3,10,IF(CI25=Listedechoix!$A$4,5,0)))) -> 0 | HH25: =IF(CJ25=Listedechoix!$A$1,20,IF(CJ25=Listedechoix!$A$2,15,IF(CJ25=Listedechoix!$A$3,10,IF(CJ25=Listedechoix!$A$4,5,0)))) -> 0 | HI25: =IF(CK25=Listedechoix!$A$1,20,IF(CK25=Listedechoix!$A$2,15,IF(CK25=Listedechoix!$A$3,10,IF(CK25=Listedechoix!$A$4,5,0)))) -> 0 | HJ25: =IF(CL25=Listedechoix!$A$1,20,IF(CL25=Listedechoix!$A$2,15,IF(CL25=Listedechoix!$A$3,10,IF(CL25=Listedechoix!$A$4,5,0)))) -> 0 | HK25: =IF(CM25=Listedechoix!$A$1,20,IF(CM25=Listedechoix!$A$2,15,IF(CM25=Listedechoix!$A$3,10,IF(CM25=Listedechoix!$A$4,5,0)))) -> 0 | HL25: NNot | HM25: NNot
CR26: 0 | CX26: 0 | CY26: NNot | DD26: 0 | DE26: NNot | DJ26: 0 | DK26: NNot | DP26: 0 | DQ26: NNot | DR26: =IF(F26=Listedechoix!$A$1,20,IF(F26=Listedechoix!$A$2,15,IF(F26=Listedechoix!$A$3,10,IF(F26=Listedechoix!$A$4,5,0)))) -> 0 | DS26: =IF(G26=Listedechoix!$A$1,20,IF(G26=Listedechoix!$A$2,15,IF(G26=Listedechoix!$A$3,10,IF(G26=Listedechoix!$A$4,5,0)))) -> 0 | DT26: =IF(H26=Listedechoix!$A$1,20,IF(H26=Listedechoix!$A$2,15,IF(H26=Listedechoix!$A$3,10,IF(H26=Listedechoix!$A$4,5,0)))) -> 0 | DU26: =IF(I26=Listedechoix!$A$1,20,IF(I26=Listedechoix!$A$2,15,IF(I26=Listedechoix!$A$3,10,IF(I26=Listedechoix!$A$4,5,0)))) -> 0 | DV26: =IF(J26=Listedechoix!$A$1,20,IF(J26=Listedechoix!$A$2,15,IF(J26=Listedechoix!$A$3,10,IF(J26=Listedechoix!$A$4,5,0)))) -> 0 | DW26: =IF(K26=Listedechoix!$A$1,20,IF(K26=Listedechoix!$A$2,15,IF(K26=Listedechoix!$A$3,10,IF(K26=Listedechoix!$A$4,5,0)))) -> 0 | DX26: =IF(L26=Listedechoix!$A$1,20,IF(L26=Listedechoix!$A$2,15,IF(L26=Listedechoix!$A$3,10,IF(L26=Listedechoix!$A$4,5,0)))) -> 0 | DY26: =IF(M26=Listedechoix!$A$1,20,IF(M26=Listedechoix!$A$2,15,IF(M26=Listedechoix!$A$3,10,IF(M26=Listedechoix!$A$4,5,0)))) -> 0 | DZ26: =IF(N26=Listedechoix!$A$1,20,IF(N26=Listedechoix!$A$2,15,IF(N26=Listedechoix!$A$3,10,IF(N26=Listedechoix!$A$4,5,0)))) -> 0 | EA26: =IF(O26=Listedechoix!$A$1,20,IF(O26=Listedechoix!$A$2,15,IF(O26=Listedechoix!$A$3,10,IF(O26=Listedechoix!$A$4,5,0)))) -> 0 | EB26: =IF(P26=Listedechoix!$A$1,20,IF(P26=Listedechoix!$A$2,15,IF(P26=Listedechoix!$A$3,10,IF(P26=Listedechoix!$A$4,5,0)))) -> 0 | EC26: NNot | ED26: NNot | EE26: =IF(Q26=Listedechoix!$A$1,20,IF(Q26=Listedechoix!$A$2,15,IF(Q26=Listedechoix!$A$3,10,IF(Q26=Listedechoix!$A$4,5,0)))) -> 0 | EF26: =IF(R26=Listedechoix!$A$1,20,IF(R26=Listedechoix!$A$2,15,IF(R26=Listedechoix!$A$3,10,IF(R26=Listedechoix!$A$4,5,0)))) -> 0 | EG26: =IF(S26=Listedechoix!$A$1,20,IF(S26=Listedechoix!$A$2,15,IF(S26=Listedechoix!$A$3,10,IF(S26=Listedechoix!$A$4,5,0)))) -> 0 | EH26: =IF(T26=Listedechoix!$A$1,20,IF(T26=Listedechoix!$A$2,15,IF(T26=Listedechoix!$A$3,10,IF(T26=Listedechoix!$A$4,5,0)))) -> 0 | EI26: =IF(U26=Listedechoix!$A$1,20,IF(U26=Listedechoix!$A$2,15,IF(U26=Listedechoix!$A$3,10,IF(U26=Listedechoix!$A$4,5,0)))) -> 0 | EJ26: =IF(V26=Listedechoix!$A$1,20,IF(V26=Listedechoix!$A$2,15,IF(V26=Listedechoix!$A$3,10,IF(V26=Listedechoix!$A$4,5,0)))) -> 0 | EK26: =IF(W26=Listedechoix!$A$1,20,IF(W26=Listedechoix!$A$2,15,IF(W26=Listedechoix!$A$3,10,IF(W26=Listedechoix!$A$4,5,0)))) -> 0 | EL26: =IF(X26=Listedechoix!$A$1,20,IF(X26=Listedechoix!$A$2,15,IF(X26=Listedechoix!$A$3,10,IF(X26=Listedechoix!$A$4,5,0)))) -> 0 | EM26: =IF(Y26=Listedechoix!$A$1,20,IF(Y26=Listedechoix!$A$2,15,IF(Y26=Listedechoix!$A$3,10,IF(Y26=Listedechoix!$A$4,5,0)))) -> 0 | EN26: =IF(Z26=Listedechoix!$A$1,20,IF(Z26=Listedechoix!$A$2,15,IF(Z26=Listedechoix!$A$3,10,IF(Z26=Listedechoix!$A$4,5,0)))) -> 0 | EO26: =IF(AA26=Listedechoix!$A$1,20,IF(AA26=Listedechoix!$A$2,15,IF(AA26=Listedechoix!$A$3,10,IF(AA26=Listedechoix!$A$4,5,0)))) -> 0 | EP26: NNot | EQ26: NNot | ER26: =IF(AB26=Listedechoix!$A$1,20,IF(AB26=Listedechoix!$A$2,15,IF(AB26=Listedechoix!$A$3,10,IF(AB26=Listedechoix!$A$4,5,0)))) -> 0 | ES26: =IF(AC26=Listedechoix!$A$1,20,IF(AC26=Listedechoix!$A$2,15,IF(AC26=Listedechoix!$A$3,10,IF(AC26=Listedechoix!$A$4,5,0)))) -> 0 | ET26: =IF(AD26=Listedechoix!$A$1,20,IF(AD26=Listedechoix!$A$2,15,IF(AD26=Listedechoix!$A$3,10,IF(AD26=Listedechoix!$A$4,5,0)))) -> 0 | EU26: =IF(AE26=Listedechoix!$A$1,20,IF(AE26=Listedechoix!$A$2,15,IF(AE26=Listedechoix!$A$3,10,IF(AE26=Listedechoix!$A$4,5,0)))) -> 0 | EV26: =IF(AF26=Listedechoix!$A$1,20,IF(AF26=Listedechoix!$A$2,15,IF(AF26=Listedechoix!$A$3,10,IF(AF26=Listedechoix!$A$4,5,0)))) -> 0 | EW26: =IF(AG26=Listedechoix!$A$1,20,IF(AG26=Listedechoix!$A$2,15,IF(AG26=Listedechoix!$A$3,10,IF(AG26=Listedechoix!$A$4,5,0)))) -> 0 | EX26: =IF(AH26=Listedechoix!$A$1,20,IF(AH26=Listedechoix!$A$2,15,IF(AH26=Listedechoix!$A$3,10,IF(AH26=Listedechoix!$A$4,5,0)))) -> 0 | EY26: =IF(AI26=Listedechoix!$A$1,20,IF(AI26=Listedechoix!$A$2,15,IF(AI26=Listedechoix!$A$3,10,IF(AI26=Listedechoix!$A$4,5,0)))) -> 0 | EZ26: =IF(AJ26=Listedechoix!$A$1,20,IF(AJ26=Listedechoix!$A$2,15,IF(AJ26=Listedechoix!$A$3,10,IF(AJ26=Listedechoix!$A$4,5,0)))) -> 0 | FA26: =IF(AK26=Listedechoix!$A$1,20,IF(AK26=Listedechoix!$A$2,15,IF(AK26=Listedechoix!$A$3,10,IF(AK26=Listedechoix!$A$4,5,0)))) -> 0 | FB26: =IF(AL26=Listedechoix!$A$1,20,IF(AL26=Listedechoix!$A$2,15,IF(AL26=Listedechoix!$A$3,10,IF(AL26=Listedechoix!$A$4,5,0)))) -> 0 | FC26: =IF(AM26=Listedechoix!$A$1,20,IF(AM26=Listedechoix!$A$2,15,IF(AM26=Listedechoix!$A$3,10,IF(AM26=Listedechoix!$A$4,5,0)))) -> 0 | FD26: =IF(AN26=Listedechoix!$A$1,20,IF(AN26=Listedechoix!$A$2,15,IF(AN26=Listedechoix!$A$3,10,IF(AN26=Listedechoix!$A$4,5,0)))) -> 0 | FE26: =IF(AO26=Listedechoix!$A$1,20,IF(AO26=Listedechoix!$A$2,15,IF(AO26=Listedechoix!$A$3,10,IF(AO26=Listedechoix!$A$4,5,0)))) -> 0 | FF26: NNot | FG26: NNot | FH26: =IF(AP26=Listedechoix!$A$1,20,IF(AP26=Listedechoix!$A$2,15,IF(AP26=Listedechoix!$A$3,10,IF(AP26=Listedechoix!$A$4,5,0)))) -> 0 | FI26: =IF(AQ26=Listedechoix!$A$1,20,IF(AQ26=Listedechoix!$A$2,15,IF(AQ26=Listedechoix!$A$3,10,IF(AQ26=Listedechoix!$A$4,5,0)))) -> 0 | FJ26: =IF(AR26=Listedechoix!$A$1,20,IF(AR26=Listedechoix!$A$2,15,IF(AR26=Listedechoix!$A$3,10,IF(AR26=Listedechoix!$A$4,5,0)))) -> 0 | FK26: =IF(AS26=Listedechoix!$A$1,20,IF(AS26=Listedechoix!$A$2,15,IF(AS26=Listedechoix!$A$3,10,IF(AS26=Listedechoix!$A$4,5,0)))) -> 0 | FL26: =IF(AT26=Listedechoix!$A$1,20,IF(AT26=Listedechoix!$A$2,15,IF(AT26=Listedechoix!$A$3,10,IF(AT26=Listedechoix!$A$4,5,0)))) -> 0 | FM26: =IF(AU26=Listedechoix!$A$1,20,IF(AU26=Listedechoix!$A$2,15,IF(AU26=Listedechoix!$A$3,10,IF(AU26=Listedechoix!$A$4,5,0)))) -> 0 | FN26: =IF(AV26=Listedechoix!$A$1,20,IF(AV26=Listedechoix!$A$2,15,IF(AV26=Listedechoix!$A$3,10,IF(AV26=Listedechoix!$A$4,5,0)))) -> 0 | FO26: =IF(AW26=Listedechoix!$A$1,20,IF(AW26=Listedechoix!$A$2,15,IF(AW26=Listedechoix!$A$3,10,IF(AW26=Listedechoix!$A$4,5,0)))) -> 0 | FP26: =IF(AX26=Listedechoix!$A$1,20,IF(AX26=Listedechoix!$A$2,15,IF(AX26=Listedechoix!$A$3,10,IF(AX26=Listedechoix!$A$4,5,0)))) -> 0 | FQ26: =IF(AY26=Listedechoix!$A$1,20,IF(AY26=Listedechoix!$A$2,15,IF(AY26=Listedechoix!$A$3,10,IF(AY26=Listedechoix!$A$4,5,0)))) -> 0 | FR26: =IF(AZ26=Listedechoix!$A$1,20,IF(AZ26=Listedechoix!$A$2,15,IF(AZ26=Listedechoix!$A$3,10,IF(AZ26=Listedechoix!$A$4,5,0)))) -> 0 | FS26: =IF(BA26=Listedechoix!$A$1,20,IF(BA26=Listedechoix!$A$2,15,IF(BA26=Listedechoix!$A$3,10,IF(BA26=Listedechoix!$A$4,5,0)))) -> 0 | FT26: =IF(BB26=Listedechoix!$A$1,20,IF(BB26=Listedechoix!$A$2,15,IF(BB26=Listedechoix!$A$3,10,IF(BB26=Listedechoix!$A$4,5,0)))) -> 0 | FU26: =IF(BC26=Listedechoix!$A$1,20,IF(BC26=Listedechoix!$A$2,15,IF(BC26=Listedechoix!$A$3,10,IF(BC26=Listedechoix!$A$4,5,0)))) -> 0 | FV26: NNot | FW26: NNot | FX26: =IF(BD26=Listedechoix!$A$1,20,IF(BD26=Listedechoix!$A$2,15,IF(BD26=Listedechoix!$A$3,10,IF(BD26=Listedechoix!$A$4,5,0)))) -> 0 | FY26: =IF(BE26=Listedechoix!$A$1,20,IF(BE26=Listedechoix!$A$2,15,IF(BE26=Listedechoix!$A$3,10,IF(BE26=Listedechoix!$A$4,5,0)))) -> 0 | FZ26: =IF(BF26=Listedechoix!$A$1,20,IF(BF26=Listedechoix!$A$2,15,IF(BF26=Listedechoix!$A$3,10,IF(BF26=Listedechoix!$A$4,5,0)))) -> 0 | GA26: =IF(BG26=Listedechoix!$A$1,20,IF(BG26=Listedechoix!$A$2,15,IF(BG26=Listedechoix!$A$3,10,IF(BG26=Listedechoix!$A$4,5,0)))) -> 0 | GB26: =IF(BH26=Listedechoix!$A$1,20,IF(BH26=Listedechoix!$A$2,15,IF(BH26=Listedechoix!$A$3,10,IF(BH26=Listedechoix!$A$4,5,0)))) -> 0 | GC26: =IF(BI26=Listedechoix!$A$1,20,IF(BI26=Listedechoix!$A$2,15,IF(BI26=Listedechoix!$A$3,10,IF(BI26=Listedechoix!$A$4,5,0)))) -> 0 | GD26: =IF(BJ26=Listedechoix!$A$1,20,IF(BJ26=Listedechoix!$A$2,15,IF(BJ26=Listedechoix!$A$3,10,IF(BJ26=Listedechoix!$A$4,5,0)))) -> 0 | GE26: =IF(BK26=Listedechoix!$A$1,20,IF(BK26=Listedechoix!$A$2,15,IF(BK26=Listedechoix!$A$3,10,IF(BK26=Listedechoix!$A$4,5,0)))) -> 0 | GF26: =IF(BL26=Listedechoix!$A$1,20,IF(BL26=Listedechoix!$A$2,15,IF(BL26=Listedechoix!$A$3,10,IF(BL26=Listedechoix!$A$4,5,0)))) -> 0 | GG26: =IF(BM26=Listedechoix!$A$1,20,IF(BM26=Listedechoix!$A$2,15,IF(BM26=Listedechoix!$A$3,10,IF(BM26=Listedechoix!$A$4,5,0)))) -> 0 | GH26: =IF(BN26=Listedechoix!$A$1,20,IF(BN26=Listedechoix!$A$2,15,IF(BN26=Listedechoix!$A$3,10,IF(BN26=Listedechoix!$A$4,5,0)))) -> 0 | GI26: NNot | GJ26: NNot | GK26: =IF(BO26=Listedechoix!$A$1,20,IF(BO26=Listedechoix!$A$2,15,IF(BO26=Listedechoix!$A$3,10,IF(BO26=Listedechoix!$A$4,5,0)))) -> 0 | GL26: =IF(BP26=Listedechoix!$A$1,20,IF(BP26=Listedechoix!$A$2,15,IF(BP26=Listedechoix!$A$3,10,IF(BP26=Listedechoix!$A$4,5,0)))) -> 0 | GM26: =IF(BQ26=Listedechoix!$A$1,20,IF(BQ26=Listedechoix!$A$2,15,IF(BQ26=Listedechoix!$A$3,10,IF(BQ26=Listedechoix!$A$4,5,0)))) -> 0 | GN26: =IF(BR26=Listedechoix!$A$1,20,IF(BR26=Listedechoix!$A$2,15,IF(BR26=Listedechoix!$A$3,10,IF(BR26=Listedechoix!$A$4,5,0)))) -> 0 | GO26: =IF(BS26=Listedechoix!$A$1,20,IF(BS26=Listedechoix!$A$2,15,IF(BS26=Listedechoix!$A$3,10,IF(BS26=Listedechoix!$A$4,5,0)))) -> 0 | GP26: =IF(BT26=Listedechoix!$A$1,20,IF(BT26=Listedechoix!$A$2,15,IF(BT26=Listedechoix!$A$3,10,IF(BT26=Listedechoix!$A$4,5,0)))) -> 0 | GQ26: =IF(BU26=Listedechoix!$A$1,20,IF(BU26=Listedechoix!$A$2,15,IF(BU26=Listedechoix!$A$3,10,IF(BU26=Listedechoix!$A$4,5,0)))) -> 0 | GR26: =IF(BV26=Listedechoix!$A$1,20,IF(BV26=Listedechoix!$A$2,15,IF(BV26=Listedechoix!$A$3,10,IF(BV26=Listedechoix!$A$4,5,0)))) -> 0 | GS26: =IF(BW26=Listedechoix!$A$1,20,IF(BW26=Listedechoix!$A$2,15,IF(BW26=Listedechoix!$A$3,10,IF(BW26=Listedechoix!$A$4,5,0)))) -> 0 | GT26: =IF(BX26=Listedechoix!$A$1,20,IF(BX26=Listedechoix!$A$2,15,IF(BX26=Listedechoix!$A$3,10,IF(BX26=Listedechoix!$A$4,5,0)))) -> 0 | GU26: =IF(BY26=Listedechoix!$A$1,20,IF(BY26=Listedechoix!$A$2,15,IF(BY26=Listedechoix!$A$3,10,IF(BY26=Listedechoix!$A$4,5,0)))) -> 0 | GV26: NNot | GW26: NNot | GX26: =IF(BZ26=Listedechoix!$A$1,20,IF(BZ26=Listedechoix!$A$2,15,IF(BZ26=Listedechoix!$A$3,10,IF(BZ26=Listedechoix!$A$4,5,0)))) -> 0 | GY26: =IF(CA26=Listedechoix!$A$1,20,IF(CA26=Listedechoix!$A$2,15,IF(CA26=Listedechoix!$A$3,10,IF(CA26=Listedechoix!$A$4,5,0)))) -> 0 | GZ26: =IF(CB26=Listedechoix!$A$1,20,IF(CB26=Listedechoix!$A$2,15,IF(CB26=Listedechoix!$A$3,10,IF(CB26=Listedechoix!$A$4,5,0)))) -> 0 | HA26: =IF(CC26=Listedechoix!$A$1,20,IF(CC26=Listedechoix!$A$2,15,IF(CC26=Listedechoix!$A$3,10,IF(CC26=Listedechoix!$A$4,5,0)))) -> 0 | HB26: =IF(CD26=Listedechoix!$A$1,20,IF(CD26=Listedechoix!$A$2,15,IF(CD26=Listedechoix!$A$3,10,IF(CD26=Listedechoix!$A$4,5,0)))) -> 0 | HC26: =IF(CE26=Listedechoix!$A$1,20,IF(CE26=Listedechoix!$A$2,15,IF(CE26=Listedechoix!$A$3,10,IF(CE26=Listedechoix!$A$4,5,0)))) -> 0 | HD26: =IF(CF26=Listedechoix!$A$1,20,IF(CF26=Listedechoix!$A$2,15,IF(CF26=Listedechoix!$A$3,10,IF(CF26=Listedechoix!$A$4,5,0)))) -> 0 | HE26: =IF(CG26=Listedechoix!$A$1,20,IF(CG26=Listedechoix!$A$2,15,IF(CG26=Listedechoix!$A$3,10,IF(CG26=Listedechoix!$A$4,5,0)))) -> 0 | HF26: =IF(CH26=Listedechoix!$A$1,20,IF(CH26=Listedechoix!$A$2,15,IF(CH26=Listedechoix!$A$3,10,IF(CH26=Listedechoix!$A$4,5,0)))) -> 0 | HG26: =IF(CI26=Listedechoix!$A$1,20,IF(CI26=Listedechoix!$A$2,15,IF(CI26=Listedechoix!$A$3,10,IF(CI26=Listedechoix!$A$4,5,0)))) -> 0 | HH26: =IF(CJ26=Listedechoix!$A$1,20,IF(CJ26=Listedechoix!$A$2,15,IF(CJ26=Listedechoix!$A$3,10,IF(CJ26=Listedechoix!$A$4,5,0)))) -> 0 | HI26: =IF(CK26=Listedechoix!$A$1,20,IF(CK26=Listedechoix!$A$2,15,IF(CK26=Listedechoix!$A$3,10,IF(CK26=Listedechoix!$A$4,5,0)))) -> 0 | HJ26: =IF(CL26=Listedechoix!$A$1,20,IF(CL26=Listedechoix!$A$2,15,IF(CL26=Listedechoix!$A$3,10,IF(CL26=Listedechoix!$A$4,5,0)))) -> 0 | HK26: =IF(CM26=Listedechoix!$A$1,20,IF(CM26=Listedechoix!$A$2,15,IF(CM26=Listedechoix!$A$3,10,IF(CM26=Listedechoix!$A$4,5,0)))) -> 0 | HL26: NNot | HM26: NNot
CR27: 0 | CX27: 0 | CY27: NNot | DD27: 0 | DE27: NNot | DJ27: 0 | DK27: NNot | DP27: 0 | DQ27: NNot | DR27: =IF(F27=Listedechoix!$A$1,20,IF(F27=Listedechoix!$A$2,15,IF(F27=Listedechoix!$A$3,10,IF(F27=Listedechoix!$A$4,5,0)))) -> 0 | DS27: =IF(G27=Listedechoix!$A$1,20,IF(G27=Listedechoix!$A$2,15,IF(G27=Listedechoix!$A$3,10,IF(G27=Listedechoix!$A$4,5,0)))) -> 0 | DT27: =IF(H27=Listedechoix!$A$1,20,IF(H27=Listedechoix!$A$2,15,IF(H27=Listedechoix!$A$3,10,IF(H27=Listedechoix!$A$4,5,0)))) -> 0 | DU27: =IF(I27=Listedechoix!$A$1,20,IF(I27=Listedechoix!$A$2,15,IF(I27=Listedechoix!$A$3,10,IF(I27=Listedechoix!$A$4,5,0)))) -> 0 | DV27: =IF(J27=Listedechoix!$A$1,20,IF(J27=Listedechoix!$A$2,15,IF(J27=Listedechoix!$A$3,10,IF(J27=Listedechoix!$A$4,5,0)))) -> 0 | DW27: =IF(K27=Listedechoix!$A$1,20,IF(K27=Listedechoix!$A$2,15,IF(K27=Listedechoix!$A$3,10,IF(K27=Listedechoix!$A$4,5,0)))) -> 0 | DX27: =IF(L27=Listedechoix!$A$1,20,IF(L27=Listedechoix!$A$2,15,IF(L27=Listedechoix!$A$3,10,IF(L27=Listedechoix!$A$4,5,0)))) -> 0 | DY27: =IF(M27=Listedechoix!$A$1,20,IF(M27=Listedechoix!$A$2,15,IF(M27=Listedechoix!$A$3,10,IF(M27=Listedechoix!$A$4,5,0)))) -> 0 | DZ27: =IF(N27=Listedechoix!$A$1,20,IF(N27=Listedechoix!$A$2,15,IF(N27=Listedechoix!$A$3,10,IF(N27=Listedechoix!$A$4,5,0)))) -> 0 | EA27: =IF(O27=Listedechoix!$A$1,20,IF(O27=Listedechoix!$A$2,15,IF(O27=Listedechoix!$A$3,10,IF(O27=Listedechoix!$A$4,5,0)))) -> 0 | EB27: =IF(P27=Listedechoix!$A$1,20,IF(P27=Listedechoix!$A$2,15,IF(P27=Listedechoix!$A$3,10,IF(P27=Listedechoix!$A$4,5,0)))) -> 0 | EC27: NNot | ED27: NNot | EE27: =IF(Q27=Listedechoix!$A$1,20,IF(Q27=Listedechoix!$A$2,15,IF(Q27=Listedechoix!$A$3,10,IF(Q27=Listedechoix!$A$4,5,0)))) -> 0 | EF27: =IF(R27=Listedechoix!$A$1,20,IF(R27=Listedechoix!$A$2,15,IF(R27=Listedechoix!$A$3,10,IF(R27=Listedechoix!$A$4,5,0)))) -> 0 | EG27: =IF(S27=Listedechoix!$A$1,20,IF(S27=Listedechoix!$A$2,15,IF(S27=Listedechoix!$A$3,10,IF(S27=Listedechoix!$A$4,5,0)))) -> 0 | EH27: =IF(T27=Listedechoix!$A$1,20,IF(T27=Listedechoix!$A$2,15,IF(T27=Listedechoix!$A$3,10,IF(T27=Listedechoix!$A$4,5,0)))) -> 0 | EI27: =IF(U27=Listedechoix!$A$1,20,IF(U27=Listedechoix!$A$2,15,IF(U27=Listedechoix!$A$3,10,IF(U27=Listedechoix!$A$4,5,0)))) -> 0 | EJ27: =IF(V27=Listedechoix!$A$1,20,IF(V27=Listedechoix!$A$2,15,IF(V27=Listedechoix!$A$3,10,IF(V27=Listedechoix!$A$4,5,0)))) -> 0 | EK27: =IF(W27=Listedechoix!$A$1,20,IF(W27=Listedechoix!$A$2,15,IF(W27=Listedechoix!$A$3,10,IF(W27=Listedechoix!$A$4,5,0)))) -> 0 | EL27: =IF(X27=Listedechoix!$A$1,20,IF(X27=Listedechoix!$A$2,15,IF(X27=Listedechoix!$A$3,10,IF(X27=Listedechoix!$A$4,5,0)))) -> 0 | EM27: =IF(Y27=Listedechoix!$A$1,20,IF(Y27=Listedechoix!$A$2,15,IF(Y27=Listedechoix!$A$3,10,IF(Y27=Listedechoix!$A$4,5,0)))) -> 0 | EN27: =IF(Z27=Listedechoix!$A$1,20,IF(Z27=Listedechoix!$A$2,15,IF(Z27=Listedechoix!$A$3,10,IF(Z27=Listedechoix!$A$4,5,0)))) -> 0 | EO27: =IF(AA27=Listedechoix!$A$1,20,IF(AA27=Listedechoix!$A$2,15,IF(AA27=Listedechoix!$A$3,10,IF(AA27=Listedechoix!$A$4,5,0)))) -> 0 | EP27: NNot | EQ27: NNot | ER27: =IF(AB27=Listedechoix!$A$1,20,IF(AB27=Listedechoix!$A$2,15,IF(AB27=Listedechoix!$A$3,10,IF(AB27=Listedechoix!$A$4,5,0)))) -> 0 | ES27: =IF(AC27=Listedechoix!$A$1,20,IF(AC27=Listedechoix!$A$2,15,IF(AC27=Listedechoix!$A$3,10,IF(AC27=Listedechoix!$A$4,5,0)))) -> 0 | ET27: =IF(AD27=Listedechoix!$A$1,20,IF(AD27=Listedechoix!$A$2,15,IF(AD27=Listedechoix!$A$3,10,IF(AD27=Listedechoix!$A$4,5,0)))) -> 0 | EU27: =IF(AE27=Listedechoix!$A$1,20,IF(AE27=Listedechoix!$A$2,15,IF(AE27=Listedechoix!$A$3,10,IF(AE27=Listedechoix!$A$4,5,0)))) -> 0 | EV27: =IF(AF27=Listedechoix!$A$1,20,IF(AF27=Listedechoix!$A$2,15,IF(AF27=Listedechoix!$A$3,10,IF(AF27=Listedechoix!$A$4,5,0)))) -> 0 | EW27: =IF(AG27=Listedechoix!$A$1,20,IF(AG27=Listedechoix!$A$2,15,IF(AG27=Listedechoix!$A$3,10,IF(AG27=Listedechoix!$A$4,5,0)))) -> 0 | EX27: =IF(AH27=Listedechoix!$A$1,20,IF(AH27=Listedechoix!$A$2,15,IF(AH27=Listedechoix!$A$3,10,IF(AH27=Listedechoix!$A$4,5,0)))) -> 0 | EY27: =IF(AI27=Listedechoix!$A$1,20,IF(AI27=Listedechoix!$A$2,15,IF(AI27=Listedechoix!$A$3,10,IF(AI27=Listedechoix!$A$4,5,0)))) -> 0 | EZ27: =IF(AJ27=Listedechoix!$A$1,20,IF(AJ27=Listedechoix!$A$2,15,IF(AJ27=Listedechoix!$A$3,10,IF(AJ27=Listedechoix!$A$4,5,0)))) -> 0 | FA27: =IF(AK27=Listedechoix!$A$1,20,IF(AK27=Listedechoix!$A$2,15,IF(AK27=Listedechoix!$A$3,10,IF(AK27=Listedechoix!$A$4,5,0)))) -> 0 | FB27: =IF(AL27=Listedechoix!$A$1,20,IF(AL27=Listedechoix!$A$2,15,IF(AL27=Listedechoix!$A$3,10,IF(AL27=Listedechoix!$A$4,5,0)))) -> 0 | FC27: =IF(AM27=Listedechoix!$A$1,20,IF(AM27=Listedechoix!$A$2,15,IF(AM27=Listedechoix!$A$3,10,IF(AM27=Listedechoix!$A$4,5,0)))) -> 0 | FD27: =IF(AN27=Listedechoix!$A$1,20,IF(AN27=Listedechoix!$A$2,15,IF(AN27=Listedechoix!$A$3,10,IF(AN27=Listedechoix!$A$4,5,0)))) -> 0 | FE27: =IF(AO27=Listedechoix!$A$1,20,IF(AO27=Listedechoix!$A$2,15,IF(AO27=Listedechoix!$A$3,10,IF(AO27=Listedechoix!$A$4,5,0)))) -> 0 | FF27: NNot | FG27: NNot | FH27: =IF(AP27=Listedechoix!$A$1,20,IF(AP27=Listedechoix!$A$2,15,IF(AP27=Listedechoix!$A$3,10,IF(AP27=Listedechoix!$A$4,5,0)))) -> 0 | FI27: =IF(AQ27=Listedechoix!$A$1,20,IF(AQ27=Listedechoix!$A$2,15,IF(AQ27=Listedechoix!$A$3,10,IF(AQ27=Listedechoix!$A$4,5,0)))) -> 0 | FJ27: =IF(AR27=Listedechoix!$A$1,20,IF(AR27=Listedechoix!$A$2,15,IF(AR27=Listedechoix!$A$3,10,IF(AR27=Listedechoix!$A$4,5,0)))) -> 0 | FK27: =IF(AS27=Listedechoix!$A$1,20,IF(AS27=Listedechoix!$A$2,15,IF(AS27=Listedechoix!$A$3,10,IF(AS27=Listedechoix!$A$4,5,0)))) -> 0 | FL27: =IF(AT27=Listedechoix!$A$1,20,IF(AT27=Listedechoix!$A$2,15,IF(AT27=Listedechoix!$A$3,10,IF(AT27=Listedechoix!$A$4,5,0)))) -> 0 | FM27: =IF(AU27=Listedechoix!$A$1,20,IF(AU27=Listedechoix!$A$2,15,IF(AU27=Listedechoix!$A$3,10,IF(AU27=Listedechoix!$A$4,5,0)))) -> 0 | FN27: =IF(AV27=Listedechoix!$A$1,20,IF(AV27=Listedechoix!$A$2,15,IF(AV27=Listedechoix!$A$3,10,IF(AV27=Listedechoix!$A$4,5,0)))) -> 0 | FO27: =IF(AW27=Listedechoix!$A$1,20,IF(AW27=Listedechoix!$A$2,15,IF(AW27=Listedechoix!$A$3,10,IF(AW27=Listedechoix!$A$4,5,0)))) -> 0 | FP27: =IF(AX27=Listedechoix!$A$1,20,IF(AX27=Listedechoix!$A$2,15,IF(AX27=Listedechoix!$A$3,10,IF(AX27=Listedechoix!$A$4,5,0)))) -> 0 | FQ27: =IF(AY27=Listedechoix!$A$1,20,IF(AY27=Listedechoix!$A$2,15,IF(AY27=Listedechoix!$A$3,10,IF(AY27=Listedechoix!$A$4,5,0)))) -> 0 | FR27: =IF(AZ27=Listedechoix!$A$1,20,IF(AZ27=Listedechoix!$A$2,15,IF(AZ27=Listedechoix!$A$3,10,IF(AZ27=Listedechoix!$A$4,5,0)))) -> 0 | FS27: =IF(BA27=Listedechoix!$A$1,20,IF(BA27=Listedechoix!$A$2,15,IF(BA27=Listedechoix!$A$3,10,IF(BA27=Listedechoix!$A$4,5,0)))) -> 0 | FT27: =IF(BB27=Listedechoix!$A$1,20,IF(BB27=Listedechoix!$A$2,15,IF(BB27=Listedechoix!$A$3,10,IF(BB27=Listedechoix!$A$4,5,0)))) -> 0 | FU27: =IF(BC27=Listedechoix!$A$1,20,IF(BC27=Listedechoix!$A$2,15,IF(BC27=Listedechoix!$A$3,10,IF(BC27=Listedechoix!$A$4,5,0)))) -> 0 | FV27: NNot | FW27: NNot | FX27: =IF(BD27=Listedechoix!$A$1,20,IF(BD27=Listedechoix!$A$2,15,IF(BD27=Listedechoix!$A$3,10,IF(BD27=Listedechoix!$A$4,5,0)))) -> 0 | FY27: =IF(BE27=Listedechoix!$A$1,20,IF(BE27=Listedechoix!$A$2,15,IF(BE27=Listedechoix!$A$3,10,IF(BE27=Listedechoix!$A$4,5,0)))) -> 0 | FZ27: =IF(BF27=Listedechoix!$A$1,20,IF(BF27=Listedechoix!$A$2,15,IF(BF27=Listedechoix!$A$3,10,IF(BF27=Listedechoix!$A$4,5,0)))) -> 0 | GA27: =IF(BG27=Listedechoix!$A$1,20,IF(BG27=Listedechoix!$A$2,15,IF(BG27=Listedechoix!$A$3,10,IF(BG27=Listedechoix!$A$4,5,0)))) -> 0 | GB27: =IF(BH27=Listedechoix!$A$1,20,IF(BH27=Listedechoix!$A$2,15,IF(BH27=Listedechoix!$A$3,10,IF(BH27=Listedechoix!$A$4,5,0)))) -> 0 | GC27: =IF(BI27=Listedechoix!$A$1,20,IF(BI27=Listedechoix!$A$2,15,IF(BI27=Listedechoix!$A$3,10,IF(BI27=Listedechoix!$A$4,5,0)))) -> 0 | GD27: =IF(BJ27=Listedechoix!$A$1,20,IF(BJ27=Listedechoix!$A$2,15,IF(BJ27=Listedechoix!$A$3,10,IF(BJ27=Listedechoix!$A$4,5,0)))) -> 0 | GE27: =IF(BK27=Listedechoix!$A$1,20,IF(BK27=Listedechoix!$A$2,15,IF(BK27=Listedechoix!$A$3,10,IF(BK27=Listedechoix!$A$4,5,0)))) -> 0 | GF27: =IF(BL27=Listedechoix!$A$1,20,IF(BL27=Listedechoix!$A$2,15,IF(BL27=Listedechoix!$A$3,10,IF(BL27=Listedechoix!$A$4,5,0)))) -> 0 | GG27: =IF(BM27=Listedechoix!$A$1,20,IF(BM27=Listedechoix!$A$2,15,IF(BM27=Listedechoix!$A$3,10,IF(BM27=Listedechoix!$A$4,5,0)))) -> 0 | GH27: =IF(BN27=Listedechoix!$A$1,20,IF(BN27=Listedechoix!$A$2,15,IF(BN27=Listedechoix!$A$3,10,IF(BN27=Listedechoix!$A$4,5,0)))) -> 0 | GI27: NNot | GJ27: NNot | GK27: =IF(BO27=Listedechoix!$A$1,20,IF(BO27=Listedechoix!$A$2,15,IF(BO27=Listedechoix!$A$3,10,IF(BO27=Listedechoix!$A$4,5,0)))) -> 0 | GL27: =IF(BP27=Listedechoix!$A$1,20,IF(BP27=Listedechoix!$A$2,15,IF(BP27=Listedechoix!$A$3,10,IF(BP27=Listedechoix!$A$4,5,0)))) -> 0 | GM27: =IF(BQ27=Listedechoix!$A$1,20,IF(BQ27=Listedechoix!$A$2,15,IF(BQ27=Listedechoix!$A$3,10,IF(BQ27=Listedechoix!$A$4,5,0)))) -> 0 | GN27: =IF(BR27=Listedechoix!$A$1,20,IF(BR27=Listedechoix!$A$2,15,IF(BR27=Listedechoix!$A$3,10,IF(BR27=Listedechoix!$A$4,5,0)))) -> 0 | GO27: =IF(BS27=Listedechoix!$A$1,20,IF(BS27=Listedechoix!$A$2,15,IF(BS27=Listedechoix!$A$3,10,IF(BS27=Listedechoix!$A$4,5,0)))) -> 0 | GP27: =IF(BT27=Listedechoix!$A$1,20,IF(BT27=Listedechoix!$A$2,15,IF(BT27=Listedechoix!$A$3,10,IF(BT27=Listedechoix!$A$4,5,0)))) -> 0 | GQ27: =IF(BU27=Listedechoix!$A$1,20,IF(BU27=Listedechoix!$A$2,15,IF(BU27=Listedechoix!$A$3,10,IF(BU27=Listedechoix!$A$4,5,0)))) -> 0 | GR27: =IF(BV27=Listedechoix!$A$1,20,IF(BV27=Listedechoix!$A$2,15,IF(BV27=Listedechoix!$A$3,10,IF(BV27=Listedechoix!$A$4,5,0)))) -> 0 | GS27: =IF(BW27=Listedechoix!$A$1,20,IF(BW27=Listedechoix!$A$2,15,IF(BW27=Listedechoix!$A$3,10,IF(BW27=Listedechoix!$A$4,5,0)))) -> 0 | GT27: =IF(BX27=Listedechoix!$A$1,20,IF(BX27=Listedechoix!$A$2,15,IF(BX27=Listedechoix!$A$3,10,IF(BX27=Listedechoix!$A$4,5,0)))) -> 0 | GU27: =IF(BY27=Listedechoix!$A$1,20,IF(BY27=Listedechoix!$A$2,15,IF(BY27=Listedechoix!$A$3,10,IF(BY27=Listedechoix!$A$4,5,0)))) -> 0 | GV27: NNot | GW27: NNot | GX27: =IF(BZ27=Listedechoix!$A$1,20,IF(BZ27=Listedechoix!$A$2,15,IF(BZ27=Listedechoix!$A$3,10,IF(BZ27=Listedechoix!$A$4,5,0)))) -> 0 | GY27: =IF(CA27=Listedechoix!$A$1,20,IF(CA27=Listedechoix!$A$2,15,IF(CA27=Listedechoix!$A$3,10,IF(CA27=Listedechoix!$A$4,5,0)))) -> 0 | GZ27: =IF(CB27=Listedechoix!$A$1,20,IF(CB27=Listedechoix!$A$2,15,IF(CB27=Listedechoix!$A$3,10,IF(CB27=Listedechoix!$A$4,5,0)))) -> 0 | HA27: =IF(CC27=Listedechoix!$A$1,20,IF(CC27=Listedechoix!$A$2,15,IF(CC27=Listedechoix!$A$3,10,IF(CC27=Listedechoix!$A$4,5,0)))) -> 0 | HB27: =IF(CD27=Listedechoix!$A$1,20,IF(CD27=Listedechoix!$A$2,15,IF(CD27=Listedechoix!$A$3,10,IF(CD27=Listedechoix!$A$4,5,0)))) -> 0 | HC27: =IF(CE27=Listedechoix!$A$1,20,IF(CE27=Listedechoix!$A$2,15,IF(CE27=Listedechoix!$A$3,10,IF(CE27=Listedechoix!$A$4,5,0)))) -> 0 | HD27: =IF(CF27=Listedechoix!$A$1,20,IF(CF27=Listedechoix!$A$2,15,IF(CF27=Listedechoix!$A$3,10,IF(CF27=Listedechoix!$A$4,5,0)))) -> 0 | HE27: =IF(CG27=Listedechoix!$A$1,20,IF(CG27=Listedechoix!$A$2,15,IF(CG27=Listedechoix!$A$3,10,IF(CG27=Listedechoix!$A$4,5,0)))) -> 0 | HF27: =IF(CH27=Listedechoix!$A$1,20,IF(CH27=Listedechoix!$A$2,15,IF(CH27=Listedechoix!$A$3,10,IF(CH27=Listedechoix!$A$4,5,0)))) -> 0 | HG27: =IF(CI27=Listedechoix!$A$1,20,IF(CI27=Listedechoix!$A$2,15,IF(CI27=Listedechoix!$A$3,10,IF(CI27=Listedechoix!$A$4,5,0)))) -> 0 | HH27: =IF(CJ27=Listedechoix!$A$1,20,IF(CJ27=Listedechoix!$A$2,15,IF(CJ27=Listedechoix!$A$3,10,IF(CJ27=Listedechoix!$A$4,5,0)))) -> 0 | HI27: =IF(CK27=Listedechoix!$A$1,20,IF(CK27=Listedechoix!$A$2,15,IF(CK27=Listedechoix!$A$3,10,IF(CK27=Listedechoix!$A$4,5,0)))) -> 0 | HJ27: =IF(CL27=Listedechoix!$A$1,20,IF(CL27=Listedechoix!$A$2,15,IF(CL27=Listedechoix!$A$3,10,IF(CL27=Listedechoix!$A$4,5,0)))) -> 0 | HK27: =IF(CM27=Listedechoix!$A$1,20,IF(CM27=Listedechoix!$A$2,15,IF(CM27=Listedechoix!$A$3,10,IF(CM27=Listedechoix!$A$4,5,0)))) -> 0 | HL27: NNot | HM27: NNot
